Workbook

Sheet School Formula Budget 2018-19
C1: Early Years, Schools and High Needs Block Formula Budgets 2018/19
L3: =VLOOKUP(B5,'School & Nursery Setting Lookup'!A:G,5,FALSE) -> 6
B4: Please select your School or Nursery Setting Name in the cell below | F4: DfE No or Ofsted ID | H4: Setting Type
B5: All Schools | F5: =VLOOKUP(B5,'School & Nursery Setting Lookup'!A:E,3,FALSE) -> All | H5: =VLOOKUP(B5,'School & Nursery Setting Lookup'!A:G,4,FALSE) -> 6
C7: Early Years Nursery Funding 2018/19
B10: 1. Base Rate(s) per hour, per provider type. Setting Type | D10: Amount (£) | E10: May 2018 Term Hours | F10: Oct 2018 Term Hours | G10: Jan 2019 Term Hours | H10: Anticipated Total Budget (£) | L10: May 2018 Term Hours | M10: Oct 2018 Term Hours | N10: Jan 2019 Term Hours | P10: Anticipated Total Budget (£)
B11: M = Maintained Nursery at a School / Academy | C11: 4.11 | D11: per hour | E11: =IF($L$3=1,L11,0)+IF(L3=6,T11) -> 374592 | F11: =IF($L$3=1,M11,0)+IF(L3=6,U11) -> 305389 | G11: =IF($L$3=1,N11,0)+IF(L3=6,V11) -> 298812 | H11: =IF($H$5=6,Q11,R11) -> 4022839.23 | L11: =VLOOKUP($F$5,'2018-19 Nursery Budget'!$D:$DY,124,FALSE) -> 1116842.5 | M11: =VLOOKUP($F$5,'2018-19 Nursery Budget'!$D:$DY,125,FALSE) -> 924878.76 | N11: =VLOOKUP($F$5,'2018-19 Nursery Budget'!$D:$DY,126,FALSE) -> 994707.5 | P11: ='2018-19 Nursery Budget'!EC219 -> 4022839.23 | Q11: =IF(F$5=12345,0,P11) -> 4022839.23 | R11: =SUM($E11+$F11+$G11)*$C11 -> 4022839.23 | T11: ='2018-19 Nursery Budget'!DW219 -> 374592 | U11: ='2018-19 Nursery Budget'!DX219 -> 305389 | V11: ='2018-19 Nursery Budget'!DY219 -> 298812
B12: S = Stand Alone Maintained Nursery School | C12: 4.11 | E12: =IF($L$3=2,L12,0)+IF(L3=6,T12) -> 102192 | F12: =IF($L$3=2,M12,0)+IF(L3=6,U12) -> 92764 | G12: =IF($L$3=2,N12,0)+IF(L3=6,V12) -> 91212 | H12: =IF($H$5=6,Q12,R12) -> 1176150.48 | L12: =VLOOKUP($F$5,'2018-19 Nursery Budget'!$D:$DY,124,FALSE) -> 1116842.5 | M12: =VLOOKUP($F$5,'2018-19 Nursery Budget'!$D:$DY,125,FALSE) -> 924878.76 | N12: =VLOOKUP($F$5,'2018-19 Nursery Budget'!$D:$DY,126,FALSE) -> 994707.5 | P12: ='2018-19 Nursery Budget'!EC220 -> 1176150.48 | Q12: =IF(F$5=12345,0,P12) -> 1176150.48 | R12: =SUM($E12+$F12+$G12)*$C12 -> 1176150.48 | T12: ='2018-19 Nursery Budget'!DW220 -> 102192 | U12: ='2018-19 Nursery Budget'!DX220 -> 92764 | V12: ='2018-19 Nursery Budget'!DY220 -> 91212
B13: P = Pre School | C13: 4.11 | E13: =IF($L$3=3,L13,0)+IF(L3=6,T13) -> 345383 | F13: =IF($L$3=3,M13,0)+IF(L3=6,U13) -> 306724.5 | G13: =IF($L$3=3,N13,0)+IF(L3=6,V13) -> 335176 | H13: =IF($H$5=6,Q13,R13) -> 4057735.185 | L13: =VLOOKUP($F$5,'2018-19 Nursery Budget'!$D:$DY,124,FALSE) -> 1116842.5 | M13: =VLOOKUP($F$5,'2018-19 Nursery Budget'!$D:$DY,125,FALSE) -> 924878.76 | N13: =VLOOKUP($F$5,'2018-19 Nursery Budget'!$D:$DY,126,FALSE) -> 994707.5 | P13: ='2018-19 Nursery Budget'!EC221 -> 4057735.185 | Q13: 4057735.185 | R13: 4057735.185 | T13: ='2018-19 Nursery Budget'!DW221 -> 345383 | U13: ='2018-19 Nursery Budget'!DX221 -> 306724.5 | V13: ='2018-19 Nursery Budget'!DY221 -> 335176
B14: D = Day Nursery | C14: 4.11 | E14: =IF($L$3=4,L14,0)+IF(L3=6,T14) -> 294675.5 | F14: =IF($L$3=4,M14,0)+IF(L3=6,U14) -> 220001.26 | G14: =IF($L$3=4,N14,0)+IF(L3=6,V14) -> 269507.5 | H14: =IF($H$5=6,Q14,R14) -> 3222997.309 | L14: =VLOOKUP($F$5,'2018-19 Nursery Budget'!$D:$DY,124,FALSE) -> 1116842.5 | M14: =VLOOKUP($F$5,'2018-19 Nursery Budget'!$D:$DY,125,FALSE) -> 924878.76 | N14: =VLOOKUP($F$5,'2018-19 Nursery Budget'!$D:$DY,126,FALSE) -> 994707.5 | P14: ='2018-19 Nursery Budget'!EC222 -> 3222997.309 | Q14: 3222997.309 | R14: =SUM($E14+$F14+$G14)*$C14 -> 3222997.309 | T14: ='2018-19 Nursery Budget'!DW222 -> 294675.5 | U14: ='2018-19 Nursery Budget'!DX222 -> 220001.26 | V14: ='2018-19 Nursery Budget'!DY222 -> 269507.5
B15: Deprivation (Mandatory) Supplement | C15: Amount (£) | D15: Unit | E15: May 2017 Term Unit Hours | F15: Oct 2017 Term Unit Hours | G15: Jan 2018 Term Unit Hours | H15: Anticipated Total Budget (£)
B16: Free School Meals | C16: 0.2 | D16: per hour | E16: =IF($L$3=0,0,L16) -> 185194 | F16: =IF($L$3=0,0,M16) -> 149623 | G16: 161695 | H16: =SUM(E16+F16+G16)*C16 -> 99302.4 | L16: =VLOOKUP($F$5,'2018-19 Nursery Budget'!$ED:$EH,2,FALSE) -> 185194 | M16: =VLOOKUP($F$5,'2018-19 Nursery Budget'!$ED:$EH,3,FALSE) -> 149623 | N16: =VLOOKUP($F$5,'2018-19 Nursery Budget'!$ED:$EH,4,FALSE) -> 161695 | P16: ='2018-19 Nursery Budget'!EH214 -> 99301
B17: IMD - top 20% most deprived | C17: 0.6 | D17: per hour | E17: =IF($L$3=0,0,L17) -> 395600 | F17: 316713 | G17: 337012 | H17: =SUM(E17+F17+G17)*C17 -> 629595 | L17: =VLOOKUP($F$5,'2018-19 Nursery Budget'!$ED:$ER,7,FALSE) -> 395600 | M17: =VLOOKUP($F$5,'2018-19 Nursery Budget'!$ED:$ER,8,FALSE) -> 316713 | N17: =VLOOKUP($F$5,'2018-19 Nursery Budget'!$ED:$ER,9,FALSE) -> 337012 | P17: ='2018-19 Nursery Budget'!EM214 -> 629593
B18: IMD - 20% to 40% most deprived | C18: 0.2 | D18: per hour | E18: =IF($L$3=0,0,L18) -> 294470 | F18: =IF($L$3=0,0,M18) -> 239684 | G18: =IF($L$3=0,0,N18) -> 256298 | H18: =SUM(E18+F18+G18)*C18 -> 158090.4 | L18: =VLOOKUP($F$5,'2018-19 Nursery Budget'!$ED:$ER,11,FALSE) -> 294470 | M18: =VLOOKUP($F$5,'2018-19 Nursery Budget'!$ED:$ER,12,FALSE) -> 239684 | N18: =+VLOOKUP($F$5,'2018-19 Nursery Budget'!$ED:$ER,13,FALSE) -> 256298 | P18: ='2018-19 Nursery Budget'!EQ214 -> 158092
B19: EAL | C19: 0.2 | D19: per hour | E19: =IF($L$3=0,0,L19) -> 196017 | F19: 156506 | G19: 160726 | H19: =SUM(E19+F19+G19)*C19 -> 102649.8 | L19: =VLOOKUP($F$5,'2018-19 Nursery Budget'!$ED:$EY,20,FALSE) -> 196017 | M19: =VLOOKUP($F$5,'2018-19 Nursery Budget'!$ED:$EY,21,FALSE) -> 156506 | N19: =VLOOKUP($F$5,'2018-19 Nursery Budget'!$ED:$EY,22,FALSE) -> 160726 | P19: ='2018-19 Nursery Budget'!EZ214 -> 102653
B20: Other Supplements | C20: Amount (£) | D20: Unit | E20: Number of units | H20: Anticipated Total Budget (£)
B21: Disability Access Fund (see guidance notes) | C21: =IF(L3=6,67650,0) -> 67650 | D21: lump sum | E21: =+IF(L3=6,1,0) -> 1 | H21: =IF(H5=6,56580,0) -> 56580
B22: SEN Locality Funding (see guidance notes) | C22: =IF(L3=6,250000,0) -> 250000 | D22: lump sum | E22: =+IF(L3=6,1,0) -> 1 | H22: =IF(H5=6,250000,0) -> 250000
B23: 3. Other formula factors and lump sums (if applicable) | C23: Amount (£) | D23: Unit | E23: Number of units | H23: Anticipated Total Budget (£)
B24: Base for Stand Alone Maintained Nurseries | C24: 100000 | D24: lump sum | E24: =IF($L$3=2,1,0) -> 0 | H24: =IF(L3=6,700000,$E24*$C24) -> 700000
B25: Stand Alone Maintained Nursery Supplement Funding | C25: 1.49 | D25: per hour | E25: =IF($L$3=2,VLOOKUP(F$5,'2018-19 Nursery Budget'!$DV:$DY,2,FALSE),"-") -> - | F25: =IF($L$3=2,VLOOKUP(F$5,'2018-19 Nursery Budget'!$DV:$DY,3,FALSE),"-") -> - | G25: =IF($L$3=2,VLOOKUP(F$5,'2018-19 Nursery Budget'!$DV:$DY,4,FALSE),"-") -> - | H25: =IF(L3=6,VLOOKUP(F5,'2018-19 Nursery Budget'!DV:FE,36,FALSE),(SUM(E25:G25)*C25)) -> 426396.32
B26: TOTAL FUNDING FOR EARLY YEARS SINGLE FUNDING FORMULA excluding Rates* | H26: =SUM(H11:H25) -> 14902336.12
B27: *Please note Early Years budgets are adjusted for actual hour take up in year
C30: High Needs Formula Budget 2018/19
D34: TA Hours funding (£) | G34: Number | H34: Total (£)
B35: TA Hours | C35: Schools to be notified separately. Not part of base budget | E35: 0 | G35: 0 | H35: =$G35*$E35 -> 0
D36: Element 1 & 2 Place Rate | G36: Number | H36: Total (£)
B37: Element 2 (Place led funding) - ERS Nursery | C37: See Separate breakdown | E37: 10000 | G37: =(SUMIF('ERS 2018-19'!B:B,'School Formula Budget 2018-19'!F$5,'ERS 2018-19'!J:J)) -> 25.2055 | H37: =$G37*$E37 -> 252055
D38: Element 1 & 2 Place Rate | G38: Number | H38: Total (£)
B39: Element 2 (Place led funding) - ERS Pre 16 | C39: See Separate breakdown | E39: 6000 | G39: =SUMIF('ERS 2018-19'!B:B,'School Formula Budget 2018-19'!F$5,'ERS 2018-19'!K:K)+SUMIF('ERS 2018-19'!B:B,'School Formula Budget 2018-19'!F$5,'ERS 2018-19'!L:L) -> 220 | H39: =$G39*$E39 -> 1320000
D40: Element 1 & 2 Place Rate | G40: Places | H40: Total (£)
B41: Element 2 (Place led funding) - ERS Post 16 | C41: See Separate breakdown | E41: 6000 | G41: =(SUMIF('ERS 2018-19'!B:B,'School Formula Budget 2018-19'!F$5,'ERS 2018-19'!M:M)) -> 9 | H41: =$G41*$E41 -> 54000
D42: Indicative Element 3 Pupils (banding) funding | G42: Number | H42: Total (£)
B43: Element 3 - Derby City Pupils (banding) funding Pre & Post 16* | C43: See Separate breakdown | E43: =SUMIF('ERS 2018-19'!B:B,F5,'ERS 2018-19'!S:S) -> 1414540 | G43: 1 | H43: =$G43*$E43 -> 1414540
D44: Other Funding | G44: Number | H44: Total (£)
B45: ERS - Other | C45: See Separate breakdown | E45: =SUMIF('ERS 2018-19'!B:B,F5,'ERS 2018-19'!T:T) -> 27662 | G45: 1 | H45: =$G45*$E45 -> 27662
G46: Number | H46: Total (£)
B47: High Needs Funding from Derby City / EFA* | C47: Including both Pre 16 & Post 16 Funding | H47: =H43+H45+H35+H37+H39+H41 -> 3068257
D49: ERS Pupil Top up funding | G49: Number | H49: Total (£)
B50: Other LA Top up funding (Income not Budget)* | C50: See Separate breakdown | E50: =SUMIF('ERS 2018-19'!B:B,F5,'ERS 2018-19'!X:X) -> 78000 | G50: 1 | H50: =$G50*$E50 -> 78000
B53: *Please note that High Needs top up funding follows the pupil, therefore funding will be adjusted in year where there are pupil movements
B56: =B5 -> All Schools | F56: =F5 -> All | H56: =H5 -> 6
C58: Schools Block Funding 2018/19
B62: Factor | C62: Description | D62: Primary amount per pupil | E62: Secondary KS3 amount per pupil | F62: Secondary KS4 amount per pupil | G62: Number of Pupils (Net of High Needs Places) | H62: Sub total (£) | I62: Delegated SEN % | J62: Delegated SEN funding within School Budget £
B63: 1) Basic Entitlement - Age Weighted Pupil Funding (AWPU) | C63: Primary (including reception) | D63: 2662.37 | G63: =VLOOKUP($F$5,AWPU!$B:$M,9,FALSE) -> 23623.83333 | H63: =G63*D63 -> 62895385.15 | I63: 0.12 | J63: =D63*G63*I63 -> 7547446.218
C64: Key Stage 3 | E64: 3744.37 | G64: =VLOOKUP($F$5,AWPU!$B:$M,10,FALSE) -> 9187 | H64: =G64*E64 -> 34399527.19 | I64: 0.097 | J64: =E64*G64*I64 -> 3336754.137
C65: Key Stage 4 | F65: 4251.3701 | G65: =VLOOKUP($F$5,AWPU!$B:$M,11,FALSE) -> 5562 | H65: =G65*F65 -> 23646120.5 | I65: 0.0863 | J65: =F65*G65*I65 -> 2040660.199 | L65: Prim | M65: Sec
F66: Total | G66: =SUM(G63:G65) -> 38372.83333 | H66: =SUM(H63:H65) -> 120941032.8 | J66: =SUM(J63:J65) -> 12924860.55 | L66: =G66 -> 38372.83333 | M66: =G64+G65 -> 14749
B68: De-delegation - see separate breakdown | C68: Primary (including reception) | D68: ='DE-DEL'!B123*-1 -> -70.218 | G68: =VLOOKUP($F$5,'DE-DEL'!$B:$M,9,FALSE) -> 18553.70833 | H68: =G68*D68 -> -1302804.292
C69: Secondary | E69: ='DE-DEL'!C123*-1 -> -57.218 | F69: =E69 -> -57.218 | G69: =VLOOKUP($F$5,'DE-DEL'!$B:$M,10,FALSE)+VLOOKUP($F$5,'DE-DEL'!$B:$M,11,FALSE) -> 3059 | H69: =G69*F69 -> -175029.862
F70: Total | G70: =SUM(G68:G69) -> 21612.70833 | H70: =SUM(H68:H69) -> -1477834.154
D71: Primary amount per pupil | E71: Secondary amount per pupil | F71: Number of eligible primary pupils | G71: Number of eligible secondary pupils | H71: Sub total (£) | I71: Notional SEN % | J71: Notional SEN within School Budget £
B72: 2) Deprivation | N72: =SUM(E11+F11+G11)*"C11" ->  | Q72: 17742138.39 | R72: Bemrose | T72: Adj
C73: FSM Ever 6 | D73: =DEP!C2 -> 524 | E73: =DEP!C3 -> 761 | F73: =VLOOKUP($F$5,DEP!$B:$AG,17,FALSE) -> 6789.623535 | G73: =VLOOKUP($F$5,DEP!$B:$AG,18,FALSE)+IF($F$5=4177,DEP!S104) -> 4941.943895 | H73: =$D73*$F73+($E73*$G73) -> 7318582.037 | I73: 0.3525 | J73: =I73*H73 -> 2579800.168 | L73: =DEP!R107 -> 6789.623535 | M73: =DEP!S107 -> 4941.943895 | R73: 92.66225166 | S73: 412.0506706 | T73: 306.6276423 | U73: =S73-T73 -> 105.4230284
C74: FSM Current | D74: =DEP!D2 -> 427 | E74: =DEP!D3 -> 427 | F74: =VLOOKUP($F$5,DEP!$B:$AG,19,FALSE) -> 4111.524126 | G74: =VLOOKUP($F$5,DEP!$B:$AG,20,FALSE)+IF($F$5=4177,DEP!U104) -> 2174.79524 | H74: =$D74*$F74+($E74*$G74) -> 2684258.369 | I74: 0.3525 | J74: =I74*H74 -> 946201.0751
C75: IDACI Band F 0.2 - 0.25 | D75: =DEP!E2 -> 194 | E75: =DEP!E3 -> 281 | F75: =VLOOKUP($F$5,DEP!$B:$AG,21,FALSE) -> 2274.875028 | G75: =VLOOKUP($F$5,DEP!$B:$AG,22,FALSE)+IF($F$5=4177,DEP!W104) -> 1377.366805 | H75: =$D75*$F75+($E75*$G75) -> 828365.8278 | I75: 0.3525 | J75: 291998.9543 | L75: =DEP!V107 -> 2274.875028 | M75: =DEP!W107 -> 1377.366805 | R75: 21.16981132 | S75: 54.55524862 | T75: 9.296235679 | U75: =S75-T75 -> 45.25901294
C76: IDACI Band E 0.25 - 0.3 | D76: =DEP!F2 -> 233 | E76: =DEP!F3 -> 378 | F76: =VLOOKUP($F$5,DEP!$B:$AG,23,FALSE) -> 2024.343689 | G76: =VLOOKUP($F$5,DEP!$B:$AG,24,FALSE)+IF($F$5=4177,DEP!Y104) -> 1210.09233 | H76: 929086.9804 | I76: 0.3525 | J76: 327503.1606 | L76: =DEP!X107 -> 2024.343689 | M76: =DEP!Y107 -> 1210.09233 | R76: 46.0754717 | S76: 32.92127072 | T76: 109.695581 | U76: -76.7743103
C77: IDACI Band D 0.3 - 0.35 | D77: =DEP!G2 -> 349 | E77: =DEP!G3 -> 500 | F77: =VLOOKUP($F$5,DEP!$B:$AG,25,FALSE) -> 2249.351442 | G77: =VLOOKUP($F$5,DEP!$B:$AG,26,FALSE)+IF($F$5=4177,DEP!AA104) -> 1168.719254 | H77: 1369383.28 | I77: 0.3525 | J77: 482707.6062 | L77: =DEP!Z107 -> 2249.351442 | M77: =DEP!AA107 -> 1168.719254 | R77: 26.1509434 | S77: 81.83287293 | T77: 158.0360065 | U77: -76.20313362
C78: IDACI Band C 0.35 - 0.4 | D78: =DEP!H2 -> 378 | E78: =DEP!H3 -> 543 | F78: =VLOOKUP($F$5,DEP!$B:$AG,27,FALSE) -> 2893.464108 | G78: =VLOOKUP($F$5,DEP!$B:$AG,28,FALSE)+IF($F$5=4177,DEP!AC104) -> 1628.742681 | H78: 1978136.709 | I78: 0.3525 | J78: 697293.1898 | L78: =DEP!AB107 -> 2893.464108 | M78: =DEP!AC107 -> 1628.742681 | R78: 85.9245283 | S78: 211.6367403 | T78: 153.3878887 | U78: 58.24885162
C79: IDACI Band B 0.4 - 0.5 | D79: =DEP!I2 -> 407 | E79: =DEP!I3 -> 582 | F79: =VLOOKUP($F$5,DEP!$B:$AG,29,FALSE) -> 3991.488503 | G79: =VLOOKUP($F$5,DEP!$B:$AG,30,FALSE)+IF($F$5=4177,DEP!AE104) -> 2141.539539 | H79: 2870911.833 | I79: 0.3525 | J79: 1011996.421 | L79: =DEP!AD107 -> 3991.488503 | M79: =DEP!AE107 -> 2141.539539 | R79: 31.13207547 | S79: 221.0428177 | T79: 56.70703764 | U79: 164.33578
C80: IDACI Band A 0.5 -1.0 | D80: =DEP!J2 -> 558 | E80: =DEP!J3 -> 786 | F80: =VLOOKUP($F$5,DEP!$B:$AG,31,FALSE) -> 1326.596775 | G80: =VLOOKUP($F$5,DEP!$B:$AG,32,FALSE)+IF($F$5=4177,DEP!AG104) -> 708.5261288 | H80: 1297142.538 | I80: 0.3525 | J80: =I80*H80 -> 457242.7445 | L80: =DEP!AF107 -> 1326.596775 | M80: =DEP!AG107 -> 708.5261288 | R80: 4.981132075 | S80: 35.74309392 | T80: 46.4811784 | U80: -10.73808447
E81: Total | F81: =SUM(F72:F80) -> 25661.26721 | G81: =SUM(G72:G80) -> 15351.72587 | H81: =SUM(H72:H80) -> 19275867.57 | J81: =SUM(J73:J80) -> 6794743.32
D82: Amount per pupil | G82: Number of Pupils | H82: Total (£) | J82: Total (£)
B83: 3) Low cost, high incidence SEN (Prior Attainment) | C83: Primary Low prior attainment | E83: 1019 | G83: =VLOOKUP($F$5,LCHI!B:C,2,FALSE) -> 4878.220683 | H83: =$G83*$E83 -> 4970906.876 | I83: 0.3525 | J83: =I83*H83 -> 1752244.674
C84: Secondary pupils not achieving (KS2 English or Maths) | E84: 1504 | G84: =VLOOKUP($F$5,LCHI!B:D,3,FALSE) -> 3584.686793 | H84: =$G84*$E84 -> 5391368.937 | I84: 0.3525 | J84: =I84*H84 -> 1900457.55
D85: Amount per pupil | G85: Number of Pupils | H85: Total (£) | J85: Total (£)
B86: 4) English as an Additional Language | C86: Primary pupils EAL funded for first 3 years in Statutory Education | E86: 500 | G86: =VLOOKUP($F$5,EAL!B:D,2,FALSE) -> 4212.489527 | H86: =$G86*$E86 -> 2106244.763 | I86: 0.4005 | J86: =I86*H86 -> 843551.0278
C87: Secondary pupils EAL funded for first 3 years in Statutory Education | E87: 1343 | G87: =VLOOKUP($F$5,EAL!B:D,3,FALSE) -> 535.7224129 | H87: =$G87*$E87 -> 719475.2006 | I87: 0.4005 | J87: =I87*H87 -> 288149.8178
D88: % of NOR | E88: Amount per pupil | G88: Number of Pupils | H88: Total (£) | J88: Total (£)
B89: 5) Mobility | C89: Primary pupils included in the October School Census who did not start in August or September (Last 3 academic years) | D89: =VLOOKUP($F$5,'2017 Factor % to units'!B:G,5,FALSE) ->  | E89: 1164 | G89: =VLOOKUP($F$5,MOB!$B:$D,2,FALSE) -> 505.2806262 | H89: =$G89*$E89 -> 588146.6488 | I89: 1 | J89: =I89*H89 -> 588146.6488
B90: Mobility is calculated after deducting 10% threshold level | C90: Secondary pupils included in the October School Census who did not start in August or September (Last 3 academic years) | D90: =VLOOKUP($F$5,'2017 Factor % to units'!B:G,6,FALSE) ->  | E90: 1960 | G90: =VLOOKUP($F$5,MOB!B:D,3,FALSE) -> 54.5 | H90: =$G90*$E90 -> 106820 | I90: 1 | J90: =I90*H90 -> 106820
D91: Amount of lump sum | G91: Number | H91: Total (£)
B92: 6) Lump Sum | E92: =VLOOKUP($F$5,'Summary for Prints'!B:AB,8,FALSE) -> 9601166.667 | G92: 1 | H92: =$G92*$E92 -> 9601166.667
D93: Amount of split site funding | G93: Number | H93: Total (£)
B94: 7) Split Site | E94: 0 | G94: 1 | H94: =$G94*$E94 -> 0
D95: Amount of PFI funding | G95: Number | H95: Total (£)
B96: PFI to be paid back to the LA | E96: =VLOOKUP($F$5,'Summary for Prints'!B:AB,11,FALSE) -> 1108450 | G96: 1 | H96: =$G96*$E96 -> 1108450
D97: Minimum Funding Guarantee (0%) | G97: Number | H97: Total (£)
B98: Minimum Funding Guarantee | E98: =VLOOKUP($F$5,'Summary for Prints'!B:AB,13,FALSE) -> 176389.2438 | G98: 1 | H98: =$G98*$E98 -> 176389.2438 | J98: Total Delegated SEN funding within the School Budget
D99: CAP | G99: Number | H99: Total (£)
B100: Schools Block Total excluding Rates | H100: =H66+H81+H83+H84+H86+H87+H89+H90+H92+H94+H96+H98+H70 -> 163508034.6 | J100: =J66+J81+J83+J84+J86+J87+J89+J90+J92+J94+J96+J70 -> 25198973.59
B102: Additional Funding | C102: KS1 Class Factor
G104: Number | H104: Total (£)
B105: KS1 Class Factor (Teacher required for 1:30 pupils ratio) | E105: =VLOOKUP($F$5,'Summary for Prints'!B:AB,19,FALSE) -> 882530.17 | G105: 1 | H105: =$G105*$E105 -> 882530.17
C107: RATES
G109: Number | H109: Total (£)
B110: RATES 2018-19 (Including previous year adjustments) | E110: =VLOOKUP($F$5,'Summary for Prints'!B:AB,10,FALSE) -> 1717559.225 | G110: 1 | H110: =$G110*$E110 -> 1717559.225
B113: School Budget INCLUDING Early Years, Schools Block and High Needs (excl other LA Top up), KS1 Class Factor, Contingency, & INCLUDING RATES | I113: =$H26+$H47+$H100+$H105+$H110 -> 184078717.1 | K113: ='Summary for Prints'!AJ154+'Summary for Prints'!AK506 -> 0 | L113: =K113-I113 -> -184078717.1
B115: School Budget INCLUDING Early Years, Schools Block and High Needs (excl other LA Top up), KS1 Class Factor, Contingency, & EXCLUDING RATES | I115: =I113-H110 -> 182361157.9 | K115: ='Summary for Prints'!AJ154+'Summary for Prints'!AJ506 -> 0 | L115: =K115-I115 -> -182361157.9
C118: Sixth Form
D120: Indicative Sixth Form (not yet known) | G120: Number | H120: Total (£)
B121: Indicative Sixth Form | C121: Figures not yet confirmed | E121: 0 | G121: 1 | H121: =E121*G121 -> 0
C123: De-delegation from Maintained Schools 2018-19
D124: Primary Rate | E124: Secondary Rate | F124: Primary net NOR | G124: Secondary Net NOR | H124: Total (£)
B125: CFR code E23 | C125: Contingencies (SIFD & Contingencies) | D125: ='DE-DEL'!B115*-1 -> -6.44 | E125: ='DE-DEL'!C115*-1 -> -6.44 | F125: =VLOOKUP($F$5,'DE-DEL'!$B:$M,9,FALSE) -> 18553.70833 | G125: =VLOOKUP($F$5,'DE-DEL'!$B:$M,10,FALSE)+VLOOKUP($F$5,'DE-DEL'!$B:$M,11,FALSE) -> 3059 | H125: =D125*F125+E125*G125 -> -139185.8417
D126: Rate | E126: Rate | F126: Prim Net NOR | G126: Sec Net NOR | H126: Total (£)
B127: CFR Code E28 | C127: FSM | D127: 0 | E127: 0 | F127: =VLOOKUP($F$5,'DE-DEL'!$B:$M,9,FALSE) -> 18553.70833 | G127: =VLOOKUP($F$5,'DE-DEL'!$B:$M,10,FALSE)+VLOOKUP($F$5,'DE-DEL'!$B:$M,11,FALSE) -> 3059 | H127: =D127*F127+E127*G127 -> 0
D128: Rate | E128: Rate | F128: Prim Net NOR | G128: Sec Net NOR | H128: Total (£)
B129: CFR code E23 | C129: Insurance | D129: ='DE-DEL'!B117*-1 -> -13.948 | E129: ='DE-DEL'!C117*-1 -> -13.948 | F129: =VLOOKUP($F$5,'DE-DEL'!$B:$M,9,FALSE) -> 18553.70833 | G129: =VLOOKUP($F$5,'DE-DEL'!$B:$M,10,FALSE)+VLOOKUP($F$5,'DE-DEL'!$B:$M,11,FALSE) -> 3059 | H129: =D129*F129+E129*G129 -> -301454.0558
D130: Rate | E130: Rate | F130: Prim Net NOR | G130: Sec Net NOR | H130: Total (£)
B131: CFR code E19 | C131: Licences/Subscriptions | D131: ='DE-DEL'!B118 -> 0 | E131: ='DE-DEL'!C118 -> 0 | F131: =VLOOKUP($F$5,'DE-DEL'!$B:$M,9,FALSE) -> 18553.70833 | G131: =VLOOKUP($F$5,'DE-DEL'!$B:$M,10,FALSE)+VLOOKUP($F$5,'DE-DEL'!$B:$M,11,FALSE) -> 3059 | H131: =D131*F131+E131*G131 -> 0
D132: Rate | E132: Rate | F132: Prim Net NOR | G132: Sec Net NOR | H132: Total (£)
B133: CFR code E19 | C133: Staff Costs Supply | D133: ='DE-DEL'!B119*-1 -> -22.66 | E133: ='DE-DEL'!C119*-1 -> -22.66 | F133: =VLOOKUP($F$5,'DE-DEL'!$B:$M,9,FALSE) -> 18553.70833 | G133: =VLOOKUP($F$5,'DE-DEL'!$B:$M,10,FALSE)+VLOOKUP($F$5,'DE-DEL'!$B:$M,11,FALSE) -> 3059 | H133: =D133*F133+E133*G133 -> -489743.9708
D134: Rate | E134: Rate | F134: Prim Net NOR | G134: Sec Net NOR | H134: Total (£)
B135: CFR code E27 | C135: Support UAG and Bilingual | D135: ='DE-DEL'!B120*-1 -> -14.17 | E135: ='DE-DEL'!C120*-1 -> -14.17 | F135: =VLOOKUP($F$5,'DE-DEL'!$B:$M,9,FALSE) -> 18553.70833 | G135: =VLOOKUP($F$5,'DE-DEL'!$B:$M,10,FALSE)+VLOOKUP($F$5,'DE-DEL'!$B:$M,11,FALSE) -> 3059 | H135: =D135*F135+E135*G135 -> -306252.0771
D136: Rate | E136: Rate | F136: Prim Net NOR | G136: Sec Net NOR | H136: Total (£)
B137: CFR code E27 | C137: Behaviour Support | D137: ='DE-DEL'!B121*-1 -> -11.18 | E137: ='DE-DEL'!C121*-1 -> 0 | F137: =VLOOKUP($F$5,'DE-DEL'!$B:$M,9,FALSE) -> 18553.70833 | G137: =VLOOKUP($F$5,'DE-DEL'!$B:$M,10,FALSE)+VLOOKUP($F$5,'DE-DEL'!$B:$M,11,FALSE) -> 3059 | H137: =D137*F137+E137*G137 -> -207430.4592
D138: Rate | E138: Rate | F138: Prim Net NOR | G138: Sec Net NOR | H138: Total (£)
B139: CFR code E27 | C139: Museums | D139: ='DE-DEL'!B122*-1 -> -1.82 | E139: ='DE-DEL'!C122*-1 -> 0 | F139: =VLOOKUP($F$5,'DE-DEL'!$B:$M,9,FALSE) -> 18553.70833 | G139: =VLOOKUP($F$5,'DE-DEL'!$B:$M,10,FALSE)+VLOOKUP($F$5,'DE-DEL'!$B:$M,11,FALSE) -> 3059 | H139: =D139*F139+E139*G139 -> -33767.74917
H140: Total (£)
B141: CFR Code I01 | C141: LA Services De-delegated from maintained schools | H141: =H125+H127+H129+H131+H133+H135+H137+H139 -> -1477834.154
C146: Academies & other non maintained Schools - to be confirmed
D147: Primary Rate | E147: Secondary Rate | F147: Primary net NOR | G147: Secondary Net NOR | H147: Total (£)
C148: Staff Costs Supply | D148: -21.14 | E148: -21.14 | F148: =IF($H$141>0,,L$66) -> 38372.83333 | G148: =IF($H$141>0,,M$66) -> 14749 | H148: =D148*F148+E148*G148 -> -1122995.557
D149: Rate | E149: Rate | F149: Prim Net NOR | G149: Sec Net NOR | H149: Total (£)
C150: Support UAG and Bilingual | D150: -9.7 | E150: -11.93 | F150: =IF($H$141>0,,L$66) -> 38372.83333 | G150: =IF($H$141>0,,M$66) -> 14749 | H150: =D150*F150+E150*G150 -> -548172.0533
D151: Rate | E151: Rate | F151: Prim Net NOR | G151: Sec Net NOR | H151: Total (£)
C152: Behaviour Support - Secondary Hard to Place & Support to Inclusion | D152: -21.89 | E152: -16.8 | F152: =IF($H$141>0,,L$66) -> 38372.83333 | G152: =IF($H$141>0,,M$66) -> 14749 | H152: =D152*F152+E152*G152 -> -1087764.522
H153: Total (£)
C154: LA Services to be Invoiced to non maintained schools | H154: =H152+H150+H148 -> -2758932.132

Sheet Special Schools & PRU
A2: Please select your school in the cell below
A3: CLICK ON THE ARROW BUTTON TO SELECT YOUR SCHOOL FROM THE LIST
C4: DFE
C5: =VLOOKUP($A$3,'Special Schools List'!A:C,3,FALSE) -> All
A7: High Needs Formula Indicative 2018/19
B8: Places | C8: Rate | D8: Total (£)
A9: Element 1 & 2 (Place led funding) - Special Schools Pre 16 | B9: =SUMIF('Special Schools 2018-19'!C:C,C5,'Special Schools 2018-19'!K:K)+SUMIF('Special Schools 2018-19'!C:C,C5,'Special Schools 2018-19'!M:M) -> 561 | C9: 10000 | D9: =C9*B9 -> 5610000
B10: Places | C10: Rate | D10: Total (£)
A11: Element 1 & 2 (Place led funding) - Special Schools Post 16 | B11: =SUMIF('Special Schools 2018-19'!C:C,C5,'Special Schools 2018-19'!L:L)+SUMIF('Special Schools 2018-19'!C:C,C5,'Special Schools 2018-19'!N:N) -> 91 | C11: 10000 | D11: =C11*B11 -> 910000
B12: Places | D12: Total (£)
A13: Element 1 & 2 (Place led funding) - Alternative Provision | B13: =SUMIF('Special Schools 2018-19'!C:C,C5,'Special Schools 2018-19'!J:J) -> 96 | C13: 10000 | D13: =B13*C13 -> 960000
D14: Total (£)
A15: Element 3 - Derby City Pupils (banding) funding Pre 16* | B15: See separate breakdown sheet | D15: =SUMIF('Special Schools 2018-19'!$C:$C,$C$5,'Special Schools 2018-19'!$T:$T) -> 7463537.04
D16: Total (£)
A17: Element 3 - Derby City Pupils (banding) funding Post 16* | B17: See separate breakdown sheet | D17: =SUMIF('Special Schools 2018-19'!$C:$C,$C$5,'Special Schools 2018-19'!$U:$U) -> 847492
D18: Total (£)
A19: Residential Places | B19: See separate breakdown sheet | D19: =SUMIF('Special Schools 2018-19'!$C:$C,$C$5,'Special Schools 2018-19'!$W:$W) -> 372000
D20: Total (£)
A21: Other - Exceptional Payments | B21: See separate breakdown sheet | D21: =SUMIF('Special Schools 2018-19'!$C:$C,$C$5,'Special Schools 2018-19'!$X:$X) -> 131667
D22: Total (£)
A23: PFI | D23: =SUMIF('Special Schools 2018-19'!$C:$C,$C$5,'Special Schools 2018-19'!$Z:$Z) -> 91475.0416
D24: Total (£)
A25: High Needs Funding from Derby City LA / EFA* | D25: =D9+D11+D13+D15+D17+D21+D23+D19 -> 16386171.08
B26: No.of Pupils | D26: Total (£)
A27: Element 3 - Other LA (banding) funding (Income not Budget)* | B27: =SUMIF('Special Schools 2018-19'!C:C,C5,'Special Schools 2018-19'!M:M)+SUMIF('Special Schools 2018-19'!C:C,C5,'Special Schools 2018-19'!N:N) -> 44 | C27: See separate breakdown sheet | D27: =SUMIF('Special Schools 2018-19'!$C:$C,$C$5,'Special Schools 2018-19'!$AB:$AB) -> 399248
A29: *Please note that High Needs top up funding follows the pupil, therefore funding will be adjusted in year where there are pupil movements

Sheet Summary for Prints (hidden)
A1: School | B1: DfE Number | C1: AWPU inc delegated Budget £ | D1: Deprivation £ | E1: LAC £ | F1: LCHI SEN £ | G1: EAL £ | H1: Mobility £ | I1: Lump Sum £ | J1: Split Site £ | K1: Rates £ (based on 17-18 values) | L1: PFI £ | M1: Pre MFG Total | N1: MFG | O1: No Cap | P1: Budget before De-Delegation | Q1: ESG | R1: De-delegation tbc | S1: Net School budget | T1: KS1 Class Factor (link info From KS1 working papers) | U1: ERS | V1: TA & OOC TA Hours | W1: TA Hours OOC | X1: Sixth Form | Y1: Schools with Nurseries excl Rates, TA, ERS | Z1: Contingency | AA1: Total | AB1: Budget before de-delegation / NOR Funding per child - min fund £3,300- P, £4,600 - S & £3,842 - A | AE1: Lookup | AH1: 17/18 School budget before de-del incl KS1 | AI1: 17/18 MFG | AJ1: Variance 18/19 to 17/18 | AK1: Change - MFG | AL1: % change in year
A2: Akaal Primary School | B2: 2014 | C2: 314492.4562 | D2: 39553.6168 | E2: 0 | F2: 15046.17188 | G2: 50859.375 | H2: 10101.85714 | I2: 110000 | J2: 0 | K2: 878 | L2: 0 | M2: 540931.4771 | N2: 0 | O2: 0 | P2: 540931.4771 | Q2: 0 | R2: 0 | S2: 540931.4771 | T2: 6860.04 | Z2: 0 | AA2: 547791.5171 | AB2: 4579.314092 | AE2: 8312014 | AH2: 414758.0147 | AI2: 0 | AJ2: 133033.5023 | AK2: 0 | AL2: 0.2428542578
A3: Allenton Community Primary School | B3: 2012 | C3: 1022350.08 | D3: 327807.7651 | E3: 0 | F3: 95312.71171 | G3: 33441.44144 | H3: 150854.4 | I3: 110000 | J3: 0 | K3: 6919 | L3: 0 | M3: 1746685.398 | N3: -12480.76557 | O3: 0 | P3: 1734204.633 | Q3: 0 | R3: 0 | S3: 1734204.633 | T3: 14610.09 | Z3: 0 | AA3: 1748814.723 | AB3: 4516.157898 | AC3: 2012 new number | AE3: 8312400 | AH3: 1680325.354 | AI3: 0 | AJ3: 68489.3682 | AK3: -12480.76557 | AL3: 0.03916330719
A4: Alvaston Infant and Nursery School | B4: 2443 | C4: 708190.42 | D4: 124888.0606 | E4: 0 | F4: 35023.83146 | G4: 14777.77778 | H4: 0 | I4: 110000 | J4: 0 | K4: 17003.25 | L4: 0 | M4: 1009883.34 | N4: -6917.847565 | O4: 0 | P4: 1002965.492 | Q4: 0 | R4: -18677.988 | S4: 984287.5043 | T4: 13460.04 | Z4: 0 | AA4: 997747.5443 | AB4: 3770.546963 | AE4: 8312443 | AH4: 1014189.466 | AI4: 8663.600825 | AJ4: 2236.066319 | AK4: -15581.44839 | AL4: 0.002199931277
A5: Alvaston Junior School | B5: 2442 | C5: 950466.09 | D5: 186647.381 | E5: 0 | F5: 92563.86086 | G5: 7000 | H5: 0 | I5: 110000 | J5: 0 | K5: 17003.25 | L5: 0 | M5: 1363680.582 | N5: 0 | O5: 0 | P5: 1363680.582 | Q5: 0 | R5: -25067.826 | S5: 1338612.756 | T5: 0 | Z5: 0 | AA5: 1338612.756 | AB5: 3819.833563 | AE5: 8312442 | AH5: 1272782.176 | AI5: 0 | AJ5: 90898.40561 | AK5: 0 | AL5: 0.06665666932
A6: Arboretum Primary School | B6: 2629 | C6: 1400406.62 | D6: 331656.9535 | E6: 0 | F6: 179519.6807 | G6: 116953.5398 | H6: 3957.6 | I6: 110000 | J6: 0 | K6: 57451 | L6: 0 | M6: 2199945.394 | N6: 67288.78531 | O6: 0 | P6: 2267234.179 | Q6: 0 | R6: -36934.668 | S6: 2230299.511 | T6: 24140.16 | Z6: 0 | AA6: 2254439.671 | AB6: 4310.331139 | AE6: 8312629 | AH6: 2238244.508 | AI6: 0 | AJ6: 53129.83169 | AK6: 67288.78531 | AL6: 0.0231868843
A7: Ash Croft Primary School | B7: 2509 | C7: 620332.21 | D7: 111465.7089 | E7: 0 | F7: 45032.85418 | G7: 28842.23301 | H7: 41554.8 | I7: 110000 | J7: 0 | K7: 15985.75 | L7: 0 | M7: 973213.556 | N7: -5515.489401 | O7: 0 | P7: 967698.0666 | Q7: 0 | R7: -16360.794 | S7: 951337.2726 | T7: 5970.03 | Z7: 0 | AA7: 957307.3026 | AB7: 4153.210586 | AE7: 8312509 | AH7: 899478.2022 | AI7: 0 | AJ7: 74189.89443 | AK7: -5515.489401 | AL7: 0.07619628771
A8: Ashgate Primary School | B8: 2005 | C8: 865270.25 | D8: 210414.2979 | E8: 0 | F8: 63269.82849 | G8: 23214.28571 | H8: 19206 | I8: 110000 | J8: 0 | K8: 19249.25 | L8: 0 | M8: 1310623.912 | N8: 4694.740186 | O8: 0 | P8: 1315318.652 | Q8: 0 | R8: -22820.85 | S8: 1292497.802 | T8: 19950.15 | Z8: 0 | AA8: 1312447.952 | AB8: 4047.134315 | AE8: 8312005 | AH8: 1305625.233 | AI8: 0 | AJ8: 29643.56952 | AK8: 4694.740186 | AL8: 0.02220045093
A9: Asterdale Primary School | B9: 2464 | C9: 535136.37 | D9: 85372.04043 | E9: 0 | F9: 33182.96648 | G9: 561.452514 | H9: 0 | I9: 110000 | J9: 0 | K9: 15079.75 | L9: 0 | M9: 779332.5794 | N9: 0 | O9: 0 | P9: 779332.5794 | Q9: 0 | R9: -14113.818 | S9: 765218.7614 | T9: 10420.08 | Z9: 0 | AA9: 775638.8414 | AB9: 3877.276515 | AE9: 8312464 | AH9: 790974.7797 | AI9: 21462.51752 | AJ9: -1222.120264 | AK9: -21462.51752 | AL9: -0.001547472173
A10: Beaufort Community Primary School | B10: 2004 | C10: 790723.89 | D10: 254426.259 | E10: 0 | F10: 68767.215 | G10: 12474 | H10: 13153.2 | I10: 110000 | J10: 0 | K10: 18756.625 | L10: 0 | M10: 1268301.189 | N10: 40921.97736 | O10: 0 | P10: 1309223.166 | Q10: 0 | R10: -20854.746 | S10: 1288368.42 | T10: 18170.13 | Z10: 0 | AA10: 1306538.55 | AB10: 4408.158809 | AE10: 8312004 | AH10: 1264305.249 | AI10: 42182.31824 | AJ10: 63088.04693 | AK10: -1260.340886 | AL10: 0.04752777274
A11: Becket Primary School | B11: 2405 | C11: 543123.48 | D11: 164685.9095 | E11: 0 | F11: 45175.02311 | G11: 29896.55172 | H11: 0 | I11: 110000 | J11: 0 | K11: 14648.75 | L11: 0 | M11: 907529.7144 | N11: 0 | O11: 0 | P11: 907529.7144 | Q11: 0 | R11: -14324.472 | S11: 893205.2424 | T11: 3300 | Z11: 0 | AA11: 896505.2424 | AB11: 4448.675071 | AE11: 8312405 | AH11: 828727.555 | AI11: 0 | AJ11: 82102.15936 | AK11: 0 | AL11: 0.09013996586
A12: Bishop Lonsdale Church of England Aided Primary School | B12: 2011 | C12: 553772.96 | D12: 114530.0338 | E12: 0 | F12: 38096.70164 | G12: 14525.13966 | H12: 0 | I12: 110000 | J12: 0 | K12: 5974.5 | L12: 0 | M12: 836899.3351 | N12: 0 | O12: 0 | P12: 836899.3351 | Q12: 0 | R12: 0 | S12: 836899.3351 | T12: 4190.01 | Z12: 0 | AA12: 841089.3451 | AB12: 4023.554496 | AC12: 2011 new number | AE12: 8312011 | AH12: 855957.4926 | AI12: 0 | AJ12: -14868.14751 | AK12: 0 | AL12: -0.01767725105 | AM12: Nor -2
A13: Borrow Wood Primary School | B13: 5201 | C13: 1006375.86 | D13: 62641.7233 | E13: 0 | F13: 51695.08308 | G13: 2755.102041 | H13: 0 | I13: 110000 | J13: 0 | K13: 23893.25 | L13: 0 | M13: 1257361.018 | N13: -5121.498058 | O13: 0 | P13: 1252239.52 | Q13: 0 | R13: -26542.404 | S13: 1225697.116 | T13: 28850.25 | Z13: 0 | AA13: 1254547.366 | AB13: 3312.802964 | AE13: 8315201 | AH13: 1278459.359 | AI13: 0 | AJ13: 2630.411315 | AK13: -5121.498058 | AL13: 0.002053260729
A14: Wyndham Primary Academy | B14: 2007 | C14: 1179429.91 | D14: 346590.6923 | E14: 0 | F14: 86075.80145 | G14: 33883.85269 | H14: 28750.8 | I14: 110000 | J14: 0 | K14: 4504 | L14: 0 | M14: 1789235.056 | N14: 77041.57618 | O14: 0 | P14: 1866276.633 | Q14: 0 | R14: 0 | S14: 1866276.633 | T14: 9900 | Z14: 0 | AA14: 1876176.633 | AB14: 4212.814069 | AE14: 8312007 | AH14: 1622695.585 | AI14: 0 | AJ14: 253481.0478 | AK14: 77041.57618 | AL14: 0.1351051087
A15: Brackensdale ER (Enhanced Resource) Primary School | B15: 2432 | C15: 1240664.42 | D15: 296012.1857 | E15: 0 | F15: 100452.443 | G15: 9708.333333 | H15: 0 | I15: 187000 | J15: 0 | K15: 23016.5 | L15: 0 | M15: 1856853.882 | N15: 84875.8316 | O15: 0 | P15: 1941729.714 | Q15: 0 | R15: -32721.588 | S15: 1909008.126 | T15: 27700.2 | Z15: 0 | AA15: 1936708.326 | AB15: 4166.80196 | AE15: 8312432 | AH15: 1609009 | AI15: 40351.55501 | AJ15: 360420.9136 | AK15: 44524.27659 | AL15: 0.183007738
A16: Breadsall Hill Top Primary School | B16: 2018 | C16: 1104883.55 | D16: 179146.6147 | E16: 0 | F16: 99364.17491 | G16: 14530.81232 | H16: 0 | I16: 110000 | J16: 0 | K16: 5070 | L16: 0 | M16: 1512995.152 | N16: 0 | O16: 0 | P16: 1512995.152 | Q16: 0 | R16: 0 | S16: 1512995.152 | T16: 8380.02 | Z16: 0 | AA16: 1521375.172 | AB16: 3645.77145 | AE16: 8312447 | AH16: 1618484 | AI16: 55911.49347 | AJ16: -97108.82808 | AK16: -55911.49347 | AL16: -0.06382963905 | AM16: Nor - 22
A17: Brookfield Primary School | B17: 2512 | C17: 567084.81 | D17: 23679.01798 | E17: 0 | F17: 35255.11288 | G17: 19204.91803 | H17: 0 | I17: 110000 | J17: 0 | K17: 17960.125 | L17: 0 | M17: 773183.9839 | N17: 0 | O17: 0 | P17: 773183.9839 | Q17: 0 | R17: -14956.434 | S17: 758227.5499 | T17: 3300 | Z17: 0 | AA17: 761527.5499 | AB17: 3629.971755 | AE17: 8312512 | AH17: 742259.2096 | AI17: 0 | AJ17: 34224.77427 | AK17: 0 | AL17: 0.04407660039
A18: Carlyle Infant School | B18: 2456 | C18: 476564.23 | D18: 31385.02825 | E18: 0 | F18: 25290.89496 | G18: 14916.66667 | H18: 0 | I18: 110000 | J18: 0 | K18: 11615.125 | L18: 0 | M18: 669771.9449 | N18: 0 | O18: 0 | P18: 669771.9449 | Q18: 0 | R18: -12569.022 | S18: 657202.9229 | T18: 7490.01 | Z18: 0 | AA18: 664692.9329 | AB18: 3741.742709 | AE18: 8312456 | AH18: 660208.9067 | AI18: 0 | AJ18: 17053.04822 | AK18: 0 | AL18: 0.02517939786
A19: Cavendish Close Infant School | B19: 2449 | C19: 692216.2 | D19: 84505 | E19: 0 | F19: 51253.27381 | G19: 9176.470588 | H19: 0 | I19: 110000 | J19: 0 | K19: 14005.5 | L19: 0 | M19: 961156.4444 | N19: -18260.95475 | O19: 0 | P19: 942895.4896 | Q19: 0 | R19: -18256.68 | S19: 924638.8096 | T19: 9900 | Z19: 0 | AA19: 934538.8096 | AB19: 3626.521114 | AE19: 8312449 | AH19: 911433.5298 | AI19: 0 | AJ19: 41361.95985 | AK19: -18260.95475 | AL19: 0.04341116252
A20: Cavendish Close Junior School | B20: 2019 | C20: 915855.28 | D20: 126732.381 | E20: 0 | F20: 86923.62289 | G20: 2500 | H20: 0 | I20: 110000 | J20: 0 | K20: 3476.75 | L20: 0 | M20: 1245488.034 | N20: -13115.06915 | O20: 0 | P20: 1232372.965 | Q20: 0 | R20: 0 | S20: 1232372.965 | T20: 0 | Z20: 0 | AA20: 1232372.965 | AB20: 3582.479549 | AE20: 8312448 | AH20: 1170202.747 | AI20: 0 | AJ20: 62170.21798 | AK20: -13115.06915 | AL20: 0.05044756722
A21: Chaddesden Park Junior School | B21: 2467 | C21: 974427.42 | D21: 141427 | E21: 0 | F21: 63097.42402 | G21: 6535.714286 | H21: 0 | I21: 110000 | J21: 0 | K21: 13466.75 | L21: 0 | M21: 1308954.308 | N21: -819.9074835 | O21: 0 | P21: 1308134.401 | Q21: 0 | R21: -25699.788 | S21: 1282434.613 | T21: 8380.02 | Z21: 0 | AA21: 1290814.633 | AB21: 3574.137707 | AE21: 8312467 | AH21: 1245297.125 | AI21: 3464.579931 | AJ21: 71217.29622 | AK21: -4284.487415 | AL21: 0.05409534076
A22: Chellaston Infant School | B22: 2455 | C22: 945141.35 | D22: 70063.44444 | E22: 0 | F22: 54107.15812 | G22: 19638.29787 | H22: 0 | I22: 110000 | J22: 0 | K22: 23937.5 | L22: 0 | M22: 1222887.75 | N22: -4557.202638 | O22: 0 | P22: 1218330.548 | Q22: 0 | R22: -24927.39 | S22: 1193403.158 | T22: 13200 | Z22: 0 | AA22: 1206603.158 | AB22: 3431.917036 | AE22: 8312455 | AH22: 1181336.54 | AI22: 0 | AJ22: 50194.0074 | AK22: -4557.202638 | AL22: 0.04075741969
A23: Chellaston Junior School | B23: 5203 | C23: 1341834.48 | D23: 97104.34663 | E23: 0 | F23: 85192.5755 | G23: 3000 | H23: 0 | I23: 110000 | J23: 0 | K23: 5957 | L23: 0 | M23: 1643088.402 | N23: -1606.405906 | O23: 0 | P23: 1641481.996 | Q23: 0 | R23: -35389.872 | S23: 1606092.124 | T23: 0 | Z23: 0 | AA23: 1606092.124 | AB23: 3256.908723 | AE23: 8315203 | AH23: 1526422.518 | AI23: 0 | AJ23: 115059.4787 | AK23: -1606.405906 | AL23: 0.07009487703
A24: Cherry Tree Hill Primary School | B24: 2451 | C24: 1464303.5 | D24: 155272.3577 | E24: 0 | F24: 121120.9085 | G24: 4113.247863 | H24: 0 | I24: 110000 | J24: 0 | K24: 29095.25 | L24: 0 | M24: 1883905.264 | N24: -30282.96151 | O24: 0 | P24: 1853622.303 | Q24: 0 | R24: -38619.9 | S24: 1815002.403 | T24: 17020.08 | Z24: 0 | AA24: 1832022.483 | AB24: 3370.222368 | AE24: 8312451 | AH24: 1695845.148 | AI24: 0 | AJ24: 174797.2344 | AK24: -30282.96151 | AL24: 0.09344235756
A25: Dale Community Primary School | B25: 2409 | C25: 1437679.8 | D25: 290355.6289 | E25: 0 | F25: 158550.0436 | G25: 94023.52941 | H25: 0 | I25: 110000 | J25: 0 | K25: 35458.5 | L25: 0 | M25: 2126067.502 | N25: 2980.000107 | O25: 0 | P25: 2129047.502 | Q25: 0 | R25: -37917.72 | S25: 2091129.782 | T25: 22360.14 | Z25: 0 | AA25: 2113489.922 | AB25: 3942.680559 | AE25: 8312409 | AH25: 2187170.836 | AI25: 0 | AJ25: -35763.19373 | AK25: 2980.000107 | AL25: -0.01662316013 | AM25: Nor - 8
A26: Derby St Chad's CE (VC) Nursery and Infant School | B26: 3158 | C26: 300847.81 | D26: 50362.4 | E26: 0 | F26: 33020.09559 | G26: 54178.08219 | H26: 0 | I26: 110000 | J26: 0 | K26: 1658.875 | L26: 0 | M26: 550067.2628 | N26: 15733.88718 | O26: 0 | P26: 565801.15 | Q26: 0 | R26: -7934.634 | S26: 557866.516 | T26: 24400.2 | Z26: 0 | AA26: 582266.716 | AB26: 5007.089823 | AE26: 8313158 | AH26: 624298.1063 | AI26: 0 | AJ26: -34096.7563 | AK26: 15733.88718 | AL26: -0.05777139666 | AM26: Nor - 7
A27: Derwent Community School | B27: 2016 | C27: 630981.69 | D27: 208996.7743 | E27: 0 | F27: 65212.7564 | G27: 19346.93878 | H27: 0 | I27: 110000 | J27: 0 | K27: 5488 | L27: 0 | M27: 1040026.159 | N27: 0 | O27: 0 | P27: 1040026.159 | Q27: 0 | R27: 0 | S27: 1040026.159 | T27: 23510.19 | Z27: 0 | AA27: 1063536.349 | AB27: 4388.296032 | AE27: 8312619 | AH27: 1025877 | AI27: 0 | AJ27: 37659.34947 | AK27: 0 | AL27: 0.03540955557
A28: Firs Estate Primary School | B28: 2013 | C28: 961115.57 | D28: 261924.8145 | E28: 0 | F28: 127401.4345 | G28: 83902.14067 | H28: 84855.6 | I28: 110000 | J28: 0 | K28: 4341.5 | L28: 0 | M28: 1633541.06 | N28: 0 | O28: 0 | P28: 1633541.06 | Q28: 0 | R28: 0 | S28: 1633541.06 | T28: 29740.26 | Z28: 0 | AA28: 1663281.32 | AB28: 4525.044487 | AE28: 8312518 | AH28: 1579999 | AI28: 0 | AJ28: 83282.31966 | AK28: 0 | AL28: 0.05007109662
A29: Gayton Community Junior School | B29: 2457 | C29: 971765.05 | D29: 89295.28142 | E29: 0 | F29: 91667.06461 | G29: 16000 | H29: 0 | I29: 110000 | J29: 0 | K29: 19091.5 | L29: 0 | M29: 1297818.896 | N29: -6130.034059 | O29: 0 | P29: 1291688.862 | Q29: 0 | R29: -25629.57 | S29: 1266059.292 | T29: 0 | Z29: 0 | AA29: 1266059.292 | AB29: 3538.873594 | AE29: 8312457 | AH29: 1231714.933 | AI29: 0 | AJ29: 59973.92884 | AK29: -6130.034059 | AL29: 0.04643063094
A30: Grampian Primary Academy | B30: 2010 | C30: 545785.85 | D30: 160052.9662 | E30: 0 | F30: 32627.40952 | G30: 19914.28571 | H30: 0 | I30: 110000 | J30: 0 | K30: 3766.5 | L30: 0 | M30: 872147.0114 | N30: 24729.15516 | O30: 0 | P30: 896876.1666 | Q30: 0 | R30: 0 | S30: 896876.1666 | T30: 3300 | Z30: 0 | AA30: 900176.1666 | AB30: 4375.005691 | AE30: 8312010 | AH30: 950800.9882 | AI30: 21980.58041 | AJ30: -50624.82162 | AK30: 2748.574746 | AL30: -0.05623879358 | AM30: Nor - 4 - KS1 £36k reduction
A31: Griffe Field Primary School | B31: 2002 | C31: 1136831.99 | D31: 24403.95329 | E31: 0 | F31: 60047.03317 | G31: 29087.19346 | H31: 0 | I31: 110000 | J31: 0 | K31: 48020 | L31: 0 | M31: 1408390.17 | N31: 0 | O31: 0 | P31: 1408390.17 | Q31: 0 | R31: -29983.086 | S31: 1378407.084 | T31: 6600 | Z31: 0 | AA31: 1385007.084 | AB31: 3298.337634 | AE31: 8312002 | AH31: 1391686.701 | AI31: 0 | AJ31: 23303.46922 | AK31: 0 | AL31: 0.01646899725
A32: Hardwick Primary School | B32: 3544 | C32: 1432355.06 | D32: 359280.6222 | E32: 0 | F32: 179673.1559 | G32: 131411.2735 | H32: 0 | I32: 110000 | J32: 0 | K32: 12838 | L32: 139838 | M32: 2365396.112 | N32: 18161.22129 | O32: 0 | P32: 2383557.333 | Q32: 0 | R32: 0 | S32: 2383557.333 | T32: 7490.01 | Z32: 0 | AA32: 2391047.343 | AB32: 4430.403965 | AE32: 8313544 | AH32: 2486381.734 | AI32: 0 | AJ32: -95334.39109 | AK32: 18161.22129 | AL32: -0.03987139417 | AM32: Nor - 2 - KS1 £38k reduction
A33: Homefields Primary School | B33: 2006 | C33: 806698.11 | D33: 8777.408163 | E33: 0 | F33: 43276.43683 | G33: 11176.22951 | H33: 0 | I33: 110000 | J33: 0 | K33: 31902.5 | L33: 0 | M33: 1011830.685 | N33: -8346.651142 | O33: 0 | P33: 1003484.033 | Q33: 0 | R33: -21276.054 | S33: 982207.9794 | T33: 19950.15 | Z33: 0 | AA33: 1002158.129 | AB33: 3311.828493 | AE33: 8312006 | AH33: 978572.2727 | AI33: 0 | AJ33: 44861.91066 | AK33: -8346.651142 | AL33: 0.04383468071
A34: Lakeside Community Primary School | B34: 2434 | C34: 1573460.67 | D34: 370764.0505 | E34: 0 | F34: 144602.4425 | G34: 23002.99401 | H34: 0 | I34: 110000 | J34: 0 | K34: 50470 | L34: 150600 | M34: 2422900.157 | N34: 0 | O34: 0 | P34: 2422900.157 | Q34: 0 | R34: -41498.838 | S34: 2381401.319 | T34: 9900 | Z34: 0 | AA34: 2391301.319 | AB34: 4099.661856 | AE34: 8312434 | AH34: 2300907.896 | AI34: 40821.87462 | AJ34: 131892.2614 | AK34: -40821.87462 | AL34: 0.05421417825
A35: Lawn Primary School | B35: 2522 | C35: 1136831.99 | D35: 65983.87527 | E35: 0 | F35: 49642.10486 | G35: 15707.08447 | H35: 0 | I35: 110000 | J35: 0 | K35: 19783.625 | L35: 0 | M35: 1397948.68 | N35: 0 | O35: 0 | P35: 1397948.68 | Q35: 0 | R35: -29983.086 | S35: 1367965.594 | T35: 6600 | Z35: 0 | AA35: 1374565.594 | AB35: 3273.884496 | AE35: 8312522 | AH35: 1320992.389 | AI35: 0 | AJ35: 83556.29091 | AK35: 0 | AL35: 0.05948977926
A36: Markeaton Primary School | B36: 2436 | C36: 1032999.56 | D36: 104577.8721 | E36: 0 | F36: 51284.1429 | G36: 10085.62691 | H36: 0 | I36: 110000 | J36: 0 | K36: 24788.5 | L36: 0 | M36: 1333735.702 | N36: 0 | O36: 0 | P36: 1333735.702 | Q36: 0 | R36: -27244.584 | S36: 1306491.118 | T36: 6600 | Z36: 0 | AA36: 1313091.118 | AB36: 3437.463149 | AE36: 8312436 | AH36: 1222198.655 | AI36: 0 | AJ36: 118137.0467 | AK36: 0 | AL36: 0.08813989398
A37: Meadow Farm Community Primary School | B37: 2452 | C37: 460590.01 | D37: 67711.47541 | E37: 0 | F37: 35599.78874 | G37: 5544.871795 | H37: 0 | I37: 110000 | J37: 0 | K37: 16282.625 | L37: 0 | M37: 695728.7709 | N37: 0 | O37: 0 | P37: 695728.7709 | Q37: 0 | R37: -12147.714 | S37: 683581.0569 | T37: 14870.13 | Z37: 0 | AA37: 698451.1869 | AB37: 4021.553589 | AE37: 8312452 | AH37: 736484.538 | AI37: 0 | AJ37: -25885.63708 | AK37: 0 | AL37: -0.03642791601 | AM37: Nor - 15
A38: Mickleover Primary School | B38: 2627 | C38: 1118195.4 | D38: 43325.78463 | E38: 0 | F38: 53144.75085 | G38: 13416.66667 | H38: 0 | I38: 110000 | J38: 0 | K38: 17064 | L38: 0 | M38: 1355146.602 | N38: -2344.757814 | O38: 0 | P38: 1352801.844 | Q38: 0 | R38: -29491.56 | S38: 1323310.284 | T38: 6600 | Z38: 0 | AA38: 1329910.284 | AB38: 3220.956772 | AE38: 8312627 | AH38: 1266497.954 | AI38: 0 | AJ38: 92903.89065 | AK38: -2344.757814 | AL38: 0.06834174239
A39: Landau Forte Academy Moorhead | B39: 2009 | C39: 681566.72 | D39: 175861.6287 | E39: 0 | F39: 54876.15082 | G39: 10017.3913 | H39: 0 | I39: 110000 | J39: 0 | K39: 3297.125 | L39: 0 | M39: 1035619.016 | N39: 29694.28246 | O39: 0 | P39: 1065313.298 | Q39: 0 | R39: 0 | S39: 1065313.298 | T39: 6860.04 | Z39: 0 | AA39: 1072173.338 | AB39: 4161.380071 | AE39: 8312009 | AH39: 1205601.668 | AI39: 0 | AJ39: -133428.3295 | AK39: 29694.28246 | AL39: -0.1244466027 | AM39: Nor - 31
A40: Oakwood Infant and Nursery School | B40: 2473 | C40: 721502.27 | D40: 136359.3719 | E40: 0 | F40: 57401.75843 | G40: 6775 | H40: 0 | I40: 110000 | J40: 0 | K40: 18406.75 | L40: 0 | M40: 1050445.15 | N40: -3909.934696 | O40: 0 | P40: 1046535.216 | Q40: 0 | R40: -19029.078 | S40: 1027506.138 | T40: =39010.29 -> 39010.29 | Z40: 0 | AA40: 1066516.428 | AB40: 3861.753563 | AE40: 8312473 | AH40: 1051736.096 | AI40: 0 | AJ40: 33809.40949 | AK40: -3909.934696 | AL40: 0.03114508726
A41: Oakwood Junior School | B41: 2471 | C41: 929167.13 | D41: 200518.7339 | E41: 0 | F41: 96693.04627 | G41: 1500 | H41: 0 | I41: 110000 | J41: 0 | K41: 18406.75 | L41: 0 | M41: 1356285.66 | N41: 0 | O41: 0 | P41: 1356285.66 | Q41: 0 | R41: -24506.082 | S41: 1331779.578 | T41: 0 | Z41: 0 | AA41: 1331779.578 | AB41: 3886.20533 | AE41: 8312471 | AH41: 1345901.424 | AI41: 0 | AJ41: 10384.23573 | AK41: 0 | AL41: 0.007656378032
A42: Osmaston Primary School | B42: 2420 | C42: 1570798.3 | D42: 522639.6296 | E42: 0 | F42: 147787.4368 | G42: 79262.62626 | H42: 36245.66667 | I42: 110000 | J42: 0 | K42: 22358.25 | L42: 0 | M42: 2489091.909 | N42: 133238.8206 | O42: 0 | P42: 2622330.73 | Q42: 0 | R42: -41428.62 | S42: 2580902.11 | T42: 17910.09 | Z42: 0 | AA42: 2598812.2 | AB42: 4444.628356 | AE42: 8312420 | AH42: 2576534.88 | AI42: 13574.81197 | AJ42: 63705.94008 | AK42: 119664.0086 | AL42: 0.02412883689
A43: Parkview Primary School | B43: 2003 | C43: 556435.33 | D43: 14419.07619 | E43: 0 | F43: 31767.18268 | G43: 4670.391061 | H43: 0 | I43: 110000 | J43: 0 | K43: 30104.5 | L43: 0 | M43: 747396.4799 | N43: -5064.682854 | O43: 0 | P43: 742331.7971 | Q43: 0 | R43: -14675.562 | S43: 727656.2351 | T43: 3300 | Z43: 0 | AA43: 730956.2351 | AB43: 3551.82678 | AE43: 8312003 | AH43: 719613.3053 | AI43: 0 | AJ43: 26018.49173 | AK43: -5064.682854 | AL43: 0.03489455765
A44: Pear Tree Community Junior School | B44: 2017 | C44: 939816.61 | D44: 278126.9601 | E44: 0 | F44: 140814.9535 | G44: 68500 | H44: 36980.28 | I44: 110000 | J44: 0 | K44: 3179.35 | L44: 0 | M44: 1577418.154 | N44: 31050.21156 | O44: 0 | P44: 1608468.365 | Q44: 0 | R44: 0 | S44: 1608468.365 | T44: 0 | Z44: 0 | AA44: 1608468.365 | AB44: 4556.567607 | AE44: 8312423 | AH44: 1630285.364 | AI44: 0 | AJ44: -21816.99866 | AK44: 31050.21156 | AL44: -0.01356383447 | AM44: Nor - 3
A45: Pear Tree Infant School | B45: 2424 | C45: 689553.83 | D45: 166054.023 | E45: 0 | F45: 75167.37342 | G45: 98596.59091 | H45: 9428.4 | I45: 110000 | J45: 0 | K45: 15800.75 | L45: 0 | M45: 1164600.967 | N45: 69361.08037 | O45: 0 | P45: 1233962.048 | Q45: 0 | R45: -18186.462 | S45: 1215775.586 | T45: 16130.07 | Z45: 0 | AA45: 1231905.656 | AB45: 4764.332231 | AE45: 8312424 | AH45: 1260367.653 | AI45: 30594.0914 | AJ45: -10275.53515 | AK45: 38766.98897 | AL45: -0.008219822365 | AM45: Nor - 3
A46: Portway Infant School | B46: 2439 | C46: 700203.31 | D46: 21431.63704 | E46: 0 | F46: 23468.66384 | G46: 3673.184358 | H46: 0 | I46: 110000 | J46: 0 | K46: 10379.125 | L46: 0 | M46: 869155.9202 | N46: 0 | O46: 0 | P46: 869155.9202 | Q46: 0 | R46: -18467.334 | S46: 850688.5862 | T46: 15240.06 | Z46: 0 | AA46: 865928.6462 | AB46: 3304.775362 | AE46: 8312439 | AH46: 866740.3606 | AI46: 0 | AJ46: 17655.61968 | AK46: 0 | AL46: 0.01996347798
A47: Portway Junior School | B47: 2440 | C47: 905205.8 | D47: 42949.35368 | E47: 0 | F47: 38418.33582 | G47: 2000 | H47: 0 | I47: 110000 | J47: 0 | K47: 33810 | L47: 0 | M47: 1132383.49 | N47: -3588.274942 | O47: 0 | P47: 1128795.215 | Q47: 0 | R47: -23874.12 | S47: 1104921.095 | T47: 0 | Z47: 0 | AA47: 1104921.095 | AB47: 3319.985925 | AE47: 8312440 | AH47: 1065570.593 | AI47: 0 | AJ47: 63224.62172 | AK47: -3588.274942 | AL47: 0.05601071027
A48: Ravensdale Infant and Nursery School | B48: 2462 | C48: 681566.72 | D48: 68887.22709 | E48: 0 | F48: 39663.53216 | G48: 22882.68156 | H48: 0 | I48: 110000 | J48: 0 | K48: 15826 | L48: 0 | M48: 938826.1608 | N48: 0 | O48: 0 | P48: 938826.1608 | Q48: 0 | R48: -17975.808 | S48: 920850.3528 | T48: 21470.13 | Z48: 0 | AA48: 942320.4828 | AB48: 3667.289691 | AE48: 8312462 | AH48: 928439.6857 | AI48: 0 | AJ48: 31856.60512 | AK48: 0 | AL48: 0.03317372505
A49: Ravensdale Junior School | B49: 2463 | C49: 929167.13 | D49: 101854.2874 | E49: 0 | F49: 67141.59715 | G49: 22500 | H49: 0 | I49: 110000 | J49: 0 | K49: 15826 | L49: 0 | M49: 1246489.015 | N49: -1022.030137 | O49: 0 | P49: 1245466.984 | Q49: 0 | R49: -24506.082 | S49: 1220960.902 | T49: 0 | Z49: 0 | AA49: 1220960.902 | AB49: 3568.673308 | AE49: 8312463 | AH49: 1169972.441 | AI49: 0 | AJ49: 75494.54338 | AK49: -1022.030137 | AL49: 0.06061545133
A50: Redwood Primary School | B50: 2505 | C50: 1517550.9 | D50: 310634.5287 | E50: 0 | F50: 138796.289 | G50: 62618.06982 | H50: 3492 | I50: 110000 | J50: 0 | K50: 32463.5 | L50: 0 | M50: 2175555.287 | N50: 0 | O50: 0 | P50: 2175555.287 | Q50: 0 | R50: -40024.26 | S50: 2135531.027 | T50: 17910.09 | Z50: 0 | AA50: 2153441.117 | AB50: 3816.763662 | AE50: 8312505 | AH50: 2123864.245 | AI50: 0 | AJ50: 69601.13203 | AK50: 0 | AL50: 0.03173112863
A51: Reigate Park Primary School | B51: 2000 | C51: 870594.99 | D51: 175446.1323 | E51: 0 | F51: 88475.8585 | G51: 23276.04167 | H51: 0 | I51: 110000 | J51: 0 | K51: 19871 | L51: 0 | M51: 1287664.022 | N51: -14616.33385 | O51: 0 | P51: 1273047.689 | Q51: 0 | R51: -22961.286 | S51: 1250086.403 | T51: 25290.21 | Z51: 0 | AA51: 1275376.613 | AB51: 3893.112198 | AE51: 8312000 | AH51: 1121398.398 | AI51: 3210.364846 | AJ51: 176939.5007 | AK51: -17826.6987 | AL51: 0.1362815496
A52: Ridgeway Infant School | B52: 2458 | C52: 700203.31 | D52: 56126 | E52: 0 | F52: 45942.34286 | G52: 65382.68156 | H52: 0 | I52: 110000 | J52: 0 | K52: 11091.625 | L52: 0 | M52: 988745.9594 | N52: -17505.84097 | O52: 0 | P52: 971240.1184 | Q52: 0 | R52: -18467.334 | S52: 952772.7844 | T52: 15240.06 | Z52: 0 | AA52: 968012.8444 | AB52: 3692.928207 | AE52: 8312458 | AH52: 954762.3332 | AI52: 0 | AJ52: 31717.84528 | AK52: -17505.84097 | AL52: 0.03215254191
A53: Roe Farm Primary School | B53: 2001 | C53: 1032999.56 | D53: 274794.3463 | E53: 0 | F53: 99398.40097 | G53: 6447.129909 | H53: 0 | I53: 110000 | J53: 0 | K53: 23248.5 | L53: 0 | M53: 1546887.937 | N53: 17307.39116 | O53: 0 | P53: 1564195.328 | Q53: 0 | R53: -27244.584 | S53: 1536950.744 | T53: 9270.03 | Z53: 0 | AA53: 1546220.774 | AB53: 4031.431259 | AE53: 8312001 | AH53: 1496553.27 | AI53: 53900.31198 | AJ53: 76912.08808 | AK53: -36592.92082 | AL53: 0.04888069996
A54: Rosehill Infant and Nursery School | B54: 2429 | C54: 388706.02 | D54: 84377.15418 | E54: 0 | F54: 38002.05435 | G54: 57515.15152 | H54: 0 | I54: 110000 | J54: 0 | K54: 10728.875 | L54: 0 | M54: 689329.255 | N54: 31817.64333 | O54: 0 | P54: 721146.8984 | Q54: 0 | R54: -10251.828 | S54: 710895.0704 | T54: 18170.13 | Z54: 0 | AA54: 729065.2004 | AB54: 4939.362318 | AE54: 8312429 | AH54: 754930.8722 | AI54: 0 | AJ54: -15613.84386 | AK54: 31817.64333 | AL54: -0.02111928071 | AM54: Nor - 4 - KS1 £36k reduction
A55: Shelton Infant School | B55: 2444 | C55: 559097.7 | D55: 91988 | E55: 0 | F55: 31013.04348 | G55: 17374.10072 | H55: 0 | I55: 110000 | J55: 0 | K55: 11106 | L55: 0 | M55: 820578.8442 | N55: 0 | O55: 0 | P55: 820578.8442 | Q55: 0 | R55: -14745.78 | S55: 805833.0642 | T55: 26810.19 | Z55: 0 | AA55: 832643.2542 | AB55: 3907.518306 | AE55: 8312444 | AH55: 844069.3987 | AI55: 0 | AJ55: 3319.635477 | AK55: 0 | AL55: 0.003917486943
A56: Shelton Junior School | B56: 5209 | C56: 702865.68 | D56: 140976.6616 | E56: 0 | F56: 82159.76578 | G56: 9034.220532 | H56: 0 | I56: 110000 | J56: 0 | K56: 3571.875 | L56: 0 | M56: 1048608.203 | N56: 0 | O56: 0 | P56: 1048608.203 | Q56: 0 | R56: -18537.552 | S56: 1030070.651 | T56: 0 | Z56: 0 | AA56: 1030070.651 | AB56: 3972.000769 | AE56: 8315209 | AH56: 1005525.975 | AI56: 0 | AJ56: 43082.22764 | AK56: 0 | AL56: 0.04108515222
A57: Silverhill Primary School | B57: 2469 | C57: 1118195.4 | D57: 53134.37091 | E57: 0 | F57: 43608.40591 | G57: 16333.33333 | H57: 0 | I57: 110000 | J57: 0 | K57: 16019.125 | L57: 0 | M57: 1357290.635 | N57: 0 | O57: 0 | P57: 1357290.635 | Q57: 0 | R57: -29491.56 | S57: 1327799.075 | T57: 6600 | Z57: 0 | AA57: 1334399.075 | AB57: 3231.644369 | AE57: 8312469 | AH57: 1375159.147 | AI57: 0 | AJ57: -11268.51229 | AK57: 0 | AL57: -0.00826203509 | AM57: Nor -2
A58: Cottons Farm Primary School | B58: 2430 | C58: 343445.73 | D58: 113333.0996 | E58: 0 | F58: 40757.39095 | G58: 22831.85841 | H58: 17576.4 | I58: 110000 | J58: 0 | K58: 21968.75 | L58: 24583 | M58: 694496.2289 | N58: 369.708558 | O58: 0 | P58: 694865.9375 | Q58: 0 | R58: -9058.122 | S58: 685807.8155 | T58: 15760.14 | Z58: 0 | AA58: 701567.9555 | AB58: 5386.557655 | AE58: 8312430 | AH58: 739975.912 | AI58: 8826.096956 | AJ58: -29349.83453 | AK58: -8456.388398 | AL58: -0.0413013756 | AM58: Nor -6 & KS1 red £6k
A59: Springfield Primary School | B59: 2466 | C59: 756778.6725 | D59: 89844.89697 | E59: 0 | F59: 51383.0353 | G59: 4900.862069 | H59: 13163.52581 | I59: 110000 | J59: 0 | K59: 14308.125 | L59: 0 | M59: 1040379.118 | N59: 8603.27611 | O59: 0 | P59: 1048982.394 | Q59: 0 | R59: -19959.4665 | S59: 1029022.927 | T59: 18170.13 | Z59: 0 | AA59: 1047193.057 | AB59: 3690.351429 | AE59: 8312466 | AH59: 959790.9803 | AI59: 18724.69883 | AJ59: 107361.5434 | AK59: -10121.42272 | AL59: 0.100605622
A60: St Alban's Catholic Primary School | B60: 3543 | C60: 806698.11 | D60: 80783.42645 | E60: 0 | F60: 43510.18953 | G60: 24075.5814 | H60: 0 | I60: 110000 | J60: 0 | K60: 3746.375 | L60: 0 | M60: 1068813.682 | N60: 0 | O60: 0 | P60: 1068813.682 | Q60: 0 | R60: -21276.054 | S60: 1047537.628 | T60: 19950.15 | Z60: 0 | AA60: 1067487.778 | AB60: 3527.437896 | AE60: 8313543 | AH60: 1068882.025 | AI60: 0 | AJ60: 19881.80723 | AK60: 0 | AL60: 0.01826089979
A61: St George's Catholic Voluntary Academy | B61: 3531 | C61: 899881.06 | D61: 104956.9165 | E61: 0 | F61: 64201.91542 | G61: 20979.31034 | H61: 0 | I61: 110000 | J61: 0 | K61: 4037.875 | L61: 0 | M61: 1204057.077 | N61: 0 | O61: 0 | P61: 1204057.077 | Q61: 0 | R61: 0 | S61: 1204057.077 | T61: 17280.12 | Z61: 0 | AA61: 1221337.197 | AB61: 3562.299045 | AE61: 8313531 | AH61: 1244574.09 | AI61: 0 | AJ61: -23236.89229 | AK61: 0 | AL61: -0.01902577956 | AM61: Nor - 7
A62: St James' Church of England Aided Infant School | B62: 3526 | C62: 218314.34 | D62: 50474.8764 | E62: 0 | F62: 18841.5098 | G62: 29689.65517 | H62: 2095.2 | I62: 110000 | J62: 0 | K62: 1452 | L62: 0 | M62: 430867.5814 | N62: 17956.70266 | O62: 0 | P62: 448824.284 | Q62: 0 | R62: -5757.876 | S62: 443066.408 | T62: 9530.07 | Z62: 0 | AA62: 452596.478 | AB62: 5473.466879 | AE62: 8313526 | AH62: 465647.3133 | AI62: 0 | AJ62: -7292.95924 | AK62: 17956.70266 | AL62: -0.01591118133 | AM62: Nor - 3
A63: St James' Church of England Aided Junior School | B63: 3535 | C63: 777412.04 | D63: 207609.0492 | E63: 0 | F63: 98167.23406 | G63: 42289.65517 | H63: 5587.2 | I63: 110000 | J63: 0 | K63: 2890 | L63: 0 | M63: 1243955.178 | N63: 3670.495135 | O63: 0 | P63: 1247625.674 | Q63: 0 | R63: -20503.656 | S63: 1227122.018 | T63: 0 | Z63: 0 | AA63: 1227122.018 | AB63: 4272.690663 | AE63: 8313535 | AH63: 1251012.064 | AI63: 0 | AJ63: -3386.390074 | AK63: 3670.495135 | AL63: -0.002714267705
A64: St John Fisher Catholic Voluntary Academy | B64: 2008 | C64: 607020.36 | D64: 107220.8261 | E64: 0 | F64: 52556.72161 | G64: 10363.63636 | H64: 0 | I64: 110000 | J64: 0 | K64: 2983.125 | L64: 0 | M64: 890144.6691 | N64: 0 | O64: 0 | P64: 890144.6691 | Q64: 0 | R64: 0 | S64: 890144.6691 | T64: 3300 | Z64: 0 | AA64: 893444.6691 | AB64: 3904.143285 | AE64: 8312008 | AH64: 902077.9354 | AI64: 0 | AJ64: -8633.266305 | AK64: 0 | AL64: -0.00966289979 | AM64: KS1 £37K REDUCTION
A65: St Joseph's Catholic Primary School, Derby | B65: 3542 | C65: 945141.35 | D65: 154029.2888 | E65: 0 | F65: 54323.90043 | G65: 62889.07285 | H65: 0 | I65: 110000 | J65: 0 | K65: 5473.5 | L65: 0 | M65: 1331857.112 | N65: 1749.426054 | O65: 0 | P65: 1333606.538 | Q65: 0 | R65: -24927.39 | S65: 1308679.148 | T65: 13720.08 | Z65: 0 | AA65: 1322399.228 | AB65: 3756.638136 | AE65: 8313542 | AH65: 1353317.614 | AI65: 0 | AJ65: -5990.996 | AK65: 1749.426054 | AL65: -0.004446580302
A66: St Mary's Catholic Primary School and Nursery | B66: 3528 | C66: 931829.5 | D66: 125401.6539 | E66: 0 | F66: 81868.88441 | G66: 43013.46801 | H66: 0 | I66: 110000 | J66: 0 | K66: 8673 | L66: 0 | M66: 1300786.506 | N66: 0 | O66: 0 | P66: 1300786.506 | Q66: 0 | R66: -24576.3 | S66: 1276210.206 | T66: 17280.12 | Z66: 0 | AA66: 1293490.326 | AB66: 3716.532875 | AE66: 8313528 | AH66: 1302212.932 | AI66: 0 | AJ66: 15853.69395 | AK66: 0 | AL66: 0.01202799133
A67: St Peter's Church of England Aided Junior School | B67: 3534 | C67: 670917.24 | D67: 43005.851 | E67: 0 | F67: 42061.83916 | G67: 12000 | H67: 0 | I67: 110000 | J67: 0 | K67: 3152.125 | L67: 0 | M67: 881137.0552 | N67: 0 | O67: 0 | P67: 881137.0552 | Q67: 0 | R67: -17694.936 | S67: 863442.1192 | T67: 0 | Z67: 0 | AA67: 863442.1192 | AB67: 3496.575616 | AE67: 8313534 | AH67: 867276.1621 | AI67: 0 | AJ67: 13860.8931 | AK67: 0 | AL67: 0.01573068914
A68: St Werburgh's Church of England VA Primary School | B68: 3532 | C68: 830659.44 | D68: 33402.24841 | E68: 0 | F68: 33492.31297 | G68: 586.4661654 | H68: 0 | I68: 110000 | J68: 0 | K68: 4602.5 | L68: 0 | M68: 1012742.968 | N68: -5139.020006 | O68: 0 | P68: 1007603.948 | Q68: 0 | R68: -21908.016 | S68: 985695.9315 | T68: 19950.15 | Z68: 0 | AA68: 1005646.082 | AB68: 3229.499832 | AE68: 8313532 | AH68: 999156.8866 | AI68: 0 | AJ68: 28397.21092 | AK68: -5139.020006 | AL68: 0.02763573323
A69: Village Primary School | B69: 3546 | C69: 1632032.81 | D69: 404454.6081 | E69: 0 | F69: 159961.8616 | G69: 82631.93117 | H69: 0 | I69: 110000 | J69: 0 | K69: 74480 | L69: 0 | M69: 2463561.211 | N69: 9876.249655 | O69: 0 | P69: 2473437.461 | Q69: 0 | R69: -43043.634 | S69: 2430393.827 | T69: 9900 | Z69: 0 | AA69: 2440293.827 | AB69: 4034.971387 | AE69: 8313546 | AH69: 2419861.507 | AI69: 23628.21789 | AJ69: 63475.95398 | AK69: -13751.96824 | AL69: 0.02556074436
A70: Walter Evans Church of England Aided Primary School | B70: 3530 | C70: 966440.31 | D70: 14823.53631 | E70: 0 | F70: 30538.12027 | G70: 8754.019293 | H70: 0 | I70: 110000 | J70: 0 | K70: 4660 | L70: 0 | M70: 1135215.986 | N70: -1404.121053 | O70: 0 | P70: 1133811.865 | Q70: 0 | R70: 0 | S70: 1133811.865 | T70: 13720.08 | Z70: 0 | AA70: 1147531.945 | AB70: 3123.448663 | AE70: 8313530 | AH70: 1085053.637 | AI70: 0 | AJ70: 62478.30774 | AK70: -1404.121053 | AL70: 0.05444581131
A71: Wren Park Primary School | B71: 2459 | C71: 1040986.67 | D71: 35365.65803 | E71: 0 | F71: 49175.16185 | G71: 31513.43284 | H71: 0 | I71: 110000 | J71: 0 | K71: 16770.5 | L71: 0 | M71: 1283811.423 | N71: -2143.256856 | O71: 0 | P71: 1281668.166 | Q71: 0 | R71: -27455.238 | S71: 1254212.928 | T71: 10160.04 | Z71: 0 | AA71: 1264372.968 | AB71: 3277.923698 | AE71: 8312459 | AH71: 1225594.284 | AI71: 0 | AJ71: 66233.92232 | AK71: -2143.256856 | AL71: 0.05127146321
A72: Al-Madinah | B72: 4000 | C72: 742801.23 | D72: 159025.1727 | E72: 0 | F72: 50117.16346 | G72: 86357.14286 | H72: 15248.4 | I72: 110000 | J72: 0 | K72: 10064.25 | L72: 0 | M72: 1173613.359 | N72: 34783.92913 | O72: 0 | P72: 1208397.288 | Q72: 0 | R72: 0 | S72: 1208397.288 | T72: 5970.03 | Z72: 0 | AA72: 1214367.318 | AB72: 4331.173076 | AE72: 8314000 | AH72: 1266701.536 | AI72: 0 | AJ72: -52334.21831 | AK72: 34783.92913 | AL72: -0.04309587184 | AM72: Nor - 5 & KS1 £29k reduction
A74: Total Primary | B74: Total Primary | C74: 62124739.97 | D74: 10312130.96 | E74: 0 | F74: 4908121.411 | G74: 2060540.816 | H74: 492251.3296 | I74: 7887000 | J74: 0 | K74: 1150658.225 | L74: 315021 | M74: 89250463.71 | N74: 556013.3507 | O74: 0 | P74: 89806477.06 | Q74: 0 | R74: -1282479.106 | S74: 88523997.95 | T74: =SUM(T2:T72) -> 851014.89 | U74: 0 | V74: 0 | W74: 0 | X74: 0 | Y74: 0 | Z74: 0 | AA74: 89375012.84 | AH74: 87778766.69 | AI74: 387297.1139 | AJ74: 2878725.258 | AK74: 168716.2368
Y75: 0
A76: Chellaston Academy | B76: 5402 | C76: 5354071.513 | D76: 254849.955 | E76: 0 | F76: 274372.2845 | G76: 14805.70775 | H76: 0 | I76: 110000 | J76: 0 | K76: 41650 | L76: 0 | M76: 6049749.46 | N76: 0 | O76: 0 | P76: 6049749.46 | Q76: 0 | R76: 0 | S76: 6049749.46 | AA76: 6049749.46 | AB76: 4454.89651 | AE76: 8315402 | AH76: 5853846.419 | AI76: 0 | AJ76: 195903.0417 | AK76: 0 | AL76: 0.03238200904
A77: da Vinci Community College | B77: 4007 | C77: 2228397.549 | D77: 573348.0391 | E77: 0 | F77: 252690.0209 | G77: 22831 | H77: 0 | I77: 110000 | J77: 0 | K77: 21854 | L77: 22874 | M77: 3231994.609 | N77: -14455.79291 | O77: 0 | P77: 3217538.816 | Q77: 0 | R77: 0 | S77: 3217538.816 | AA77: 3217538.816 | AB77: 5654.725512 | AE77: 8314608 | AH77: 3057267.272 | AI77: 89294.46639 | AJ77: 160271.5444 | AK77: -103750.2593 | AL77: 0.04981184487
A78: Derby Cathedral School | B78: 9999 | C78: 393158.85 | D78: 76550.20735 | E78: 0 | F78: 47978.60389 | G78: 2509.450967 | H78: 0 | I78: 64166.66667 | J78: 0 | K78: 14328 | L78: 0 | M78: 598691.7789 | N78: 0 | O78: 0 | P78: 598691.7789 | Q78: 0 | R78: 0 | S78: 598691.7789 | AA78: 598691.7789 | AB78: 5701.826465 | AE78: 8319999 | AH78: 0 | AI78: 0 | AJ78: 598691.7789 | AK78: 0 | AL78: 1
A79: Derby Moor Community Sports College | B79: 4178 | C79: 5144972.901 | D79: 962721.1389 | E79: 0 | F79: 488324.1583 | G79: 63217.88565 | H79: 0 | I79: 110000 | J79: 0 | K79: 30135 | L79: 0 | M79: 6799371.084 | N79: -73764.92313 | O79: 0 | P79: 6725606.161 | Q79: 0 | R79: 0 | S79: 6725606.161 | AA79: 6725606.161 | AB79: 5153.721196 | AE79: 8314178 | AH79: 6329166.72 | AI79: 0 | AJ79: 396439.4406 | AK79: -73764.92313 | AL79: 0.05894478968
A80: Lees Brook Community Sports College | B80: 4006 | C80: 4153422.021 | D80: 474782.3552 | E80: 0 | F80: 379726.326 | G80: 8088.697143 | H80: 0 | I80: 110000 | J80: 0 | K80: 25970 | L80: 0 | M80: 5151989.399 | N80: -43823.23376 | O80: 0 | P80: 5108166.165 | Q80: 0 | R80: 0 | S80: 5108166.165 | AA80: 5108166.165 | AB80: 4846.457462 | AE80: 8314181 | AH80: 4795335.886 | AI80: 0 | AJ80: 312830.279 | AK80: -43823.23376 | AL80: 0.06124121042
A81: Littleover Community School | B81: 4182 | C81: 5776831.738 | D81: 257675.8652 | E81: 0 | F81: 335773.6749 | G81: 40317.5393 | H81: 0 | I81: 110000 | J81: 0 | K81: 138425 | L81: 0 | M81: 6659023.818 | N81: 0 | O81: 0 | P81: 6659023.818 | Q81: 0 | R81: -83767.152 | S81: 6575256.666 | AA81: 6575256.666 | AB81: 4548.513537 | AE81: 8314182 | AH81: 6455013.51 | AI81: 0 | AJ81: 204010.3072 | AK81: 0 | AL81: 0.0306366688
A82: Merrill College | B82: 4001 | C82: 2747106.656 | D82: 847351.8465 | E82: 0 | F82: 438907.1092 | G82: 82513.22334 | H82: 21756 | I82: 110000 | J82: 0 | K82: 35770 | L82: 350635 | M82: 4634039.835 | N82: -46070.81315 | O82: 0 | P82: 4587969.022 | Q82: 0 | R82: 0 | S82: 4587969.022 | AA82: 4587969.022 | AB82: 6563.618057 | AE82: 8314001 | AH82: 4070892.126 | AI82: 0 | AJ82: 517076.8953 | AK82: -46070.81315 | AL82: 0.112702787
A83: Murray Park School | B83: 5406 | C83: 3408492.561 | D83: 556371.625 | E83: 0 | F83: 364498.6397 | G83: 49978.56366 | H83: 0 | I83: 110000 | J83: 0 | K83: 24304 | L83: 0 | M83: 4513645.389 | N83: -76974.81622 | O83: 0 | P83: 4436670.573 | Q83: 0 | R83: -49722.442 | S83: 4386948.131 | AA83: 4386948.131 | AB83: 5105.489727 | AE83: 8315406 | AH83: 4004771.807 | AI83: 0 | AJ83: 431898.7661 | AK83: -76974.81622 | AL83: 0.09734749493
A84: Noel Baker Community School and Language College | B84: 4005 | C84: 4614565.639 | D84: 952588.8351 | E84: 0 | F84: 411535.3835 | G84: 20247.95571 | H84: 0 | I84: 110000 | J84: 0 | K84: 26705 | L84: 419920 | M84: 6555562.813 | N84: -45839.13342 | O84: 0 | P84: 6509723.68 | Q84: 0 | R84: 0 | S84: 6509723.68 | AA84: 6509723.68 | AB84: 5516.714983 | AE84: 8315407 | AH84: 6072717.634 | AI84: 0 | AJ84: 437006.0452 | AK84: -45839.13342 | AL84: 0.06713127419
A85: Saint Benedict Catholic Voluntary Academy | B85: 4607 | C85: 4620803.055 | D85: 842190.751 | E85: 0 | F85: 432093.3495 | G85: 60435 | H85: 0 | I85: 110000 | J85: 0 | K85: 27195 | L85: 0 | M85: 6092717.156 | N85: -62487.94983 | O85: 0 | P85: 6030229.206 | Q85: 0 | R85: 0 | S85: 6030229.206 | AA85: 6030229.206 | AB85: 5140.860363 | AE85: 8314607 | AH85: 5600879.768 | AI85: 0 | AJ85: 429349.4377 | AK85: -62487.94983 | AL85: 0.07119952211
A86: City of Derby Academy | B86: 4008 | C86: 3432870.519 | D86: 746289.5915 | E86: 0 | F86: 492957.8741 | G86: 149073 | H86: 0 | I86: 110000 | J86: 0 | K86: 31605 | L86: 0 | M86: 4962795.985 | N86: -13025.68788 | O86: 0 | P86: 4949770.297 | Q86: 0 | R86: 0 | S86: 4949770.297 | AA86: 4949770.297 | AB86: 5643.979814 | AE86: 8314002 | AH86: 4508019.242 | AI86: 0 | AJ86: 441751.0551 | AK86: -13025.68788 | AL86: 0.08924677886
A87: West Park School | B87: 5412 | C87: 5135144.53 | D87: 521824.917 | E87: 0 | F87: 379473.333 | G87: 9401 | H87: 0 | I87: 110000 | J87: 0 | K87: 26215 | L87: 0 | M87: 6182058.78 | N87: -51169.82494 | O87: 0 | P87: 6130888.955 | Q87: 0 | R87: 0 | S87: 6130888.955 | AA87: 6130888.955 | AB87: 4701.601959 | AE87: 8315412 | AH87: 5741399.317 | AI87: 0 | AJ87: 389489.6374 | AK87: -51169.82494 | AL87: 0.0635290641
A88: Allestree Woodlands School | B88: 5414 | C88: 4301089.713 | D88: 365637.0147 | E88: 0 | F88: 288470.8397 | G88: 13442.3211 | H88: 0 | I88: 110000 | J88: 0 | K88: 30135 | L88: 0 | M88: 5108774.888 | N88: -27272.3447 | O88: 0 | P88: 5081502.543 | Q88: 0 | R88: 0 | S88: 5081502.543 | AA88: 5081502.543 | AB88: 4657.65586 | AE88: 8315414 | AH88: 4766635.889 | AI88: 0 | AJ88: 314866.6541 | AK88: -27272.3447 | AL88: 0.06196329756
A89: Derby Manufacturing UTC | B89: 4003 | C89: 552678.113 | D89: 87812.72727 | E89: 0 | F89: 42572.90323 | G89: 0 | H89: 0 | I89: 110000 | J89: 0 | K89: 25725 | L89: 0 | M89: 818788.7435 | N89: 0 | O89: 0 | P89: 818788.7435 | Q89: 0 | R89: 0 | S89: 818788.7435 | AA89: 818788.7435 | AB89: 6298.37495 | AE89: 8316905 | AH89: 942755.2714 | AI89: 0 | AJ89: -123966.5279 | AK89: 0 | AL89: -0.1514023354 | AM89: Nor - 24
A90: Landau Forte College (Fox Street) | B90: 6905 | C90: 3330795.683 | D90: 521247.2651 | E90: 0 | F90: 211952.2705 | G90: 21488 | H90: 0 | I90: 110000 | J90: 0 | K90: 45325 | L90: 0 | M90: 4240808.218 | N90: -20261.35842 | O90: 0 | P90: 4220546.86 | Q90: 0 | R90: 0 | S90: 4220546.86 | AA90: 4220546.86 | AB90: 4994.730012 | AE90: 8316905 | AH90: 3977874.602 | AI90: 0 | AJ90: 242672.2583 | AK90: -20261.35842 | AL90: 0.05749782347
A92: Total Secondary | B92: Total Secondary | C92: 55194401.04 | D92: 8041242.134 | E92: 0 | F92: 4841326.771 | G92: 558349.3446 | H92: 21756 | I92: 1604166.667 | J92: 0 | K92: 545341 | L92: 793429 | M92: 71600011.96 | N92: -475145.8784 | O92: 0 | P92: 71124866.08 | Q92: 0 | R92: -133489.594 | S92: 70991376.48 | T92: 0 | U92: 0 | V92: 0 | W92: 0 | X92: 0 | Y92: 0 | Z92: 0 | AA92: 70991376.48 | AH92: 66176575.46 | AI92: 89294.46639 | AJ92: 4948290.613 | AK92: -564440.3448
A94: The Bemrose School | B94: 4177 | C94: 3621891.829 | D94: 922494.4831 | E94: 0 | F94: 612827.6307 | G94: 206829.8033 | H94: 180959.3192 | I94: 110000 | J94: 0 | K94: 21560 | L94: 0 | M94: 5676563.065 | N94: 95521.7715 | O94: 0 | P94: 5772084.837 | Q94: 0 | R94: -61865.45325 | S94: 5710219.384 | T94: 31520.28 | AA94: 5741739.664 | AB94: 5684.216326 | AE94: 8314177 | AH94: 5400419.653 | AI94: 236275.8149 | AJ94: 403185.464 | AK94: -140754.0434 | AL94: 0.06947155361
A96: Total All Through School | B96: Total All Through | C96: 3621891.829 | D96: 922494.4831 | E96: 0 | F96: 612827.6307 | G96: 206829.8033 | H96: 180959.3192 | I96: 110000 | J96: 0 | K96: 21560 | L96: 0 | M96: 5676563.065 | N96: 95521.7715 | O96: 0 | P96: 5772084.837 | Q96: 0 | R96: -61865.45325 | S96: 5710219.384 | T96: 31520.28 | U96: 0 | V96: 0 | W96: 0 | X96: 0 | Y96: 0 | Z96: 0 | AA96: 5741739.664 | AH96: 5400419.653 | AI96: 236275.8149 | AJ96: 403185.464 | AK96: -140754.0434
B98: All | C98: 120941032.8 | D98: 19275867.57 | E98: 0 | F98: 10362275.81 | G98: 2825719.964 | H98: 694966.6488 | I98: 9601166.667 | J98: 0 | K98: 1717559.225 | L98: 1108450 | M98: 166527038.7 | N98: 176389.2438 | O98: 0 | P98: 166703428 | Q98: 0 | R98: -1477834.154 | S98: 165225593.8 | T98: =882535.17-5 -> 882530.17 | U98: 0 | V98: 0 | W98: 0 | X98: 0 | Y98: 0 | Z98: 0 | AA98: 166108129 | AH98: 159355761.8 | AI98: 712867.3952 | AJ98: 8230201.336 | AK98: -536478.1514
A100: Summary Totals 2018-19 | B100: Primary | C100: 62124739.97 | D100: 10312130.96 | E100: 0 | F100: 4908121.411 | G100: 2060540.816 | H100: 492251.3296 | I100: 7887000 | J100: 0 | K100: 1150658.225 | L100: 315021 | M100: 89250463.71 | N100: 556013.3507 | O100: 0 | P100: 89806477.06 | Q100: 0 | R100: -1282479.106 | S100: 88523997.95 | T100: 851014.89 | U100: 0 | V100: 0 | W100: 0 | X100: 0 | Y100: 0 | Z100: 0 | AA100: 89375012.84 | AH100: 87778766.69 | AI100: 387297.1139
B101: Secondary | C101: 55194401.04 | D101: 8041242.134 | E101: 0 | F101: 4841326.771 | G101: 558349.3446 | H101: 21756 | I101: 1604166.667 | J101: 0 | K101: 545341 | L101: 793429 | M101: 71600011.96 | N101: -475145.8784 | O101: 0 | P101: 71124866.08 | Q101: 0 | R101: -133489.594 | S101: 70991376.48 | T101: 0 | U101: 0 | V101: 0 | W101: 0 | X101: 0 | Y101: 0 | Z101: 0 | AA101: 70991376.48 | AH101: 66176575.46 | AI101: 89294.46639
B102: All Through | C102: 3621891.829 | D102: 922494.4831 | E102: 0 | F102: 612827.6307 | G102: 206829.8033 | H102: 180959.3192 | I102: 110000 | J102: 0 | K102: 21560 | L102: 0 | M102: 5676563.065 | N102: 95521.7715 | O102: 0 | P102: 5772084.837 | Q102: 0 | R102: -61865.45325 | S102: 5710219.384 | T102: 31520.28 | U102: 0 | V102: 0 | W102: 0 | X102: 0 | Y102: 0 | Z102: 0 | AA102: 5741739.664 | AH102: 5400419.653 | AI102: 236275.8149
B103: ALL School Block | C103: 120941032.8 | D103: 19275867.57 | E103: 0 | F103: 10362275.81 | G103: 2825719.964 | H103: 694966.6488 | I103: 9601166.667 | J103: 0 | K103: 1717559.225 | L103: 1108450 | M103: 166527038.7 | N103: 176389.2438 | O103: 0 | P103: 166703428 | Q103: 0 | R103: -1477834.154 | S103: 165225593.8 | T103: 882535.17 | U103: 0 | V103: 0 | W103: 0 | X103: 0 | Y103: 0 | Z103: 0 | AA103: 166108129 | AH103: 159355761.8 | AI103: 712867.3952
A105: Final APT 2017-18 | B105: Primary | C105: 60794799.38 | D105: 12917819.56 | E105: 55472.48665 | F105: 0 | G105: 3342438.486 | H105: 330726.263 | I105: 7200000 | J105: 0 | K105: 1126865.605 | L105: 305845.8001 | M105: 86073967.58 | N105: 387297.1139 | O105: 0 | P105: 86461264.69 | Q105: -465713.6128 | R105: -1262146.368 | S105: 84733404.71 | T105: 1335200 | U105: 0 | V105: 0 | W105: 0 | X105: 0 | AA105: 86068604.71 | AH105: 86297432.5 | AI105: 174374.0189
B106: Secondary | C106: 53079699.27 | D106: 5629094.611 | E106: 89023.66379 | F106: 2742122.077 | G106: 1059945.673 | H106: 80824.164 | I106: 2100000 | J106: 0 | K106: 536251.614 | L106: 770319.9226 | M106: 66087281 | N106: 89294.46639 | O106: 0 | P106: 66176575.46 | Q106: -122421.0416 | R106: -335809.188 | S106: 65718345.23 | T106: 0 | U106: 0 | V106: 0 | W106: 0 | X106: 0 | AA106: 65718345.23 | AH106: 65898450.61 | AI106: 45461.88307
B107: All Through | C107: 3340039.657 | D107: 724152.5347 | E107: 4667.115991 | F107: 309315.43 | G107: 394573.6151 | H107: 200128.6497 | I107: 150000 | J107: 0 | K107: 20856.836 | L107: 0 | M107: 5143733.838 | N107: 236275.8149 | O107: 0 | P107: 5380009.653 | Q107: -21865.032 | R107: -59776.092 | S107: 5298368.529 | T107: 0 | U107: 0 | V107: 0 | W107: 0 | X107: 0 | AA107: 5298368.529 | AH107: 5780827.764 | AI107: 223804.4443
B108: ALL School Block | C108: 117214538.3 | D108: 19271066.7 | E108: 149163.2664 | F108: 3051437.507 | G108: 4796957.775 | H108: 611679.0768 | I108: 9450000 | J108: 0 | K108: 1683974.055 | L108: 1076165.723 | M108: 157304982.4 | N108: 712867.3952 | O108: 0 | P108: 158017849.8 | Q108: -609999.6864 | R108: -1657731.648 | S108: 155750118.5 | T108: 1335200 | U108: 0 | V108: 0 | W108: 0 | X108: 0 | Y108: 0 | Z108: 0 | AA108: 157085318.5 | AH108: 157976710.9 | AI108: 443640.3463
A110: Difference between 2018/19 and 2017/18 | B110: Primary | C110: 1329940.589 | D110: -2605688.603 | E110: -55472.48665 | F110: 4908121.411 | G110: -1281897.67 | H110: 161525.0666 | I110: 687000 | J110: 0 | K110: 23792.6202 | L110: 9175.1999 | M110: 3176496.127 | N110: 168716.2368 | O110: 0 | P110: 3345212.364 | Q110: 465713.6128 | R110: -20332.7385 | S110: 3790593.238 | T110: -484185.11 | U110: 0 | V110: 0 | W110: 0 | X110: 0 | Y110: 0 | Z110: 0 | AA110: 3306408.128 | AH110: 1481334.193 | AI110: 212923.095
B111: Secondary | C111: 2114701.767 | D111: 2412147.523 | E111: -89023.66379 | F111: 2099204.694 | G111: -501596.3286 | H111: -59068.164 | I111: -495833.3333 | J111: 0 | K111: 9089.386 | L111: 23109.0774 | M111: 5512730.958 | N111: -564440.3448 | O111: 0 | P111: 4948290.613 | Q111: 122421.0416 | R111: 202319.594 | S111: 5273031.249 | T111: 0 | U111: 0 | V111: 0 | W111: 0 | X111: 0 | Y111: 0 | Z111: 0 | AA111: 5273031.249 | AH111: 278124.8498 | AI111: 43832.58332
B112: All Through | C112: 281852.1726 | D112: 198341.9484 | E112: -4667.115991 | F112: 303512.2007 | G112: -187743.8118 | H112: -19169.33047 | I112: -40000 | J112: 0 | K112: 703.164 | L112: 0 | M112: 532829.2274 | N112: -140754.0434 | O112: 0 | P112: 392075.184 | Q112: 21865.032 | R112: -2089.36125 | S112: 411850.8547 | T112: 31520.28 | U112: 0 | V112: 0 | W112: 0 | X112: 0 | Y112: 0 | Z112: 0 | AA112: 443371.1347 | AH112: -380408.1109 | AI112: 12471.3706
B113: ALL School Block | C113: 3726494.529 | D113: 4800.868433 | E113: -149163.2664 | F113: 7310838.306 | G113: -1971237.811 | H113: 83287.57209 | I113: 151166.6667 | J113: 0 | K113: 33585.1702 | L113: 32284.2773 | M113: 9222056.312 | N113: -536478.1514 | O113: 0 | P113: 8685578.161 | Q113: 609999.6864 | R113: 179897.4943 | S113: 9475475.342 | T113: -452664.83 | U113: 0 | V113: 0 | W113: 0 | X113: 0 | Y113: 0 | Z113: 0 | AA113: 9022810.512 | AH113: 1379050.932 | AI113: 269227.0489
A117: Checks for tool compared to APT | B117: link to tabs | C117: 120941032.8 | D117: 19275867.57 | E117: 0 | F117: 10362275.81 | G117: 2825719.964 | H117: 694966.6488 | I117: 9601166.667 | J117: 0 | K117: 1717559.225 | L117: 1108450 | M117: 166527038.7 | N117: 176389.2438 | P117: 166703428 | Q117: 0 | R117: -1477834.154
B118: variance | C118: 0 | D118: 0 | E118: 0 | F118: 0 | G118: 0 | H118: 0 | I118: 0 | J118: 0 | K118: 0 | L118: 0 | M118: 0 | N118: 0 | P118: 0 | Q118: 0 | R118: 0
B120: Link to New APT | C120: 120941032.8 | D120: 19275867.57 | E120: 0 | F120: 10362275.81 | G120: 2825719.964 | H120: 694966.6488 | I120: 9601166.667 | J120: 0 | K120: 1717559.225 | L120: 1108450 | M120: 166527038.7 | N120: 176387.9418 | P120: 166703426.7 | R120: -1477834.154 | S120: 165225592.5
C121: 0 | D121: 0 | E121: 0 | F121: 0 | G121: 0 | H121: 0 | I121: 0 | J121: 0 | K121: 0 | L121: 0 | M121: 0 | N121: -1.30205347 | P121: -1.302053481 | Q121: 0 | R121: 0 | S121: -1.302053541
A124: 2015-16 final value | C124: 108372744.2 | D124: 19096984.73 | E124: 192821.1621 | F124: 3343610.131 | G124: 4265826.036 | H124: 568469.8139 | I124: 9200000 | J124: 19329.92155 | K124: 696019.323 | L124: 1033455 | M124: 146789260.3 | N124: 1254009.942 | O124: 0 | P124: 148043270.2 | R124: -1934172.985 | S124: 146109097.2 | T124: 1338270 | U124: 4637405.625 | V124: 1717939.146 | W124: 0 | X124: 8819718.168 | Y124: 4135641.999 | Z124: 0 | AA124: 166758072.2
A125: 2016-17 value before changes made | C125: 109882010.2 | D125: 17358586.53 | E125: 189763.6202 | F125: 3121256.84 | G125: 4395964.407 | H125: 599769.8512 | I125: 9450000 | J125: 19329.92155 | K125: 1542412.135 | L125: 1044821.09 | M125: 147603914.6 | N125: 2223639.091 | O125: 0 | P125: 149827553.7 | R125: -1727741.095 | S125: 148099812.6 | T125: 1338270 | AA125: 168748787.6
C126: 11059022.6 | D126: 1917281.046 | E126: -189763.6202 | F126: 7241018.972 | G126: -1570244.443 | H126: 95196.79764 | I126: 151166.6667 | J126: -19329.92155 | K126: 175147.0898 | L126: 63628.91 | M126: 18923124.1 | N126: -2047249.847 | O126: 0 | P126: 16875874.25 | R126: 249906.9412 | S126: 17125781.19 | T126: -455734.83 | U126: 0 | V126: 0 | W126: 0 | X126: 0 | Y126: 0 | Z126: 0 | AA126: -2640658.575
P127: 164985868.7 | AJ127: 230453.4702 | AK127: Available funding from automatic MFG 1.5% reduction
U128: ERS | V128: TA Hours
A129: Ashgate Nursery | B129: 1014 | K129: 11422 | M129: 11422 | P129: 11422 | S129: 11422 | Y129: 251753.8578 | AA129: 263175.8578
A130: Castle Nursery | B130: 1017 | K130: 0 | M130: 0 | P130: 0 | S130: 0 | Y130: -0.006963723941 | AA130: -0.006963723941
A131: Central Nursery | B131: 1006 | K131: 10190.75 | M131: 10190.75 | P131: 10190.75 | S131: 10190.75 | Y131: 271635.3768 | AA131: 281826.1268
A132: Harrington Nursery School | B132: 1008 | K132: 5267.25 | M132: 5267.25 | P132: 5267.25 | S132: 5267.25 | Y132: 387772.0751 | AA132: 393039.3251
A133: Lord Street Nursery | B133: 1005 | K133: 14812.75 | M133: 14812.75 | P133: 14812.75 | S133: 14812.75 | Y133: 437385.692 | AA133: 452198.442
A134: Stonehill Nursery | B134: 1010 | K134: 4955.625 | M134: 4955.625 | P134: 4955.625 | S134: 4955.625 | Y134: 290418.3101 | AA134: 295373.9351
A135: Walbrook Nursery | B135: 1009 | K135: 9547.875 | M135: 9547.875 | P135: 9547.875 | S135: 9547.875 | Y135: 381335.5265 | AA135: 390883.4015
A136: Whitecross Nursery | B136: 1015 | K136: 7694.25 | M136: 7694.25 | P136: 7694.25 | S136: 7694.25 | Y136: 344176.0579 | AA136: 351870.3079
A137: Nursery | K137: 63890.5 | M137: 63890.5 | P137: 63890.5 | S137: 63890.5 | U137: 0 | V137: 0 | Y137: 2364476.889 | AA137: 2428367.389
Z138: Rates
U139: Total ALL | V139: Total ALL | Y139: 0 | Z139: High Needs
C140: 120941032.8 | D140: 19275867.57 | E140: 0 | F140: 10362275.81 | G140: 2825719.964 | H140: 694966.6488 | I140: 9601166.667 | J140: 0 | K140: 1781449.725 | L140: 1108450 | M140: 166590929.2 | N140: 176389.2438 | O140: 0 | P140: 166767318.5 | Q140: 0 | R140: -1477834.154 | S140: 165289484.3 | T140: 882535.17 | U140: 0 | V140: 0 | W140: 0 | X140: 0 | Y140: 2364476.889 | Z140: 0 | AA140: 168536496.4
B142: 1 | C142: 2 | D142: 3 | E142: 4 | F142: 5 | G142: 6 | H142: 7 | I142: 8 | J142: 9 | K142: 10 | L142: 11 | M142: 12 | N142: 13 | O142: 14 | P142: 15 | Q142: 16 | R142: 17 | S142: 18 | T142: 19 | U142: 20 | V142: 21 | W142: 22 | X142: 23 | Y142: 24 | Z142: 25 | AA142: 26 | AB142: 27 | AC142: 28 | AD142: 29 | AE142: 30 | AF142: 31 | AG142: 32 | AH142: 33 | AI142: 34 | AJ142: 35 | AK142: 36
R147: 1008 | S147: Harrington Nursery School
R148: 1005 | S148: Lord Street Nursery | Z148: Schools with Nurseries | AA148: 4112808.628
R149: 1006 | S149: Central Nursery | Z149: Stand Alone Nursery | AA149: 2364476.901
A150: Alvaston Infant and Nursery School | B150: 2443 | R150: 1010 | S150: Stonehill Nursery | Z150: Sub Total Schools | AA150: 6477285.529
A151: Arboretum Primary School | B151: 2629
A152: Ashgate Nursery | B152: 1014
A153: Asterdale Primary School | B153: 2464
A154: Beaufort Community Primary School | B154: 2004
A155: Becket Primary School | B155: 2405
A156: Bemrose | B156: 4177
A157: Bishop Lonsdale Church of England (Aided) Primary School | B157: 2011
A158: Borrow Wood Primary School | B158: 5201
A159: Wyndham Primary Academy | B159: 2007
A160: Brackensdale Infant School | B160: 2433
A161: Breadsall Hill Top Primary School | B161: 2447
A162: Brookfield Primary School | B162: 2512
A163: Carlyle Infant School | B163: 2456
A164: Cavendish Close Infant School | B164: 2449
A165: Central Nursery | B165: 1006
A166: Chaddesden Park Primary School | B166: 2467
A167: Cherry Tree Hill Primary School | B167: 2451
A168: Derwent Community School | B168: 2619
A169: Firs Estate Primary School - converts to an Academy Jan 2018 | B169: 2518
A170: Grampian Primary School /Academy | B170: 2010
A171: Griffe Field Primary School | B171: 2002
A172: Hardwick Primary School | B172: 3544
A173: Harrington Nursery | B173: 1008
A174: Homefields Primary | B174: 2006
A175: Lakeside Community Primary School | B175: 2434
A176: Lord St Nursery | B176: 1005
A177: Meadow Farm Community Primary School | B177: 2452
A178: Osmaston Primary School | B178: 2420
A179: Oakwood Infant School | B179: 2473
A180: Parkview Primary School | B180: 2003
A181: Ravensdale Infant and Nursery School | B181: 2462
A182: Redwood Primary School | B182: 2505
A183: Reigate Primary School | B183: 2000
A184: Roe Farm Primary School | B184: 2001
A185: Rosehill Infant and Nursery School | B185: 2429
A186: Shelton Infant School | B186: 2444
A187: Cotton's Farm Primary School | B187: 2430
A188: St Alban's Catholic Primary School | B188: 3543
A189: St Chad's Church of England (Controlled) Nursery and Infant School | B189: 3158
A190: St James' Church of England (Aided) Infant School and Nursery | B190: 3526
A191: St Mary's Catholic Primary School | B191: 3528
A192: Stonehill Nursery | B192: 1010
A193: Village Primary School | B193: 3546
A194: Walbrook Nursery | B194: 1009
A195: Walter Evans Church of England (Aided) Primary School | B195: 3530
A196: Whitecross Nursery | B196: 1015
A198: Ace Nursery | B198: 206189
A199: Alvaston Achievers | B199: EY545705
A200: An-Noor Nursery | B200: EY362920
A201: Becket Sure Start Children's Centre | B201: EY380753
A202: Best Start Sinfin | B202: EY467568
A203: Bizzy Kidz | B203: EY450983
A204: Boulton Lane Park Pre-School Playgroup | B204: 206124
A205: Bramble Brook Pre-School Playgroup | B205: EY282068
A206: Busy Bees Pre-School | B206: 206126
A207: Busy Bees-Derby, Heatherton | B207: 206111
A208: Carlton Private Day Nursery | B208: 206091
A209: Childcare @ St James Centre | B209: EY396374
A210: Chuckles Pre-School Playgroup | B210: 206128
A211: Derby City Childminding Network - AR | B211: 205999
A212: Derby City Childminding Network - ALB | B212: EY398922
A213: Derby City Childminding Network - AJH | B213: 205921
A214: Derby City Childminding Network - AMD | B214: EY491735
A215: Derby City Childminding Network - AM | B215: EY000013
A216: Derby City Childminding Network - AN | B216: EY543687
A217: Derby City Childminding Network - AP | B217: EY536395
A218: Derby City Childminding Network - CR | B218: EY542496
A219: Derby City Childminding Network - CM | B219: EY421552
A220: Derby City Childminding Network - CLHP | B220: EY251518
... 128 more rows

Sheet 2018-19 FORMULA (hidden)
A1: School | B1: DfE Number | C1: AWPU inc delegated Budget £ | D1: Deprivation £ | E1: LAC £ | F1: LCHI SEN £ | G1: EAL £ | H1: Mobility £ | I1: Lump Sum £ | J1: Split Site £ | K1: Rates £ (based on 17-18 values) | L1: PFI £ | M1: Pre MFG Total | N1: MFG | O1: No Cap | P1: Budget before De-Delegation | Q1: ESG | R1: De-delegation tbc | S1: Net School budget | T1: KS1 Class Factor (link info From KS1 working papers) | U1: ERS | V1: TA & OOC TA Hours | W1: TA Hours OOC | X1: Sixth Form | Y1: Schools with Nurseries excl Rates, TA, ERS | Z1: Contingency | AA1: Total | AB1: Budget before de-delegation / NOR Funding per child - min fund £3,300- P, £4,600 - S & £3,842 - A | AE1: Lookup | AH1: 17/18 School budget before de-del incl KS1 | AI1: 17/18 MFG | AJ1: Variance 18/19 to 17/18 | AK1: Change - MFG | AL1: % change in year
A2: Akaal Primary School | B2: 2014 | C2: 314492.4562 | D2: 39553.6168 | E2: 0 | F2: 15046.17188 | G2: 50859.375 | H2: 10101.85714 | I2: 110000 | J2: 0 | K2: 878 | L2: 0 | M2: 540931.4771 | N2: 0 | O2: 0 | P2: 540931.4771 | Q2: 0 | R2: 0 | S2: 540931.4771 | T2: 6860.04 | Z2: 0 | AA2: 547791.5171 | AB2: 4579.314092 | AE2: 8312014 | AH2: 414758.0147 | AI2: 0 | AJ2: 133033.5023 | AK2: 0 | AL2: 0.2428542578
A3: Allenton Community Primary School | B3: 2012 | C3: 1022350.08 | D3: 327807.7651 | E3: 0 | F3: 95312.71171 | G3: 33441.44144 | H3: 150854.4 | I3: 110000 | J3: 0 | K3: 6919 | L3: 0 | M3: 1746685.398 | N3: -12480.76557 | O3: 0 | P3: 1734204.633 | Q3: 0 | R3: 0 | S3: 1734204.633 | T3: 14610.09 | Z3: 0 | AA3: 1748814.723 | AB3: 4516.157898 | AC3: 2012 new number | AE3: 8312400 | AH3: 1680325.354 | AI3: 0 | AJ3: 68489.3682 | AK3: -12480.76557 | AL3: 0.03916330719
A4: Alvaston Infant and Nursery School | B4: 2443 | C4: 708190.42 | D4: 124888.0606 | E4: 0 | F4: 35023.83146 | G4: 14777.77778 | H4: 0 | I4: 110000 | J4: 0 | K4: 17003.25 | L4: 0 | M4: 1009883.34 | N4: -6917.847565 | O4: 0 | P4: 1002965.492 | Q4: 0 | R4: -18677.988 | S4: 984287.5043 | T4: 13460.04 | Z4: 0 | AA4: 997747.5443 | AB4: 3770.546963 | AE4: 8312443 | AH4: 1014189.466 | AI4: 8663.600825 | AJ4: 2236.066319 | AK4: -15581.44839 | AL4: 0.002199931277
A5: Alvaston Junior School | B5: 2442 | C5: 950466.09 | D5: 186647.381 | E5: 0 | F5: 92563.86086 | G5: 7000 | H5: 0 | I5: 110000 | J5: 0 | K5: 17003.25 | L5: 0 | M5: 1363680.582 | N5: 0 | O5: 0 | P5: 1363680.582 | Q5: 0 | R5: -25067.826 | S5: 1338612.756 | T5: 0 | Z5: 0 | AA5: 1338612.756 | AB5: 3819.833563 | AE5: 8312442 | AH5: 1272782.176 | AI5: 0 | AJ5: 90898.40561 | AK5: 0 | AL5: 0.06665666932
A6: Arboretum Primary School | B6: 2629 | C6: 1400406.62 | D6: 331656.9535 | E6: 0 | F6: 179519.6807 | G6: 116953.5398 | H6: 3957.6 | I6: 110000 | J6: 0 | K6: 57451 | L6: 0 | M6: 2199945.394 | N6: 67288.78531 | O6: 0 | P6: 2267234.179 | Q6: 0 | R6: -36934.668 | S6: 2230299.511 | T6: 24140.16 | Z6: 0 | AA6: 2254439.671 | AB6: 4310.331139 | AE6: 8312629 | AH6: 2238244.508 | AI6: 0 | AJ6: 53129.83169 | AK6: 67288.78531 | AL6: 0.0231868843
A7: Ash Croft Primary School | B7: 2509 | C7: 620332.21 | D7: 111465.7089 | E7: 0 | F7: 45032.85418 | G7: 28842.23301 | H7: 41554.8 | I7: 110000 | J7: 0 | K7: 15985.75 | L7: 0 | M7: 973213.556 | N7: -5515.489401 | O7: 0 | P7: 967698.0666 | Q7: 0 | R7: -16360.794 | S7: 951337.2726 | T7: 5970.03 | Z7: 0 | AA7: 957307.3026 | AB7: 4153.210586 | AE7: 8312509 | AH7: 899478.2022 | AI7: 0 | AJ7: 74189.89443 | AK7: -5515.489401 | AL7: 0.07619628771
A8: Ashgate Primary School | B8: 2005 | C8: 865270.25 | D8: 210414.2979 | E8: 0 | F8: 63269.82849 | G8: 23214.28571 | H8: 19206 | I8: 110000 | J8: 0 | K8: 19249.25 | L8: 0 | M8: 1310623.912 | N8: 4694.740186 | O8: 0 | P8: 1315318.652 | Q8: 0 | R8: -22820.85 | S8: 1292497.802 | T8: 19950.15 | Z8: 0 | AA8: 1312447.952 | AB8: 4047.134315 | AE8: 8312005 | AH8: 1305625.233 | AI8: 0 | AJ8: 29643.56952 | AK8: 4694.740186 | AL8: 0.02220045093
A9: Asterdale Primary School | B9: 2464 | C9: 535136.37 | D9: 85372.04043 | E9: 0 | F9: 33182.96648 | G9: 561.452514 | H9: 0 | I9: 110000 | J9: 0 | K9: 15079.75 | L9: 0 | M9: 779332.5794 | N9: 0 | O9: 0 | P9: 779332.5794 | Q9: 0 | R9: -14113.818 | S9: 765218.7614 | T9: 10420.08 | Z9: 0 | AA9: 775638.8414 | AB9: 3877.276515 | AE9: 8312464 | AH9: 790974.7797 | AI9: 21462.51752 | AJ9: -1222.120264 | AK9: -21462.51752 | AL9: -0.001547472173
A10: Beaufort Community Primary School | B10: 2004 | C10: 790723.89 | D10: 254426.259 | E10: 0 | F10: 68767.215 | G10: 12474 | H10: 13153.2 | I10: 110000 | J10: 0 | K10: 18756.625 | L10: 0 | M10: 1268301.189 | N10: 40921.97736 | O10: 0 | P10: 1309223.166 | Q10: 0 | R10: -20854.746 | S10: 1288368.42 | T10: 18170.13 | Z10: 0 | AA10: 1306538.55 | AB10: 4408.158809 | AE10: 8312004 | AH10: 1264305.249 | AI10: 42182.31824 | AJ10: 63088.04693 | AK10: -1260.340886 | AL10: 0.04752777274
A11: Becket Primary School | B11: 2405 | C11: 543123.48 | D11: 164685.9095 | E11: 0 | F11: 45175.02311 | G11: 29896.55172 | H11: 0 | I11: 110000 | J11: 0 | K11: 14648.75 | L11: 0 | M11: 907529.7144 | N11: 0 | O11: 0 | P11: 907529.7144 | Q11: 0 | R11: -14324.472 | S11: 893205.2424 | T11: 3300 | Z11: 0 | AA11: 896505.2424 | AB11: 4448.675071 | AE11: 8312405 | AH11: 828727.555 | AI11: 0 | AJ11: 82102.15936 | AK11: 0 | AL11: 0.09013996586
A12: Bishop Lonsdale Church of England Aided Primary School | B12: 2011 | C12: 553772.96 | D12: 114530.0338 | E12: 0 | F12: 38096.70164 | G12: 14525.13966 | H12: 0 | I12: 110000 | J12: 0 | K12: 5974.5 | L12: 0 | M12: 836899.3351 | N12: 0 | O12: 0 | P12: 836899.3351 | Q12: 0 | R12: 0 | S12: 836899.3351 | T12: 4190.01 | Z12: 0 | AA12: 841089.3451 | AB12: 4023.554496 | AC12: 2011 new number | AE12: 8312011 | AH12: 855957.4926 | AI12: 0 | AJ12: -14868.14751 | AK12: 0 | AL12: -0.01767725105 | AM12: Nor -2
A13: Borrow Wood Primary School | B13: 5201 | C13: 1006375.86 | D13: 62641.7233 | E13: 0 | F13: 51695.08308 | G13: 2755.102041 | H13: 0 | I13: 110000 | J13: 0 | K13: 23893.25 | L13: 0 | M13: 1257361.018 | N13: -5121.498058 | O13: 0 | P13: 1252239.52 | Q13: 0 | R13: -26542.404 | S13: 1225697.116 | T13: 28850.25 | Z13: 0 | AA13: 1254547.366 | AB13: 3312.802964 | AE13: 8315201 | AH13: 1278459.359 | AI13: 0 | AJ13: 2630.411315 | AK13: -5121.498058 | AL13: 0.002053260729
A14: Wyndham Primary Academy | B14: 2007 | C14: 1179429.91 | D14: 346590.6923 | E14: 0 | F14: 86075.80145 | G14: 33883.85269 | H14: 28750.8 | I14: 110000 | J14: 0 | K14: 4504 | L14: 0 | M14: 1789235.056 | N14: 77041.57618 | O14: 0 | P14: 1866276.633 | Q14: 0 | R14: 0 | S14: 1866276.633 | T14: 9900 | Z14: 0 | AA14: 1876176.633 | AB14: 4212.814069 | AE14: 8312007 | AH14: 1622695.585 | AI14: 0 | AJ14: 253481.0478 | AK14: 77041.57618 | AL14: 0.1351051087
A15: Brackensdale ER (Enhanced Resource) Primary School | B15: 2432 | C15: 1240664.42 | D15: 296012.1857 | E15: 0 | F15: 100452.443 | G15: 9708.333333 | H15: 0 | I15: 187000 | J15: 0 | K15: 23016.5 | L15: 0 | M15: 1856853.882 | N15: 84875.8316 | O15: 0 | P15: 1941729.714 | Q15: 0 | R15: -32721.588 | S15: 1909008.126 | T15: 27700.2 | Z15: 0 | AA15: 1936708.326 | AB15: 4166.80196 | AE15: 8312432 | AH15: 1609009 | AI15: 40351.55501 | AJ15: 360420.9136 | AK15: 44524.27659 | AL15: 0.183007738
A16: Breadsall Hill Top Primary School | B16: 2018 | C16: 1104883.55 | D16: 179146.6147 | E16: 0 | F16: 99364.17491 | G16: 14530.81232 | H16: 0 | I16: 110000 | J16: 0 | K16: 5070 | L16: 0 | M16: 1512995.152 | N16: 0 | O16: 0 | P16: 1512995.152 | Q16: 0 | R16: 0 | S16: 1512995.152 | T16: 8380.02 | Z16: 0 | AA16: 1521375.172 | AB16: 3645.77145 | AE16: 8312447 | AH16: 1618484 | AI16: 55911.49347 | AJ16: -97108.82808 | AK16: -55911.49347 | AL16: -0.06382963905 | AM16: Nor - 22
A17: Brookfield Primary School | B17: 2512 | C17: 567084.81 | D17: 23679.01798 | E17: 0 | F17: 35255.11288 | G17: 19204.91803 | H17: 0 | I17: 110000 | J17: 0 | K17: 17960.125 | L17: 0 | M17: 773183.9839 | N17: 0 | O17: 0 | P17: 773183.9839 | Q17: 0 | R17: -14956.434 | S17: 758227.5499 | T17: 3300 | Z17: 0 | AA17: 761527.5499 | AB17: 3629.971755 | AE17: 8312512 | AH17: 742259.2096 | AI17: 0 | AJ17: 34224.77427 | AK17: 0 | AL17: 0.04407660039
A18: Carlyle Infant School | B18: 2456 | C18: 476564.23 | D18: 31385.02825 | E18: 0 | F18: 25290.89496 | G18: 14916.66667 | H18: 0 | I18: 110000 | J18: 0 | K18: 11615.125 | L18: 0 | M18: 669771.9449 | N18: 0 | O18: 0 | P18: 669771.9449 | Q18: 0 | R18: -12569.022 | S18: 657202.9229 | T18: 7490.01 | Z18: 0 | AA18: 664692.9329 | AB18: 3741.742709 | AE18: 8312456 | AH18: 660208.9067 | AI18: 0 | AJ18: 17053.04822 | AK18: 0 | AL18: 0.02517939786
A19: Cavendish Close Infant School | B19: 2449 | C19: 692216.2 | D19: 84505 | E19: 0 | F19: 51253.27381 | G19: 9176.470588 | H19: 0 | I19: 110000 | J19: 0 | K19: 14005.5 | L19: 0 | M19: 961156.4444 | N19: -18260.95475 | O19: 0 | P19: 942895.4896 | Q19: 0 | R19: -18256.68 | S19: 924638.8096 | T19: 9900 | Z19: 0 | AA19: 934538.8096 | AB19: 3626.521114 | AE19: 8312449 | AH19: 911433.5298 | AI19: 0 | AJ19: 41361.95985 | AK19: -18260.95475 | AL19: 0.04341116252
A20: Cavendish Close Junior School | B20: 2019 | C20: 915855.28 | D20: 126732.381 | E20: 0 | F20: 86923.62289 | G20: 2500 | H20: 0 | I20: 110000 | J20: 0 | K20: 3476.75 | L20: 0 | M20: 1245488.034 | N20: -13115.06915 | O20: 0 | P20: 1232372.965 | Q20: 0 | R20: 0 | S20: 1232372.965 | T20: 0 | Z20: 0 | AA20: 1232372.965 | AB20: 3582.479549 | AE20: 8312448 | AH20: 1170202.747 | AI20: 0 | AJ20: 62170.21798 | AK20: -13115.06915 | AL20: 0.05044756722
A21: Chaddesden Park Junior School | B21: 2467 | C21: 974427.42 | D21: 141427 | E21: 0 | F21: 63097.42402 | G21: 6535.714286 | H21: 0 | I21: 110000 | J21: 0 | K21: 13466.75 | L21: 0 | M21: 1308954.308 | N21: -819.9074835 | O21: 0 | P21: 1308134.401 | Q21: 0 | R21: -25699.788 | S21: 1282434.613 | T21: 8380.02 | Z21: 0 | AA21: 1290814.633 | AB21: 3574.137707 | AE21: 8312467 | AH21: 1245297.125 | AI21: 3464.579931 | AJ21: 71217.29622 | AK21: -4284.487415 | AL21: 0.05409534076
A22: Chellaston Infant School | B22: 2455 | C22: 945141.35 | D22: 70063.44444 | E22: 0 | F22: 54107.15812 | G22: 19638.29787 | H22: 0 | I22: 110000 | J22: 0 | K22: 23937.5 | L22: 0 | M22: 1222887.75 | N22: -4557.202638 | O22: 0 | P22: 1218330.548 | Q22: 0 | R22: -24927.39 | S22: 1193403.158 | T22: 13200 | Z22: 0 | AA22: 1206603.158 | AB22: 3431.917036 | AE22: 8312455 | AH22: 1181336.54 | AI22: 0 | AJ22: 50194.0074 | AK22: -4557.202638 | AL22: 0.04075741969
A23: Chellaston Junior School | B23: 5203 | C23: 1341834.48 | D23: 97104.34663 | E23: 0 | F23: 85192.5755 | G23: 3000 | H23: 0 | I23: 110000 | J23: 0 | K23: 5957 | L23: 0 | M23: 1643088.402 | N23: -1606.405906 | O23: 0 | P23: 1641481.996 | Q23: 0 | R23: -35389.872 | S23: 1606092.124 | T23: 0 | Z23: 0 | AA23: 1606092.124 | AB23: 3256.908723 | AE23: 8315203 | AH23: 1526422.518 | AI23: 0 | AJ23: 115059.4787 | AK23: -1606.405906 | AL23: 0.07009487703
A24: Cherry Tree Hill Primary School | B24: 2451 | C24: 1464303.5 | D24: 155272.3577 | E24: 0 | F24: 121120.9085 | G24: 4113.247863 | H24: 0 | I24: 110000 | J24: 0 | K24: 29095.25 | L24: 0 | M24: 1883905.264 | N24: -30282.96151 | O24: 0 | P24: 1853622.303 | Q24: 0 | R24: -38619.9 | S24: 1815002.403 | T24: 17020.08 | Z24: 0 | AA24: 1832022.483 | AB24: 3370.222368 | AE24: 8312451 | AH24: 1695845.148 | AI24: 0 | AJ24: 174797.2344 | AK24: -30282.96151 | AL24: 0.09344235756
A25: Dale Community Primary School | B25: 2409 | C25: 1437679.8 | D25: 290355.6289 | E25: 0 | F25: 158550.0436 | G25: 94023.52941 | H25: 0 | I25: 110000 | J25: 0 | K25: 35458.5 | L25: 0 | M25: 2126067.502 | N25: 2980.000107 | O25: 0 | P25: 2129047.502 | Q25: 0 | R25: -37917.72 | S25: 2091129.782 | T25: 22360.14 | Z25: 0 | AA25: 2113489.922 | AB25: 3942.680559 | AE25: 8312409 | AH25: 2187170.836 | AI25: 0 | AJ25: -35763.19373 | AK25: 2980.000107 | AL25: -0.01662316013 | AM25: Nor - 8
A26: Derby St Chad's CE (VC) Nursery and Infant School | B26: 3158 | C26: 300847.81 | D26: 50362.4 | E26: 0 | F26: 33020.09559 | G26: 54178.08219 | H26: 0 | I26: 110000 | J26: 0 | K26: 1658.875 | L26: 0 | M26: 550067.2628 | N26: 15733.88718 | O26: 0 | P26: 565801.15 | Q26: 0 | R26: -7934.634 | S26: 557866.516 | T26: 24400.2 | Z26: 0 | AA26: 582266.716 | AB26: 5007.089823 | AE26: 8313158 | AH26: 624298.1063 | AI26: 0 | AJ26: -34096.7563 | AK26: 15733.88718 | AL26: -0.05777139666 | AM26: Nor - 7
A27: Derwent Community School | B27: 2016 | C27: 630981.69 | D27: 208996.7743 | E27: 0 | F27: 65212.7564 | G27: 19346.93878 | H27: 0 | I27: 110000 | J27: 0 | K27: 5488 | L27: 0 | M27: 1040026.159 | N27: 0 | O27: 0 | P27: 1040026.159 | Q27: 0 | R27: 0 | S27: 1040026.159 | T27: 23510.19 | Z27: 0 | AA27: 1063536.349 | AB27: 4388.296032 | AE27: 8312619 | AH27: 1025877 | AI27: 0 | AJ27: 37659.34947 | AK27: 0 | AL27: 0.03540955557
A28: Firs Estate Primary School | B28: 2013 | C28: 961115.57 | D28: 261924.8145 | E28: 0 | F28: 127401.4345 | G28: 83902.14067 | H28: 84855.6 | I28: 110000 | J28: 0 | K28: 4341.5 | L28: 0 | M28: 1633541.06 | N28: 0 | O28: 0 | P28: 1633541.06 | Q28: 0 | R28: 0 | S28: 1633541.06 | T28: 29740.26 | Z28: 0 | AA28: 1663281.32 | AB28: 4525.044487 | AE28: 8312518 | AH28: 1579999 | AI28: 0 | AJ28: 83282.31966 | AK28: 0 | AL28: 0.05007109662
A29: Gayton Community Junior School | B29: 2457 | C29: 971765.05 | D29: 89295.28142 | E29: 0 | F29: 91667.06461 | G29: 16000 | H29: 0 | I29: 110000 | J29: 0 | K29: 19091.5 | L29: 0 | M29: 1297818.896 | N29: -6130.034059 | O29: 0 | P29: 1291688.862 | Q29: 0 | R29: -25629.57 | S29: 1266059.292 | T29: 0 | Z29: 0 | AA29: 1266059.292 | AB29: 3538.873594 | AE29: 8312457 | AH29: 1231714.933 | AI29: 0 | AJ29: 59973.92884 | AK29: -6130.034059 | AL29: 0.04643063094
A30: Grampian Primary Academy | B30: 2010 | C30: 545785.85 | D30: 160052.9662 | E30: 0 | F30: 32627.40952 | G30: 19914.28571 | H30: 0 | I30: 110000 | J30: 0 | K30: 3766.5 | L30: 0 | M30: 872147.0114 | N30: 24729.15516 | O30: 0 | P30: 896876.1666 | Q30: 0 | R30: 0 | S30: 896876.1666 | T30: 3300 | Z30: 0 | AA30: 900176.1666 | AB30: 4375.005691 | AE30: 8312010 | AH30: 950800.9882 | AI30: 21980.58041 | AJ30: -50624.82162 | AK30: 2748.574746 | AL30: -0.05623879358 | AM30: Nor - 4 - KS1 £36k reduction
A31: Griffe Field Primary School | B31: 2002 | C31: 1136831.99 | D31: 24403.95329 | E31: 0 | F31: 60047.03317 | G31: 29087.19346 | H31: 0 | I31: 110000 | J31: 0 | K31: 48020 | L31: 0 | M31: 1408390.17 | N31: 0 | O31: 0 | P31: 1408390.17 | Q31: 0 | R31: -29983.086 | S31: 1378407.084 | T31: 6600 | Z31: 0 | AA31: 1385007.084 | AB31: 3298.337634 | AE31: 8312002 | AH31: 1391686.701 | AI31: 0 | AJ31: 23303.46922 | AK31: 0 | AL31: 0.01646899725
A32: Hardwick Primary School | B32: 3544 | C32: 1432355.06 | D32: 359280.6222 | E32: 0 | F32: 179673.1559 | G32: 131411.2735 | H32: 0 | I32: 110000 | J32: 0 | K32: 12838 | L32: 139838 | M32: 2365396.112 | N32: 18161.22129 | O32: 0 | P32: 2383557.333 | Q32: 0 | R32: 0 | S32: 2383557.333 | T32: 7490.01 | Z32: 0 | AA32: 2391047.343 | AB32: 4430.403965 | AE32: 8313544 | AH32: 2486381.734 | AI32: 0 | AJ32: -95334.39109 | AK32: 18161.22129 | AL32: -0.03987139417 | AM32: Nor - 2 - KS1 £38k reduction
A33: Homefields Primary School | B33: 2006 | C33: 806698.11 | D33: 8777.408163 | E33: 0 | F33: 43276.43683 | G33: 11176.22951 | H33: 0 | I33: 110000 | J33: 0 | K33: 31902.5 | L33: 0 | M33: 1011830.685 | N33: -8346.651142 | O33: 0 | P33: 1003484.033 | Q33: 0 | R33: -21276.054 | S33: 982207.9794 | T33: 19950.15 | Z33: 0 | AA33: 1002158.129 | AB33: 3311.828493 | AE33: 8312006 | AH33: 978572.2727 | AI33: 0 | AJ33: 44861.91066 | AK33: -8346.651142 | AL33: 0.04383468071
A34: Lakeside Community Primary School | B34: 2434 | C34: 1573460.67 | D34: 370764.0505 | E34: 0 | F34: 144602.4425 | G34: 23002.99401 | H34: 0 | I34: 110000 | J34: 0 | K34: 50470 | L34: 150600 | M34: 2422900.157 | N34: 0 | O34: 0 | P34: 2422900.157 | Q34: 0 | R34: -41498.838 | S34: 2381401.319 | T34: 9900 | Z34: 0 | AA34: 2391301.319 | AB34: 4099.661856 | AE34: 8312434 | AH34: 2300907.896 | AI34: 40821.87462 | AJ34: 131892.2614 | AK34: -40821.87462 | AL34: 0.05421417825
A35: Lawn Primary School | B35: 2522 | C35: 1136831.99 | D35: 65983.87527 | E35: 0 | F35: 49642.10486 | G35: 15707.08447 | H35: 0 | I35: 110000 | J35: 0 | K35: 19783.625 | L35: 0 | M35: 1397948.68 | N35: 0 | O35: 0 | P35: 1397948.68 | Q35: 0 | R35: -29983.086 | S35: 1367965.594 | T35: 6600 | Z35: 0 | AA35: 1374565.594 | AB35: 3273.884496 | AE35: 8312522 | AH35: 1320992.389 | AI35: 0 | AJ35: 83556.29091 | AK35: 0 | AL35: 0.05948977926
A36: Markeaton Primary School | B36: 2436 | C36: 1032999.56 | D36: 104577.8721 | E36: 0 | F36: 51284.1429 | G36: 10085.62691 | H36: 0 | I36: 110000 | J36: 0 | K36: 24788.5 | L36: 0 | M36: 1333735.702 | N36: 0 | O36: 0 | P36: 1333735.702 | Q36: 0 | R36: -27244.584 | S36: 1306491.118 | T36: 6600 | Z36: 0 | AA36: 1313091.118 | AB36: 3437.463149 | AE36: 8312436 | AH36: 1222198.655 | AI36: 0 | AJ36: 118137.0467 | AK36: 0 | AL36: 0.08813989398
A37: Meadow Farm Community Primary School | B37: 2452 | C37: 460590.01 | D37: 67711.47541 | E37: 0 | F37: 35599.78874 | G37: 5544.871795 | H37: 0 | I37: 110000 | J37: 0 | K37: 16282.625 | L37: 0 | M37: 695728.7709 | N37: 0 | O37: 0 | P37: 695728.7709 | Q37: 0 | R37: -12147.714 | S37: 683581.0569 | T37: 14870.13 | Z37: 0 | AA37: 698451.1869 | AB37: 4021.553589 | AE37: 8312452 | AH37: 736484.538 | AI37: 0 | AJ37: -25885.63708 | AK37: 0 | AL37: -0.03642791601 | AM37: Nor - 15
A38: Mickleover Primary School | B38: 2627 | C38: 1118195.4 | D38: 43325.78463 | E38: 0 | F38: 53144.75085 | G38: 13416.66667 | H38: 0 | I38: 110000 | J38: 0 | K38: 17064 | L38: 0 | M38: 1355146.602 | N38: -2344.757814 | O38: 0 | P38: 1352801.844 | Q38: 0 | R38: -29491.56 | S38: 1323310.284 | T38: 6600 | Z38: 0 | AA38: 1329910.284 | AB38: 3220.956772 | AE38: 8312627 | AH38: 1266497.954 | AI38: 0 | AJ38: 92903.89065 | AK38: -2344.757814 | AL38: 0.06834174239
A39: Landau Forte Academy Moorhead | B39: 2009 | C39: 681566.72 | D39: 175861.6287 | E39: 0 | F39: 54876.15082 | G39: 10017.3913 | H39: 0 | I39: 110000 | J39: 0 | K39: 3297.125 | L39: 0 | M39: 1035619.016 | N39: 29694.28246 | O39: 0 | P39: 1065313.298 | Q39: 0 | R39: 0 | S39: 1065313.298 | T39: 6860.04 | Z39: 0 | AA39: 1072173.338 | AB39: 4161.380071 | AE39: 8312009 | AH39: 1205601.668 | AI39: 0 | AJ39: -133428.3295 | AK39: 29694.28246 | AL39: -0.1244466027 | AM39: Nor - 31
A40: Oakwood Infant and Nursery School | B40: 2473 | C40: 721502.27 | D40: 136359.3719 | E40: 0 | F40: 57401.75843 | G40: 6775 | H40: 0 | I40: 110000 | J40: 0 | K40: 18406.75 | L40: 0 | M40: 1050445.15 | N40: -3909.934696 | O40: 0 | P40: 1046535.216 | Q40: 0 | R40: -19029.078 | S40: 1027506.138 | T40: 39010.29 | Z40: 0 | AA40: 1066516.428 | AB40: 3861.753563 | AE40: 8312473 | AH40: 1051736.096 | AI40: 0 | AJ40: 33809.40949 | AK40: -3909.934696 | AL40: 0.03114508726
A41: Oakwood Junior School | B41: 2471 | C41: 929167.13 | D41: 200518.7339 | E41: 0 | F41: 96693.04627 | G41: 1500 | H41: 0 | I41: 110000 | J41: 0 | K41: 18406.75 | L41: 0 | M41: 1356285.66 | N41: 0 | O41: 0 | P41: 1356285.66 | Q41: 0 | R41: -24506.082 | S41: 1331779.578 | T41: 0 | Z41: 0 | AA41: 1331779.578 | AB41: 3886.20533 | AE41: 8312471 | AH41: 1345901.424 | AI41: 0 | AJ41: 10384.23573 | AK41: 0 | AL41: 0.007656378032
A42: Osmaston Primary School | B42: 2420 | C42: 1570798.3 | D42: 522639.6296 | E42: 0 | F42: 147787.4368 | G42: 79262.62626 | H42: 36245.66667 | I42: 110000 | J42: 0 | K42: 22358.25 | L42: 0 | M42: 2489091.909 | N42: 133238.8206 | O42: 0 | P42: 2622330.73 | Q42: 0 | R42: -41428.62 | S42: 2580902.11 | T42: 17910.09 | Z42: 0 | AA42: 2598812.2 | AB42: 4444.628356 | AE42: 8312420 | AH42: 2576534.88 | AI42: 13574.81197 | AJ42: 63705.94008 | AK42: 119664.0086 | AL42: 0.02412883689
A43: Parkview Primary School | B43: 2003 | C43: 556435.33 | D43: 14419.07619 | E43: 0 | F43: 31767.18268 | G43: 4670.391061 | H43: 0 | I43: 110000 | J43: 0 | K43: 30104.5 | L43: 0 | M43: 747396.4799 | N43: -5064.682854 | O43: 0 | P43: 742331.7971 | Q43: 0 | R43: -14675.562 | S43: 727656.2351 | T43: 3300 | Z43: 0 | AA43: 730956.2351 | AB43: 3551.82678 | AE43: 8312003 | AH43: 719613.3053 | AI43: 0 | AJ43: 26018.49173 | AK43: -5064.682854 | AL43: 0.03489455765
A44: Pear Tree Community Junior School | B44: 2017 | C44: 939816.61 | D44: 278126.9601 | E44: 0 | F44: 140814.9535 | G44: 68500 | H44: 36980.28 | I44: 110000 | J44: 0 | K44: 3179.35 | L44: 0 | M44: 1577418.154 | N44: 31050.21156 | O44: 0 | P44: 1608468.365 | Q44: 0 | R44: 0 | S44: 1608468.365 | T44: 0 | Z44: 0 | AA44: 1608468.365 | AB44: 4556.567607 | AE44: 8312423 | AH44: 1630285.364 | AI44: 0 | AJ44: -21816.99866 | AK44: 31050.21156 | AL44: -0.01356383447 | AM44: Nor - 3
A45: Pear Tree Infant School | B45: 2424 | C45: 689553.83 | D45: 166054.023 | E45: 0 | F45: 75167.37342 | G45: 98596.59091 | H45: 9428.4 | I45: 110000 | J45: 0 | K45: 15800.75 | L45: 0 | M45: 1164600.967 | N45: 69361.08037 | O45: 0 | P45: 1233962.048 | Q45: 0 | R45: -18186.462 | S45: 1215775.586 | T45: 16130.07 | Z45: 0 | AA45: 1231905.656 | AB45: 4764.332231 | AE45: 8312424 | AH45: 1260367.653 | AI45: 30594.0914 | AJ45: -10275.53515 | AK45: 38766.98897 | AL45: -0.008219822365 | AM45: Nor - 3
A46: Portway Infant School | B46: 2439 | C46: 700203.31 | D46: 21431.63704 | E46: 0 | F46: 23468.66384 | G46: 3673.184358 | H46: 0 | I46: 110000 | J46: 0 | K46: 10379.125 | L46: 0 | M46: 869155.9202 | N46: 0 | O46: 0 | P46: 869155.9202 | Q46: 0 | R46: -18467.334 | S46: 850688.5862 | T46: 15240.06 | Z46: 0 | AA46: 865928.6462 | AB46: 3304.775362 | AE46: 8312439 | AH46: 866740.3606 | AI46: 0 | AJ46: 17655.61968 | AK46: 0 | AL46: 0.01996347798
A47: Portway Junior School | B47: 2440 | C47: 905205.8 | D47: 42949.35368 | E47: 0 | F47: 38418.33582 | G47: 2000 | H47: 0 | I47: 110000 | J47: 0 | K47: 33810 | L47: 0 | M47: 1132383.49 | N47: -3588.274942 | O47: 0 | P47: 1128795.215 | Q47: 0 | R47: -23874.12 | S47: 1104921.095 | T47: 0 | Z47: 0 | AA47: 1104921.095 | AB47: 3319.985925 | AE47: 8312440 | AH47: 1065570.593 | AI47: 0 | AJ47: 63224.62172 | AK47: -3588.274942 | AL47: 0.05601071027
A48: Ravensdale Infant and Nursery School | B48: 2462 | C48: 681566.72 | D48: 68887.22709 | E48: 0 | F48: 39663.53216 | G48: 22882.68156 | H48: 0 | I48: 110000 | J48: 0 | K48: 15826 | L48: 0 | M48: 938826.1608 | N48: 0 | O48: 0 | P48: 938826.1608 | Q48: 0 | R48: -17975.808 | S48: 920850.3528 | T48: 21470.13 | Z48: 0 | AA48: 942320.4828 | AB48: 3667.289691 | AE48: 8312462 | AH48: 928439.6857 | AI48: 0 | AJ48: 31856.60512 | AK48: 0 | AL48: 0.03317372505
A49: Ravensdale Junior School | B49: 2463 | C49: 929167.13 | D49: 101854.2874 | E49: 0 | F49: 67141.59715 | G49: 22500 | H49: 0 | I49: 110000 | J49: 0 | K49: 15826 | L49: 0 | M49: 1246489.015 | N49: -1022.030137 | O49: 0 | P49: 1245466.984 | Q49: 0 | R49: -24506.082 | S49: 1220960.902 | T49: 0 | Z49: 0 | AA49: 1220960.902 | AB49: 3568.673308 | AE49: 8312463 | AH49: 1169972.441 | AI49: 0 | AJ49: 75494.54338 | AK49: -1022.030137 | AL49: 0.06061545133
A50: Redwood Primary School | B50: 2505 | C50: 1517550.9 | D50: 310634.5287 | E50: 0 | F50: 138796.289 | G50: 62618.06982 | H50: 3492 | I50: 110000 | J50: 0 | K50: 32463.5 | L50: 0 | M50: 2175555.287 | N50: 0 | O50: 0 | P50: 2175555.287 | Q50: 0 | R50: -40024.26 | S50: 2135531.027 | T50: 17910.09 | Z50: 0 | AA50: 2153441.117 | AB50: 3816.763662 | AE50: 8312505 | AH50: 2123864.245 | AI50: 0 | AJ50: 69601.13203 | AK50: 0 | AL50: 0.03173112863
A51: Reigate Park Primary School | B51: 2000 | C51: 870594.99 | D51: 175446.1323 | E51: 0 | F51: 88475.8585 | G51: 23276.04167 | H51: 0 | I51: 110000 | J51: 0 | K51: 19871 | L51: 0 | M51: 1287664.022 | N51: -14616.33385 | O51: 0 | P51: 1273047.689 | Q51: 0 | R51: -22961.286 | S51: 1250086.403 | T51: 25290.21 | Z51: 0 | AA51: 1275376.613 | AB51: 3893.112198 | AE51: 8312000 | AH51: 1121398.398 | AI51: 3210.364846 | AJ51: 176939.5007 | AK51: -17826.6987 | AL51: 0.1362815496
A52: Ridgeway Infant School | B52: 2458 | C52: 700203.31 | D52: 56126 | E52: 0 | F52: 45942.34286 | G52: 65382.68156 | H52: 0 | I52: 110000 | J52: 0 | K52: 11091.625 | L52: 0 | M52: 988745.9594 | N52: -17505.84097 | O52: 0 | P52: 971240.1184 | Q52: 0 | R52: -18467.334 | S52: 952772.7844 | T52: 15240.06 | Z52: 0 | AA52: 968012.8444 | AB52: 3692.928207 | AE52: 8312458 | AH52: 954762.3332 | AI52: 0 | AJ52: 31717.84528 | AK52: -17505.84097 | AL52: 0.03215254191
A53: Roe Farm Primary School | B53: 2001 | C53: 1032999.56 | D53: 274794.3463 | E53: 0 | F53: 99398.40097 | G53: 6447.129909 | H53: 0 | I53: 110000 | J53: 0 | K53: 23248.5 | L53: 0 | M53: 1546887.937 | N53: 17307.39116 | O53: 0 | P53: 1564195.328 | Q53: 0 | R53: -27244.584 | S53: 1536950.744 | T53: 9270.03 | Z53: 0 | AA53: 1546220.774 | AB53: 4031.431259 | AE53: 8312001 | AH53: 1496553.27 | AI53: 53900.31198 | AJ53: 76912.08808 | AK53: -36592.92082 | AL53: 0.04888069996
A54: Rosehill Infant and Nursery School | B54: 2429 | C54: 388706.02 | D54: 84377.15418 | E54: 0 | F54: 38002.05435 | G54: 57515.15152 | H54: 0 | I54: 110000 | J54: 0 | K54: 10728.875 | L54: 0 | M54: 689329.255 | N54: 31817.64333 | O54: 0 | P54: 721146.8984 | Q54: 0 | R54: -10251.828 | S54: 710895.0704 | T54: 18170.13 | Z54: 0 | AA54: 729065.2004 | AB54: 4939.362318 | AE54: 8312429 | AH54: 754930.8722 | AI54: 0 | AJ54: -15613.84386 | AK54: 31817.64333 | AL54: -0.02111928071 | AM54: Nor - 4 - KS1 £36k reduction
A55: Shelton Infant School | B55: 2444 | C55: 559097.7 | D55: 91988 | E55: 0 | F55: 31013.04348 | G55: 17374.10072 | H55: 0 | I55: 110000 | J55: 0 | K55: 11106 | L55: 0 | M55: 820578.8442 | N55: 0 | O55: 0 | P55: 820578.8442 | Q55: 0 | R55: -14745.78 | S55: 805833.0642 | T55: 26810.19 | Z55: 0 | AA55: 832643.2542 | AB55: 3907.518306 | AE55: 8312444 | AH55: 844069.3987 | AI55: 0 | AJ55: 3319.635477 | AK55: 0 | AL55: 0.003917486943
A56: Shelton Junior School | B56: 5209 | C56: 702865.68 | D56: 140976.6616 | E56: 0 | F56: 82159.76578 | G56: 9034.220532 | H56: 0 | I56: 110000 | J56: 0 | K56: 3571.875 | L56: 0 | M56: 1048608.203 | N56: 0 | O56: 0 | P56: 1048608.203 | Q56: 0 | R56: -18537.552 | S56: 1030070.651 | T56: 0 | Z56: 0 | AA56: 1030070.651 | AB56: 3972.000769 | AE56: 8315209 | AH56: 1005525.975 | AI56: 0 | AJ56: 43082.22764 | AK56: 0 | AL56: 0.04108515222
A57: Silverhill Primary School | B57: 2469 | C57: 1118195.4 | D57: 53134.37091 | E57: 0 | F57: 43608.40591 | G57: 16333.33333 | H57: 0 | I57: 110000 | J57: 0 | K57: 16019.125 | L57: 0 | M57: 1357290.635 | N57: 0 | O57: 0 | P57: 1357290.635 | Q57: 0 | R57: -29491.56 | S57: 1327799.075 | T57: 6600 | Z57: 0 | AA57: 1334399.075 | AB57: 3231.644369 | AE57: 8312469 | AH57: 1375159.147 | AI57: 0 | AJ57: -11268.51229 | AK57: 0 | AL57: -0.00826203509 | AM57: Nor -2
A58: Cottons Farm Primary School | B58: 2430 | C58: 343445.73 | D58: 113333.0996 | E58: 0 | F58: 40757.39095 | G58: 22831.85841 | H58: 17576.4 | I58: 110000 | J58: 0 | K58: 21968.75 | L58: 24583 | M58: 694496.2289 | N58: 369.708558 | O58: 0 | P58: 694865.9375 | Q58: 0 | R58: -9058.122 | S58: 685807.8155 | T58: 15760.14 | Z58: 0 | AA58: 701567.9555 | AB58: 5386.557655 | AE58: 8312430 | AH58: 739975.912 | AI58: 8826.096956 | AJ58: -29349.83453 | AK58: -8456.388398 | AL58: -0.0413013756 | AM58: Nor -6 & KS1 red £6k
A59: Springfield Primary School | B59: 2466 | C59: 756778.6725 | D59: 89844.89697 | E59: 0 | F59: 51383.0353 | G59: 4900.862069 | H59: 13163.52581 | I59: 110000 | J59: 0 | K59: 14308.125 | L59: 0 | M59: 1040379.118 | N59: 8603.27611 | O59: 0 | P59: 1048982.394 | Q59: 0 | R59: -19959.4665 | S59: 1029022.927 | T59: 18170.13 | Z59: 0 | AA59: 1047193.057 | AB59: 3690.351429 | AE59: 8312466 | AH59: 959790.9803 | AI59: 18724.69883 | AJ59: 107361.5434 | AK59: -10121.42272 | AL59: 0.100605622
A60: St Alban's Catholic Primary School | B60: 3543 | C60: 806698.11 | D60: 80783.42645 | E60: 0 | F60: 43510.18953 | G60: 24075.5814 | H60: 0 | I60: 110000 | J60: 0 | K60: 3746.375 | L60: 0 | M60: 1068813.682 | N60: 0 | O60: 0 | P60: 1068813.682 | Q60: 0 | R60: -21276.054 | S60: 1047537.628 | T60: 19950.15 | Z60: 0 | AA60: 1067487.778 | AB60: 3527.437896 | AE60: 8313543 | AH60: 1068882.025 | AI60: 0 | AJ60: 19881.80723 | AK60: 0 | AL60: 0.01826089979
A61: St George's Catholic Voluntary Academy | B61: 3531 | C61: 899881.06 | D61: 104956.9165 | E61: 0 | F61: 64201.91542 | G61: 20979.31034 | H61: 0 | I61: 110000 | J61: 0 | K61: 4037.875 | L61: 0 | M61: 1204057.077 | N61: 0 | O61: 0 | P61: 1204057.077 | Q61: 0 | R61: 0 | S61: 1204057.077 | T61: 17280.12 | Z61: 0 | AA61: 1221337.197 | AB61: 3562.299045 | AE61: 8313531 | AH61: 1244574.09 | AI61: 0 | AJ61: -23236.89229 | AK61: 0 | AL61: -0.01902577956 | AM61: Nor - 7
A62: St James' Church of England Aided Infant School | B62: 3526 | C62: 218314.34 | D62: 50474.8764 | E62: 0 | F62: 18841.5098 | G62: 29689.65517 | H62: 2095.2 | I62: 110000 | J62: 0 | K62: 1452 | L62: 0 | M62: 430867.5814 | N62: 17956.70266 | O62: 0 | P62: 448824.284 | Q62: 0 | R62: -5757.876 | S62: 443066.408 | T62: 9530.07 | Z62: 0 | AA62: 452596.478 | AB62: 5473.466879 | AE62: 8313526 | AH62: 465647.3133 | AI62: 0 | AJ62: -7292.95924 | AK62: 17956.70266 | AL62: -0.01591118133 | AM62: Nor - 3
A63: St James' Church of England Aided Junior School | B63: 3535 | C63: 777412.04 | D63: 207609.0492 | E63: 0 | F63: 98167.23406 | G63: 42289.65517 | H63: 5587.2 | I63: 110000 | J63: 0 | K63: 2890 | L63: 0 | M63: 1243955.178 | N63: 3670.495135 | O63: 0 | P63: 1247625.674 | Q63: 0 | R63: -20503.656 | S63: 1227122.018 | T63: 0 | Z63: 0 | AA63: 1227122.018 | AB63: 4272.690663 | AE63: 8313535 | AH63: 1251012.064 | AI63: 0 | AJ63: -3386.390074 | AK63: 3670.495135 | AL63: -0.002714267705
A64: St John Fisher Catholic Voluntary Academy | B64: 2008 | C64: 607020.36 | D64: 107220.8261 | E64: 0 | F64: 52556.72161 | G64: 10363.63636 | H64: 0 | I64: 110000 | J64: 0 | K64: 2983.125 | L64: 0 | M64: 890144.6691 | N64: 0 | O64: 0 | P64: 890144.6691 | Q64: 0 | R64: 0 | S64: 890144.6691 | T64: 3300 | Z64: 0 | AA64: 893444.6691 | AB64: 3904.143285 | AE64: 8312008 | AH64: 902077.9354 | AI64: 0 | AJ64: -8633.266305 | AK64: 0 | AL64: -0.00966289979 | AM64: KS1 £37K REDUCTION
A65: St Joseph's Catholic Primary School, Derby | B65: 3542 | C65: 945141.35 | D65: 154029.2888 | E65: 0 | F65: 54323.90043 | G65: 62889.07285 | H65: 0 | I65: 110000 | J65: 0 | K65: 5473.5 | L65: 0 | M65: 1331857.112 | N65: 1749.426054 | O65: 0 | P65: 1333606.538 | Q65: 0 | R65: -24927.39 | S65: 1308679.148 | T65: 13720.08 | Z65: 0 | AA65: 1322399.228 | AB65: 3756.638136 | AE65: 8313542 | AH65: 1353317.614 | AI65: 0 | AJ65: -5990.996 | AK65: 1749.426054 | AL65: -0.004446580302
A66: St Mary's Catholic Primary School and Nursery | B66: 3528 | C66: 931829.5 | D66: 125401.6539 | E66: 0 | F66: 81868.88441 | G66: 43013.46801 | H66: 0 | I66: 110000 | J66: 0 | K66: 8673 | L66: 0 | M66: 1300786.506 | N66: 0 | O66: 0 | P66: 1300786.506 | Q66: 0 | R66: -24576.3 | S66: 1276210.206 | T66: 17280.12 | Z66: 0 | AA66: 1293490.326 | AB66: 3716.532875 | AE66: 8313528 | AH66: 1302212.932 | AI66: 0 | AJ66: 15853.69395 | AK66: 0 | AL66: 0.01202799133
A67: St Peter's Church of England Aided Junior School | B67: 3534 | C67: 670917.24 | D67: 43005.851 | E67: 0 | F67: 42061.83916 | G67: 12000 | H67: 0 | I67: 110000 | J67: 0 | K67: 3152.125 | L67: 0 | M67: 881137.0552 | N67: 0 | O67: 0 | P67: 881137.0552 | Q67: 0 | R67: -17694.936 | S67: 863442.1192 | T67: 0 | Z67: 0 | AA67: 863442.1192 | AB67: 3496.575616 | AE67: 8313534 | AH67: 867276.1621 | AI67: 0 | AJ67: 13860.8931 | AK67: 0 | AL67: 0.01573068914
A68: St Werburgh's Church of England VA Primary School | B68: 3532 | C68: 830659.44 | D68: 33402.24841 | E68: 0 | F68: 33492.31297 | G68: 586.4661654 | H68: 0 | I68: 110000 | J68: 0 | K68: 4602.5 | L68: 0 | M68: 1012742.968 | N68: -5139.020006 | O68: 0 | P68: 1007603.948 | Q68: 0 | R68: -21908.016 | S68: 985695.9315 | T68: 19950.15 | Z68: 0 | AA68: 1005646.082 | AB68: 3229.499832 | AE68: 8313532 | AH68: 999156.8866 | AI68: 0 | AJ68: 28397.21092 | AK68: -5139.020006 | AL68: 0.02763573323
A69: Village Primary School | B69: 3546 | C69: 1632032.81 | D69: 404454.6081 | E69: 0 | F69: 159961.8616 | G69: 82631.93117 | H69: 0 | I69: 110000 | J69: 0 | K69: 74480 | L69: 0 | M69: 2463561.211 | N69: 9876.249655 | O69: 0 | P69: 2473437.461 | Q69: 0 | R69: -43043.634 | S69: 2430393.827 | T69: 9900 | Z69: 0 | AA69: 2440293.827 | AB69: 4034.971387 | AE69: 8313546 | AH69: 2419861.507 | AI69: 23628.21789 | AJ69: 63475.95398 | AK69: -13751.96824 | AL69: 0.02556074436
A70: Walter Evans Church of England Aided Primary School | B70: 3530 | C70: 966440.31 | D70: 14823.53631 | E70: 0 | F70: 30538.12027 | G70: 8754.019293 | H70: 0 | I70: 110000 | J70: 0 | K70: 4660 | L70: 0 | M70: 1135215.986 | N70: -1404.121053 | O70: 0 | P70: 1133811.865 | Q70: 0 | R70: 0 | S70: 1133811.865 | T70: 13720.08 | Z70: 0 | AA70: 1147531.945 | AB70: 3123.448663 | AE70: 8313530 | AH70: 1085053.637 | AI70: 0 | AJ70: 62478.30774 | AK70: -1404.121053 | AL70: 0.05444581131
A71: Wren Park Primary School | B71: 2459 | C71: 1040986.67 | D71: 35365.65803 | E71: 0 | F71: 49175.16185 | G71: 31513.43284 | H71: 0 | I71: 110000 | J71: 0 | K71: 16770.5 | L71: 0 | M71: 1283811.423 | N71: -2143.256856 | O71: 0 | P71: 1281668.166 | Q71: 0 | R71: -27455.238 | S71: 1254212.928 | T71: 10160.04 | Z71: 0 | AA71: 1264372.968 | AB71: 3277.923698 | AE71: 8312459 | AH71: 1225594.284 | AI71: 0 | AJ71: 66233.92232 | AK71: -2143.256856 | AL71: 0.05127146321
A72: Al-Madinah | B72: 4000 | C72: 742801.23 | D72: 159025.1727 | E72: 0 | F72: 50117.16346 | G72: 86357.14286 | H72: 15248.4 | I72: 110000 | J72: 0 | K72: 10064.25 | L72: 0 | M72: 1173613.359 | N72: 34783.92913 | O72: 0 | P72: 1208397.288 | Q72: 0 | R72: 0 | S72: 1208397.288 | T72: 5970.03 | Z72: 0 | AA72: 1214367.318 | AB72: 4331.173076 | AE72: 8314000 | AH72: 1266701.536 | AI72: 0 | AJ72: -52334.21831 | AK72: 34783.92913 | AL72: -0.04309587184 | AM72: Nor - 5 & KS1 £29k reduction
A74: Total Primary | B74: Total Primary | C74: 62124739.97 | D74: 10312130.96 | E74: 0 | F74: 4908121.411 | G74: 2060540.816 | H74: 492251.3296 | I74: 7887000 | J74: 0 | K74: 1150658.225 | L74: 315021 | M74: 89250463.71 | N74: 556013.3507 | O74: 0 | P74: 89806477.06 | Q74: 0 | R74: -1282479.106 | S74: 88523997.95 | T74: 851014.89 | U74: 0 | V74: 0 | W74: 0 | X74: 0 | Y74: 0 | Z74: 0 | AA74: 89375012.84 | AH74: 87778766.69 | AI74: 387297.1139 | AJ74: 2878725.258 | AK74: 168716.2368
Y75: 0
A76: Chellaston Academy | B76: 5402 | C76: 5354071.513 | D76: 254849.955 | E76: 0 | F76: 274372.2845 | G76: 14805.70775 | H76: 0 | I76: 110000 | J76: 0 | K76: 41650 | L76: 0 | M76: 6049749.46 | N76: 0 | O76: 0 | P76: 6049749.46 | Q76: 0 | R76: 0 | S76: 6049749.46 | AA76: 6049749.46 | AB76: 4454.89651 | AE76: 8315402 | AH76: 5853846.419 | AI76: 0 | AJ76: 195903.0417 | AK76: 0 | AL76: 0.03238200904
A77: da Vinci Community College | B77: 4007 | C77: 2228397.549 | D77: 573348.0391 | E77: 0 | F77: 252690.0209 | G77: 22831 | H77: 0 | I77: 110000 | J77: 0 | K77: 21854 | L77: 22874 | M77: 3231994.609 | N77: -14455.79291 | O77: 0 | P77: 3217538.816 | Q77: 0 | R77: 0 | S77: 3217538.816 | AA77: 3217538.816 | AB77: 5654.725512 | AE77: 8314608 | AH77: 3057267.272 | AI77: 89294.46639 | AJ77: 160271.5444 | AK77: -103750.2593 | AL77: 0.04981184487
A78: Derby Cathedral School | B78: 9999 | C78: 393158.85 | D78: 76550.20735 | E78: 0 | F78: 47978.60389 | G78: 2509.450967 | H78: 0 | I78: 64166.66667 | J78: 0 | K78: 14328 | L78: 0 | M78: 598691.7789 | N78: 0 | O78: 0 | P78: 598691.7789 | Q78: 0 | R78: 0 | S78: 598691.7789 | AA78: 598691.7789 | AB78: 5701.826465 | AE78: 8319999 | AH78: 0 | AI78: 0 | AJ78: 598691.7789 | AK78: 0 | AL78: 1
A79: Derby Moor Community Sports College | B79: 4178 | C79: 5144972.901 | D79: 962721.1389 | E79: 0 | F79: 488324.1583 | G79: 63217.88565 | H79: 0 | I79: 110000 | J79: 0 | K79: 30135 | L79: 0 | M79: 6799371.084 | N79: -73764.92313 | O79: 0 | P79: 6725606.161 | Q79: 0 | R79: 0 | S79: 6725606.161 | AA79: 6725606.161 | AB79: 5153.721196 | AE79: 8314178 | AH79: 6329166.72 | AI79: 0 | AJ79: 396439.4406 | AK79: -73764.92313 | AL79: 0.05894478968
A80: Lees Brook Community Sports College | B80: 4006 | C80: 4153422.021 | D80: 474782.3552 | E80: 0 | F80: 379726.326 | G80: 8088.697143 | H80: 0 | I80: 110000 | J80: 0 | K80: 25970 | L80: 0 | M80: 5151989.399 | N80: -43823.23376 | O80: 0 | P80: 5108166.165 | Q80: 0 | R80: 0 | S80: 5108166.165 | AA80: 5108166.165 | AB80: 4846.457462 | AE80: 8314181 | AH80: 4795335.886 | AI80: 0 | AJ80: 312830.279 | AK80: -43823.23376 | AL80: 0.06124121042
A81: Littleover Community School | B81: 4182 | C81: 5776831.738 | D81: 257675.8652 | E81: 0 | F81: 335773.6749 | G81: 40317.5393 | H81: 0 | I81: 110000 | J81: 0 | K81: 138425 | L81: 0 | M81: 6659023.818 | N81: 0 | O81: 0 | P81: 6659023.818 | Q81: 0 | R81: -83767.152 | S81: 6575256.666 | AA81: 6575256.666 | AB81: 4548.513537 | AE81: 8314182 | AH81: 6455013.51 | AI81: 0 | AJ81: 204010.3072 | AK81: 0 | AL81: 0.0306366688
A82: Merrill College | B82: 4001 | C82: 2747106.656 | D82: 847351.8465 | E82: 0 | F82: 438907.1092 | G82: 82513.22334 | H82: 21756 | I82: 110000 | J82: 0 | K82: 35770 | L82: 350635 | M82: 4634039.835 | N82: -46070.81315 | O82: 0 | P82: 4587969.022 | Q82: 0 | R82: 0 | S82: 4587969.022 | AA82: 4587969.022 | AB82: 6563.618057 | AE82: 8314001 | AH82: 4070892.126 | AI82: 0 | AJ82: 517076.8953 | AK82: -46070.81315 | AL82: 0.112702787
A83: Murray Park School | B83: 5406 | C83: 3408492.561 | D83: 556371.625 | E83: 0 | F83: 364498.6397 | G83: 49978.56366 | H83: 0 | I83: 110000 | J83: 0 | K83: 24304 | L83: 0 | M83: 4513645.389 | N83: -76974.81622 | O83: 0 | P83: 4436670.573 | Q83: 0 | R83: -49722.442 | S83: 4386948.131 | AA83: 4386948.131 | AB83: 5105.489727 | AE83: 8315406 | AH83: 4004771.807 | AI83: 0 | AJ83: 431898.7661 | AK83: -76974.81622 | AL83: 0.09734749493
A84: Noel Baker Community School and Language College | B84: 4005 | C84: 4614565.639 | D84: 952588.8351 | E84: 0 | F84: 411535.3835 | G84: 20247.95571 | H84: 0 | I84: 110000 | J84: 0 | K84: 26705 | L84: 419920 | M84: 6555562.813 | N84: -45839.13342 | O84: 0 | P84: 6509723.68 | Q84: 0 | R84: 0 | S84: 6509723.68 | AA84: 6509723.68 | AB84: 5516.714983 | AE84: 8315407 | AH84: 6072717.634 | AI84: 0 | AJ84: 437006.0452 | AK84: -45839.13342 | AL84: 0.06713127419
A85: Saint Benedict Catholic Voluntary Academy | B85: 4607 | C85: 4620803.055 | D85: 842190.751 | E85: 0 | F85: 432093.3495 | G85: 60435 | H85: 0 | I85: 110000 | J85: 0 | K85: 27195 | L85: 0 | M85: 6092717.156 | N85: -62487.94983 | O85: 0 | P85: 6030229.206 | Q85: 0 | R85: 0 | S85: 6030229.206 | AA85: 6030229.206 | AB85: 5140.860363 | AE85: 8314607 | AH85: 5600879.768 | AI85: 0 | AJ85: 429349.4377 | AK85: -62487.94983 | AL85: 0.07119952211
A86: City of Derby Academy | B86: 4008 | C86: 3432870.519 | D86: 746289.5915 | E86: 0 | F86: 492957.8741 | G86: 149073 | H86: 0 | I86: 110000 | J86: 0 | K86: 31605 | L86: 0 | M86: 4962795.985 | N86: -13025.68788 | O86: 0 | P86: 4949770.297 | Q86: 0 | R86: 0 | S86: 4949770.297 | AA86: 4949770.297 | AB86: 5643.979814 | AE86: 8314002 | AH86: 4508019.242 | AI86: 0 | AJ86: 441751.0551 | AK86: -13025.68788 | AL86: 0.08924677886
A87: West Park School | B87: 5412 | C87: 5135144.53 | D87: 521824.917 | E87: 0 | F87: 379473.333 | G87: 9401 | H87: 0 | I87: 110000 | J87: 0 | K87: 26215 | L87: 0 | M87: 6182058.78 | N87: -51169.82494 | O87: 0 | P87: 6130888.955 | Q87: 0 | R87: 0 | S87: 6130888.955 | AA87: 6130888.955 | AB87: 4701.601959 | AE87: 8315412 | AH87: 5741399.317 | AI87: 0 | AJ87: 389489.6374 | AK87: -51169.82494 | AL87: 0.0635290641
A88: Allestree Woodlands School | B88: 5414 | C88: 4301089.713 | D88: 365637.0147 | E88: 0 | F88: 288470.8397 | G88: 13442.3211 | H88: 0 | I88: 110000 | J88: 0 | K88: 30135 | L88: 0 | M88: 5108774.888 | N88: -27272.3447 | O88: 0 | P88: 5081502.543 | Q88: 0 | R88: 0 | S88: 5081502.543 | AA88: 5081502.543 | AB88: 4657.65586 | AE88: 8315414 | AH88: 4766635.889 | AI88: 0 | AJ88: 314866.6541 | AK88: -27272.3447 | AL88: 0.06196329756
A89: Derby Manufacturing UTC | B89: 4003 | C89: 552678.113 | D89: 87812.72727 | E89: 0 | F89: 42572.90323 | G89: 0 | H89: 0 | I89: 110000 | J89: 0 | K89: 25725 | L89: 0 | M89: 818788.7435 | N89: 0 | O89: 0 | P89: 818788.7435 | Q89: 0 | R89: 0 | S89: 818788.7435 | AA89: 818788.7435 | AB89: 6298.37495 | AE89: 8316905 | AH89: 942755.2714 | AI89: 0 | AJ89: -123966.5279 | AK89: 0 | AL89: -0.1514023354 | AM89: Nor - 24
A90: Landau Forte College (Fox Street) | B90: 6905 | C90: 3330795.683 | D90: 521247.2651 | E90: 0 | F90: 211952.2705 | G90: 21488 | H90: 0 | I90: 110000 | J90: 0 | K90: 45325 | L90: 0 | M90: 4240808.218 | N90: -20261.35842 | O90: 0 | P90: 4220546.86 | Q90: 0 | R90: 0 | S90: 4220546.86 | AA90: 4220546.86 | AB90: 4994.730012 | AE90: 8316905 | AH90: 3977874.602 | AI90: 0 | AJ90: 242672.2583 | AK90: -20261.35842 | AL90: 0.05749782347
A92: Total Secondary | B92: Total Secondary | C92: 55194401.04 | D92: 8041242.134 | E92: 0 | F92: 4841326.771 | G92: 558349.3446 | H92: 21756 | I92: 1604166.667 | J92: 0 | K92: 545341 | L92: 793429 | M92: 71600011.96 | N92: -475145.8784 | O92: 0 | P92: 71124866.08 | Q92: 0 | R92: -133489.594 | S92: 70991376.48 | T92: 0 | U92: 0 | V92: 0 | W92: 0 | X92: 0 | Y92: 0 | Z92: 0 | AA92: 70991376.48 | AH92: 66176575.46 | AI92: 89294.46639 | AJ92: 4948290.613 | AK92: -564440.3448
A94: The Bemrose School | B94: 4177 | C94: 3621891.829 | D94: 922494.4831 | E94: 0 | F94: 612827.6307 | G94: 206829.8033 | H94: 180959.3192 | I94: 110000 | J94: 0 | K94: 21560 | L94: 0 | M94: 5676563.065 | N94: 95521.7715 | O94: 0 | P94: 5772084.837 | Q94: 0 | R94: -61865.45325 | S94: 5710219.384 | T94: 31520.28 | AA94: 5741739.664 | AB94: 5684.216326 | AE94: 8314177 | AH94: 5400419.653 | AI94: 236275.8149 | AJ94: 403185.464 | AK94: -140754.0434 | AL94: 0.06947155361
A96: Total All Through School | B96: Total All Through | C96: 3621891.829 | D96: 922494.4831 | E96: 0 | F96: 612827.6307 | G96: 206829.8033 | H96: 180959.3192 | I96: 110000 | J96: 0 | K96: 21560 | L96: 0 | M96: 5676563.065 | N96: 95521.7715 | O96: 0 | P96: 5772084.837 | Q96: 0 | R96: -61865.45325 | S96: 5710219.384 | T96: 31520.28 | U96: 0 | V96: 0 | W96: 0 | X96: 0 | Y96: 0 | Z96: 0 | AA96: 5741739.664 | AH96: 5400419.653 | AI96: 236275.8149 | AJ96: 403185.464 | AK96: -140754.0434
B98: ALL School Block | C98: 120941032.8 | D98: 19275867.57 | E98: 0 | F98: 10362275.81 | G98: 2825719.964 | H98: 694966.6488 | I98: 9601166.667 | J98: 0 | K98: 1717559.225 | L98: 1108450 | M98: 166527038.7 | N98: 176389.2438 | O98: 0 | P98: 166703428 | Q98: 0 | R98: -1477834.154 | S98: 165225593.8 | T98: 882535.17 | U98: 0 | V98: 0 | W98: 0 | X98: 0 | Y98: 0 | Z98: 0 | AA98: 166108129 | AH98: 159355761.8 | AI98: 712867.3952 | AJ98: 8230201.336 | AK98: -536478.1514
A100: Summary Totals 2018-19 | B100: Primary | C100: 62124739.97 | D100: 10312130.96 | E100: 0 | F100: 4908121.411 | G100: 2060540.816 | H100: 492251.3296 | I100: 7887000 | J100: 0 | K100: 1150658.225 | L100: 315021 | M100: 89250463.71 | N100: 556013.3507 | O100: 0 | P100: 89806477.06 | Q100: 0 | R100: -1282479.106 | S100: 88523997.95 | T100: 851014.89 | U100: 0 | V100: 0 | W100: 0 | X100: 0 | Y100: 0 | Z100: 0 | AA100: 89375012.84 | AH100: 87778766.69 | AI100: 387297.1139
B101: Secondary | C101: 55194401.04 | D101: 8041242.134 | E101: 0 | F101: 4841326.771 | G101: 558349.3446 | H101: 21756 | I101: 1604166.667 | J101: 0 | K101: 545341 | L101: 793429 | M101: 71600011.96 | N101: -475145.8784 | O101: 0 | P101: 71124866.08 | Q101: 0 | R101: -133489.594 | S101: 70991376.48 | T101: 0 | U101: 0 | V101: 0 | W101: 0 | X101: 0 | Y101: 0 | Z101: 0 | AA101: 70991376.48 | AH101: 66176575.46 | AI101: 89294.46639
B102: All Through | C102: 3621891.829 | D102: 922494.4831 | E102: 0 | F102: 612827.6307 | G102: 206829.8033 | H102: 180959.3192 | I102: 110000 | J102: 0 | K102: 21560 | L102: 0 | M102: 5676563.065 | N102: 95521.7715 | O102: 0 | P102: 5772084.837 | Q102: 0 | R102: -61865.45325 | S102: 5710219.384 | T102: 31520.28 | U102: 0 | V102: 0 | W102: 0 | X102: 0 | Y102: 0 | Z102: 0 | AA102: 5741739.664 | AH102: 5400419.653 | AI102: 236275.8149
B103: ALL School Block | C103: 120941032.8 | D103: 19275867.57 | E103: 0 | F103: 10362275.81 | G103: 2825719.964 | H103: 694966.6488 | I103: 9601166.667 | J103: 0 | K103: 1717559.225 | L103: 1108450 | M103: 166527038.7 | N103: 176389.2438 | O103: 0 | P103: 166703428 | Q103: 0 | R103: -1477834.154 | S103: 165225593.8 | T103: 882535.17 | U103: 0 | V103: 0 | W103: 0 | X103: 0 | Y103: 0 | Z103: 0 | AA103: 166108129 | AH103: 159355761.8 | AI103: 712867.3952
A105: Final APT 2017-18 | B105: Primary | C105: 60794799.38 | D105: 12917819.56 | E105: 55472.48665 | F105: 0 | G105: 3342438.486 | H105: 330726.263 | I105: 7200000 | J105: 0 | K105: 1126865.605 | L105: 305845.8001 | M105: 86073967.58 | N105: 387297.1139 | O105: 0 | P105: 86461264.69 | Q105: -465713.6128 | R105: -1262146.368 | S105: 84733404.71 | T105: 1335200 | U105: 0 | V105: 0 | W105: 0 | X105: 0 | AA105: 86068604.71 | AH105: 86297432.5 | AI105: 174374.0189
B106: Secondary | C106: 53079699.27 | D106: 5629094.611 | E106: 89023.66379 | F106: 2742122.077 | G106: 1059945.673 | H106: 80824.164 | I106: 2100000 | J106: 0 | K106: 536251.614 | L106: 770319.9226 | M106: 66087281 | N106: 89294.46639 | O106: 0 | P106: 66176575.46 | Q106: -122421.0416 | R106: -335809.188 | S106: 65718345.23 | T106: 0 | U106: 0 | V106: 0 | W106: 0 | X106: 0 | AA106: 65718345.23 | AH106: 65898450.61 | AI106: 45461.88307
B107: All Through | C107: 3340039.657 | D107: 724152.5347 | E107: 4667.115991 | F107: 309315.43 | G107: 394573.6151 | H107: 200128.6497 | I107: 150000 | J107: 0 | K107: 20856.836 | L107: 0 | M107: 5143733.838 | N107: 236275.8149 | O107: 0 | P107: 5380009.653 | Q107: -21865.032 | R107: -59776.092 | S107: 5298368.529 | T107: 0 | U107: 0 | V107: 0 | W107: 0 | X107: 0 | AA107: 5298368.529 | AH107: 5780827.764 | AI107: 223804.4443
B108: ALL School Block | C108: 117214538.3 | D108: 19271066.7 | E108: 149163.2664 | F108: 3051437.507 | G108: 4796957.775 | H108: 611679.0768 | I108: 9450000 | J108: 0 | K108: 1683974.055 | L108: 1076165.723 | M108: 157304982.4 | N108: 712867.3952 | O108: 0 | P108: 158017849.8 | Q108: -609999.6864 | R108: -1657731.648 | S108: 155750118.5 | T108: 1335200 | U108: 0 | V108: 0 | W108: 0 | X108: 0 | Y108: 0 | Z108: 0 | AA108: 157085318.5 | AH108: 157976710.9 | AI108: 443640.3463
A110: Difference between 2018/19 and 2017/18 | B110: Primary | C110: 1329940.589 | D110: -2605688.603 | E110: -55472.48665 | F110: 4908121.411 | G110: -1281897.67 | H110: 161525.0666 | I110: 687000 | J110: 0 | K110: 23792.6202 | L110: 9175.1999 | M110: 3176496.127 | N110: 168716.2368 | O110: 0 | P110: 3345212.364 | Q110: 465713.6128 | R110: -20332.7385 | S110: 3790593.238 | T110: -484185.11 | U110: 0 | V110: 0 | W110: 0 | X110: 0 | Y110: 0 | Z110: 0 | AA110: 3306408.128 | AH110: 1481334.193 | AI110: 212923.095
B111: Secondary | C111: 2114701.767 | D111: 2412147.523 | E111: -89023.66379 | F111: 2099204.694 | G111: -501596.3286 | H111: -59068.164 | I111: -495833.3333 | J111: 0 | K111: 9089.386 | L111: 23109.0774 | M111: 5512730.958 | N111: -564440.3448 | O111: 0 | P111: 4948290.613 | Q111: 122421.0416 | R111: 202319.594 | S111: 5273031.249 | T111: 0 | U111: 0 | V111: 0 | W111: 0 | X111: 0 | Y111: 0 | Z111: 0 | AA111: 5273031.249 | AH111: 278124.8498 | AI111: 43832.58332
B112: All Through | C112: 281852.1726 | D112: 198341.9484 | E112: -4667.115991 | F112: 303512.2007 | G112: -187743.8118 | H112: -19169.33047 | I112: -40000 | J112: 0 | K112: 703.164 | L112: 0 | M112: 532829.2274 | N112: -140754.0434 | O112: 0 | P112: 392075.184 | Q112: 21865.032 | R112: -2089.36125 | S112: 411850.8547 | T112: 31520.28 | U112: 0 | V112: 0 | W112: 0 | X112: 0 | Y112: 0 | Z112: 0 | AA112: 443371.1347 | AH112: -380408.1109 | AI112: 12471.3706
B113: ALL School Block | C113: 3726494.529 | D113: 4800.868433 | E113: -149163.2664 | F113: 7310838.306 | G113: -1971237.811 | H113: 83287.57209 | I113: 151166.6667 | J113: 0 | K113: 33585.1702 | L113: 32284.2773 | M113: 9222056.312 | N113: -536478.1514 | O113: 0 | P113: 8685578.161 | Q113: 609999.6864 | R113: 179897.4943 | S113: 9475475.342 | T113: -452664.83 | U113: 0 | V113: 0 | W113: 0 | X113: 0 | Y113: 0 | Z113: 0 | AA113: 9022810.512 | AH113: 1379050.932 | AI113: 269227.0489
A117: Checks for tool compared to APT | B117: link to tabs | C117: 120941032.8 | D117: 19275867.57 | E117: 0 | F117: 10362275.81 | G117: 2825719.964 | H117: 694966.6488 | I117: 9601166.667 | J117: 0 | K117: 1717559.225 | L117: 1108450 | M117: 166527038.7 | N117: 176389.2438 | P117: 166703428 | Q117: 0 | R117: -1477834.154
B118: variance | C118: 0 | D118: 0 | E118: 0 | F118: 0 | G118: 0 | H118: 0 | I118: 0 | J118: 0 | K118: 0 | L118: 0 | M118: 0 | N118: 0 | P118: 0 | Q118: 0 | R118: 0
B120: Link to New APT | C120: 120941032.8 | D120: 19275867.57 | E120: 0 | F120: 10362275.81 | G120: 2825719.964 | H120: 694966.6488 | I120: 9601166.667 | J120: 0 | K120: 1717559.225 | L120: 1108450 | M120: 166527038.7 | N120: 176387.9418 | P120: 166703426.7 | R120: -1477834.154 | S120: 165225592.5
C121: 0 | D121: 0 | E121: 0 | F121: 0 | G121: 0 | H121: 0 | I121: 0 | J121: 0 | K121: 0 | L121: 0 | M121: 0 | N121: -1.30205347 | P121: -1.302053481 | Q121: 0 | R121: 0 | S121: -1.302053541
A124: 2015-16 final value | C124: 108372744.2 | D124: 19096984.73 | E124: 192821.1621 | F124: 3343610.131 | G124: 4265826.036 | H124: 568469.8139 | I124: 9200000 | J124: 19329.92155 | K124: 696019.323 | L124: 1033455 | M124: 146789260.3 | N124: 1254009.942 | O124: 0 | P124: 148043270.2 | R124: -1934172.985 | S124: 146109097.2 | T124: 1338270 | U124: 4637405.625 | V124: 1717939.146 | W124: 0 | X124: 8819718.168 | Y124: 4135641.999 | Z124: 0 | AA124: 166758072.2
A125: 2016-17 value before changes made | C125: 109882010.2 | D125: 17358586.53 | E125: 189763.6202 | F125: 3121256.84 | G125: 4395964.407 | H125: 599769.8512 | I125: 9450000 | J125: 19329.92155 | K125: 1542412.135 | L125: 1044821.09 | M125: 147603914.6 | N125: 2223639.091 | O125: 0 | P125: 149827553.7 | R125: -1727741.095 | S125: 148099812.6 | T125: 1338270 | AA125: 168748787.6
C126: 11059022.6 | D126: 1917281.046 | E126: -189763.6202 | F126: 7241018.972 | G126: -1570244.443 | H126: 95196.79764 | I126: 151166.6667 | J126: -19329.92155 | K126: 175147.0898 | L126: 63628.91 | M126: 18923124.1 | N126: -2047249.847 | O126: 0 | P126: 16875874.25 | R126: 249906.9412 | S126: 17125781.19 | T126: -455734.83 | U126: 0 | V126: 0 | W126: 0 | X126: 0 | Y126: 0 | Z126: 0 | AA126: -2640658.575
P127: 164985868.7 | AJ127: 230453.4702 | AK127: Available funding from automatic MFG 1.5% reduction
U128: ERS | V128: TA Hours
A129: Ashgate Nursery | B129: 1014 | K129: 11422 | M129: 11422 | P129: 11422 | S129: 11422 | Y129: 251753.8578 | AA129: 263175.8578
A130: Castle Nursery | B130: 1017 | K130: 0 | M130: 0 | P130: 0 | S130: 0 | Y130: -0.006963723941 | AA130: -0.006963723941
A131: Central Nursery | B131: 1006 | K131: 10190.75 | M131: 10190.75 | P131: 10190.75 | S131: 10190.75 | Y131: 271635.3768 | AA131: 281826.1268
A132: Harrington Nursery School | B132: 1008 | K132: 5267.25 | M132: 5267.25 | P132: 5267.25 | S132: 5267.25 | Y132: 387772.0751 | AA132: 393039.3251
A133: Lord Street Nursery | B133: 1005 | K133: 14812.75 | M133: 14812.75 | P133: 14812.75 | S133: 14812.75 | Y133: 437385.692 | AA133: 452198.442
A134: Stonehill Nursery | B134: 1010 | K134: 4955.625 | M134: 4955.625 | P134: 4955.625 | S134: 4955.625 | Y134: 290418.3101 | AA134: 295373.9351
A135: Walbrook Nursery | B135: 1009 | K135: 9547.875 | M135: 9547.875 | P135: 9547.875 | S135: 9547.875 | Y135: 381335.5265 | AA135: 390883.4015
A136: Whitecross Nursery | B136: 1015 | K136: 7694.25 | M136: 7694.25 | P136: 7694.25 | S136: 7694.25 | Y136: 344176.0579 | AA136: 351870.3079
A137: Nursery | K137: 63890.5 | M137: 63890.5 | P137: 63890.5 | S137: 63890.5 | U137: 0 | V137: 0 | Y137: 2364476.889 | AA137: 2428367.389
Z138: Rates
U139: Total ALL | V139: Total ALL | Y139: 0 | Z139: High Needs
C140: 120941032.8 | D140: 19275867.57 | E140: 0 | F140: 10362275.81 | G140: 2825719.964 | H140: 694966.6488 | I140: 9601166.667 | J140: 0 | K140: 1781449.725 | L140: 1108450 | M140: 166590929.2 | N140: 176389.2438 | O140: 0 | P140: 166767318.5 | Q140: 0 | R140: -1477834.154 | S140: 165289484.3 | T140: 882535.17 | U140: 0 | V140: 0 | W140: 0 | X140: 0 | Y140: 2364476.889 | Z140: 0 | AA140: 168536496.4
B142: 1 | C142: 2 | D142: 3 | E142: 4 | F142: 5 | G142: 6 | H142: 7 | I142: 8 | J142: 9 | K142: 10 | L142: 11 | M142: 12 | N142: 13 | O142: 14 | P142: 15 | Q142: 16 | R142: 17 | S142: 18 | T142: 19 | U142: 20 | V142: 21 | W142: 22 | X142: 23 | Y142: 24 | Z142: 25 | AA142: 26 | AB142: 27 | AC142: 28 | AD142: 29 | AE142: 30 | AF142: 31 | AG142: 32 | AH142: 33 | AI142: 34 | AJ142: 35 | AK142: 36
R147: 1008 | S147: Harrington Nursery School
R148: 1005 | S148: Lord Street Nursery | Z148: Schools with Nurseries | AA148: 4112808.628
R149: 1006 | S149: Central Nursery | Z149: Stand Alone Nursery | AA149: 2364476.901
R150: 1010 | S150: Stonehill Nursery | Z150: Sub Total Schools | AA150: 6477285.529

Sheet 2018-19 Nursery Budget (hidden)
AP1: Universal Offer | BX1: Extended Offer | EE1: Universal & Extended Offers combined by term
B2: Early Years 2018-19 Estimates | AW2: DEPRIVATION (IMD) | CE2: DEPRIVATION (IMD) | CZ2: Summary for Universal Offer | DH2: Summary for Extended Offer | DP2: Universal & Extended Offer | EJ2: DEPRIVATION (IMD)
K3: Summer Term (12 weeks) | R3: Autumn Term (14 weeks) | Y3: Spring Term (12 weeks) | AG3: Grand Total Estimates for 2018-19 | AP3: Base Rate: | AR3: FSM | AW3: IMD 20% most deprived | BA3: IMD 20% to 40% most deprived | BG3: STANDALONE BASE | BJ3: EAL | BX3: Base Rate: | BZ3: FSM | CE3: IMD 20% most deprived | CI3: IMD 20% to 40% most deprived | CO3: EAL | EE3: FSM | EJ3: IMD 20% most deprived | EN3: IMD 20% to 40% most deprived | ET3: STANDALONE BASE | EW3: EAL
G4: Actuals as at Autumn Term (October 2017) - 14 weeks | K4: Universal | N4: Extended | Q4: Combined | R4: Universal | U4: Extended | X4: Combined | Y4: Universal | AB4: Extended | AE4: Combined | AG4: Universal | AJ4: Extended | AP4: 4.11 | AT4: Hourly Rate: | AU4: 0.2 | AY4: Hourly Rate: | AZ4: 0.6 | BC4: Hourly Rate: | BD4: 0.2 | BG4: Amount: | BH4: 100000 | BL4: Hourly Rate: | BM4: 0.2 | BR4: 1.49 | BX4: 4.11 | CB4: Hourly Rate: | CC4: 0.2 | CG4: Hourly Rate: | CH4: 0.6 | CK4: Hourly Rate: | CL4: 0.2 | CQ4: Hourly Rate: | CR4: 0.2 | CV4: 1.49 | CZ4: Hours | DD4: Total Cost (£) | DH4: Hours | DL4: Total Cost (£) | DP4: Hours | DS4: Grand Total Cost (£) | EC4: 4.11 | EG4: Hourly Rate: | EH4: 0.2 | EL4: Hourly Rate: | EM4: 0.6 | EP4: Hourly Rate: | EQ4: 0.2 | ET4: Amount: | EU4: 100000 | EY4: Hourly Rate: | EZ4: 0.2 | FE4: 1.49
B5: Schools with Nursery Classes | C5: Cost Centre | D5: DCSF No | E5: Setting type | F5: No. of children Original Budget (approx.) | G5: No. of children | H5: No. of hours (Universal) | I5: No. of hours (Extended) | K5: Estimated no. of children | L5: Number of hours per week | M5: Total Hours | N5: Estimated no. of children | O5: Number of hours per week | P5: Total Hours | Q5: Total Hours | R5: Estimated no. of children | S5: Number of hours per week | T5: Total Hours | U5: Estimated no. of children | V5: Number of hours per week | W5: Total Hours | X5: Total Hours | Y5: Estimated no. of children | Z5: Number of hours per week | AA5: Total Hours | AB5: Estimated no. of children | AC5: Number of hours per week | AD5: Total Hours | AE5: Total Hours | AG5: Estimated no. of children | AH5: Number of hours per week | AI5: Total Hours | AJ5: Estimated no. of children | AK5: Number of hours per week | AL5: Total Hours | AN5: Combined Total (Hours per week) | AP5: Total Base Estimates | AR5: Summer | AS5: Autumn | AT5: Spring | AU5: Total FSM Funding | AW5: Summer | AX5: Autumn | AY5: Spring | AZ5: Total IMD top 20% Funding | BA5: Summer | BB5: Autumn | BC5: Spring | BD5: Total IMD 20% to 40% Funding | BE5: Deprivation Grand Totals | BG5: Number per Setting | BH5: Total Base Funding | BJ5: Summer | BK5: Autumn | BL5: Spring | BM5: Total EAL Funding | BO5: Total Formula Estimates | BQ5: SEN Locality Funding | BR5: Stand Alone Nursery Protection | BS5: Disability Access Fund (DAF) | BT5: 2018-19 Business Rates (NNDR) | BV5: Grand Totals - Universal Offer | BX5: Total Base Estimates | BZ5: Summer | CA5: Autumn | CB5: Spring | CC5: Total FSM Funding | CE5: Summer | CF5: Autumn | CG5: Spring | CH5: Total IMD top 20% Funding | CI5: Summer | CJ5: Autumn | CK5: Spring | CL5: Total IMD 20% to 40% Funding | CM5: Deprivation Grand Totals | CO5: Summer | CP5: Autumn | CQ5: Spring | CR5: Total EAL Funding | CT5: Total Formula Estimates | CV5: Stand Alone Nursery Protection | CX5: Grand Totals Extended Offer | CZ5: Autumn Term Revised | DA5: 2018/19 Estimate | DB5: Variance | DD5: Autumn Term Revised | DE5: 2018/19 Estimate | DF5: Variance | DH5: Autumn Term Projected for a whole year | DI5: 2018/19 Estimate | DJ5: Variance | DL5: Autumn Term Projected for a whole year | DM5: 2018/19 Estimate | DN5: Variance | DP5: Autumn Term Projected for a whole year | DQ5: 2018/19 Estimate | DR5: Variance | DS5: Autumn Term Revised | DT5: 2018/19 Estimate | DU5: Variance | DW5: Summer | DX5: Autumn | DY5: Spring | EA5: Total hours | EC5: Total Base Estimates | EE5: Summer | EF5: Autumn | EG5: Spring | EH5: Total FSM Funding | EJ5: Summer | EK5: Autumn | EL5: Spring | EM5: Total IMD top 20% Funding | EN5: Summer | EO5: Autumn | EP5: Spring | EQ5: Total IMD 20% to 40% Funding | ER5: Deprivation Grand Totals | ET5: Number per Setting | EU5: Total Base Funding | EW5: Summer | EX5: Autumn | EY5: Spring | EZ5: Total EAL Funding | FB5: Total Formula Estimates | FD5: SEN Locality Funding | FE5: Stand Alone Nursery Protection | FF5: Disability Access Fund (DAF) | FG5: 2018-19 Business Rates (NNDR) | FH5: Other | FJ5: Grand Totals
B6: Alvaston Infant and Nursery School | C6: E200201 | D6: 2443 | E6: M | F6: 52 | G6: 47 | H6: 9870 | I6: 0 | K6: 50 | L6: 750 | M6: 9000 | N6: 0 | O6: 0 | P6: 0 | Q6: =M6+P6 -> 9000 | R6: 40 | S6: 600 | T6: 8400 | U6: 0 | V6: 0 | W6: 0 | X6: =T6+W6 -> 8400 | Y6: 45 | Z6: 675 | AA6: 8100 | AB6: 0 | AC6: 0 | AD6: 0 | AE6: =AA6+AD6 -> 8100 | AG6: 135 | AH6: 2025 | AI6: 25500 | AJ6: 0 | AK6: 0 | AL6: 0 | AN6: =AI6+AL6 -> 25500 | AP6: 104805 | AR6: 2238 | AS6: 2089 | AT6: 2014 | AU6: 1268 | AW6: 2567 | AX6: 2396 | AY6: 2310 | AZ6: 4364 | BA6: 4398 | BB6: 4105 | BC6: 3958 | BD6: 2492 | BE6: 6856 | BG6: 0 | BH6: 0 | BJ6: 614 | BK6: 573 | BL6: 552 | BM6: 348 | BO6: 113277 | BV6: 113277 | BX6: 0 | BZ6: 0 | CA6: 0 | CB6: 0 | CC6: 0 | CE6: 0 | CF6: 0 | CG6: 0 | CH6: 0 | CI6: 0 | CJ6: 0 | CK6: 0 | CL6: 0 | CM6: 0 | CO6: 0 | CP6: 0 | CQ6: 0 | CR6: 0 | CT6: 0 | CX6: 0 | CZ6: 27510 | DA6: 25500 | DB6: -2010 | DD6: 120544 | DE6: 113277 | DF6: -7267 | DH6: 0 | DI6: 0 | DJ6: 0 | DL6: 0 | DM6: 0 | DN6: 0 | DP6: 27510 | DQ6: 25500 | DR6: -2010 | DS6: 120544 | DT6: 113277 | DU6: -7267 | DV6: =D6 -> 2443 | DW6: =Q6 -> 9000 | DX6: =X6 -> 8400 | DY6: =AE6 -> 8100 | EA6: =AN6 -> 25500 | EC6: =EA6*EC$4 -> 104805 | ED6: =DV6 -> 2443 | EE6: =AR6+BZ6 -> 2238 | EF6: =AS6+CA6 -> 2089 | EG6: 2014 | EH6: 1268 | EJ6: =AW6+CE6 -> 2567 | EK6: 2396 | EL6: 2310 | EM6: =AZ6+CH6 -> 4364 | EN6: =BA6+CI6 -> 4398 | EO6: 4105 | EP6: 3958 | EQ6: 2492 | ER6: =BE6+CM6 -> 6856 | ET6: =BG6 -> 0 | EU6: =BH6 -> 0 | EW6: =BJ6+CO6 -> 614 | EX6: =BK6+CP6 -> 573 | EY6: 552 | EZ6: 348 | FB6: =EC6+EH6+ER6+EU6+EZ6 -> 113277 | FD6: =BQ6 -> 0 | FE6: 0 | FF6: =BS6 -> 0 | FG6: 0 | FJ6: =EC6+EH6+ER6+EU6+EZ6+SUM(FD6:FH6) -> 113277 | FL6: =DT6 -> 113277
B7: Arboretum Primary School | C7: E200401 | D7: 2629 | E7: M | F7: 77 | G7: 77 | H7: 16170 | I7: 0 | K7: 78 | L7: 1170 | M7: 14040 | N7: 0 | O7: 0 | P7: 0 | Q7: =M7+P7 -> 14040 | R7: 66 | S7: 990 | T7: 13860 | U7: 0 | V7: 0 | W7: 0 | X7: =T7+W7 -> 13860 | Y7: 72 | Z7: 1080 | AA7: 12960 | AB7: 0 | AC7: 0 | AD7: 0 | AE7: =AA7+AD7 -> 12960 | AG7: 216 | AH7: 3240 | AI7: 40860 | AJ7: 0 | AK7: 0 | AL7: 0 | AN7: =AI7+AL7 -> 40860 | AP7: 167935 | AR7: 2918 | AS7: 2880 | AT7: 2693 | AU7: 1698 | AW7: 12090 | AX7: 11935 | AY7: 11160 | AZ7: 21111 | BA7: 3455 | BB7: 3411 | BC7: 3189 | BD7: 2011 | BE7: 23122 | BG7: 0 | BH7: 0 | BJ7: 11885 | BK7: 11732 | BL7: 10971 | BM7: 6918 | BO7: 199673 | BV7: 199673 | BX7: 0 | BZ7: 0 | CA7: 0 | CB7: 0 | CC7: 0 | CE7: 0 | CF7: 0 | CG7: 0 | CH7: 0 | CI7: 0 | CJ7: 0 | CK7: 0 | CL7: 0 | CM7: 0 | CO7: 0 | CP7: 0 | CQ7: 0 | CR7: 0 | CT7: 0 | CX7: 0 | CZ7: 44070 | DA7: 40860 | DB7: -3210 | DD7: 212776 | DE7: 199673 | DF7: -13103 | DH7: 0 | DI7: 0 | DJ7: 0 | DL7: 0 | DM7: 0 | DN7: 0 | DP7: 44070 | DQ7: 40860 | DR7: -3210 | DS7: 212776 | DT7: 199673 | DU7: -13103 | DV7: =D7 -> 2629 | DW7: =Q7 -> 14040 | DX7: =X7 -> 13860 | DY7: =AE7 -> 12960 | EA7: =AN7 -> 40860 | EC7: =EA7*EC$4 -> 167934.6 | ED7: =DV7 -> 2629 | EE7: =AR7+BZ7 -> 2918 | EF7: =AS7+CA7 -> 2880 | EG7: =AT7+CB7 -> 2693 | EH7: =AU7+CC7 -> 1698 | EJ7: =AW7+CE7 -> 12090 | EK7: =AX7+CF7 -> 11935 | EL7: =AY7+CG7 -> 11160 | EM7: =AZ7+CH7 -> 21111 | EN7: =BA7+CI7 -> 3455 | EO7: =BB7+CJ7 -> 3411 | EP7: =BC7+CK7 -> 3189 | EQ7: =BD7+CL7 -> 2011 | ER7: =BE7+CM7 -> 23122 | ET7: =BG7 -> 0 | EU7: =BH7 -> 0 | EW7: =BJ7+CO7 -> 11885 | EX7: =BK7+CP7 -> 11732 | EY7: =BL7+CQ7 -> 10971 | EZ7: =BM7+CR7 -> 6918 | FB7: =EC7+EH7+ER7+EU7+EZ7 -> 199672.6 | FD7: =BQ7 -> 0 | FE7: 0 | FF7: =BS7 -> 0 | FG7: =BT7 -> 0 | FJ7: 199672.6 | FL7: =DT7 -> 199673
B8: Ashgate Nursery | C8: E100101 | D8: 1014 | E8: S | F8: 51 | G8: 32 | H8: 6622 | I8: 1552 | K8: 49 | L8: 735 | M8: 8820 | N8: 9 | O8: 135 | P8: 1620 | Q8: 10440 | R8: 31 | S8: 465 | T8: 6510 | U8: 5 | V8: 75 | W8: 1050 | X8: 7560 | Y8: 42 | Z8: 630 | AA8: 7560 | AB8: 8 | AC8: 120 | AD8: 1440 | AE8: 9000 | AG8: 122 | AH8: 1830 | AI8: 22890 | AJ8: 22 | AK8: 330 | AL8: 4110 | AN8: 27000 | AP8: 94078 | AR8: 1985 | AS8: 1465 | AT8: 1701 | AU8: 1030 | AW8: 2293 | AX8: 1693 | AY8: 1966 | AZ8: 3571 | BA8: 4444 | BB8: 3280 | BC8: 3809 | BD8: 2307 | BE8: 5878 | BG8: 1 | BH8: 100000 | BJ8: 1312 | BK8: 968 | BL8: 1124 | BM8: 681 | BO8: 201667 | BR8: 34106 | BT8: 11422 | BV8: 247195 | BX8: 16892 | BZ8: 309 | CA8: 200 | CB8: 275 | CC8: 157 | CE8: 574 | CF8: 372 | CG8: 510 | CH8: 874 | CI8: 852 | CJ8: 552 | CK8: 757 | CL8: 432 | CM8: 1306 | CO8: 0 | CP8: 0 | CQ8: 0 | CR8: 0 | CT8: 18355 | CV8: 6124 | CX8: 24479 | CZ8: 25162 | DA8: 22890 | DB8: -2272 | DD8: 260430 | DE8: 247195 | DF8: -13235 | DH8: 4213 | DI8: 4110 | DJ8: -103 | DL8: 25091 | DM8: 24479 | DN8: -612 | DP8: 29375 | DQ8: 27000 | DR8: -2375 | DS8: 285521 | DT8: 271674 | DU8: -13847 | DV8: 1014 | DW8: 10440 | DX8: 7560 | DY8: 9000 | EA8: 27000 | EC8: 110970 | ED8: 1014 | EE8: 2294 | EF8: 1665 | EG8: 1976 | EH8: 1187 | EJ8: 2867 | EK8: 2065 | EL8: 2476 | EM8: 4445 | EN8: 5296 | EO8: 3832 | EP8: 4566 | EQ8: 2739 | ER8: 7184 | ET8: 1 | EU8: 100000 | EW8: 1312 | EX8: 968 | EY8: 1124 | EZ8: 681 | FB8: 220022 | FD8: 0 | FE8: =EA8*FE$4 -> 40230 | FF8: 0 | FG8: 11422 | FJ8: 271674 | FL8: 271674
B9: Asterdale Primary School | C9: E200701 | D9: 2464 | E9: M | F9: 31 | G9: 25 | H9: 5250 | I9: 1050 | K9: 37 | L9: 555 | M9: 6660 | N9: 9 | O9: 135 | P9: 1620 | Q9: 8280 | R9: 21 | S9: 315 | T9: 4410 | U9: 4 | V9: 60 | W9: 840 | X9: 5250 | Y9: 24 | Z9: 360 | AA9: 4320 | AB9: 4 | AC9: 60 | AD9: 720 | AE9: 5040 | AG9: 82 | AH9: 1230 | AI9: 15390 | AJ9: 17 | AK9: 255 | AL9: 3180 | AN9: 18570 | AP9: 63253 | AR9: 652 | AS9: 432 | AT9: 423 | AU9: 301 | AW9: 2525 | AX9: 1672 | AY9: 1638 | AZ9: 3501 | BA9: 1419 | BB9: 939 | BC9: 920 | BD9: 656 | BE9: 4157 | BG9: 0 | BH9: 0 | BJ9: 799 | BK9: 529 | BL9: 518 | BM9: 369 | BO9: 68080 | BV9: 68080 | BX9: 13070 | BZ9: 162 | CA9: 84 | CB9: 72 | CC9: 64 | CE9: 972 | CF9: 504 | CG9: 432 | CH9: 1145 | CI9: 0 | CJ9: 0 | CK9: 0 | CL9: 0 | CM9: 1145 | CO9: 0 | CP9: 0 | CQ9: 0 | CR9: 0 | CT9: 14279 | CX9: 14279 | CZ9: 15690 | DA9: 15390 | DB9: -300 | DD9: 67890 | DE9: 68080 | DF9: 190 | DH9: 2850 | DI9: 3180 | DJ9: 330 | DL9: 12627 | DM9: 14279 | DN9: 1652 | DP9: 18540 | DQ9: 18570 | DR9: 30 | DS9: 80517 | DT9: 82359 | DU9: 1842 | DV9: 2464 | DW9: 8280 | DX9: 5250 | DY9: 5040 | EA9: 18570 | EC9: 76322.7 | ED9: 2464 | EE9: 814 | EF9: 516 | EG9: 495 | EH9: 365 | EJ9: =AW9+CE9+1 -> 3498 | EK9: 2176 | EL9: 2070 | EM9: 4646 | EN9: 1419 | EO9: 939 | EP9: 920 | EQ9: 656 | ER9: 5302 | ET9: 0 | EU9: 0 | EW9: 799 | EX9: 529 | EY9: 518 | EZ9: 369 | FB9: 82358.7 | FD9: 0 | FE9: 0 | FF9: 0 | FG9: 0 | FJ9: 82358.7 | FL9: 82359
B10: Beaufort Community Primary School | C10: E200801 | D10: 2004 | E10: M | F10: 50 | G10: 25 | H10: 5250 | I10: 1680 | K10: 44 | L10: 660 | M10: 7920 | N10: 10 | O10: 150 | P10: 1800 | Q10: 9720 | R10: 25 | S10: 375 | T10: 5250 | U10: 4 | V10: 60 | W10: 840 | X10: 6090 | Y10: 30 | Z10: 450 | AA10: 5400 | AB10: 4 | AC10: 60 | AD10: 720 | AE10: 6120 | AG10: 99 | AH10: 1485 | AI10: 18570 | AJ10: 18 | AK10: 270 | AL10: 3360 | AN10: 21930 | AP10: 76323 | AR10: 2021 | AS10: 1340 | AT10: 1378 | AU10: 948 | AW10: 5435 | AX10: 3603 | AY10: 3705 | AZ10: 7646 | BA10: 3029 | BB10: 2008 | BC10: 2066 | BD10: 1421 | BE10: 9067 | BG10: 0 | BH10: 0 | BJ10: 456 | BK10: 302 | BL10: 311 | BM10: 214 | BO10: 86552 | BV10: 86552 | BX10: 13810 | BZ10: 434 | CA10: 203 | CB10: 174 | CC10: 162 | CE10: 1350 | CF10: 630 | CG10: 540 | CH10: 1512 | CI10: 225 | CJ10: 105 | CK10: 90 | CL10: 84 | CM10: 1596 | CO10: 225 | CP10: 105 | CQ10: 90 | CR10: 84 | CT10: 15652 | CX10: 15652 | CZ10: 17490 | DA10: 18570 | DB10: 1080 | DD10: 80311 | DE10: 86552 | DF10: 6241 | DH10: 4560 | DI10: 3360 | DJ10: -1200 | DL10: 20968 | DM10: 15652 | DN10: -5316 | DP10: 22050 | DQ10: 21930 | DR10: -120 | DS10: 101279 | DT10: 102204 | DU10: 925 | DV10: 2004 | DW10: 9720 | DX10: 6090 | DY10: 6120 | EA10: 21930 | EC10: 90132.3 | ED10: 2004 | EE10: 2455 | EF10: 1543 | EG10: 1552 | EH10: 1110 | EJ10: 6785 | EK10: 4233 | EL10: 4245 | EM10: 9158 | EN10: 3254 | EO10: 2113 | EP10: 2156 | EQ10: 1505 | ER10: 10663 | ET10: 0 | EU10: 0 | EW10: 681 | EX10: 407 | EY10: 401 | EZ10: 298 | FB10: 102203.3 | FD10: 0 | FE10: 0 | FF10: 0 | FG10: 0 | FJ10: 102203.3 | FL10: 102204
B11: Becket Primary School | C11: E200901 | D11: 2405 | E11: M | F11: 27 | G11: 20 | H11: 4200 | I11: 0 | K11: 25 | L11: 375 | M11: 4500 | N11: 0 | O11: 0 | P11: 0 | Q11: 4500 | R11: 9 | S11: 135 | T11: 1890 | U11: 0 | V11: 0 | W11: 0 | X11: 1890 | Y11: 10 | Z11: 150 | AA11: 1800 | AB11: 0 | AC11: 0 | AD11: 0 | AE11: 1800 | AG11: 44 | AH11: 660 | AI11: 8190 | AJ11: 0 | AK11: 0 | AL11: 0 | AN11: 8190 | AP11: 33661 | AR11: 855 | AS11: 359 | AT11: 342 | AU11: 311 | AW11: 2438 | AX11: 1024 | AY11: 975 | AZ11: 2662 | BA11: 2044 | BB11: 859 | BC11: 818 | BD11: 744 | BE11: 3406 | BG11: 0 | BH11: 0 | BJ11: 2235 | BK11: 939 | BL11: 894 | BM11: 814 | BO11: 38192 | BV11: 38192 | BX11: 0 | BZ11: 0 | CA11: 0 | CB11: 0 | CC11: 0 | CE11: 0 | CF11: 0 | CG11: 0 | CH11: 0 | CI11: 0 | CJ11: 0 | CK11: 0 | CL11: 0 | CM11: 0 | CO11: 0 | CP11: 0 | CQ11: 0 | CR11: 0 | CT11: 0 | CX11: 0 | CZ11: 12480 | DA11: 8190 | DB11: -4290 | DD11: 57527 | DE11: 38192 | DF11: -19335 | DH11: 0 | DI11: 0 | DJ11: 0 | DL11: 0 | DM11: 0 | DN11: 0 | DP11: 12480 | DQ11: 8190 | DR11: -4290 | DS11: 57527 | DT11: 38192 | DU11: -19335 | DV11: 2405 | DW11: 4500 | DX11: 1890 | DY11: 1800 | EA11: 8190 | EC11: 33660.9 | ED11: 2405 | EE11: 855 | EF11: 359 | EG11: 342 | EH11: 311 | EJ11: 2438 | EK11: 1024 | EL11: 975 | EM11: 2662 | EN11: 2044 | EO11: 859 | EP11: 818 | EQ11: 744 | ER11: 3406 | ET11: 0 | EU11: 0 | EW11: 2235 | EX11: 939 | EY11: 894 | EZ11: 814 | FB11: 38191.9 | FD11: 0 | FE11: 0 | FF11: 0 | FG11: 0 | FJ11: 38191.9 | FL11: 38192
B12: Bemrose | C12: E300101 | D12: 4177 | E12: M | F12: 0 | G12: 10 | H12: 2100 | I12: 0 | K12: 10 | L12: 150 | M12: 1800 | N12: 0 | O12: 0 | P12: 0 | Q12: 1800 | R12: 10 | S12: 150 | T12: 2100 | U12: 0 | V12: 0 | W12: 0 | X12: 2100 | Y12: 10 | Z12: 150 | AA12: 1800 | AB12: 0 | AC12: 0 | AD12: 0 | AE12: 1800 | AG12: 30 | AH12: 450 | AI12: 5700 | AJ12: 0 | AK12: 0 | AL12: 0 | AN12: 5700 | AP12: 23427 | AR12: 347 | AS12: 404 | AT12: 347 | AU12: 220 | AW12: 720 | AX12: 840 | AY12: 720 | AZ12: 1368 | BA12: 1440 | BB12: 1680 | BC12: 1440 | BD12: 912 | BE12: 2280 | BG12: 0 | BH12: 0 | BJ12: 1080 | BK12: 1260 | BL12: 1080 | BM12: 684 | BO12: 26611 | BV12: 26611 | BX12: 0 | BZ12: 0 | CA12: 0 | CB12: 0 | CC12: 0 | CE12: 0 | CF12: 0 | CG12: 0 | CH12: 0 | CI12: 0 | CJ12: 0 | CK12: 0 | CL12: 0 | CM12: 0 | CO12: 0 | CP12: 0 | CQ12: 0 | CR12: 0 | CT12: 0 | CX12: 0 | CZ12: 2280 | DA12: 5700 | DB12: 3420 | DD12: 10239 | DE12: 26611 | DF12: 16372 | DH12: 0 | DI12: 0 | DJ12: 0 | DL12: 0 | DM12: 0 | DN12: 0 | DP12: 2280 | DQ12: 5700 | DR12: 3420 | DS12: 10239 | DT12: 26611 | DU12: 16372 | DV12: 4177 | DW12: 1800 | DX12: 2100 | DY12: 1800 | EA12: 5700 | EC12: 23427 | ED12: 4177 | EE12: 347 | EF12: 404 | EG12: 347 | EH12: 220 | EJ12: 720 | EK12: 840 | EL12: 720 | EM12: 1368 | EN12: 1440 | EO12: 1680 | EP12: 1440 | EQ12: 912 | ER12: 2280 | ET12: 0 | EU12: 0 | EW12: 1080 | EX12: 1260 | EY12: 1080 | EZ12: 684 | FB12: 26611 | FD12: 0 | FE12: 0 | FF12: 0 | FG12: 0 | FJ12: 26611 | FL12: 26611
B13: Bishop Lonsdale Church of England (Aided) Primary School | C13: Academy | D13: 2011 | E13: M | F13: 29 | G13: 13 | H13: 2730 | I13: 810 | K13: 22 | L13: 330 | M13: 3960 | N13: 6 | O13: 90 | P13: 1080 | Q13: 5040 | R13: 15 | S13: 225 | T13: 3150 | U13: 4 | V13: 60 | W13: 840 | X13: 3990 | Y13: 22 | Z13: 330 | AA13: 3960 | AB13: 6 | AC13: 90 | AD13: 1080 | AE13: 5040 | AG13: 59 | AH13: 885 | AI13: 11070 | AJ13: 16 | AK13: 240 | AL13: 3000 | AN13: 14070 | AP13: 45498 | AR13: 714 | AS13: 568 | AT13: 714 | AU13: 399 | AW13: 489 | AX13: 389 | AY13: 489 | AZ13: 820 | BA13: 2692 | BB13: 2142 | BC13: 2692 | BD13: 1505 | BE13: 2325 | BG13: 0 | BH13: 0 | BJ13: 1036 | BK13: 824 | BL13: 1036 | BM13: 579 | BO13: 48801 | BV13: 48801 | BX13: 12330 | BZ13: 150 | CA13: 116 | CB13: 150 | CC13: 83 | CE13: 0 | CF13: 0 | CG13: 0 | CH13: 0 | CI13: 800 | CJ13: 622 | CK13: 800 | CL13: 444 | CM13: 444 | CO13: 0 | CP13: 0 | CQ13: 0 | CR13: 0 | CT13: 12857 | CX13: 12857 | CZ13: 12450 | DA13: 11070 | DB13: -1380 | DD13: 54147 | DE13: 48801 | DF13: -5346 | DH13: 2199 | DI13: 3000 | DJ13: 801 | DL13: 9292 | DM13: 12857 | DN13: 3565 | DP13: 14649 | DQ13: 14070 | DR13: -579 | DS13: 63439 | DT13: 61658 | DU13: -1781 | DV13: 2011 | DW13: 5040 | DX13: 3990 | DY13: 5040 | EA13: 14070 | EC13: 57827.7 | ED13: 2011 | EE13: 864 | EF13: 684 | EG13: 864 | EH13: 482 | EJ13: 489 | EK13: 389 | EL13: 489 | EM13: 820 | EN13: 3492 | EO13: 2764 | EP13: 3492 | EQ13: 1949 | ER13: 2769 | ET13: 0 | EU13: 0 | EW13: 1036 | EX13: 824 | EY13: 1036 | EZ13: 579 | FB13: 61657.7 | FD13: 0 | FE13: 0 | FF13: 0 | FG13: 0 | FJ13: 61657.7 | FL13: 61658
B14: Borrow Wood Primary School | C14: E201201 | D14: 5201 | E14: M | F14: 42 | G14: 34 | H14: 7140 | I14: 0 | K14: 44 | L14: 660 | M14: 7920 | N14: 2 | O14: 30 | P14: 360 | Q14: 8280 | R14: 20 | S14: 300 | T14: 4200 | U14: 0 | V14: 0 | W14: 0 | X14: 4200 | Y14: 25 | Z14: 375 | AA14: 4500 | AB14: 0 | AC14: 0 | AD14: 0 | AE14: 4500 | AG14: 89 | AH14: 1335 | AI14: 16620 | AJ14: 2 | AK14: 30 | AL14: 360 | AN14: 16980 | AP14: 68308 | AR14: 836 | AS14: 444 | AT14: 475 | AU14: 351 | AW14: 695 | AX14: 368 | AY14: 395 | AZ14: 875 | BA14: 483 | BB14: 256 | BC14: 275 | BD14: 203 | BE14: 1078 | BG14: 0 | BH14: 0 | BJ14: 187 | BK14: 99 | BL14: 106 | BM14: 78 | BO14: 69815 | BV14: 69815 | BX14: 1480 | BZ14: 0 | CA14: 0 | CB14: 0 | CC14: 0 | CE14: 0 | CF14: 0 | CG14: 0 | CH14: 0 | CI14: 0 | CJ14: 0 | CK14: 0 | CL14: 0 | CM14: 0 | CO14: 0 | CP14: 0 | CQ14: 0 | CR14: 0 | CT14: 1480 | CX14: 1480 | CZ14: 19650 | DA14: 16620 | DB14: -3030 | DD14: 81367 | DE14: 69815 | DF14: -11552 | DH14: 0 | DI14: 360 | DJ14: 360 | DL14: 0 | DM14: 1480 | DN14: 1480 | DP14: 19650 | DQ14: 16980 | DR14: -2670 | DS14: 81367 | DT14: 71295 | DU14: -10072 | DV14: 5201 | DW14: 8280 | DX14: 4200 | DY14: 4500 | EA14: 16980 | EC14: 69787.8 | ED14: 5201 | EE14: 836 | EF14: 444 | EG14: 475 | EH14: 351 | EJ14: 695 | EK14: 368 | EL14: 395 | EM14: 875 | EN14: 483 | EO14: 256 | EP14: 275 | EQ14: 203 | ER14: 1078 | ET14: 0 | EU14: 0 | EW14: 187 | EX14: 99 | EY14: 106 | EZ14: 78 | FB14: 71294.8 | FD14: 0 | FE14: 0 | FF14: 0 | FG14: 0 | FJ14: 71294.8 | FL14: 71295
B15: Wyndham Primary Academy | C15: Academy | D15: 2007 | E15: M | F15: 62 | G15: 48 | H15: 10080 | I15: 0 | K15: 71 | L15: 1065 | M15: 12780 | N15: 0 | O15: 0 | P15: 0 | Q15: 12780 | R15: 51 | S15: 765 | T15: 10710 | U15: 0 | V15: 0 | W15: 0 | X15: 10710 | Y15: 60 | Z15: 900 | AA15: 10800 | AB15: 0 | AC15: 0 | AD15: 0 | AE15: 10800 | AG15: 182 | AH15: 2730 | AI15: 34290 | AJ15: 0 | AK15: 0 | AL15: 0 | AN15: 34290 | AP15: 140932 | AR15: 3140 | AS15: 2631 | AT15: 2654 | AU15: 1685 | AW15: 9942 | AX15: 8331 | AY15: 8401 | AZ15: 16004 | BA15: 3175 | BB15: 2660 | BC15: 2683 | BD15: 1704 | BE15: 17708 | BG15: 0 | BH15: 0 | BJ15: 2708 | BK15: 2269 | BL15: 2289 | BM15: 1453 | BO15: 161778 | BV15: 161778 | BX15: 0 | BZ15: 0 | CA15: 0 | CB15: 0 | CC15: 0 | CE15: 0 | CF15: 0 | CG15: 0 | CH15: 0 | CI15: 0 | CJ15: 0 | CK15: 0 | CL15: 0 | CM15: 0 | CO15: 0 | CP15: 0 | CQ15: 0 | CR15: 0 | CT15: 0 | CX15: 0 | CZ15: 30924 | DA15: 34290 | DB15: 3366 | DD15: 144220 | DE15: 161778 | DF15: 17558 | DH15: 0 | DI15: 0 | DJ15: 0 | DL15: 0 | DM15: 0 | DN15: 0 | DP15: 30924 | DQ15: 34290 | DR15: 3366 | DS15: 144220 | DT15: 161778 | DU15: 17558 | DV15: 2007 | DW15: 12780 | DX15: 10710 | DY15: 10800 | EA15: 34290 | EC15: 140931.9 | ED15: 2007 | EE15: 3140 | EF15: 2631 | EG15: 2654 | EH15: 1685 | EJ15: 9942 | EK15: 8331 | EL15: 8401 | EM15: 16004 | EN15: 3175 | EO15: 2660 | EP15: 2683 | EQ15: 1704 | ER15: 17708 | ET15: 0 | EU15: 0 | EW15: 2708 | EX15: 2269 | EY15: 2289 | EZ15: 1453 | FB15: 161777.9 | FD15: 0 | FE15: 0 | FF15: 0 | FG15: 0 | FJ15: 161777.9 | FL15: 161778
B16: Brackensdale ER (Enhanced Resource) Primary School | C16: E201401 | D16: 2432 | E16: M | F16: 52 | G16: 47 | H16: 9870 | I16: 0 | K16: 50 | L16: 750 | M16: 9000 | N16: 0 | O16: 0 | P16: 0 | Q16: 9000 | R16: 47 | S16: 705 | T16: 9870 | U16: 0 | V16: 0 | W16: 0 | X16: 9870 | Y16: 50 | Z16: 750 | AA16: 9000 | AB16: 0 | AC16: 0 | AD16: 0 | AE16: 9000 | AG16: 147 | AH16: 2205 | AI16: 27870 | AJ16: 0 | AK16: 0 | AL16: 0 | AN16: 27870 | AP16: 114546 | AR16: 2154 | AS16: 2362 | AT16: 2154 | AU16: 1334 | AW16: 2748 | AX16: 3013 | AY16: 2748 | AZ16: 5105 | BA16: 4737 | BB16: 5195 | BC16: 4737 | BD16: 2934 | BE16: 8039 | BG16: 0 | BH16: 0 | BJ16: 515 | BK16: 565 | BL16: 515 | BM16: 319 | BO16: 124238 | BV16: 124238 | BX16: 0 | BZ16: 0 | CA16: 0 | CB16: 0 | CC16: 0 | CE16: 0 | CF16: 0 | CG16: 0 | CH16: 0 | CI16: 0 | CJ16: 0 | CK16: 0 | CL16: 0 | CM16: 0 | CO16: 0 | CP16: 0 | CQ16: 0 | CR16: 0 | CT16: 0 | CX16: 0 | CZ16: 28230 | DA16: 27870 | DB16: -360 | DD16: 124132 | DE16: 124238 | DF16: 106 | DH16: 0 | DI16: 0 | DJ16: 0 | DL16: 0 | DM16: 0 | DN16: 0 | DP16: 28230 | DQ16: 27870 | DR16: -360 | DS16: 124132 | DT16: 124238 | DU16: 106 | DV16: 2432 | DW16: 9000 | DX16: 9870 | DY16: 9000 | EA16: 27870 | EC16: 114545.7 | ED16: 2432 | EE16: 2154 | EF16: 2362 | EG16: 2154 | EH16: 1334 | EJ16: 2748 | EK16: 3013 | EL16: 2748 | EM16: 5105 | EN16: 4737 | EO16: 5195 | EP16: 4737 | EQ16: 2934 | ER16: 8039 | ET16: 0 | EU16: 0 | EW16: 515 | EX16: 565 | EY16: 515 | EZ16: 319 | FB16: 124237.7 | FD16: 0 | FE16: 0 | FF16: 0 | FG16: 0 | FJ16: 124237.7 | FL16: 124238
B17: Breadsall Hill Top Primary School | C17: Academy | D17: 2447 | E17: M | F17: 55 | G17: 0 | H17: 0 | I17: 0 | K17: 60 | L17: 900 | M17: 10800 | N17: 16 | O17: 240 | P17: 2880 | Q17: 13680 | R17: 35 | S17: 525 | T17: 7350 | U17: 16 | V17: 240 | W17: 3360 | X17: 10710 | Y17: 40 | Z17: 600 | AA17: 7200 | AB17: 16 | AC17: 240 | AD17: 2880 | AE17: 10080 | AG17: 135 | AH17: 2025 | AI17: 25350 | AJ17: 48 | AK17: 720 | AL17: 9120 | AN17: 34470 | AP17: 104189 | AR17: 2521 | AS17: 1715 | AT17: 1680 | AU17: 1183 | AW17: 2867 | AX17: 1951 | AY17: 1912 | AZ17: 4038 | BA17: 3234 | BB17: 2201 | BC17: 2156 | BD17: 1518 | BE17: 5556 | BG17: 0 | BH17: 0 | BJ17: 1071 | BK17: 729 | BL17: 714 | BM17: 503 | BO17: 111431 | BV17: 111431 | BX17: 37483 | BZ17: 0 | CA17: 0 | CB17: 0 | CC17: 0 | CE17: 0 | CF17: 0 | CG17: 0 | CH17: 0 | CI17: 0 | CJ17: 0 | CK17: 0 | CL17: 0 | CM17: 0 | CO17: 0 | CP17: 0 | CQ17: 0 | CR17: 0 | CT17: 37483 | CX17: 37483 | CZ17: 20643 | DA17: 25350 | DB17: 4707 | DD17: 89512 | DE17: 111431 | DF17: 21919 | DH17: 0 | DI17: 9120 | DJ17: 9120 | DL17: 0 | DM17: 37483 | DN17: 37483 | DP17: 20643 | DQ17: 34470 | DR17: 13827 | DS17: 89512 | DT17: 148914 | DU17: 59402 | DV17: 2447 | DW17: 13680 | DX17: 10710 | DY17: 10080 | EA17: 34470 | EC17: 141671.7 | ED17: 2447 | EE17: 2521 | EF17: 1715 | EG17: 1680 | EH17: 1183 | EJ17: 2867 | EK17: 1951 | EL17: 1912 | EM17: 4038 | EN17: 3234 | EO17: 2201 | EP17: 2156 | EQ17: 1518 | ER17: 5556 | ET17: 0 | EU17: 0 | EW17: 1071 | EX17: 729 | EY17: 714 | EZ17: 503 | FB17: 148913.7 | FD17: 0 | FE17: 0 | FF17: 0 | FG17: 0 | FJ17: 148913.7 | FL17: 148914
B18: Brookfield Primary School | C18: E201801 | D18: 2512 | E18: M | F18: 41 | G18: 20 | H18: 4158 | I18: 1260 | K18: 35 | L18: 525 | M18: 6300 | N18: 10 | O18: 150 | P18: 1800 | Q18: 8100 | R18: 20 | S18: 300 | T18: 4200 | U18: 6 | V18: 90 | W18: 1260 | X18: 5460 | Y18: 25 | Z18: 375 | AA18: 4500 | AB18: 8 | AC18: 120 | AD18: 1440 | AE18: 5940 | AG18: 80 | AH18: 1200 | AI18: 15000 | AJ18: 24 | AK18: 360 | AL18: 4500 | AN18: 19500 | AP18: 61650 | AR18: 411 | AS18: 274 | AT18: 293 | AU18: 196 | AW18: 284 | AX18: 189 | AY18: 203 | AZ18: 406 | BA18: 266 | BB18: 177 | BC18: 190 | BD18: 127 | BE18: 533 | BG18: 0 | BH18: 0 | BJ18: 2105 | BK18: 1403 | BL18: 1503 | BM18: 1002 | BO18: 63381 | BV18: 63381 | BX18: 18495 | BZ18: 147 | CA18: 103 | CB18: 118 | CC18: 74 | CE18: 300 | CF18: 210 | CG18: 240 | CH18: 450 | CI18: 0 | CJ18: 0 | CK18: 0 | CL18: 0 | CM18: 450 | CO18: 600 | CP18: 420 | CQ18: 480 | CR18: 300 | CT18: 19319 | CX18: 19319 | CZ18: 15318 | DA18: 15000 | DB18: -318 | DD18: 63787 | DE18: 63381 | DF18: -406 | DH18: 3420 | DI18: 4500 | DJ18: 1080 | DL18: 14478 | DM18: 19319 | DN18: 4841 | DP18: 18738 | DQ18: 19500 | DR18: 762 | DS18: 78265 | DT18: 82700 | DU18: 4435 | DV18: 2512 | DW18: 8100 | DX18: 5460 | DY18: 5940 | EA18: 19500 | EC18: 80145 | ED18: 2512 | EE18: 558 | EF18: 377 | EG18: 411 | EH18: 270 | EJ18: 584 | EK18: 399 | EL18: 443 | EM18: 856 | EN18: 266 | EO18: 177 | EP18: 190 | EQ18: 127 | ER18: 983 | ET18: 0 | EU18: 0 | EW18: 2705 | EX18: 1823 | EY18: 1983 | EZ18: 1302 | FB18: 82700 | FD18: 0 | FE18: 0 | FF18: 0 | FG18: 0 | FJ18: 82700 | FL18: 82700
B19: Carlyle Infant School | C19: E201901 | D19: 2456 | E19: M | F19: 35 | G19: 23 | H19: 4830 | I19: 2100 | K19: 26 | L19: 390 | M19: 4680 | N19: 26 | O19: 390 | P19: 4680 | Q19: 9360 | R19: 26 | S19: 390 | T19: 5460 | U19: 26 | V19: 390 | W19: 5460 | X19: 10920 | Y19: 26 | Z19: 390 | AA19: 4680 | AB19: 26 | AC19: 390 | AD19: 4680 | AE19: 9360 | AG19: 78 | AH19: 1170 | AI19: 14820 | AJ19: 78 | AK19: 1170 | AL19: 14820 | AN19: 29640 | AP19: 60910 | AR19: 478 | AS19: 557 | AT19: 478 | AU19: 303 | AW19: 469 | AX19: 547 | AY19: 469 | AZ19: 891 | BA19: 536 | BB19: 626 | BC19: 536 | BD19: 340 | BE19: 1231 | BG19: 0 | BH19: 0 | BJ19: 1198 | BK19: 1397 | BL19: 1198 | BM19: 759 | BO19: 63203 | BV19: 63203 | BX19: 60910 | BZ19: 393 | CA19: 459 | CB19: 393 | CC19: 249 | CE19: 0 | CF19: 0 | CG19: 0 | CH19: 0 | CI19: 0 | CJ19: 0 | CK19: 0 | CL19: 0 | CM19: 0 | CO19: 0 | CP19: 0 | CQ19: 0 | CR19: 0 | CT19: 61159 | CX19: 61159 | CZ19: 17070 | DA19: 14820 | DB19: -2250 | DD19: 71785 | DE19: 63203 | DF19: -8582 | DH19: 5700 | DI19: 14820 | DJ19: 9120 | DL19: 23180 | DM19: 61159 | DN19: 37979 | DP19: 22770 | DQ19: 29640 | DR19: 6870 | DS19: 94965 | DT19: 124362 | DU19: 29397 | DV19: 2456 | DW19: 9360 | DX19: 10920 | DY19: 9360 | EA19: 29640 | EC19: 121820.4 | ED19: 2456 | EE19: 871 | EF19: 1016 | EG19: 871 | EH19: 552 | EJ19: =AW19+CE19+1 -> 470 | EK19: 547 | EL19: 469 | EM19: 891 | EN19: 536 | EO19: 626 | EP19: 536 | EQ19: 340 | ER19: 1231 | ET19: 0 | EU19: 0 | EW19: 1198 | EX19: 1397 | EY19: 1198 | EZ19: 759 | FB19: 124362.4 | FD19: 0 | FE19: 0 | FF19: 0 | FG19: 0 | FJ19: 124362.4 | FL19: 124362
B20: Cavendish Close Infant School | C20: E202001 | D20: 2449 | E20: M | F20: 77 | G20: 64 | H20: 13440 | I20: 5250 | K20: 65 | L20: 975 | M20: 11700 | N20: 26 | O20: 390 | P20: 4680 | Q20: 16380 | R20: 52 | S20: 780 | T20: 10920 | U20: 26 | V20: 390 | W20: 5460 | X20: 16380 | Y20: 52 | Z20: 780 | AA20: 9360 | AB20: 26 | AC20: 390 | AD20: 4680 | AE20: 14040 | AG20: 169 | AH20: 2535 | AI20: 31980 | AJ20: 78 | AK20: 1170 | AL20: 14820 | AN20: 46800 | AP20: 131438 | AR20: 1789 | AS20: 1670 | AT20: 1431 | AU20: 978 | AW20: 2094 | AX20: 1955 | AY20: 1675 | AZ20: 3434 | BA20: 3525 | BB20: 3290 | BC20: 2820 | BD20: 1927 | BE20: 5361 | BG20: 0 | BH20: 0 | BJ20: 645 | BK20: 602 | BL20: 516 | BM20: 353 | BO20: 138130 | BV20: 138130 | BX20: 60910 | BZ20: 766 | CA20: 894 | CB20: 766 | CC20: 485 | CE20: 562 | CF20: 655 | CG20: 562 | CH20: 1067 | CI20: 1735 | CJ20: 2024 | CK20: 1735 | CL20: 1099 | CM20: 2166 | CO20: 187 | CP20: 218 | CQ20: 187 | CR20: 118 | CT20: 63679 | CX20: 63679 | CZ20: 40800 | DA20: 31980 | DB20: -8820 | DD20: 173792 | DE20: 138130 | DF20: -35662 | DH20: 14250 | DI20: 14820 | DJ20: 570 | DL20: 60377 | DM20: 63679 | DN20: 3302 | DP20: 55050 | DQ20: 46800 | DR20: -8250 | DS20: 234169 | DT20: 201809 | DU20: -32360 | DV20: 2449 | DW20: 16380 | DX20: 16380 | DY20: 14040 | EA20: 46800 | EC20: 192348 | ED20: 2449 | EE20: 2555 | EF20: 2564 | EG20: 2197 | EH20: 1463 | EJ20: 2656 | EK20: 2610 | EL20: 2237 | EM20: 4501 | EN20: 5260 | EO20: 5314 | EP20: 4555 | EQ20: 3026 | ER20: 7527 | ET20: 0 | EU20: 0 | EW20: 832 | EX20: 820 | EY20: 703 | EZ20: 471 | FB20: 201809 | FD20: 0 | FE20: 0 | FF20: 0 | FG20: 0 | FJ20: 201809 | FL20: 201809
B21: Central Nursery | C21: E100301 | D21: 1006 | E21: S | F21: 62 | G21: 47 | H21: 9702 | I21: 2316 | K21: 68 | L21: 1020 | M21: 12240 | N21: 16 | O21: 240 | P21: 2880 | Q21: 15120 | R21: 49 | S21: 735 | T21: 10290 | U21: 13 | V21: 195 | W21: 2730 | X21: 13020 | Y21: 62 | Z21: 930 | AA21: 11160 | AB21: 15 | AC21: 225 | AD21: 2700 | AE21: 13860 | AG21: 179 | AH21: 2685 | AI21: 33690 | AJ21: 44 | AK21: 660 | AL21: 8310 | AN21: 42000 | AP21: 138466 | AR21: 1681 | AS21: 1413 | AT21: 1532 | AU21: 925 | AW21: 3277 | AX21: 2755 | AY21: 2988 | AZ21: 5412 | BA21: 4275 | BB21: 3594 | BC21: 3898 | BD21: 2353 | BE21: 7765 | BG21: 1 | BH21: 100000 | BJ21: 1652 | BK21: 1389 | BL21: 1507 | BM21: 910 | BO21: 248066 | BQ21: 0 | BR21: 50198 | BT21: 10191 | BV21: 308455 | BX21: 34154 | BZ21: 388 | CA21: 368 | CB21: 364 | CC21: 224 | CE21: 587 | CF21: 556 | CG21: 550 | CH21: 1016 | CI21: 754 | CJ21: 714 | CK21: 707 | CL21: 435 | CM21: 1451 | CO21: 0 | CP21: 0 | CQ21: 0 | CR21: 0 | CT21: 35829 | CV21: 12382 | CX21: 48211 | CZ21: 31950 | DA21: 33690 | DB21: 1740 | DD21: 300609 | DE21: 308455 | DF21: 7846 | DH21: 6286 | DI21: 8310 | DJ21: 2024 | DL21: 36472 | DM21: 48211 | DN21: 11739 | DP21: 38236 | DQ21: 42000 | DR21: 3764 | DS21: 337081 | DT21: 356666 | DU21: 19585 | DV21: 1006 | DW21: 15120 | DX21: 13020 | DY21: 13860 | EA21: 42000 | EC21: 172620 | ED21: 1006 | EE21: 2069 | EF21: 1781 | EG21: 1896 | EH21: 1149 | EJ21: 3864 | EK21: 3311 | EL21: 3538 | EM21: 6428 | EN21: 5029 | EO21: 4308 | EP21: 4605 | EQ21: 2788 | ER21: 9216 | ET21: 1 | EU21: 100000 | EW21: 1652 | EX21: 1389 | EY21: 1507 | EZ21: 910 | FB21: 283895 | FD21: 0 | FE21: =EA21*FE$4 -> 62580 | FF21: 0 | FG21: 10191 | FJ21: 356666 | FL21: 356666
B22: Chaddesden Park Primary School | C22: E202201 | D22: 2467 | E22: M | F22: 52 | G22: 35 | H22: 7350 | I22: 0 | K22: 52 | L22: 780 | M22: 9360 | N22: 0 | O22: 0 | P22: 0 | Q22: 9360 | R22: 30 | S22: 450 | T22: 6300 | U22: 0 | V22: 0 | W22: 0 | X22: 6300 | Y22: 40 | Z22: 600 | AA22: 7200 | AB22: 0 | AC22: 0 | AD22: 0 | AE22: 7200 | AG22: 122 | AH22: 1830 | AI22: 22860 | AJ22: 0 | AK22: 0 | AL22: 0 | AN22: 22860 | AP22: 93955 | AR22: 1329 | AS22: 895 | AT22: 1022 | AU22: 649 | AW22: 1319 | AX22: 888 | AY22: 1014 | AZ22: 1933 | BA22: 4395 | BB22: 2958 | BC22: 3381 | BD22: 2147 | BE22: 4080 | BG22: 0 | BH22: 0 | BJ22: 180 | BK22: 121 | BL22: 138 | BM22: 88 | BO22: 98772 | BV22: 98772 | BX22: 0 | BZ22: 0 | CA22: 0 | CB22: 0 | CC22: 0 | CE22: 0 | CF22: 0 | CG22: 0 | CH22: 0 | CI22: 0 | CJ22: 0 | CK22: 0 | CL22: 0 | CM22: 0 | CO22: 0 | CP22: 0 | CQ22: 0 | CR22: 0 | CT22: 0 | CX22: 0 | CZ22: 23910 | DA22: 22860 | DB22: -1050 | DD22: 101835 | DE22: 98772 | DF22: -3063 | DH22: 0 | DI22: 0 | DJ22: 0 | DL22: 0 | DM22: 0 | DN22: 0 | DP22: 23910 | DQ22: 22860 | DR22: -1050 | DS22: 101835 | DT22: 98772 | DU22: -3063 | DV22: 2467 | DW22: 9360 | DX22: 6300 | DY22: 7200 | EA22: 22860 | EC22: 93954.6 | ED22: 2467 | EE22: 1329 | EF22: 895 | EG22: 1022 | EH22: 649 | EJ22: 1319 | EK22: 888 | EL22: 1014 | EM22: 1933 | EN22: 4395 | EO22: 2958 | EP22: 3381 | EQ22: 2147 | ER22: 4080 | ET22: 0 | EU22: 0 | EW22: 180 | EX22: 121 | EY22: 138 | EZ22: 88 | FB22: 98771.6 | FD22: 0 | FE22: 0 | FF22: 0 | FG22: 0 | FJ22: 98771.6 | FL22: 98772
B23: Cherry Tree Hill Primary School | C23: E202601 | D23: 2451 | E23: M | F23: 50 | G23: 51 | H23: 10584 | I23: 0 | K23: 52 | L23: 780 | M23: 9360 | N23: 0 | O23: 0 | P23: 0 | Q23: 9360 | R23: 52 | S23: 780 | T23: 10920 | U23: 0 | V23: 0 | W23: 0 | X23: 10920 | Y23: 52 | Z23: 780 | AA23: 9360 | AB23: 0 | AC23: 0 | AD23: 0 | AE23: 9360 | AG23: 156 | AH23: 2340 | AI23: 29640 | AJ23: 0 | AK23: 0 | AL23: 0 | AN23: 29640 | AP23: 121820 | AR23: 1256 | AS23: 1465 | AT23: 1256 | AU23: 795 | AW23: 1754 | AX23: 2046 | AY23: 1754 | AZ23: 3332 | BA23: 3099 | BB23: 3616 | BC23: 3099 | BD23: 1963 | BE23: 5295 | BG23: 0 | BH23: 0 | BJ23: 372 | BK23: 434 | BL23: 372 | BM23: 236 | BO23: 128146 | BV23: 128146 | BX23: 0 | BZ23: 0 | CA23: 0 | CB23: 0 | CC23: 0 | CE23: 0 | CF23: 0 | CG23: 0 | CH23: 0 | CI23: 0 | CJ23: 0 | CK23: 0 | CL23: 0 | CM23: 0 | CO23: 0 | CP23: 0 | CQ23: 0 | CR23: 0 | CT23: 0 | CX23: 0 | CZ23: 29484 | DA23: 29640 | DB23: 156 | DD23: 125709 | DE23: 128146 | DF23: 2437 | DH23: 0 | DI23: 0 | DJ23: 0 | DL23: 0 | DM23: 0 | DN23: 0 | DP23: 29484 | DQ23: 29640 | DR23: 156 | DS23: 125709 | DT23: 128146 | DU23: 2437 | DV23: 2451 | DW23: 9360 | DX23: 10920 | DY23: 9360 | EA23: 29640 | EC23: 121820.4 | ED23: 2451 | EE23: 1256 | EF23: 1465 | EG23: 1256 | EH23: 795 | EJ23: 1754 | EK23: 2046 | EL23: 1754 | EM23: 3332 | EN23: 3099 | EO23: 3616 | EP23: 3099 | EQ23: 1963 | ER23: 5295 | ET23: 0 | EU23: 0 | EW23: 372 | EX23: 434 | EY23: 372 | EZ23: 236 | FB23: 128146.4 | FD23: 0 | FE23: 0 | FF23: 0 | FG23: 0 | FJ23: 128146.4 | FL23: 128146
B24: Derwent Community School | C24: Academy | D24: 2016 | E24: M | F24: 40 | G24: 25 | H24: 5250 | I24: 420 | K24: 38 | L24: 570 | M24: 6840 | N24: 1 | O24: 15 | P24: 180 | Q24: 7020 | R24: 26 | S24: 390 | T24: 5460 | U24: 0 | V24: 0 | W24: 0 | X24: 5460 | Y24: 30 | Z24: 450 | AA24: 5400 | AB24: 0 | AC24: 0 | AD24: 0 | AE24: 5400 | AG24: 94 | AH24: 1410 | AI24: 17700 | AJ24: 1 | AK24: 15 | AL24: 180 | AN24: 17880 | AP24: 72747 | AR24: 1736 | AS24: 1386 | AT24: 1371 | AU24: 899 | AW24: 5806 | AX24: 4634 | AY24: 4584 | AZ24: 9014 | BA24: 1873 | BB24: 1495 | BC24: 1479 | BD24: 969 | BE24: 9983 | BG24: 0 | BH24: 0 | BJ24: 1127 | BK24: 900 | BL24: 890 | BM24: 583 | BO24: 84212 | BV24: 84212 | BX24: 740 | BZ24: 49 | CA24: 0 | CB24: 0 | CC24: 10 | CE24: 180 | CF24: 0 | CG24: 0 | CH24: 108 | CI24: 0 | CJ24: 0 | CK24: 0 | CL24: 0 | CM24: 108 | CO24: 0 | CP24: 0 | CQ24: 0 | CR24: 0 | CT24: 858 | CX24: 858 | CZ24: 17130 | DA24: 17700 | DB24: 570 | DD24: 80454 | DE24: 84212 | DF24: 3758 | DH24: 1140 | DI24: 180 | DJ24: -960 | DL24: 5363 | DM24: 858 | DN24: -4505 | DP24: 18270 | DQ24: 17880 | DR24: -390 | DS24: 85817 | DT24: 85070 | DU24: -747 | DV24: 2016 | DW24: 7020 | DX24: 5460 | DY24: 5400 | EA24: 17880 | EC24: 73486.8 | ED24: 2016 | EE24: 1785 | EF24: 1386 | EG24: 1371 | EH24: 909 | EJ24: 5986 | EK24: 4634 | EL24: 4584 | EM24: 9122 | EN24: 1873 | EO24: 1495 | EP24: 1479 | EQ24: 969 | ER24: 10091 | ET24: 0 | EU24: 0 | EW24: 1127 | EX24: 900 | EY24: 890 | EZ24: 583 | FB24: 85069.8 | FD24: 0 | FE24: 0 | FF24: 0 | FG24: 0 | FJ24: 85069.8 | FL24: 85070
B25: Firs Estate Primary School - converts to an Academy Jan 2018 | C25: E203001 | D25: 2013 | E25: M | F25: 18 | G25: 12 | H25: 2520 | I25: 420 | K25: 18 | L25: 270 | M25: 3240 | N25: 2 | O25: 30 | P25: 360 | Q25: 3600 | R25: 6 | S25: 90 | T25: 1260 | U25: 0 | V25: 0 | W25: 0 | X25: 1260 | Y25: 6 | Z25: 90 | AA25: 1080 | AB25: 0 | AC25: 0 | AD25: 0 | AE25: 1080 | AG25: 30 | AH25: 450 | AI25: 5580 | AJ25: 2 | AK25: 30 | AL25: 360 | AN25: 5940 | AP25: 22934 | AR25: 644 | AS25: 250 | AT25: 215 | AU25: 222 | AW25: 1673 | AX25: 651 | AY25: 558 | AZ25: 1729 | BA25: 1983 | BB25: 771 | BC25: 661 | BD25: 683 | BE25: 2412 | BG25: 0 | BH25: 0 | BJ25: 2079 | BK25: 809 | BL25: 693 | BM25: 716 | BO25: 26284 | BV25: 26284 | BX25: 1480 | BZ25: 70 | CA25: 0 | CB25: 0 | CC25: 14 | CE25: 180 | CF25: 0 | CG25: 0 | CH25: 108 | CI25: 180 | CJ25: 0 | CK25: 0 | CL25: 36 | CM25: 144 | CO25: 180 | CP25: 0 | CQ25: 0 | CR25: 36 | CT25: 1674 | CX25: 1674 | CZ25: 8280 | DA25: 5580 | DB25: -2700 | DD25: 38202 | DE25: 26284 | DF25: -11918 | DH25: 1140 | DI25: 360 | DJ25: -780 | DL25: 5230 | DM25: 1674 | DN25: -3556 | DP25: 9420 | DQ25: 5940 | DR25: -3480 | DS25: 43432 | DT25: 27958 | DU25: -15474 | DV25: 2013 | DW25: 3600 | DX25: 1260 | DY25: 1080 | EA25: 5940 | EC25: 24413.4 | ED25: 2013 | EE25: 714 | EF25: 250 | EG25: 215 | EH25: 236 | EJ25: 1853 | EK25: 651 | EL25: 558 | EM25: 1837 | EN25: 2163 | EO25: 771 | EP25: 661 | EQ25: 719 | ER25: 2556 | ET25: 0 | EU25: 0 | EW25: 2259 | EX25: 809 | EY25: 693 | EZ25: 752 | FB25: 27957.4 | FD25: 0 | FE25: 0 | FF25: 0 | FG25: 0 | FJ25: 27957.4 | FL25: 27958
B26: Grampian Primary School /Academy | C26: Academy | D26: 2010 | E26: M | F26: 46 | G26: 28 | H26: 5754 | I26: 840 | K26: 43 | L26: 645 | M26: 7740 | N26: 6 | O26: 90 | P26: 1080 | Q26: 8820 | R26: 28 | S26: 420 | T26: 5880 | U26: 0 | V26: 0 | W26: 0 | X26: 5880 | Y26: 30 | Z26: 450 | AA26: 5400 | AB26: 0 | AC26: 0 | AD26: 0 | AE26: 5400 | AG26: 101 | AH26: 1515 | AI26: 19020 | AJ26: 6 | AK26: 90 | AL26: 1080 | AN26: 20100 | AP26: 78172 | AR26: 1990 | AS26: 1512 | AT26: 1388 | AU26: 978 | AW26: 5426 | AX26: 4122 | AY26: 3785 | AZ26: 8000 | BA26: 3778 | BB26: 2870 | BC26: 2636 | BD26: 1857 | BE26: 9857 | BG26: 0 | BH26: 0 | BJ26: 3009 | BK26: 2286 | BL26: 2100 | BM26: 1479 | BO26: 90486 | BV26: 90486 | BX26: 4439 | BZ26: 278 | CA26: 0 | CB26: 0 | CC26: 56 | CE26: 1080 | CF26: 0 | CG26: 0 | CH26: 648 | CI26: 0 | CJ26: 0 | CK26: 0 | CL26: 0 | CM26: 648 | CO26: 810 | CP26: 0 | CQ26: 0 | CR26: 162 | CT26: 5305 | CX26: 5305 | CZ26: 17634 | DA26: 19020 | DB26: 1386 | DD26: 81820 | DE26: 90486 | DF26: 8666 | DH26: 2280 | DI26: 1080 | DJ26: -1200 | DL26: 11061 | DM26: 5305 | DN26: -5756 | DP26: 19914 | DQ26: 20100 | DR26: 186 | DS26: 92881 | DT26: 95791 | DU26: 2910 | DV26: 2010 | DW26: 8820 | DX26: 5880 | DY26: 5400 | EA26: 20100 | EC26: 82611 | ED26: 2010 | EE26: 2268 | EF26: 1512 | EG26: 1388 | EH26: 1034 | EJ26: 6506 | EK26: 4122 | EL26: 3785 | EM26: 8648 | EN26: 3778 | EO26: 2870 | EP26: 2636 | EQ26: 1857 | ER26: 10505 | ET26: 0 | EU26: 0 | EW26: 3819 | EX26: 2286 | EY26: 2100 | EZ26: 1641 | FB26: 95791 | FD26: 0 | FE26: 0 | FF26: 0 | FG26: 0 | FJ26: 95791 | FL26: 95791
B27: Griffe Field Primary School | C27: E203301 | D27: 2002 | E27: M | F27: 52 | G27: 30 | H27: 6300 | I27: 0 | K27: 42 | L27: 630 | M27: 7560 | N27: 0 | O27: 0 | P27: 0 | Q27: 7560 | R27: 30 | S27: 450 | T27: 6300 | U27: 0 | V27: 0 | W27: 0 | X27: 6300 | Y27: 36 | Z27: 540 | AA27: 6480 | AB27: 0 | AC27: 0 | AD27: 0 | AE27: 6480 | AG27: 108 | AH27: 1620 | AI27: 20340 | AJ27: 0 | AK27: 0 | AL27: 0 | AN27: 20340 | AP27: 83597 | AR27: 474 | AS27: 395 | AT27: 406 | AU27: 255 | AW27: 127 | AX27: 106 | AY27: 109 | AZ27: 205 | BA27: 119 | BB27: 100 | BC27: 102 | BD27: 64 | BE27: 269 | BG27: 0 | BH27: 0 | BJ27: 2176 | BK27: 1813 | BL27: 1865 | BM27: 1171 | BO27: 85292 | BV27: 85292 | BX27: 0 | BZ27: 0 | CA27: 0 | CB27: 0 | CC27: 0 | CE27: 0 | CF27: 0 | CG27: 0 | CH27: 0 | CI27: 0 | CJ27: 0 | CK27: 0 | CL27: 0 | CM27: 0 | CO27: 0 | CP27: 0 | CQ27: 0 | CR27: 0 | CT27: 0 | CX27: 0 | CZ27: 23580 | DA27: 20340 | DB27: -3240 | DD27: 97436 | DE27: 85292 | DF27: -12144 | DH27: 0 | DI27: 0 | DJ27: 0 | DL27: 0 | DM27: 0 | DN27: 0 | DP27: 23580 | DQ27: 20340 | DR27: -3240 | DS27: 97436 | DT27: 85292 | DU27: -12144 | DV27: 2002 | DW27: 7560 | DX27: 6300 | DY27: 6480 | EA27: 20340 | EC27: 83597.4 | ED27: 2002 | EE27: 474 | EF27: 395 | EG27: 406 | EH27: 255 | EJ27: 127 | EK27: 106 | EL27: 109 | EM27: 205 | EN27: 119 | EO27: 100 | EP27: 102 | EQ27: 64 | ER27: 269 | ET27: 0 | EU27: 0 | EW27: 2176 | EX27: 1813 | EY27: 1865 | EZ27: 1171 | FB27: 85292.4 | FD27: 0 | FE27: 0 | FF27: 0 | FG27: 0 | FJ27: 85292.4 | FL27: 85292
B28: Hardwick Primary School | C28: E203401 | D28: 3544 | E28: M | F28: 60 | G28: 50 | H28: 10500 | I28: 0 | K28: 60 | L28: 900 | M28: 10800 | N28: 1 | O28: 15 | P28: 180 | Q28: 10980 | R28: 40 | S28: 600 | T28: 8400 | U28: 0 | V28: 0 | W28: 0 | X28: 8400 | Y28: 50 | Z28: 750 | AA28: 9000 | AB28: 0 | AC28: 0 | AD28: 0 | AE28: 9000 | AG28: 150 | AH28: 2250 | AI28: 28200 | AJ28: 1 | AK28: 15 | AL28: 180 | AN28: 28380 | AP28: 115902 | AR28: 2283 | AS28: 1776 | AT28: 1903 | AU28: 1192 | AW28: 9503 | AX28: 7391 | AY28: 7919 | AZ28: 14888 | BA28: 3742 | BB28: 2911 | BC28: 3119 | BD28: 1954 | BE28: 16842 | BG28: 0 | BH28: 0 | BJ28: 9675 | BK28: 7525 | BL28: 8062 | BM28: 5052 | BO28: 138988 | BV28: 138988 | BX28: 740 | BZ28: 0 | CA28: 0 | CB28: 0 | CC28: 0 | CE28: 0 | CF28: 0 | CG28: 0 | CH28: 0 | CI28: 0 | CJ28: 0 | CK28: 0 | CL28: 0 | CM28: 0 | CO28: 0 | CP28: 0 | CQ28: 0 | CR28: 0 | CT28: 740 | CX28: 740 | CZ28: 31380 | DA28: 28200 | DB28: -3180 | DD28: 152081 | DE28: 138988 | DF28: -13093 | DH28: 0 | DI28: 180 | DJ28: 180 | DL28: 0 | DM28: 740 | DN28: 740 | DP28: 31380 | DQ28: 28380 | DR28: -3000 | DS28: 152081 | DT28: 139728 | DU28: -12353 | DV28: 3544 | DW28: 10980 | DX28: 8400 | DY28: 9000 | EA28: 28380 | EC28: 116641.8 | ED28: 3544 | EE28: 2283 | EF28: 1776 | EG28: 1903 | EH28: 1192 | EJ28: 9503 | EK28: 7391 | EL28: 7919 | EM28: 14888 | EN28: 3742 | EO28: 2911 | EP28: 3119 | EQ28: 1954 | ER28: 16842 | ET28: 0 | EU28: 0 | EW28: 9675 | EX28: 7525 | EY28: 8062 | EZ28: 5052 | FB28: 139727.8 | FD28: 0 | FE28: 0 | FF28: 0 | FG28: 0 | FJ28: 139727.8 | FL28: 139728
B29: Harrington Nursery | C29: E100401 | D29: 1008 | E29: S | F29: 80 | G29: 67 | H29: 14070 | I29: 840 | K29: 75 | L29: 1125 | M29: 13500 | N29: 5 | O29: 75 | P29: 900 | Q29: 14400 | R29: 75 | S29: 1125 | T29: 15750 | U29: 4 | V29: 60 | W29: 840 | X29: 16590 | Y29: 75 | Z29: 1125 | AA29: 13500 | AB29: 5 | AC29: 75 | AD29: 900 | AE29: 14400 | AG29: 225 | AH29: 3375 | AI29: 42750 | AJ29: 14 | AK29: 210 | AL29: 2640 | AN29: 45390 | AP29: 175703 | AR29: 2801 | AS29: 3268 | AT29: 2801 | AU29: 1774 | AW29: 11223 | AX29: 13093 | AY29: 11223 | AZ29: 21323 | BA29: 3221 | BB29: 3758 | BC29: 3221 | BD29: 2040 | BE29: =23363 -> 23363 | BG29: 1 | BH29: 100000 | BJ29: 7935 | BK29: 9258 | BL29: 7935 | BM29: 5026 | BO29: 305866 | BR29: 63698 | BT29: 5267 | BV29: 374831 | BX29: 10850 | BZ29: 110 | CA29: 103 | CB29: 110 | CC29: 65 | CE29: 225 | CF29: 210 | CG29: 225 | CH29: 396 | CI29: 225 | CJ29: 210 | CK29: 225 | CL29: 132 | CM29: 528 | CO29: 225 | CP29: 210 | CQ29: 225 | CR29: 132 | CT29: 11575 | CV29: 3934 | CX29: 15509 | CZ29: 42870 | DA29: 42750 | DB29: -120 | DD29: 375171 | DE29: 374831 | DF29: -340 | DH29: 2280 | DI29: 2640 | DJ29: 360 | DL29: 13395 | DM29: 15509 | DN29: 2114 | DP29: 45150 | DQ29: 45390 | DR29: 240 | DS29: 388566 | DT29: 390340 | DU29: 1774 | DV29: 1008 | DW29: 14400 | DX29: 16590 | DY29: 14400 | EA29: 45390 | EC29: 186552.9 | ED29: 1008 | EE29: 2911 | EF29: 3371 | EG29: 2911 | EH29: 1839 | EJ29: 11448 | EK29: 13303 | EL29: =AY29+CG29+2 -> 11450 | EM29: =AZ29+CH29 -> 21719 | EN29: 3446 | EO29: 3968 | EP29: 3446 | EQ29: 2172 | ER29: =BE29+CM29 -> 23891 | ET29: 1 | EU29: 100000 | EW29: 8160 | EX29: 9468 | EY29: 8160 | EZ29: 5158 | FB29: 317440.9 | FD29: 0 | FE29: =EA29*FE$4 -> 67631.1 | FF29: 0 | FG29: 5267 | FJ29: 390339 | FL29: 390340
B30: Homefields Primary | C30: E203501 | D30: 2006 | E30: M | F30: 44 | G30: 41 | H30: 8407 | I30: 2352 | K30: 42 | L30: 613.5 | M30: 7362 | N30: 20 | O30: 182.5 | P30: 2190 | Q30: 9552 | R30: 41 | S30: 600.5 | T30: 8407 | U30: 16 | V30: 168 | W30: 2352 | X30: 10759 | Y30: 42 | Z30: 613.5 | AA30: 7362 | AB30: 20 | AC30: 182.5 | AD30: 2190 | AE30: 9552 | AG30: 125 | AH30: 1827.5 | AI30: 23131 | AJ30: 56 | AK30: 533 | AL30: 6732 | AN30: 29863 | AP30: 95068 | AR30: 639 | AS30: 730 | AT30: 639 | AU30: 402 | AW30: 192 | AX30: 219 | AY30: 192 | AZ30: 362 | BA30: 847 | BB30: 967 | BC30: 847 | BD30: 532 | BE30: 894 | BG30: 0 | BH30: 0 | BJ30: 1715 | BK30: 1958 | BL30: 1715 | BM30: 1078 | BO30: 97442 | BV30: 97442 | BX30: 27669 | BZ30: 197 | CA30: 212 | CB30: 197 | CC30: 121 | CE30: 0 | CF30: 0 | CG30: 0 | CH30: 0 | CI30: 391 | CJ30: 420 | CK30: 391 | CL30: 240 | CM30: 240 | CO30: 0 | CP30: 0 | CQ30: 0 | CR30: 0 | CT30: 28030 | CX30: 28030 | CZ30: 24751 | DA30: 23131 | DB30: -1620 | DD30: 102532 | DE30: 97442 | DF30: -5090 | DH30: 6384 | DI30: 6732 | DJ30: 348 | DL30: 26198 | DM30: 28030 | DN30: 1832 | DP30: 31135 | DQ30: 29863 | DR30: -1272 | DS30: 128730 | DT30: 125472 | DU30: -3258 | DV30: 2006 | DW30: 9552 | DX30: 10759 | DY30: 9552 | EA30: 29863 | EC30: 122736.93 | ED30: 2006 | EE30: 836 | EF30: 942 | EG30: 836 | EH30: 523 | EJ30: 192 | EK30: 219 | EL30: 192 | EM30: 362 | EN30: 1238 | EO30: 1387 | EP30: 1238 | EQ30: 772 | ER30: 1134 | ET30: 0 | EU30: 0 | EW30: 1715 | EX30: 1958 | EY30: 1715 | EZ30: 1078 | FB30: 125471.93 | FD30: 0 | FE30: 0 | FF30: 0 | FG30: 0 | FJ30: 125471.93 | FL30: 125472
B31: Lakeside Community Primary School | C31: E203601 | D31: 2434 | E31: M | F31: 104 | G31: 58 | H31: 12033 | I31: 2086 | K31: 90 | L31: 1350 | M31: 16200 | N31: 17 | O31: 255 | P31: 3060 | Q31: 19260 | R31: 60 | S31: 900 | T31: 12600 | U31: 10 | V31: 150 | W31: 2100 | X31: 14700 | Y31: 80 | Z31: 1200 | AA31: 14400 | AB31: 12 | AC31: 180 | AD31: 2160 | AE31: 16560 | AG31: 230 | AH31: 3450 | AI31: 43200 | AJ31: 39 | AK31: 585 | AL31: 7320 | AN31: 50520 | AP31: 177552 | AR31: 4147 | AS31: 3226 | AT31: 3686 | AU31: 2212 | AW31: 8014 | AX31: 6233 | AY31: 7124 | AZ31: 12823 | BA31: 7703 | BB31: 5991 | BC31: 6847 | BD31: 4108 | BE31: 16931 | BG31: 0 | BH31: 0 | BJ31: 2137 | BK31: 1662 | BL31: 1899 | BM31: 1140 | BO31: 197835 | BV31: 197835 | BX31: 30085 | BZ31: 789 | CA31: 542 | CB31: 557 | CC31: 378 | CE31: 1047 | CF31: 719 | CG31: 739 | CH31: 1503 | CI31: 2013 | CJ31: 1381 | CK31: 1421 | CL31: 963 | CM31: 2466 | CO31: 0 | CP31: 0 | CQ31: 0 | CR31: 0 | CT31: 32929 | CX31: 32929 | CZ31: 45333 | DA31: 43200 | DB31: -2133 | DD31: 204844 | DE31: 197835 | DF31: -7009 | DH31: 5662 | DI31: 7320 | DJ31: 1658 | DL31: 25129 | DM31: 32929 | DN31: 7800 | DP31: 50995 | DQ31: 50520 | DR31: -475 | DS31: 229973 | DT31: 230764 | DU31: 791 | DV31: 2434 | DW31: 19260 | DX31: 14700 | DY31: 16560 | EA31: 50520 | EC31: 207637.2 | ED31: 2434 | EE31: 4936 | EF31: 3768 | EG31: 4243 | EH31: 2590 | EJ31: 9061 | EK31: 6952 | EL31: 7863 | EM31: 14326 | EN31: 9716 | EO31: 7372 | EP31: 8268 | EQ31: 5071 | ER31: 19397 | ET31: 0 | EU31: 0 | EW31: 2137 | EX31: 1662 | EY31: 1899 | EZ31: 1140 | FB31: 230764.2 | FD31: 0 | FE31: 0 | FF31: 0 | FG31: 0 | FJ31: 230764.2 | FL31: 230764
B32: Lord St Nursery | C32: E100501 | D32: 1005 | E32: S | F32: 104 | G32: 58 | H32: 12180 | I32: 1025.5 | K32: 100 | L32: 1500 | M32: 18000 | N32: 6 | O32: 90 | P32: 1080 | Q32: 19080 | R32: 60 | S32: 900 | T32: 12600 | U32: 5 | V32: 75 | W32: 1050 | X32: 13650 | Y32: 85 | Z32: 1275 | AA32: 15300 | AB32: 5 | AC32: 75 | AD32: 900 | AE32: 16200 | AG32: 245 | AH32: 3675 | AI32: 45900 | AJ32: 16 | AK32: 240 | AL32: 3030 | AN32: 48930 | AP32: 188649 | AR32: 4374 | AS32: 3062 | AT32: 3718 | AU32: 2231 | AW32: 15129 | AX32: 10590 | AY32: 12860 | AZ32: 23147 | BA32: 4093 | BB32: 2865 | BC32: 3479 | BD32: 2087 | BE32: 25234 | BG32: 1 | BH32: 100000 | BJ32: 4205 | BK32: 2943 | BL32: 3574 | BM32: 2144 | BO32: 318258 | BQ32: 0 | BR32: 68391 | BT32: 14813 | BV32: 401462 | BX32: 12453 | BZ32: 278 | CA32: 271 | CB32: 232 | CC32: 156 | CE32: 1080 | CF32: 1050 | CG32: 900 | CH32: 1818 | CI32: 0 | CJ32: 0 | CK32: 0 | CL32: 0 | CM32: 1818 | CO32: 0 | CP32: 0 | CQ32: 0 | CR32: 0 | CT32: 14427 | CV32: 4515 | CX32: 18942 | CZ32: 49440 | DA32: 45900 | DB32: -3540 | DD32: 422864 | DE32: 401462 | DF32: -21402 | DH32: 2784 | DI32: 3030 | DJ32: 246 | DL32: 17401 | DM32: 18942 | DN32: 1541 | DP32: 52224 | DQ32: 48930 | DR32: -3294 | DS32: 440265 | DT32: 420404 | DU32: -19861 | DV32: 1005 | DW32: 19080 | DX32: 13650 | DY32: 16200 | EA32: 48930 | EC32: 201102.3 | ED32: 1005 | EE32: 4652 | EF32: 3333 | EG32: 3950 | EH32: 2387 | EJ32: 16209 | EK32: 11640 | EL32: 13760 | EM32: 24965 | EN32: 4093 | EO32: 2865 | EP32: 3479 | EQ32: 2087 | ER32: 27052 | ET32: 1 | EU32: 100000 | EW32: 4205 | EX32: 2943 | EY32: 3574 | EZ32: 2144 | FB32: 332685.3 | FD32: 0 | FE32: =EA32*FE$4 -> 72905.7 | FF32: 0 | FG32: 14813 | FJ32: 420404 | FL32: 420404
B33: Meadow Farm Community Primary School | C33: E203901 | D33: 2452 | E33: M | F33: 26 | G33: 23 | H33: 4830 | I33: 1890 | K33: 22 | L33: 330 | M33: 3960 | N33: 19 | O33: 285 | P33: 3420 | Q33: 7380 | R33: 6 | S33: 90 | T33: 1260 | U33: 10 | V33: 150 | W33: 2100 | X33: 3360 | Y33: 6 | Z33: 90 | AA33: 1080 | AB33: 12 | AC33: 180 | AD33: 2160 | AE33: 3240 | AG33: 34 | AH33: 510 | AI33: 6300 | AJ33: 41 | AK33: 615 | AL33: 7680 | AN33: 13980 | AP33: 25893 | AR33: 572 | AS33: 182 | AT33: 156 | AU33: 182 | AW33: 1618 | AX33: 515 | AY33: 441 | AZ33: 1544 | BA33: 722 | BB33: 230 | BC33: 197 | BD33: 230 | BE33: 1774 | BG33: 0 | BH33: 0 | BJ33: 782 | BK33: 249 | BL33: 213 | BM33: 249 | BO33: 28098 | BV33: 28098 | BX33: 31565 | BZ33: 445 | CA33: 273 | CB33: 281 | CC33: 200 | CE33: 760 | CF33: 467 | CG33: 480 | CH33: 1024 | CI33: 0 | CJ33: 0 | CK33: 0 | CL33: 0 | CM33: 1024 | CO33: 0 | CP33: 0 | CQ33: 0 | CR33: 0 | CT33: 32789 | CX33: 32789 | CZ33: 13650 | DA33: 6300 | DB33: -7350 | DD33: 60045 | DE33: 28098 | DF33: -31947 | DH33: 5130 | DI33: 7680 | DJ33: 2550 | DL33: 21595 | DM33: 32789 | DN33: 11194 | DP33: 18780 | DQ33: 13980 | DR33: -4800 | DS33: 81640 | DT33: 60887 | DU33: -20753 | DV33: 2452 | DW33: 7380 | DX33: 3360 | DY33: 3240 | EA33: 13980 | EC33: 57457.8 | ED33: 2452 | EE33: 1017 | EF33: 455 | EG33: 437 | EH33: 382 | EJ33: 2378 | EK33: 982 | EL33: 921 | EM33: 2568 | EN33: 722 | EO33: 230 | EP33: 197 | EQ33: 230 | ER33: 2798 | ET33: 0 | EU33: 0 | EW33: 782 | EX33: 249 | EY33: 213 | EZ33: 249 | FB33: 60886.8 | FD33: 0 | FE33: 0 | FF33: 0 | FG33: 0 | FJ33: 60886.8 | FL33: 60887
B34: Osmaston Primary School | C34: E204201 | D34: 2420 | E34: M | F34: 84 | G34: 36 | H34: 7560 | I34: 0 | K34: 72 | L34: 1080 | M34: 12960 | N34: 0 | O34: 0 | P34: 0 | Q34: 12960 | R34: 49 | S34: 735 | T34: 10290 | U34: 0 | V34: 0 | W34: 0 | X34: 10290 | Y34: 61 | Z34: 915 | AA34: 10980 | AB34: 0 | AC34: 0 | AD34: 0 | AE34: 10980 | AG34: 182 | AH34: 2730 | AI34: 34230 | AJ34: 0 | AK34: 0 | AL34: 0 | AN34: 34230 | AP34: 140685 | AR34: 3469 | AS34: 2755 | AT34: 2939 | AU34: 1833 | AW34: 11400 | AX34: 9051 | AY34: 9658 | AZ34: 18065 | BA34: 3000 | BB34: 2382 | BC34: 2542 | BD34: 1585 | BE34: 19650 | BG34: 0 | BH34: 0 | BJ34: 3850 | BK34: 3057 | BL34: 3262 | BM34: 2034 | BO34: 164202 | BV34: 164202 | BX34: 0 | BZ34: 0 | CA34: 0 | CB34: 0 | CC34: 0 | CE34: 0 | CF34: 0 | CG34: 0 | CH34: 0 | CI34: 0 | CJ34: 0 | CK34: 0 | CL34: 0 | CM34: 0 | CO34: 0 | CP34: 0 | CQ34: 0 | CR34: 0 | CT34: 0 | CX34: 0 | CZ34: 34560 | DA34: 34230 | DB34: -330 | DD34: 163558 | DE34: 164202 | DF34: 644 | DH34: 0 | DI34: 0 | DJ34: 0 | DL34: 0 | DM34: 0 | DN34: 0 | DP34: 34560 | DQ34: 34230 | DR34: -330 | DS34: 163558 | DT34: 164202 | DU34: 644 | DV34: 2420 | DW34: 12960 | DX34: 10290 | DY34: 10980 | EA34: 34230 | EC34: 140685.3 | ED34: 2420 | EE34: 3469 | EF34: 2755 | EG34: 2939 | EH34: 1833 | EJ34: 11400 | EK34: 9051 | EL34: 9658 | EM34: 18065 | EN34: 3000 | EO34: 2382 | EP34: 2542 | EQ34: 1585 | ER34: 19650 | ET34: 0 | EU34: 0 | EW34: 3850 | EX34: 3057 | EY34: 3262 | EZ34: 2034 | FB34: 164202.3 | FD34: 0 | FE34: 0 | FF34: 0 | FG34: 0 | FJ34: 164202.3 | FL34: 164202
B35: Oakwood Infant School | C35: E204701 | D35: 2473 | E35: M | F35: 78 | G35: 68 | H35: 14238 | I35: 0 | K35: 78 | L35: 1170 | M35: 14040 | N35: 0 | O35: 0 | P35: 0 | Q35: 14040 | R35: 78 | S35: 1170 | T35: 16380 | U35: 0 | V35: 0 | W35: 0 | X35: 16380 | Y35: 78 | Z35: 1170 | AA35: 14040 | AB35: 0 | AC35: 0 | AD35: 0 | AE35: 14040 | AG35: 234 | AH35: 3510 | AI35: 44460 | AJ35: 0 | AK35: 0 | AL35: 0 | AN35: 44460 | AP35: 182731 | AR35: 3231 | AS35: 3769 | AT35: 3231 | AU35: 2046 | AW35: 6429 | AX35: 7500 | AY35: 6429 | AZ35: 12215 | BA35: 5341 | BB35: 6231 | BC35: 5341 | BD35: 3383 | BE35: 15598 | BG35: 0 | BH35: 0 | BJ35: 531 | BK35: 619 | BL35: 531 | BM35: 336 | BO35: 200711 | BV35: 200711 | BX35: 0 | BZ35: 0 | CA35: 0 | CB35: 0 | CC35: 0 | CE35: 0 | CF35: 0 | CG35: 0 | CH35: 0 | CI35: 0 | CJ35: 0 | CK35: 0 | CL35: 0 | CM35: 0 | CO35: 0 | CP35: 0 | CQ35: 0 | CR35: 0 | CT35: 0 | CX35: 0 | CZ35: 42138 | DA35: 44460 | DB35: 2322 | DD35: 187701 | DE35: 200711 | DF35: 13010 | DH35: 0 | DI35: 0 | DJ35: 0 | DL35: 0 | DM35: 0 | DN35: 0 | DP35: 42138 | DQ35: 44460 | DR35: 2322 | DS35: 187701 | DT35: 200711 | DU35: 13010 | DV35: 2473 | DW35: 14040 | DX35: 16380 | DY35: 14040 | EA35: 44460 | EC35: 182730.6 | ED35: 2473 | EE35: 3231 | EF35: 3769 | EG35: 3231 | EH35: 2046 | EJ35: 6429 | EK35: 7500 | EL35: 6429 | EM35: 12215 | EN35: 5341 | EO35: 6231 | EP35: 5341 | EQ35: 3383 | ER35: 15598 | ET35: 0 | EU35: 0 | EW35: 531 | EX35: 619 | EY35: 531 | EZ35: 336 | FB35: 200710.6 | FD35: 0 | FE35: 0 | FF35: 0 | FG35: 0 | FJ35: 200710.6 | FL35: 200711
B36: Parkview Primary School | C36: E204901 | D36: 2003 | E36: M | F36: 52 | G36: 30 | H36: 6300 | I36: 112 | K36: 39 | L36: 585 | M36: 7020 | N36: 0 | O36: 0 | P36: 0 | Q36: 7020 | R36: 30 | S36: 450 | T36: 6300 | U36: 0 | V36: 0 | W36: 0 | X36: 6300 | Y36: 37 | Z36: 555 | AA36: 6660 | AB36: 0 | AC36: 0 | AD36: 0 | AE36: 6660 | AG36: 106 | AH36: 1590 | AI36: 19980 | AJ36: 0 | AK36: 0 | AL36: 0 | AN36: 19980 | AP36: 82118 | AR36: 637 | AS36: 571 | AT36: 604 | AU36: 362 | AW36: 538 | AX36: 483 | AY36: 510 | AZ36: 919 | BA36: 166 | BB36: 149 | BC36: 157 | BD36: 94 | BE36: 1013 | BG36: 0 | BH36: 0 | BJ36: 204 | BK36: 183 | BL36: 193 | BM36: 116 | BO36: 83609 | BV36: 83609 | BX36: 0 | BZ36: 0 | CA36: 0 | CB36: 0 | CC36: 0 | CE36: 0 | CF36: 0 | CG36: 0 | CH36: 0 | CI36: 0 | CJ36: 0 | CK36: 0 | CL36: 0 | CM36: 0 | CO36: 0 | CP36: 0 | CQ36: 0 | CR36: 0 | CT36: 0 | CX36: 0 | CZ36: 23076 | DA36: 19980 | DB36: -3096 | DD36: 94481 | DE36: 83609 | DF36: -10872 | DH36: 304 | DI36: 0 | DJ36: -304 | DL36: 1238 | DM36: 0 | DN36: -1238 | DP36: 23380 | DQ36: 19980 | DR36: -3400 | DS36: 95719 | DT36: 83609 | DU36: -12110 | DV36: 2003 | DW36: 7020 | DX36: 6300 | DY36: 6660 | EA36: 19980 | EC36: 82117.8 | ED36: 2003 | EE36: 637 | EF36: 571 | EG36: 604 | EH36: 362 | EJ36: 538 | EK36: 483 | EL36: 510 | EM36: 919 | EN36: 166 | EO36: 149 | EP36: 157 | EQ36: 94 | ER36: 1013 | ET36: 0 | EU36: 0 | EW36: 204 | EX36: 183 | EY36: 193 | EZ36: 116 | FB36: 83608.8 | FD36: 0 | FE36: 0 | FF36: 0 | FG36: 0 | FJ36: 83608.8 | FL36: 83609
B37: Ravensdale Infant and Nursery School | C37: E205401 | D37: 2462 | E37: M | F37: 52 | G37: 24 | H37: 5040 | I37: 0 | K37: 35 | L37: 525 | M37: 6300 | N37: 0 | O37: 0 | P37: 0 | Q37: 6300 | R37: 25 | S37: 375 | T37: 5250 | U37: 0 | V37: 0 | W37: 0 | X37: 5250 | Y37: 30 | Z37: 450 | AA37: 5400 | AB37: 0 | AC37: 0 | AD37: 0 | AE37: 5400 | AG37: 90 | AH37: 1350 | AI37: 16950 | AJ37: 0 | AK37: 0 | AL37: 0 | AN37: 16950 | AP37: 69665 | AR37: 530 | AS37: 442 | AT37: 455 | AU37: 285 | AW37: 501 | AX37: 418 | AY37: 430 | AZ37: 809 | BA37: 1215 | BB37: 1013 | BC37: 1042 | BD37: 654 | BE37: 1463 | BG37: 0 | BH37: 0 | BJ37: 738 | BK37: 615 | BL37: 633 | BM37: 397 | BO37: 71810 | BV37: 71810 | BX37: 0 | BZ37: 0 | CA37: 0 | CB37: 0 | CC37: 0 | CE37: 0 | CF37: 0 | CG37: 0 | CH37: 0 | CI37: 0 | CJ37: 0 | CK37: 0 | CL37: 0 | CM37: 0 | CO37: 0 | CP37: 0 | CQ37: 0 | CR37: 0 | CT37: 0 | CX37: 0 | CZ37: 23040 | DA37: 16950 | DB37: -6090 | DD37: 96327 | DE37: 71810 | DF37: -24517 | DH37: 0 | DI37: 0 | DJ37: 0 | DL37: 0 | DM37: 0 | DN37: 0 | DP37: 23040 | DQ37: 16950 | DR37: -6090 | DS37: 96327 | DT37: 71810 | DU37: -24517 | DV37: 2462 | DW37: 6300 | DX37: 5250 | DY37: 5400 | EA37: 16950 | EC37: 69664.5 | ED37: 2462 | EE37: 530 | EF37: 442 | EG37: 455 | EH37: 285 | EJ37: 501 | EK37: 418 | EL37: 430 | EM37: 809 | EN37: 1215 | EO37: 1013 | EP37: 1042 | EQ37: 654 | ER37: 1463 | ET37: 0 | EU37: 0 | EW37: 738 | EX37: 615 | EY37: 633 | EZ37: 397 | FB37: 71809.5 | FD37: 0 | FE37: 0 | FF37: 0 | FG37: 0 | FJ37: 71809.5 | FL37: 71810
B38: Redwood Primary School | C38: E205601 | D38: 2505 | E38: M | F38: 70 | G38: 37 | H38: 7770 | I38: 2100 | K38: 90 | L38: 1350 | M38: 16200 | N38: 15 | O38: 225 | P38: 2700 | Q38: 18900 | R38: 40 | S38: 600 | T38: 8400 | U38: 5 | V38: 75 | W38: 1050 | X38: 9450 | Y38: 50 | Z38: 750 | AA38: 9000 | AB38: 10 | AC38: 150 | AD38: 1800 | AE38: 10800 | AG38: 180 | AH38: 2700 | AI38: 33600 | AJ38: 30 | AK38: 450 | AL38: 5550 | AN38: 39150 | AP38: 138096 | AR38: 4191 | AS38: 2173 | AT38: 2328 | AU38: 1738 | AW38: 8497 | AX38: 4406 | AY38: 4721 | AZ38: 10574 | BA38: 3880 | BB38: 2012 | BC38: 2156 | BD38: 1610 | BE38: 12184 | BG38: 0 | BH38: 0 | BJ38: 6707 | BK38: 3478 | BL38: 3726 | BM38: 2782 | BO38: 154800 | BV38: 154800 | BX38: 22811 | BZ38: 729 | CA38: 284 | CB38: 486 | CC38: 300 | CE38: 1080 | CF38: 420 | CG38: 720 | CH38: 1332 | CI38: 0 | CJ38: 0 | CK38: 0 | CL38: 0 | CM38: 1332 | CO38: 1080 | CP38: 420 | CQ38: 720 | CR38: 444 | CT38: 24887 | CX38: 24887 | CZ38: 33690 | DA38: 33600 | DB38: -90 | DD38: 152489 | DE38: 154800 | DF38: 2311 | DH38: 5700 | DI38: 5550 | DJ38: -150 | DL38: 25216 | DM38: 24887 | DN38: -329 | DP38: 39390 | DQ38: 39150 | DR38: -240 | DS38: 177705 | DT38: 179687 | DU38: 1982 | DV38: 2505 | DW38: 18900 | DX38: 9450 | DY38: 10800 | EA38: 39150 | EC38: 160906.5 | ED38: 2505 | EE38: 4920 | EF38: 2457 | EG38: 2814 | EH38: 2038 | EJ38: 9577 | EK38: 4826 | EL38: 5441 | EM38: 11906 | EN38: 3880 | EO38: 2012 | EP38: 2156 | EQ38: 1610 | ER38: 13516 | ET38: 0 | EU38: 0 | EW38: 7787 | EX38: 3898 | EY38: 4446 | EZ38: 3226 | FB38: 179686.5 | FD38: 0 | FE38: 0 | FF38: 0 | FG38: 0 | FJ38: 179686.5 | FL38: 179687
B39: Reigate Primary School | C39: E205801 | D39: 2000 | E39: M | F39: 24 | G39: 15 | H39: 3150 | I39: 840 | K39: 32 | L39: 480 | M39: 5760 | N39: 4 | O39: 60 | P39: 720 | Q39: 6480 | R39: 30 | S39: 450 | T39: 6300 | U39: 0 | V39: 0 | W39: 0 | X39: 6300 | Y39: 32 | Z39: 480 | AA39: 5760 | AB39: 0 | AC39: 0 | AD39: 0 | AE39: 5760 | AG39: 94 | AH39: 1410 | AI39: 17820 | AJ39: 4 | AK39: 60 | AL39: 720 | AN39: 18540 | AP39: 73240 | AR39: 1395 | AS39: 1526 | AT39: 1395 | AU39: 863 | AW39: 1256 | AX39: 1373 | AY39: 1256 | AZ39: 2331 | BA39: 3227 | BB39: 3530 | BC39: 3227 | BD39: 1997 | BE39: 4328 | BG39: 0 | BH39: 0 | BJ39: 847 | BK39: 926 | BL39: 847 | BM39: 524 | BO39: 78955 | BV39: 78955 | BX39: 2959 | BZ39: 173 | CA39: 0 | CB39: 0 | CC39: 35 | CE39: 180 | CF39: 0 | CG39: 0 | CH39: 108 | CI39: 540 | CJ39: 0 | CK39: 0 | CL39: 108 | CM39: 216 | CO39: 180 | CP39: 0 | CQ39: 0 | CR39: 36 | CT39: 3246 | CX39: 3246 | CZ39: 10530 | DA39: 17820 | DB39: 7290 | DD39: 46036 | DE39: 78955 | DF39: 32919 | DH39: 2280 | DI39: 720 | DJ39: -1560 | DL39: 10141 | DM39: 3246 | DN39: -6895 | DP39: 12810 | DQ39: 18540 | DR39: 5730 | DS39: 56177 | DT39: 82201 | DU39: 26024 | DV39: 2000 | DW39: 6480 | DX39: 6300 | DY39: 5760 | EA39: 18540 | EC39: 76199.4 | ED39: 2000 | EE39: 1568 | EF39: 1526 | EG39: 1395 | EH39: 898 | EJ39: 1436 | EK39: 1373 | EL39: 1256 | EM39: 2439 | EN39: 3767 | EO39: 3530 | EP39: 3227 | EQ39: 2105 | ER39: 4544 | ET39: 0 | EU39: 0 | EW39: 1027 | EX39: 926 | EY39: 847 | EZ39: 560 | FB39: 82201.4 | FD39: 0 | FE39: 0 | FF39: 0 | FG39: 0 | FJ39: 82201.4 | FL39: 82201
B40: Roe Farm Primary School | C40: E206001 | D40: 2001 | E40: M | F40: 62 | G40: 27 | H40: 5670 | I40: 0 | K40: 64 | L40: 960 | M40: 11520 | N40: 0 | O40: 0 | P40: 0 | Q40: 11520 | R40: 34 | S40: 510 | T40: 7140 | U40: 0 | V40: 0 | W40: 0 | X40: 7140 | Y40: 38 | Z40: 570 | AA40: 6840 | AB40: 0 | AC40: 0 | AD40: 0 | AE40: 6840 | AG40: 136 | AH40: 2040 | AI40: 25500 | AJ40: 0 | AK40: 0 | AL40: 0 | AN40: 25500 | AP40: 104805 | AR40: 2923 | AS40: 1811 | AT40: 1735 | AU40: 1294 | AW40: 6824 | AX40: 4230 | AY40: 4052 | AZ40: 9064 | BA40: 4226 | BB40: 2619 | BC40: 2509 | BD40: 1871 | BE40: 10935 | BG40: 0 | BH40: 0 | BJ40: 1139 | BK40: 706 | BL40: 676 | BM40: 504 | BO40: 117538 | BV40: 117538 | BX40: 0 | BZ40: 0 | CA40: 0 | CB40: 0 | CC40: 0 | CE40: 0 | CF40: 0 | CG40: 0 | CH40: 0 | CI40: 0 | CJ40: 0 | CK40: 0 | CL40: 0 | CM40: 0 | CO40: 0 | CP40: 0 | CQ40: 0 | CR40: 0 | CT40: 0 | CX40: 0 | CZ40: 24750 | DA40: 25500 | DB40: 750 | DD40: 112681 | DE40: 117538 | DF40: 4857 | DH40: 0 | DI40: 0 | DJ40: 0 | DL40: 0 | DM40: 0 | DN40: 0 | DP40: 24750 | DQ40: 25500 | DR40: 750 | DS40: 112681 | DT40: 117538 | DU40: 4857 | DV40: 2001 | DW40: 11520 | DX40: 7140 | DY40: 6840 | EA40: 25500 | EC40: 104805 | ED40: 2001 | EE40: 2923 | EF40: 1811 | EG40: 1735 | EH40: 1294 | EJ40: 6824 | EK40: 4230 | EL40: 4052 | EM40: 9064 | EN40: 4226 | EO40: 2619 | EP40: 2509 | EQ40: 1871 | ER40: 10935 | ET40: 0 | EU40: 0 | EW40: 1139 | EX40: 706 | EY40: 676 | EZ40: 504 | FB40: 117538 | FD40: 0 | FE40: 0 | FF40: 0 | FG40: 0 | FJ40: 117538 | FL40: 117538
B41: Rosehill Infant and Nursery School | C41: E206101 | D41: 2429 | E41: M | F41: 54 | G41: 37 | H41: 7686 | I41: 0 | K41: 52 | L41: 774 | M41: 9288 | N41: 0 | O41: 0 | P41: 0 | Q41: 9288 | R41: 27 | S41: 405 | T41: 5670 | U41: 0 | V41: 0 | W41: 0 | X41: 5670 | Y41: 34 | Z41: 510 | AA41: 6120 | AB41: 0 | AC41: 0 | AD41: 0 | AE41: 6120 | AG41: 113 | AH41: 1689 | AI41: 21078 | AJ41: 0 | AK41: 0 | AL41: 0 | AN41: 21078 | AP41: 86631 | AR41: 1887 | AS41: 1152 | AT41: 1244 | AU41: 857 | AW41: 7936 | AX41: 4844 | AY41: 5229 | AZ41: 10805 | BA41: 5898 | BB41: 3600 | BC41: 3886 | BD41: 2677 | BE41: 13482 | BG41: 0 | BH41: 0 | BJ41: 7396 | BK41: 4515 | BL41: 4873 | BM41: 3357 | BO41: 104327 | BV41: 104327 | BX41: 0 | BZ41: 0 | CA41: 0 | CB41: 0 | CC41: 0 | CE41: 0 | CF41: 0 | CG41: 0 | CH41: 0 | CI41: 0 | CJ41: 0 | CK41: 0 | CL41: 0 | CM41: 0 | CO41: 0 | CP41: 0 | CQ41: 0 | CR41: 0 | CT41: 0 | CX41: 0 | CZ41: 23886 | DA41: 21078 | DB41: -2808 | DD41: 115019 | DE41: 104327 | DF41: -10692 | DH41: 0 | DI41: 0 | DJ41: 0 | DL41: 0 | DM41: 0 | DN41: 0 | DP41: 23886 | DQ41: 21078 | DR41: -2808 | DS41: 115019 | DT41: 104327 | DU41: -10692 | DV41: 2429 | DW41: 9288 | DX41: 5670 | DY41: 6120 | EA41: 21078 | EC41: 86630.58 | ED41: 2429 | EE41: 1887 | EF41: 1152 | EG41: 1244 | EH41: 857 | EJ41: 7936 | EK41: 4844 | EL41: 5229 | EM41: 10805 | EN41: 5898 | EO41: 3600 | EP41: 3886 | EQ41: 2677 | ER41: 13482 | ET41: 0 | EU41: 0 | EW41: 7396 | EX41: 4515 | EY41: 4873 | EZ41: 3357 | FB41: 104326.58 | FD41: 0 | FE41: 0 | FF41: 0 | FG41: 0 | FJ41: 104326.58 | FL41: 104327
B42: Shelton Infant School | C42: E206201 | D42: 2444 | E42: M | F42: 52 | G42: 39 | H42: 8190 | I42: 2319 | K42: 40 | L42: 600 | M42: 7200 | N42: 12 | O42: 180 | P42: 2160 | Q42: 9360 | R42: 40 | S42: 600 | T42: 8400 | U42: 12 | V42: 180 | W42: 2520 | X42: 10920 | Y42: 40 | Z42: 600 | AA42: 7200 | AB42: 12 | AC42: 180 | AD42: 2160 | AE42: 9360 | AG42: 120 | AH42: 1800 | AI42: 22800 | AJ42: 36 | AK42: 540 | AL42: 6840 | AN42: 29640 | AP42: 93708 | AR42: 898 | AS42: 1047 | AT42: 898 | AU42: 569 | AW42: 3290 | AX42: 3839 | AY42: 3290 | AZ42: 6251 | BA42: 1937 | BB42: 2260 | BC42: 1937 | BD42: 1227 | BE42: 7478 | BG42: 0 | BH42: 0 | BJ42: 1031 | BK42: 1203 | BL42: 1031 | BM42: 653 | BO42: 102408 | BV42: 102408 | BX42: 28112 | BZ42: 290 | CA42: 339 | CB42: 290 | CC42: 184 | CE42: 978 | CF42: 1141 | CG42: 978 | CH42: 1858 | CI42: 782 | CJ42: 913 | CK42: 782 | CL42: 495 | CM42: 2353 | CO42: 400 | CP42: 466 | CQ42: 400 | CR42: 253 | CT42: 30902 | CX42: 30902 | CZ42: 26910 | DA42: 22800 | DB42: -4110 | DD42: 119316 | DE42: 102408 | DF42: -16908 | DH42: 6294 | DI42: 6840 | DJ42: 546 | DL42: 28060 | DM42: 30902 | DN42: 2842 | DP42: 33204 | DQ42: 29640 | DR42: -3564 | DS42: 147376 | DT42: 133310 | DU42: -14066 | DV42: 2444 | DW42: 9360 | DX42: 10920 | DY42: 9360 | EA42: 29640 | EC42: 121820.4 | ED42: 2444 | EE42: 1188 | EF42: 1386 | EG42: 1188 | EH42: 753 | EJ42: 4268 | EK42: 4980 | EL42: 4268 | EM42: 8109 | EN42: 2719 | EO42: 3173 | EP42: 2719 | EQ42: 1722 | ER42: 9831 | ET42: 0 | EU42: 0 | EW42: 1431 | EX42: 1669 | EY42: 1431 | EZ42: 906 | FB42: 133310.4 | FD42: 0 | FE42: 0 | FF42: 0 | FG42: 0 | FJ42: 133310.4 | FL42: 133310
B43: Cotton's Farm Primary School | C43: E206501 | D43: 2430 | E43: M | F43: 15 | G43: 8 | H43: 1680 | I43: 210 | K43: 13 | L43: 195 | M43: 2340 | N43: 1 | O43: 15 | P43: 180 | Q43: 2520 | R43: 7 | S43: 105 | T43: 1470 | U43: 0 | V43: 0 | W43: 0 | X43: 1470 | Y43: 10 | Z43: 150 | AA43: 1800 | AB43: 0 | AC43: 0 | AD43: 0 | AE43: 1800 | AG43: 30 | AH43: 450 | AI43: 5610 | AJ43: 1 | AK43: 15 | AL43: 180 | AN43: 5790 | AP43: 23057 | AR43: 601 | AS43: 378 | AT43: 463 | AU43: 288 | AW43: 2212 | AX43: 1390 | AY43: 1702 | AZ43: 3182 | BA43: 2125 | BB43: 1335 | BC43: 1634 | BD43: 1019 | BE43: 4201 | BG43: 0 | BH43: 0 | BJ43: 1662 | BK43: 1044 | BL43: 1278 | BM43: 797 | BO43: 28343 | BV43: 28343 | BX43: 740 | BZ43: 40 | CA43: 0 | CB43: 0 | CC43: 8 | CE43: 180 | CF43: 0 | CG43: 0 | CH43: 108 | CI43: 0 | CJ43: 0 | CK43: 0 | CL43: 0 | CM43: 108 | CO43: 0 | CP43: 0 | CQ43: 0 | CR43: 0 | CT43: 856 | CX43: 856 | CZ43: 6000 | DA43: 5610 | DB43: -390 | DD43: 29193 | DE43: 28343 | DF43: -850 | DH43: 570 | DI43: 180 | DJ43: -390 | DL43: 2676 | DM43: 856 | DN43: -1820 | DP43: 6570 | DQ43: 5790 | DR43: -780 | DS43: 31869 | DT43: 29199 | DU43: -2670 | DV43: 2430 | DW43: 2520 | DX43: 1470 | DY43: 1800 | EA43: 5790 | EC43: 23796.9 | ED43: 2430 | EE43: 641 | EF43: 378 | EG43: 463 | EH43: 296 | EJ43: 2392 | EK43: 1390 | EL43: 1702 | EM43: 3290 | EN43: 2125 | EO43: 1335 | EP43: 1634 | EQ43: 1019 | ER43: 4309 | ET43: 0 | EU43: 0 | EW43: 1662 | EX43: 1044 | EY43: 1278 | EZ43: 797 | FB43: 29198.9 | FD43: 0 | FE43: 0 | FF43: 0 | FG43: 0 | FJ43: 29198.9 | FL43: 29199
B44: St Alban's Catholic Primary School | C44: E206701 | D44: 3543 | E44: M | F44: 43 | G44: 29 | H44: 6090 | I44: 2681 | K44: 50 | L44: 682 | M44: 8184 | N44: 24 | O44: 284 | P44: 3408 | Q44: 11592 | R44: 30 | S44: 450 | T44: 6300 | U44: 15 | V44: 225 | W44: 3150 | X44: 9450 | Y44: 40 | Z44: 600 | AA44: 7200 | AB44: 20 | AC44: 300 | AD44: 3600 | AE44: 10800 | AG44: 120 | AH44: 1732 | AI44: 21684 | AJ44: 59 | AK44: 809 | AL44: 10158 | AN44: 31842 | AP44: 89121 | AR44: 1325 | AS44: 1020 | AT44: 1166 | AU44: 702 | AW44: 2287 | AX44: 1761 | AY44: 2012 | AZ44: 3636 | BA44: 2200 | BB44: 1693 | BC44: 1935 | BD44: 1166 | BE44: 4802 | BG44: 0 | BH44: 0 | BJ44: 1886 | BK44: 1452 | BL44: 1660 | BM44: 1000 | BO44: 95625 | BV44: 95625 | BX44: 41749 | BZ44: 609 | CA44: 563 | CB44: 643 | CC44: 363 | CE44: 1215 | CF44: 1123 | CG44: 1283 | CH44: 2173 | CI44: 619 | CJ44: 572 | CK44: 653 | CL44: 369 | CM44: 2542 | CO44: 1005 | CP44: 929 | CQ44: 1062 | CR44: 599 | CT44: 45253 | CX44: 45253 | CZ44: 18330 | DA44: 21684 | DB44: 3354 | DD44: 79661 | DE44: 95625 | DF44: 15964 | DH44: 7277 | DI44: 10158 | DJ44: 2881 | DL44: 31982 | DM44: 45253 | DN44: 13271 | DP44: 25607 | DQ44: 31842 | DR44: 6235 | DS44: 111643 | DT44: 140878 | DU44: 29235 | DV44: 3543 | DW44: 11592 | DX44: 9450 | DY44: 10800 | EA44: 31842 | EC44: 130870.62 | ED44: 3543 | EE44: 1934 | EF44: 1583 | EG44: 1809 | EH44: 1065 | EJ44: 3502 | EK44: 2884 | EL44: 3295 | EM44: 5809 | EN44: 2819 | EO44: 2265 | EP44: 2588 | EQ44: 1535 | ER44: 7344 | ET44: 0 | EU44: 0 | EW44: 2891 | EX44: 2381 | EY44: 2722 | EZ44: 1599 | FB44: 140878.62 | FD44: 0 | FE44: 0 | FF44: 0 | FG44: 0 | FJ44: 140878.62 | FL44: 140878
B45: St Chad's Church of England (Controlled) Nursery and Infant School | C45: E206801 | D45: 3158 | E45: M | F45: 47 | G45: 18 | H45: 3780 | I45: 0 | K45: 29 | L45: 435 | M45: 5220 | N45: 0 | O45: 0 | P45: 0 | Q45: 5220 | R45: 15 | S45: 225 | T45: 3150 | U45: 0 | V45: 0 | W45: 0 | X45: 3150 | Y45: 16 | Z45: 240 | AA45: 2880 | AB45: 0 | AC45: 0 | AD45: 0 | AE45: 2880 | AG45: 60 | AH45: 900 | AI45: 11250 | AJ45: 0 | AK45: 0 | AL45: 0 | AN45: 11250 | AP45: 46238 | AR45: 1064 | AS45: 642 | AT45: 587 | AU45: 459 | AW45: 4472 | AX45: 2699 | AY45: 2467 | AZ45: 5783 | BA45: 3565 | BB45: 2151 | BC45: 1967 | BD45: 1537 | BE45: 7320 | BG45: 0 | BH45: 0 | BJ45: 4949 | BK45: 2987 | BL45: 2731 | BM45: 2133 | BO45: 56150 | BV45: 56150 | BX45: 0 | BZ45: 0 | CA45: 0 | CB45: 0 | CC45: 0 | CE45: 0 | CF45: 0 | CG45: 0 | CH45: 0 | CI45: 0 | CJ45: 0 | CK45: 0 | CL45: 0 | CM45: 0 | CO45: 0 | CP45: 0 | CQ45: 0 | CR45: 0 | CT45: 0 | CX45: 0 | CZ45: 16920 | DA45: 11250 | DB45: -5670 | DD45: 81896 | DE45: 56150 | DF45: -25746 | DH45: 0 | DI45: 0 | DJ45: 0 | DL45: 0 | DM45: 0 | DN45: 0 | DP45: 16920 | DQ45: 11250 | DR45: -5670 | DS45: 81896 | DT45: 56150 | DU45: -25746 | DV45: 3158 | DW45: 5220 | DX45: 3150 | DY45: 2880 | EA45: 11250 | EC45: 46237.5 | ED45: 3158 | EE45: 1064 | EF45: 642 | EG45: 587 | EH45: 459 | EJ45: 4472 | EK45: 2699 | EL45: 2467 | EM45: 5783 | EN45: 3565 | EO45: 2151 | EP45: 1967 | EQ45: 1537 | ER45: 7320 | ET45: 0 | EU45: 0 | EW45: 4949 | EX45: 2987 | EY45: 2731 | EZ45: 2133 | FB45: 56149.5 | FD45: 0 | FE45: 0 | FF45: 0 | FG45: 0 | FJ45: 56149.5 | FL45: 56150
B46: St James' Church of England (Aided) Infant School and Nursery | C46: E207001 | D46: 3526 | E46: M | F46: 32 | G46: 11 | H46: 2310 | I46: 0 | K46: 20 | L46: 300 | M46: 3600 | N46: 0 | O46: 0 | P46: 0 | Q46: 3600 | R46: 12 | S46: 180 | T46: 2520 | U46: 0 | V46: 0 | W46: 0 | X46: 2520 | Y46: 20 | Z46: 300 | AA46: 3600 | AB46: 0 | AC46: 0 | AD46: 0 | AE46: 3600 | AG46: 52 | AH46: 780 | AI46: 9720 | AJ46: 0 | AK46: 0 | AL46: 0 | AN46: 9720 | AP46: 39949 | AR46: 741 | AS46: 519 | AT46: 741 | AU46: 400 | AW46: 3173 | AX46: 2221 | AY46: 3173 | AZ46: 5140 | BA46: 2508 | BB46: 1756 | BC46: 2508 | BD46: 1354 | BE46: 6494 | BG46: 0 | BH46: 0 | BJ46: 2457 | BK46: 1720 | BL46: 2457 | BM46: 1327 | BO46: 48170 | BV46: 48170 | BX46: 0 | BZ46: 0 | CA46: 0 | CB46: 0 | CC46: 0 | CE46: 0 | CF46: 0 | CG46: 0 | CH46: 0 | CI46: 0 | CJ46: 0 | CK46: 0 | CL46: 0 | CM46: 0 | CO46: 0 | CP46: 0 | CQ46: 0 | CR46: 0 | CT46: 0 | CX46: 0 | CZ46: 10590 | DA46: 9720 | DB46: -870 | DD46: 50799 | DE46: 48170 | DF46: -2629 | DH46: 0 | DI46: 0 | DJ46: 0 | DL46: 0 | DM46: 0 | DN46: 0 | DP46: 10590 | DQ46: 9720 | DR46: -870 | DS46: 50799 | DT46: 48170 | DU46: -2629 | DV46: 3526 | DW46: 3600 | DX46: 2520 | DY46: 3600 | EA46: 9720 | EC46: 39949.2 | ED46: 3526 | EE46: 741 | EF46: 519 | EG46: 741 | EH46: 400 | EJ46: 3173 | EK46: 2221 | EL46: 3173 | EM46: 5140 | EN46: 2508 | EO46: 1756 | EP46: 2508 | EQ46: 1354 | ER46: 6494 | ET46: 0 | EU46: 0 | EW46: 2457 | EX46: 1720 | EY46: 2457 | EZ46: 1327 | FB46: 48170.2 | FD46: 0 | FE46: 0 | FF46: 0 | FG46: 0 | FJ46: 48170.2 | FL46: 48170
B47: St Mary's Catholic Primary School | C47: E207401 | D47: 3528 | E47: M | F47: 37 | G47: 25 | H47: 5250 | I47: 2520 | K47: 34 | L47: 510 | M47: 6120 | N47: 15 | O47: 225 | P47: 2700 | Q47: 8820 | R47: 16 | S47: 240 | T47: 3360 | U47: 7 | V47: 105 | W47: 1470 | X47: 4830 | Y47: 18 | Z47: 270 | AA47: 3240 | AB47: 8 | AC47: 120 | AD47: 1440 | AE47: 4680 | AG47: 68 | AH47: 1020 | AI47: 12720 | AJ47: 30 | AK47: 450 | AL47: 5610 | AN47: 18330 | AP47: 52279 | AR47: 888 | AS47: 488 | AT47: 470 | AU47: 369 | AW47: 1928 | AX47: 1058 | AY47: 1021 | AZ47: 2404 | BA47: 1465 | BB47: 804 | BC47: 775 | BD47: 609 | BE47: 3013 | BG47: 0 | BH47: 0 | BJ47: 2621 | BK47: 1439 | BL47: 1387 | BM47: 1089 | BO47: 56750 | BV47: 56750 | BX47: 23057 | BZ47: 535 | CA47: 292 | CB47: 286 | CC47: 223 | CE47: 1125 | CF47: 613 | CG47: 600 | CH47: 1403 | CI47: 450 | CJ47: 245 | CK47: 240 | CL47: 187 | CM47: 1590 | CO47: 1575 | CP47: 857 | CQ47: 840 | CR47: 654 | CT47: 25524 | CX47: 25524 | CZ47: 15834 | DA47: 12720 | DB47: -3114 | DD47: 69707 | DE47: 56750 | DF47: -12957 | DH47: 6840 | DI47: 5610 | DJ47: -1230 | DL47: 30709 | DM47: 25524 | DN47: -5185 | DP47: 22674 | DQ47: 18330 | DR47: -4344 | DS47: 100416 | DT47: 82274 | DU47: -18142 | DV47: 3528 | DW47: 8820 | DX47: 4830 | DY47: 4680 | EA47: 18330 | EC47: 75336.3 | ED47: 3528 | EE47: 1423 | EF47: 780 | EG47: 756 | EH47: 592 | EJ47: 3053 | EK47: 1671 | EL47: 1621 | EM47: 3807 | EN47: 1915 | EO47: 1049 | EP47: 1015 | EQ47: 796 | ER47: 4603 | ET47: 0 | EU47: 0 | EW47: 4196 | EX47: 2296 | EY47: 2227 | EZ47: 1743 | FB47: 82274.3 | FD47: 0 | FE47: 0 | FF47: 0 | FG47: 0 | FJ47: 82274.3 | FL47: 82274
B48: Stonehill Nursery | C48: E100601 | D48: 1010 | E48: S | F48: 64 | G48: 38 | H48: 7980 | I48: 630 | K48: 67 | L48: 1005 | M48: 12060 | N48: 2 | O48: 30 | P48: 360 | Q48: 12420 | R48: 33 | S48: 495 | T48: 6930 | U48: 1 | V48: 15 | W48: 210 | X48: 7140 | Y48: 38 | Z48: 570 | AA48: 6840 | AB48: 1 | AC48: 15 | AD48: 180 | AE48: 7020 | AG48: 138 | AH48: 2070 | AI48: 25830 | AJ48: 4 | AK48: 60 | AL48: 750 | AN48: 26580 | AP48: 106161 | AR48: 2496 | AS48: 1435 | AT48: 1416 | AU48: 1069 | AW48: 9232 | AX48: 5305 | AY48: 5236 | AZ48: 11864 | BA48: 3429 | BB48: 1970 | BC48: 1945 | BD48: 1469 | BE48: 13333 | BG48: 1 | BH48: 100000 | BJ48: 8428 | BK48: 4843 | BL48: 4780 | BM48: 3610 | BO48: 224173 | BR48: 38487 | BT48: 4956 | BV48: 267616 | BX48: 3083 | BZ48: 64 | CA48: 37 | CB48: 32 | CC48: 27 | CE48: 240 | CF48: 140 | CG48: 120 | CH48: 300 | CI48: 0 | CJ48: 0 | CK48: 0 | CL48: 0 | CM48: 300 | CO48: 0 | CP48: 0 | CQ48: 0 | CR48: 0 | CT48: 3410 | CV48: 1118 | CX48: 4528 | CZ48: 28140 | DA48: 25830 | DB48: -2310 | DD48: 281958 | DE48: 267616 | DF48: -14342 | DH48: 1710 | DI48: 750 | DJ48: -960 | DL48: 10322 | DM48: 4528 | DN48: -5794 | DP48: 29850 | DQ48: 26580 | DR48: -3270 | DS48: 292280 | DT48: 272144 | DU48: -20136 | DV48: 1010 | DW48: 12420 | DX48: 7140 | DY48: 7020 | EA48: 26580 | EC48: 109243.8 | ED48: 1010 | EE48: 2560 | EF48: 1472 | EG48: 1448 | EH48: 1096 | EJ48: 9472 | EK48: 5445 | EL48: 5356 | EM48: 12164 | EN48: 3429 | EO48: 1970 | EP48: 1945 | EQ48: 1469 | ER48: 13633 | ET48: 1 | EU48: 100000 | EW48: 8428 | EX48: 4843 | EY48: 4780 | EZ48: 3610 | FB48: 227582.8 | FD48: 0 | FE48: =EA48*FE$4 -> 39604.2 | FF48: 0 | FG48: 4956 | FJ48: 272143 | FL48: 272144
B49: Village Primary School | C49: Cheque book | D49: 3546 | E49: M | F49: 78 | G49: 52 | H49: 10920 | I49: 1260 | K49: 76 | L49: 1140 | M49: 13680 | N49: 8 | O49: 120 | P49: 1440 | Q49: 15120 | R49: 56 | S49: 840 | T49: 11760 | U49: 4 | V49: 60 | W49: 840 | X49: 12600 | Y49: 64 | Z49: 960 | AA49: 11520 | AB49: 4 | AC49: 60 | AD49: 720 | AE49: 12240 | AG49: 196 | AH49: 2940 | AI49: 36960 | AJ49: 16 | AK49: 240 | AL49: 3000 | AN49: 39960 | AP49: 151906 | AR49: 2845 | AS49: 2446 | AT49: 2396 | AU49: 1537 | AW49: 10307 | AX49: 8860 | AY49: 8679 | AZ49: 16708 | BA49: 3590 | BB49: 3086 | BC49: 3023 | BD49: 1940 | BE49: 18648 | BG49: 0 | BH49: 0 | BJ49: 6679 | BK49: 5741 | BL49: 5624 | BM49: 3609 | BO49: 175700 | BV49: 175700 | BX49: 12330 | BZ49: 300 | CA49: 175 | CB49: 150 | CC49: 125 | CE49: 1200 | CF49: 700 | CG49: 600 | CH49: 1500 | CI49: 0 | CJ49: 0 | CK49: 0 | CL49: 0 | CM49: 1500 | CO49: 240 | CP49: 140 | CQ49: 120 | CR49: 100 | CT49: 14055 | CX49: 14055 | CZ49: 34500 | DA49: 36960 | DB49: 2460 | DD49: 162114 | DE49: 175700 | DF49: 13586 | DH49: 3420 | DI49: 3000 | DJ49: -420 | DL49: 15819 | DM49: 14055 | DN49: -1764 | DP49: 37920 | DQ49: 39960 | DR49: 2040 | DS49: 177933 | DT49: 189755 | DU49: 11822 | DV49: 3546 | DW49: 15120 | DX49: 12600 | DY49: 12240 | EA49: 39960 | EC49: 164235.6 | ED49: 3546 | EE49: 3145 | EF49: 2621 | EG49: 2546 | EH49: 1662 | EJ49: 11507 | EK49: 9560 | EL49: 9279 | EM49: 18208 | EN49: 3590 | EO49: 3086 | EP49: 3023 | EQ49: 1940 | ER49: 20148 | ET49: 0 | EU49: 0 | EW49: 6919 | EX49: 5881 | EY49: 5744 | EZ49: 3709 | FB49: 189754.6 | FD49: 0 | FE49: 0 | FF49: 0 | FG49: 0 | FJ49: 189754.6 | FL49: 189755
B50: Walbrook Nursery | C50: E100701 | D50: 1009 | E50: S | F50: 80 | G50: 64 | H50: 13440 | I50: 210 | K50: 77 | L50: 1155 | M50: 13860 | N50: 3 | O50: 45 | P50: 540 | Q50: 14400 | R50: 71 | S50: 1065 | T50: 14910 | U50: 4 | V50: 60 | W50: 840 | X50: 15750 | Y50: 76 | Z50: 1140 | AA50: 13680 | AB50: 4 | AC50: 60 | AD50: 720 | AE50: 14400 | AG50: 224 | AH50: 3360 | AI50: 42450 | AJ50: 11 | AK50: 165 | AL50: 2100 | AN50: 44550 | AP50: 174470 | AR50: 2894 | AS50: 3113 | AT50: 2856 | AU50: 1773 | AW50: 11530 | AX50: 12404 | AY50: 11380 | AZ50: 21188 | BA50: 4477 | BB50: 4816 | BC50: 4419 | BD50: 2742 | BE50: 23930 | BG50: 1 | BH50: 100000 | BJ50: 9156 | BK50: 9850 | BL50: 9037 | BM50: 5609 | BO50: 305782 | BR50: 63251 | BT50: 9548 | BV50: 378581 | BX50: 8631 | BZ50: 54 | CA50: 84 | CB50: 72 | CC50: 42 | CE50: 0 | CF50: 0 | CG50: 0 | CH50: 0 | CI50: 0 | CJ50: 0 | CK50: 0 | CL50: 0 | CM50: 0 | CO50: 540 | CP50: 840 | CQ50: 720 | CR50: 420 | CT50: 9093 | CV50: 3129 | CX50: 12222 | CZ50: 42060 | DA50: 42450 | DB50: 390 | DD50: 374729 | DE50: 378581 | DF50: 3852 | DH50: 570 | DI50: 2100 | DJ50: 1530 | DL50: 3320 | DM50: 12222 | DN50: 8902 | DP50: 42630 | DQ50: 44550 | DR50: 1920 | DS50: 378049 | DT50: 390803 | DU50: 12754 | DV50: 1009 | DW50: 14400 | DX50: 15750 | DY50: 14400 | EA50: 44550 | EC50: 183100.5 | ED50: 1009 | EE50: 2948 | EF50: 3197 | EG50: 2928 | EH50: 1815 | EJ50: 11530 | EK50: 12404 | EL50: 11380 | EM50: 21188 | EN50: 4477 | EO50: 4816 | EP50: 4419 | EQ50: 2742 | ER50: 23930 | ET50: 1 | EU50: 100000 | EW50: 9696 | EX50: 10690 | EY50: 9757 | EZ50: 6029 | FB50: 314874.5 | FD50: 0 | FE50: =EA50*FE$4 -> 66379.5 | FF50: 0 | FG50: 9548 | FJ50: 390802 | FL50: 390803
B51: Walter Evans Church of England (Aided) Primary School | C51: Academy | D51: 3530 | E51: M | F51: 38 | G51: 38 | H51: 7644 | I51: 1890 | K51: 40 | L51: 600 | M51: 7200 | N51: 10 | O51: 150 | P51: 1800 | Q51: 9000 | R51: 40 | S51: 600 | T51: 8400 | U51: 10 | V51: 150 | W51: 2100 | X51: 10500 | Y51: 40 | Z51: 600 | AA51: 7200 | AB51: 10 | AC51: 150 | AD51: 1800 | AE51: 9000 | AG51: 120 | AH51: 1800 | AI51: 22800 | AJ51: 30 | AK51: 450 | AL51: 5700 | AN51: 28500 | AP51: 93708 | AR51: 642 | AS51: 749 | AT51: 642 | AU51: 407 | AW51: 248 | AX51: 289 | AY51: 248 | AZ51: 471 | BA51: 274 | BB51: 320 | BC51: 274 | BD51: 174 | BE51: 645 | BG51: 0 | BH51: 0 | BJ51: 220 | BK51: 257 | BL51: 220 | BM51: 139 | BO51: 94899 | BV51: 94899 | BX51: 23427 | BZ51: 174 | CA51: 203 | CB51: 174 | CC51: 110 | CE51: 120 | CF51: 140 | CG51: 120 | CH51: 228 | CI51: 120 | CJ51: 140 | CK51: 120 | CL51: 76 | CM51: 304 | CO51: 120 | CP51: 140 | CQ51: 120 | CR51: 76 | CT51: 23917 | CX51: 23917 | CZ51: 22224 | DA51: 22800 | DB51: 576 | DD51: 91165 | DE51: 94899 | DF51: 3734 | DH51: 5130 | DI51: 5700 | DJ51: 570 | DL51: 21219 | DM51: 23917 | DN51: 2698 | DP51: 27354 | DQ51: 28500 | DR51: 1146 | DS51: 112384 | DT51: 118816 | DU51: 6432 | DV51: 3530 | DW51: 9000 | DX51: 10500 | DY51: 9000 | EA51: 28500 | EC51: 117135 | ED51: 3530 | EE51: 816 | EF51: 952 | EG51: 816 | EH51: 517 | EJ51: 368 | EK51: 429 | EL51: 368 | EM51: 699 | EN51: 394 | EO51: 460 | EP51: 394 | EQ51: 250 | ER51: 949 | ET51: 0 | EU51: 0 | EW51: 340 | EX51: 397 | EY51: 340 | EZ51: 215 | FB51: 118816 | FD51: 0 | FE51: 0 | FF51: 0 | FG51: 0 | FJ51: 118816 | FL51: 118816
B52: Whitecross Nursery | C52: E100801 | D52: 1015 | E52: S | F52: 74 | G52: 68 | H52: 14168 | I52: 4746 | K52: 69 | L52: 1012 | M52: 12144 | N52: 44 | O52: 349 | P52: 4188 | Q52: 16332 | R52: 68 | S52: 1012 | T52: 14168 | U52: 44 | V52: 349 | W52: 4886 | X52: 19054 | Y52: 68 | Z52: 1012 | AA52: 12144 | AB52: 44 | AC52: 349 | AD52: 4188 | AE52: 16332 | AG52: 205 | AH52: 3036 | AI52: 38456 | AJ52: 132 | AK52: 1047 | AL52: 13262 | AN52: 51718 | AP52: 158054 | AR52: 1029 | AS52: 1200 | AT52: 1029 | AU52: 652 | AW52: 1067 | AX52: 1245 | AY52: 1067 | AZ52: 2027 | BA52: 1144 | BB52: 1335 | BC52: 1144 | BD52: 725 | BE52: 2752 | BG52: 1 | BH52: 100000 | BJ52: 436 | BK52: 509 | BL52: 436 | BM52: 276 | BO52: 261734 | BR52: 57299 | BT52: 7694 | BV52: 326727 | BX52: 54507 | BZ52: 321 | CA52: 374 | CB52: 321 | CC52: 203 | CE52: 402 | CF52: 469 | CG52: 402 | CH52: 764 | CI52: 760 | CJ52: 886 | CK52: 760 | CL52: 481 | CM52: 1245 | CO52: 333 | CP52: 389 | CQ52: 333 | CR52: 211 | CT52: 56166 | CV52: 19760 | CX52: 75926 | CZ52: 41708 | DA52: 38456 | DB52: -3252 | DD52: 341937 | DE52: 326727 | DF52: -15210 | DH52: 12882 | DI52: 13262 | DJ52: 380 | DL52: 73750 | DM52: 75926 | DN52: 2176 | DP52: 54590 | DQ52: 51718 | DR52: -2872 | DS52: 415687 | DT52: 402653 | DU52: -13034 | DV52: 1015 | DW52: 16332 | DX52: 19054 | DY52: 16332 | EA52: 51718 | EC52: 212560.98 | ED52: 1015 | EE52: 1350 | EF52: 1574 | EG52: 1350 | EH52: 855 | EJ52: 1469 | EK52: 1714 | EL52: 1469 | EM52: 2791 | EN52: 1904 | EO52: 2221 | EP52: 1904 | EQ52: 1206 | ER52: 3997 | ET52: 1 | EU52: 100000 | EW52: 769 | EX52: 898 | EY52: 769 | EZ52: 487 | FB52: 317899.98 | FD52: 0 | FE52: =EA52*FE$4 -> 77059.82 | FF52: 0 | FG52: 7694 | FJ52: 402653.8 | FL52: 402653
B53: Other funding | BQ53: 250000 | BS53: 56580 | BV53: 306580 | DD53: 317650 | DE53: 306580 | DF53: -11070 | DS53: 317650 | DT53: 306580 | DU53: -11070 | DV53: 0 | DW53: 0 | DX53: 0 | DY53: 0 | EA53: 0 | EC53: 0 | ED53: 0 | EE53: 0 | EF53: 0 | EG53: 0 | EH53: 0 | EJ53: 0 | EK53: 0 | EL53: 0 | EM53: 0 | EN53: 0 | EO53: 0 | EP53: 0 | EQ53: 0 | ER53: 0 | ET53: 0 | EU53: 0 | EW53: 0 | EX53: 0 | EY53: 0 | EZ53: 0 | FB53: 0 | FD53: 250000 | FE53: 6 | FF53: 56580 | FG53: 0 | FH53: 231246 | FJ53: 537832 | FL53: 306580
B54: Total All Schools | H54: 350056 | I54: 45409.5 | K54: 2376 | L54: 35526.5 | M54: 426318 | N54: 345 | O54: 4805.5 | P54: 57666 | Q54: =SUM(Q6:Q52) -> 476784 | R54: 1701 | S54: 25492.5 | T54: 356895 | U54: 251 | V54: 3442 | W54: 48188 | X54: =SUM(X6:X52) -> 398153 | Y54: 1948 | Z54: 29195.5 | AA54: 350346 | AB54: 279 | AC54: 3816.5 | AD54: 45798 | AE54: =SUM(AE6:AE52) -> 390024 | AG54: 6025 | AH54: 90214.5 | AI54: 1133559 | AJ54: 875 | AK54: 12064 | AL54: 151652 | AN54: =SUM(AN6:AN53) -> 1264961 | AP54: 4658930 | AR54: 81336 | AS54: 66675 | AT54: 66130 | AU54: 42827 | AW54: 207061 | AX54: 167596 | AY54: 167094 | AZ54: 325047 | BA54: 133146 | BB54: 108792 | BC54: 108428 | BD54: 70076 | BE54: 395123 | BH54: 700000 | BJ54: 127553 | BK54: 102449 | BL54: 101398 | BM54: 66281 | BO54: 5863161 | BQ54: 250000 | BR54: 379050 | BS54: 56580 | BT54: 63891 | BV54: 6612682 | BX54: 623292 | BZ54: 8416 | CA54: 6263 | CB54: 6193 | CC54: 4176 | CE54: 16589 | CF54: 10623 | CG54: 10388 | CH54: 22561 | CI54: 10446 | CJ54: 8784 | CK54: 8636 | CL54: 5572 | CM54: 28133 | CO54: 7700 | CP54: 5134 | CQ54: 5252 | CR54: 3616 | CT54: 659217 | CV54: 50693 | CX54: 709910 | CZ54: 1168045 | DA54: 1133559 | DB54: -34486 | DD54: 6724478 | DE54: 6612682 | DF54: -111796 | DH54: 123255 | DI54: 151652 | DJ54: 28397 | DL54: 582309 | DM54: 709910 | DN54: 127601 | DP54: 1291300 | DQ54: 1285211 | DR54: -6089 | DS54: 7306787 | DT54: 7322592 | DU54: 15805 | DV54: All | DW54: =SUM(DW6:DW53) -> 476784 | DX54: =SUM(DX6:DX53) -> 398153 | DY54: 390024 | EA54: =SUM(EA6:EA53) -> 1264961 | EC54: =SUM(EC6:EC53) -> 5198989.71 | EE54: =SUM(EE6:EE53) -> 88925 | EF54: =SUM(EF6:EF53) -> 72165 | EG54: 71608 | EH54: 46542 | EI54: 0 | EJ54: 221463 | EK54: 176644 | EL54: 175880 | EM54: 344387 | EN54: 142840 | EO54: 116801 | EP54: 116357 | EQ54: 75202 | ER54: 419589 | ET54: =SUM(ET6:ET53) -> 7 | EU54: =SUM(EU6:EU53) -> 700000 | EW54: =SUM(EW6:EW53) -> 133527 | EX54: =SUM(EX6:EX53) -> 105816 | EY54: =SUM(EY6:EY53) -> 104969 | EZ54: =SUM(EZ6:EZ53) -> 68863 | FB54: 6433983.71 | FD54: =SUM(FD6:FD53) -> 250000 | FE54: =SUM(FE6:FE53) -> 426396.32 | FF54: =SUM(FF6:FF53) -> 56580 | FG54: 63891 | FH54: =SUM(FH6:FH53) -> 231246 | FJ54: =SUM(FJ6:FJ53) -> 7462097.03 | FL54: =SUM(FL6:FL53) -> 7230851
B56: DCC Maintained Total | H56: 318598 | I56: 41449.5 | K56: 2102 | L56: 31416.5 | M56: 376998 | N56: 306 | O56: 4220.5 | P56: 50646 | R56: 1506 | S56: 22567.5 | T56: 315945 | U56: 221 | V56: 2992 | W56: 41888 | Y56: 1726 | Z56: 25865.5 | AA56: 310386 | AB56: 247 | AC56: 3336.5 | AD56: 40038 | AG56: 5334 | AH56: 79849.5 | AI56: 1003329 | AJ56: 774 | AK56: 10549 | AL56: 132572 | CZ56: NFF Rate | DA56: 4.61
B57: Academy Total | H57: 31458 | I57: 3960 | K57: 274 | L57: 4110 | M57: 49320 | N57: 39 | O57: 585 | P57: 7020 | R57: 195 | S57: 2925 | T57: 40950 | U57: 30 | V57: 450 | W57: 6300 | Y57: 222 | Z57: 3330 | AA57: 39960 | AB57: 32 | AC57: 480 | AD57: 5760 | AG57: 691 | AH57: 10365 | AI57: 130230 | AJ57: 101 | AK57: 1515 | AL57: 19080
DW58: Summer (12 weeks) | DX58: Autumn Term (14 weeks) | DY58: Spring Term (12 weeks) | EC58: 4.11 | EG58: Hourly Rate: | EH58: 0.2 | EL58: Hourly Rate: | EM58: 0.6 | EP58: Hourly Rate: | EQ58: 0.2 | ET58: Amount: | EU58: 100000 | EY58: Hourly Rate: | EZ58: 0.2 | FE58: 1.49
B59: PVI Nurseries | D59: OFSTED ID | E59: Setting Type | DW59: Hours | DX59: Hours | DY59: Hours | EA59: Total Hours | EC59: Total Base Estimates | EE59: Summer | EF59: Autumn | EG59: Spring | EH59: Total FSM Funding | EJ59: Summer | EK59: Autumn | EL59: Spring | EM59: Total IMD top 20% Funding | EN59: Summer | EO59: Autumn | EP59: Spring | EQ59: Total IMD 20% to 40% Funding | ER59: Deprivation Grand Totals | ET59: Number per Setting | EU59: Total Base Funding | EW59: Summer | EX59: Autumn | EY59: Spring | EZ59: Total EAL Funding | FB59: Total Formula Estimates | FD59: SEN Locality Funding | FE59: Stand Alone Nursery Protection | FF59: Disability Access Fund (DAF) | FG59: 2018-19 Business Rates (NNDR) | FH59: Other | FJ59: Grand Totals
A60: 206189 | B60: Ace Nursery | D60: 206189 | E60: D | DW60: 9669 | DX60: 4584 | DY60: 6840 | EA60: 21093 | EC60: 86692 | ED60: =D60 -> 206189 | EE60: 2038 | EF60: 966 | EG60: 1442 | EH60: 889 | EJ60: 6051 | EK60: 2869 | EL60: 4280 | EM60: 7920 | EN60: 2534 | EO60: 1201 | EP60: 1793 | EQ60: 1106 | ER60: 9026 | ET60: 0 | EU60: 0 | EW60: 3424 | EX60: 1623 | EY60: 2422 | EZ60: 1494 | FB60: 98101 | FJ60: =EC60+EH60+ER60+EU60+EZ60+SUM(FD60:FH60) -> 98101
A61: EY545705 | B61: Alvaston Achievers | D61: EY545705 | E61: P | DW61: 3096 | DX61: 3612 | DY61: 3096 | EA61: 9804 | EC61: 40294 | ED61: =D61 -> EY545705 | EE61: 797 | EF61: 930 | EG61: 797 | EH61: 505 | EJ61: 2322 | EK61: 2709 | EL61: 2322 | EM61: 4412 | EN61: 774 | EO61: 903 | EP61: 774 | EQ61: 490 | ER61: 4902 | ET61: 0 | EU61: 0 | EW61: 0 | EX61: 0 | EY61: 0 | EZ61: 0 | FB61: 45701 | FJ61: 45701
A62: EY362920 | B62: An-Noor Nursery | D62: EY362920 | E62: D | DW62: 3780 | DX62: 1470 | DY62: 3240 | EA62: 8490 | EC62: 34894 | ED62: EY362920 | EE62: 765 | EF62: 298 | EG62: 656 | EH62: 344 | EJ62: 3080 | EK62: 1198 | EL62: 2640 | EM62: 4151 | EN62: 2417 | EO62: 940 | EP62: 2072 | EQ62: 1086 | ER62: 5237 | ET62: 0 | EU62: 0 | EW62: 2561 | EX62: 996 | EY62: 2195 | EZ62: 1150 | FB62: 41625 | FJ62: 41625
A63: EY380753 | B63: Becket Sure Start Children's Centre | D63: EY380753 | E63: D | DW63: 5544 | DX63: 4480 | DY63: 5040 | EA63: 15064 | EC63: 61913 | ED63: EY380753 | EE63: 1054 | EF63: 852 | EG63: 958 | EH63: 573 | EJ63: 2485 | EK63: 2008 | EL63: 2259 | EM63: 4051 | EN63: 2610 | EO63: 2109 | EP63: 2373 | EQ63: 1418 | ER63: 5469 | ET63: 0 | EU63: 0 | EW63: 1222 | EX63: 988 | EY63: 1111 | EZ63: 664 | FB63: 68619 | FJ63: 68619
A64: EY467568 | B64: Best Start Sinfin | D64: EY467568 | E64: D | DW64: 3600 | DX64: 3150 | DY64: 3240 | EA64: 9990 | EC64: 41059 | ED64: EY467568 | EE64: 931 | EF64: 815 | EG64: 838 | EH64: 517 | EJ64: 1669 | EK64: 1460 | EL64: 1502 | EM64: 2779 | EN64: 762 | EO64: 667 | EP64: 686 | EQ64: 423 | ER64: 3202 | ET64: 0 | EU64: 0 | EW64: 1486 | EX64: 1300 | EY64: 1337 | EZ64: 825 | FB64: 45603 | FJ64: 45603
A65: EY450983 | B65: Bizzy Kidz | D65: EY450983 | E65: D | DW65: 17313 | DX65: 13194.76 | DY65: 14017.5 | EA65: 44525.26 | EC65: 182999 | ED65: EY450983 | EE65: 3000 | EF65: 2287 | EG65: 2429 | EH65: 1543 | EJ65: 4870 | EK65: 3712 | EL65: 3943 | EM65: 7515 | EN65: 5828 | EO65: 4441 | EP65: 4718 | EQ65: 2997 | ER65: 10512 | ET65: 0 | EU65: 0 | EW65: 473 | EX65: 360 | EY65: 383 | EZ65: 243 | FB65: 195297 | FJ65: 195297
A66: 206124 | B66: Boulton Lane Park Pre-School Playgroup | D66: 206124 | E66: D | DW66: 1752 | DX66: 1050 | DY66: 1260 | EA66: 4062 | EC66: 16695 | ED66: 206124 | EE66: 417 | EF66: 250 | EG66: 300 | EH66: 193 | EJ66: 530 | EK66: 318 | EL66: 381 | EM66: 737 | EN66: 843 | EO66: 505 | EP66: 606 | EQ66: 391 | ER66: 1128 | ET66: 0 | EU66: 0 | EW66: 0 | EX66: 0 | EY66: 0 | EZ66: 0 | FB66: 18016 | FJ66: 18016
A67: EY282068 | B67: Bramble Brook Pre-School Playgroup | D67: EY282068 | E67: D | DW67: 5784 | DX67: 5600 | DY67: 5502 | EA67: 16886 | EC67: 69401 | ED67: EY282068 | EE67: 403 | EF67: 390 | EG67: 383 | EH67: 235 | EJ67: 309 | EK67: 299 | EL67: 294 | EM67: 541 | EN67: 470 | EO67: 455 | EP67: 447 | EQ67: 274 | ER67: 815 | ET67: 0 | EU67: 0 | EW67: 359 | EX67: 348 | EY67: 342 | EZ67: 210 | FB67: 70661 | FJ67: 70661
A68: 206126 | B68: Busy Bees Pre-School | D68: 206126 | E68: D | DW68: 10908 | DX68: 7070 | DY68: 8925 | EA68: 26903 | EC68: 110571 | ED68: 206126 | EE68: 509 | EF68: 330 | EG68: 417 | EH68: 251 | EJ68: 446 | EK68: 289 | EL68: 365 | EM68: 660 | EN68: 529 | EO68: 343 | EP68: 433 | EQ68: 261 | ER68: 921 | ET68: 0 | EU68: 0 | EW68: 0 | EX68: 0 | EY68: 0 | EZ68: 0 | FB68: 111743 | FJ68: 111743
A69: 206111 | B69: Busy Bees-Derby, Heatherton | D69: 206111 | E69: P | DW69: 17280 | DX69: 16380 | DY69: 21060 | EA69: 54720 | EC69: 224899 | ED69: 206111 | EE69: 1393 | EF69: 1320 | EG69: 1697 | EH69: 882 | EJ69: 1203 | EK69: 1140 | EL69: 1466 | EM69: 2285 | EN69: 1222 | EO69: 1158 | EP69: 1489 | EQ69: 774 | ER69: 3059 | ET69: 0 | EU69: 0 | EW69: 290 | EX69: 275 | EY69: 354 | EZ69: 184 | FB69: 229024 | FJ69: 229024
A70: 206091 | B70: Carlton Private Day Nursery | D70: 206091 | E70: P | DW70: 8460 | DX70: 9660 | DY70: 8460 | EA70: 26580 | EC70: 109244 | ED70: 206091 | EE70: 519 | EF70: 592 | EG70: 519 | EH70: 326 | EJ70: 989 | EK70: 1129 | EL70: 989 | EM70: 1864 | EN70: 651 | EO70: 743 | EP70: 651 | EQ70: 409 | ER70: 2273 | ET70: 0 | EU70: 0 | EW70: 170 | EX70: 194 | EY70: 170 | EZ70: 107 | FB70: 111950 | FJ70: 111950
A71: EY396374 | B71: Childcare @ St James Centre | D71: EY396374 | E71: P | DW71: 3204 | DX71: 3360 | DY71: 2880 | EA71: 9444 | EC71: 38815 | ED71: EY396374 | EE71: 681 | EF71: 714 | EG71: 612 | EH71: 401 | EJ71: 2840 | EK71: 2979 | EL71: 2553 | EM71: 5023 | EN71: 866 | EO71: 908 | EP71: 778 | EQ71: 510 | ER71: 5533 | ET71: 0 | EU71: 0 | EW71: 1971 | EX71: 2067 | EY71: 1772 | EZ71: 1162 | FB71: 45911 | FJ71: 45911
A72: 206128 | B72: Chuckles Pre-School Playgroup | D72: 206128 | E72: P | DW72: 1872 | DX72: 1890 | DY72: 1980 | EA72: 5742 | EC72: 23600 | ED72: 206128 | EE72: 465 | EF72: 469 | EG72: 492 | EH72: 285 | EJ72: 507 | EK72: 512 | EL72: 536 | EM72: 933 | EN72: 804 | EO72: 812 | EP72: 850 | EQ72: 493 | ER72: 1426 | ET72: 0 | EU72: 0 | EW72: 223 | EX72: 225 | EY72: 236 | EZ72: 137 | FB72: 25448 | FJ72: 25448
A73: 205999 | B73: Derby City Childminding Network - AR | D73: 205999 | E73: P | DW73: 1800 | DX73: 2100 | DY73: 1800 | EA73: 5700 | EC73: 23427 | ED73: 205999 | EE73: 194 | EF73: 226 | EG73: 194 | EH73: 123 | EJ73: 517 | EK73: 603 | EL73: 517 | EM73: 982 | EN73: 280 | EO73: 327 | EP73: 280 | EQ73: 177 | ER73: 1159 | ET73: 0 | EU73: 0 | EW73: 511 | EX73: 596 | EY73: 511 | EZ73: 324 | FB73: 25033 | FJ73: 25033
A74: EY398922 | B74: Derby City Childminding Network - ALB | D74: EY398922 | E74: P | DW74: 1440 | DX74: 1260 | DY74: 1260 | EA74: 3960 | EC74: 16276 | ED74: EY398922 | EE74: 165 | EF74: 144 | EG74: 144 | EH74: 91 | EJ74: 654 | EK74: 572 | EL74: 572 | EM74: 1079 | EN74: 330 | EO74: 289 | EP74: 289 | EQ74: 182 | ER74: 1261 | ET74: 0 | EU74: 0 | EW74: 0 | EX74: 0 | EY74: 0 | EZ74: 0 | FB74: 17628 | FJ74: 17628
A75: 205921 | B75: Derby City Childminding Network - AJH | D75: 205921 | E75: P | DW75: 120 | DX75: 140 | DY75: 120 | EA75: 380 | EC75: 1562 | ED75: 205921 | EE75: 0 | EF75: 0 | EG75: 0 | EH75: 0 | EJ75: 0 | EK75: 0 | EL75: 0 | EM75: 0 | EN75: 0 | EO75: 0 | EP75: 0 | EQ75: 0 | ER75: 0 | ET75: 0 | EU75: 0 | EW75: 0 | EX75: 0 | EY75: 0 | EZ75: 0 | FB75: 1562 | FJ75: 1562
A76: EY491735 | B76: Derby City Childminding Network - AMD | D76: EY491735 | E76: P | DW76: 360 | DX76: 210 | DY76: 180 | EA76: 750 | EC76: 3083 | ED76: EY491735 | EE76: 32 | EF76: 19 | EG76: 16 | EH76: 13 | EJ76: 0 | EK76: 0 | EL76: 0 | EM76: 0 | EN76: 0 | EO76: 0 | EP76: 0 | EQ76: 0 | ER76: 0 | ET76: 0 | EU76: 0 | EW76: 0 | EX76: 0 | EY76: 0 | EZ76: 0 | FB76: 3096 | FJ76: 3096
A77: EY000013 | B77: Derby City Childminding Network - AM | D77: EY000013 | E77: P | DW77: 360 | DX77: 360 | DY77: 360 | EA77: 1080 | EC77: 4439 | ED77: EY000013 | EE77: 77 | EF77: 77 | EG77: 77 | EH77: 46 | EJ77: 360 | EK77: 360 | EL77: 360 | EM77: 648 | EN77: 0 | EO77: 0 | EP77: 0 | EQ77: 0 | ER77: 648 | ET77: 0 | EU77: 0 | EW77: 360 | EX77: 360 | EY77: 360 | EZ77: 216 | FB77: 5349 | FJ77: 5349
A78: EY543687 | B78: Derby City Childminding Network - AN | D78: EY543687 | E78: P | DW78: 360 | DX78: 420 | DY78: 360 | EA78: 1140 | EC78: 4685 | ED78: EY543687 | EE78: 50 | EF78: 59 | EG78: 50 | EH78: 32 | EJ78: 84 | EK78: 98 | EL78: 84 | EM78: 160 | EN78: 83 | EO78: 96 | EP78: 83 | EQ78: 52 | ER78: 212 | ET78: 0 | EU78: 0 | EW78: 31 | EX78: 36 | EY78: 31 | EZ78: 20 | FB78: 4949 | FJ78: 4949
A79: EY536395 | B79: Derby City Childminding Network - AP | D79: EY536395 | E79: P | DW79: 900 | DX79: 1050 | DY79: 900 | EA79: 2850 | EC79: 11714 | ED79: EY536395 | EE79: 126 | EF79: 147 | EG79: 126 | EH79: 80 | EJ79: 210 | EK79: 245 | EL79: 210 | EM79: 399 | EN79: 206 | EO79: 241 | EP79: 206 | EQ79: 131 | ER79: 530 | ET79: 0 | EU79: 0 | EW79: 78 | EX79: 91 | EY79: 78 | EZ79: 49 | FB79: 12373 | FJ79: 12373
A80: EY542496 | B80: Derby City Childminding Network - CR | D80: EY542496 | E80: P | DW80: 360 | DX80: 420 | DY80: 360 | EA80: 1140 | EC80: 4685 | ED80: EY542496 | EE80: 94 | EF80: 109 | EG80: 94 | EH80: 59 | EJ80: 0 | EK80: 0 | EL80: 0 | EM80: 0 | EN80: 360 | EO80: 420 | EP80: 360 | EQ80: 228 | ER80: 228 | ET80: 0 | EU80: 0 | EW80: 0 | EX80: 0 | EY80: 0 | EZ80: 0 | FB80: 4972 | FJ80: 4972
A81: EY421552 | B81: Derby City Childminding Network - CM | D81: EY421552 | E81: P | DW81: 288 | DX81: 756 | DY81: 648 | EA81: 1692 | EC81: 6954 | ED81: EY421552 | EE81: 40 | EF81: 106 | EG81: 91 | EH81: 47 | EJ81: 67 | EK81: 177 | EL81: 151 | EM81: 237 | EN81: 66 | EO81: 173 | EP81: 149 | EQ81: 78 | ER81: 315 | ET81: 0 | EU81: 0 | EW81: 25 | EX81: 65 | EY81: 56 | EZ81: 29 | FB81: 7345 | FJ81: 7345
A82: EY251518 | B82: Derby City Childminding Network - CLHP | D82: EY251518 | E82: P | DW82: 360 | DX82: 210 | DY82: 180 | EA82: 750 | EC82: 3083 | ED82: EY251518 | EE82: 32 | EF82: 19 | EG82: 16 | EH82: 13 | EJ82: 126 | EK82: 73 | EL82: 63 | EM82: 157 | EN82: 71 | EO82: 42 | EP82: 36 | EQ82: 30 | ER82: 187 | ET82: 0 | EU82: 0 | EW82: 0 | EX82: 0 | EY82: 0 | EZ82: 0 | FB82: 3283 | FJ82: 3283
A83: 205852 | B83: Derby City Childminding Network - CAB | D83: 205852 | E83: P | DW83: 1188 | DX83: 1260 | DY83: 1440 | EA83: 3888 | EC83: 15980 | ED83: 205852 | EE83: 146 | EF83: 155 | EG83: 177 | EH83: 96 | EJ83: 0 | EK83: 0 | EL83: 0 | EM83: 0 | EN83: 624 | EO83: 662 | EP83: 757 | EQ83: 409 | ER83: 409 | ET83: 0 | EU83: 0 | EW83: 0 | EX83: 0 | EY83: 0 | EZ83: 0 | FB83: 16485 | FJ83: 16485
A84: EY412756 | B84: Derby City Childminding Network - CEO | D84: EY412756 | E84: P | DW84: 720 | DX84: 840 | DY84: 720 | EA84: 2280 | EC84: 9371 | ED84: EY412756 | EE84: 75 | EF84: 87 | EG84: 75 | EH84: 47 | EJ84: 0 | EK84: 0 | EL84: 0 | EM84: 0 | EN84: 0 | EO84: 0 | EP84: 0 | EQ84: 0 | ER84: 0 | ET84: 0 | EU84: 0 | EW84: 0 | EX84: 0 | EY84: 0 | EZ84: 0 | FB84: 9418 | FJ84: 9418
A85: EY438525 | B85: Derby City Childminding Network - CM | D85: EY438525 | E85: P | DW85: 1260 | DX85: 420 | DY85: 360 | EA85: 2040 | EC85: 8384 | ED85: EY438525 | EE85: 252 | EF85: 84 | EG85: 72 | EH85: 82 | EJ85: 0 | EK85: 0 | EL85: 0 | EM85: 0 | EN85: 1260 | EO85: 420 | EP85: 360 | EQ85: 408 | ER85: 408 | ET85: 0 | EU85: 0 | EW85: 0 | EX85: 0 | EY85: 0 | EZ85: 0 | FB85: 8874 | FJ85: 8874
A86: EY294474 | B86: Derby City Childminding Network - DS | D86: EY294474 | E86: P | DW86: 180 | DX86: 210 | DY86: 180 | EA86: 570 | EC86: 2343 | ED86: EY294474 | EE86: 45 | EF86: 52 | EG86: 45 | EH86: 28 | EJ86: 61 | EK86: 71 | EL86: 61 | EM86: 116 | EN86: 81 | EO86: 94 | EP86: 81 | EQ86: 51 | ER86: 167 | ET86: 0 | EU86: 0 | EW86: 0 | EX86: 0 | EY86: 0 | EZ86: 0 | FB86: 2538 | FJ86: 2538
A87: 205919 | B87: Derby City Childminding Network - DG | D87: 205919 | E87: P | DW87: 1440 | DX87: 1680 | DY87: 1440 | EA87: 4560 | EC87: 18742 | ED87: 205919 | EE87: 210 | EF87: 245 | EG87: 210 | EH87: 133 | EJ87: 608 | EK87: 709 | EL87: 608 | EM87: 1155 | EN87: 495 | EO87: 578 | EP87: 495 | EQ87: 314 | ER87: 1469 | ET87: 0 | EU87: 0 | EW87: 0 | EX87: 0 | EY87: 0 | EZ87: 0 | FB87: 20344 | FJ87: 20344
A88: EY475575 | B88: Derby City Childminding Network - ER | D88: EY475575 | E88: P | DW88: 540 | DX88: 420 | DY88: 720 | EA88: 1680 | EC88: 6905 | ED88: EY475575 | EE88: 43 | EF88: 34 | EG88: 58 | EH88: 27 | EJ88: 0 | EK88: 0 | EL88: 0 | EM88: 0 | EN88: 0 | EO88: 0 | EP88: 0 | EQ88: 0 | ER88: 0 | ET88: 0 | EU88: 0 | EW88: 0 | EX88: 0 | EY88: 0 | EZ88: 0 | FB88: 6932 | FJ88: 6932
A89: EY455065 | B89: Derby City Childminding Network - ELS | D89: EY455065 | E89: P | DW89: 1080 | DX89: 1400 | DY89: 720 | EA89: 3200 | EC89: 13152 | ED89: EY455065 | EE89: 205 | EF89: 266 | EG89: 137 | EH89: 122 | EJ89: 0 | EK89: 0 | EL89: 0 | EM89: 0 | EN89: 1080 | EO89: 1400 | EP89: 720 | EQ89: 640 | ER89: 640 | ET89: 0 | EU89: 0 | EW89: 0 | EX89: 0 | EY89: 0 | EZ89: 0 | FB89: 13914 | FJ89: 13914
A90: EY401536 | B90: Derby City Childminding Network - FM | D90: EY401536 | E90: P | DW90: 180 | DX90: 210 | DY90: 180 | EA90: 570 | EC90: 2343 | ED90: EY401536 | EE90: 9 | EF90: 11 | EG90: 9 | EH90: 6 | EJ90: 40 | EK90: 47 | EL90: 40 | EM90: 76 | EN90: 40 | EO90: 47 | EP90: 40 | EQ90: 25 | ER90: 101 | ET90: 0 | EU90: 0 | EW90: 23 | EX90: 26 | EY90: 23 | EZ90: 14 | FB90: 2464 | FJ90: 2464
A91: EY316120 | B91: Derby City Childminding Network - HB | D91: EY316120 | E91: P | DW91: 1272 | DX91: 1316 | DY91: 1128 | EA91: 3716 | EC91: 15273 | ED91: EY316120 | EE91: 82 | EF91: 85 | EG91: 73 | EH91: 48 | EJ91: 0 | EK91: 0 | EL91: 0 | EM91: 0 | EN91: 366 | EO91: 379 | EP91: 325 | EQ91: 214 | ER91: 214 | ET91: 0 | EU91: 0 | EW91: 0 | EX91: 0 | EY91: 0 | EZ91: 0 | FB91: 15535 | FJ91: 15535
A92: 205849 | B92: Derby City Childminding Network - HMS | D92: 205849 | E92: P | DW92: 360 | DX92: 420 | DY92: 360 | EA92: 1140 | EC92: 4685 | ED92: 205849 | EE92: 59 | EF92: 69 | EG92: 59 | EH92: 37 | EJ92: 100 | EK92: 117 | EL92: 100 | EM92: 190 | EN92: 100 | EO92: 117 | EP92: 100 | EQ92: 63 | ER92: 253 | ET92: 0 | EU92: 0 | EW92: 0 | EX92: 0 | EY92: 0 | EZ92: 0 | FB92: 4975 | FJ92: =EC92+EH92+ER92+EU92+EZ92+SUM(FD92:FH92) -> 4975
A93: EY407775 | B93: Derby City Childminding Network - HGS | D93: EY407775 | E93: P | DW93: 504 | DX93: 336 | DY93: 288 | EA93: 1128 | EC93: 4636 | ED93: EY407775 | EE93: 14 | EF93: 9 | EG93: 8 | EH93: 6 | EJ93: 57 | EK93: 38 | EL93: 32 | EM93: 76 | EN93: 113 | EO93: 75 | EP93: 65 | EQ93: 51 | ER93: 127 | ET93: 0 | EU93: 0 | EW93: 63 | EX93: 42 | EY93: 36 | EZ93: 28 | FB93: 4797 | FJ93: 4797
A94: 205980 | B94: Derby City Childminding Network - NJ | D94: 205980 | E94: P | DW94: 36 | DX94: 0 | DY94: 0 | EA94: 36 | EC94: 148 | ED94: 205980 | EE94: 0 | EF94: 0 | EG94: 0 | EH94: 0 | EJ94: 0 | EK94: 0 | EL94: 0 | EM94: 0 | EN94: 0 | EO94: 0 | EP94: 0 | EQ94: 0 | ER94: 0 | ET94: 0 | EU94: 0 | EW94: 0 | EX94: 0 | EY94: 0 | EZ94: 0 | FB94: 148 | FJ94: 148
A95: EY477127 | B95: Derby City Childminding Network - JLK | D95: EY477127 | E95: P | DW95: 151 | DX95: 176 | DY95: 151 | EA95: 478 | EC95: 1965 | ED95: EY477127 | EE95: 0 | EF95: 0 | EG95: 0 | EH95: 0 | EJ95: 0 | EK95: 0 | EL95: 0 | EM95: 0 | EN95: 0 | EO95: 0 | EP95: 0 | EQ95: 0 | ER95: 0 | ET95: 0 | EU95: 0 | EW95: 0 | EX95: 0 | EY95: 0 | EZ95: 0 | FB95: 1965 | FJ95: 1965
A96: EY240000 | B96: Derby City Childminding Network - JEA | D96: EY240000 | E96: P | DW96: 360 | DX96: 420 | DY96: 360 | EA96: 1140 | EC96: 4685 | ED96: EY240000 | EE96: 0 | EF96: 0 | EG96: 0 | EH96: 0 | EJ96: 0 | EK96: 0 | EL96: 0 | EM96: 0 | EN96: 0 | EO96: 0 | EP96: 0 | EQ96: 0 | ER96: 0 | ET96: 0 | EU96: 0 | EW96: 0 | EX96: 0 | EY96: 0 | EZ96: 0 | FB96: 4685 | FJ96: 4685
A97: EY369088 | B97: Derby City Childminding Network - JMS | D97: EY369088 | E97: P | DW97: 540 | DX97: 420 | DY97: 720 | EA97: 1680 | EC97: 6905 | ED97: EY369088 | EE97: 96 | EF97: 75 | EG97: 129 | EH97: 60 | EJ97: 207 | EK97: 161 | EL97: 276 | EM97: 386 | EN97: 318 | EO97: 247 | EP97: 424 | EQ97: 198 | ER97: 584 | ET97: 0 | EU97: 0 | EW97: 0 | EX97: 0 | EY97: 0 | EZ97: 0 | FB97: 7549 | FJ97: 7549
A98: EY462623 | B98: Derby City Childminding Network - JM | D98: EY462623 | E98: P | DW98: 0 | DX98: 210 | DY98: 0 | EA98: 210 | EC98: 863 | ED98: EY462623 | EE98: 0 | EF98: 27 | EG98: 0 | EH98: 5 | EJ98: 0 | EK98: 47 | EL98: 0 | EM98: 28 | EN98: 0 | EO98: 47 | EP98: 0 | EQ98: 9 | ER98: 37 | ET98: 0 | EU98: 0 | EW98: 0 | EX98: 26 | EY98: 0 | EZ98: 5 | FB98: 910 | FJ98: 910
A99: EY264853 | B99: Derby City Childminding Network - JMC | D99: EY264853 | E99: P | DW99: 513 | DX99: 408 | DY99: 306 | EA99: 1227 | EC99: 5043 | ED99: EY264853 | EE99: 45 | EF99: 36 | EG99: 27 | EH99: 22 | EJ99: 0 | EK99: 0 | EL99: 0 | EM99: 0 | EN99: 0 | EO99: 0 | EP99: 0 | EQ99: 0 | ER99: 0 | ET99: 0 | EU99: 0 | EW99: 0 | EX99: 0 | EY99: 0 | EZ99: 0 | FB99: 5065 | FJ99: 5065
A100: 205881 | B100: Derby City Childminding Network - JD | D100: 205881 | E100: P | DW100: 900 | DX100: 840 | DY100: 1800 | EA100: 3540 | EC100: 14549 | ED100: 205881 | EE100: 46 | EF100: 43 | EG100: 92 | EH100: 36 | EJ100: 0 | EK100: 0 | EL100: 0 | EM100: 0 | EN100: 0 | EO100: 0 | EP100: 0 | EQ100: 0 | ER100: 0 | ET100: 0 | EU100: 0 | EW100: 0 | EX100: 0 | EY100: 0 | EZ100: 0 | FB100: 14585 | FJ100: 14585
A101: EY500987 | B101: Derby City Childminding Network - JC | D101: EY500987 | E101: P | DW101: 360 | DX101: 420 | DY101: 360 | EA101: 1140 | EC101: 4685 | ED101: EY500987 | EE101: 47 | EF101: 55 | EG101: 47 | EH101: 30 | EJ101: 0 | EK101: 0 | EL101: 0 | EM101: 0 | EN101: 360 | EO101: 420 | EP101: 360 | EQ101: 228 | ER101: 228 | ET101: 0 | EU101: 0 | EW101: 0 | EX101: 0 | EY101: 0 | EZ101: 0 | FB101: 4943 | FJ101: 4943
A102: 205922 | B102: Derby City Childminding Network - JCH | D102: 205922 | E102: P | DW102: 360 | DX102: 420 | DY102: 360 | EA102: 1140 | EC102: 4685 | ED102: 205922 | EE102: 50 | EF102: 59 | EG102: 50 | EH102: 32 | EJ102: 84 | EK102: 98 | EL102: 84 | EM102: 160 | EN102: 83 | EO102: 96 | EP102: 83 | EQ102: 52 | ER102: 212 | ET102: 0 | EU102: 0 | EW102: 31 | EX102: 36 | EY102: 31 | EZ102: 20 | FB102: 4949 | FJ102: 4949
A103: EY368441 | B103: Derby City Childminding Network - JES | D103: EY368441 | E103: P | DW103: 540 | DX103: 210 | DY103: 180 | EA103: 930 | EC103: 3822 | ED103: EY368441 | EE103: 49 | EF103: 19 | EG103: 16 | EH103: 17 | EJ103: 0 | EK103: 0 | EL103: 0 | EM103: 0 | EN103: 0 | EO103: 0 | EP103: 0 | EQ103: 0 | ER103: 0 | ET103: 0 | EU103: 0 | EW103: 0 | EX103: 0 | EY103: 0 | EZ103: 0 | FB103: 3839 | FJ103: 3839
A104: EY405755 | B104: Derby City Childminding Network - KJD | D104: EY405755 | E104: P | DW104: 574 | DX104: 530 | DY104: 634 | EA104: 1738 | EC104: 7143 | ED104: EY405755 | EE104: 91 | EF104: 84 | EG104: 101 | EH104: 55 | EJ104: 15 | EK104: 14 | EL104: 16 | EM104: 27 | EN104: 15 | EO104: 14 | EP104: 16 | EQ104: 9 | ER104: 36 | ET104: 0 | EU104: 0 | EW104: 0 | EX104: 0 | EY104: 0 | EZ104: 0 | FB104: 7234 | FJ104: 7234
A105: EY448130 | B105: Derby City Childminding Network - LB | D105: EY448130 | E105: P | DW105: 360 | DX105: 420 | DY105: 360 | EA105: 1140 | EC105: 4685 | ED105: EY448130 | EE105: 50 | EF105: 59 | EG105: 50 | EH105: 32 | EJ105: 84 | EK105: 98 | EL105: 84 | EM105: 160 | EN105: 83 | EO105: 96 | EP105: 83 | EQ105: 52 | ER105: 212 | ET105: 0 | EU105: 0 | EW105: 31 | EX105: 36 | EY105: 31 | EZ105: 20 | FB105: 4949 | FJ105: 4949
A106: 306845 | B106: Derby City Childminding Network - LM | D106: 306845 | E106: P | DW106: 1080 | DX106: 630 | DY106: 540 | EA106: 2250 | EC106: 9248 | ED106: 306845 | EE106: 70 | EF106: 41 | EG106: 35 | EH106: 29 | EJ106: 0 | EK106: 0 | EL106: 0 | EM106: 0 | EN106: 0 | EO106: 0 | EP106: 0 | EQ106: 0 | ER106: 0 | ET106: 0 | EU106: 0 | EW106: 0 | EX106: 0 | EY106: 0 | EZ106: 0 | FB106: 9277 | FJ106: 9277
A107: EY546840 | B107: Derby City Childminding Network - LS | D107: EY546840 | E107: P | DW107: 264 | DX107: 308 | DY107: 264 | EA107: 836 | EC107: 3436 | ED107: EY546840 | EE107: 0 | EF107: 0 | EG107: 0 | EH107: 0 | EJ107: 0 | EK107: 0 | EL107: 0 | EM107: 0 | EN107: 0 | EO107: 0 | EP107: 0 | EQ107: 0 | ER107: 0 | ET107: 0 | EU107: 0 | EW107: 0 | EX107: 0 | EY107: 0 | EZ107: 0 | FB107: 3436 | FJ107: 3436
A108: 205878 | B108: Derby City Childminding Network - LD | D108: 205878 | E108: P | DW108: 707 | DX108: 789 | DY108: 707 | EA108: 2203 | EC108: 9054 | ED108: 205878 | EE108: 173 | EF108: 193 | EG108: 173 | EH108: 108 | EJ108: 473 | EK108: 527 | EL108: 473 | EM108: 884 | EN108: 322 | EO108: 360 | EP108: 322 | EQ108: 201 | ER108: 1085 | ET108: 0 | EU108: 0 | EW108: 0 | EX108: 0 | EY108: 0 | EZ108: 0 | FB108: 10247 | FJ108: 10247
A109: 260849 | B109: Derby City Childminding Network - LMG | D109: 260849 | E109: P | DW109: 180 | DX109: 210 | DY109: 180 | EA109: 570 | EC109: 2343 | ED109: 260849 | EE109: 40 | EF109: 47 | EG109: 40 | EH109: 25 | EJ109: 0 | EK109: 0 | EL109: 0 | EM109: 0 | EN109: 0 | EO109: 0 | EP109: 0 | EQ109: 0 | ER109: 0 | ET109: 0 | EU109: 0 | EW109: 0 | EX109: 0 | EY109: 0 | EZ109: 0 | FB109: 2368 | FJ109: 2368
A110: EY340934 | B110: Derby City Childminding Network - MEH | D110: EY340934 | E110: P | DW110: 180 | DX110: 210 | DY110: 360 | EA110: 750 | EC110: 3083 | ED110: EY340934 | EE110: 43 | EF110: 50 | EG110: 87 | EH110: 36 | EJ110: 131 | EK110: 153 | EL110: 263 | EM110: 328 | EN110: 82 | EO110: 96 | EP110: 165 | EQ110: 69 | ER110: 397 | ET110: 0 | EU110: 0 | EW110: 0 | EX110: 0 | EY110: 0 | EZ110: 0 | FB110: 3516 | FJ110: 3516
A111: EY357686 | B111: Derby City Childminding Network - MM | D111: EY357686 | E111: P | DW111: 1080 | DX111: 1260 | DY111: 1080 | EA111: 3420 | EC111: 14056 | ED111: EY357686 | EE111: 192 | EF111: 225 | EG111: 192 | EH111: 122 | EJ111: 540 | EK111: 630 | EL111: 540 | EM111: 1026 | EN111: 540 | EO111: 630 | EP111: 540 | EQ111: 342 | ER111: 1368 | ET111: 0 | EU111: 0 | EW111: 0 | EX111: 0 | EY111: 0 | EZ111: 0 | FB111: 15546 | FJ111: 15546
A112: EY460509 | B112: Derby City Childminding Network - MEK | D112: EY460509 | E112: P | DW112: 180 | DX112: 180 | DY112: 180 | EA112: 540 | EC112: 2219 | ED112: EY460509 | EE112: 25 | EF112: 25 | EG112: 25 | EH112: 15 | EJ112: 45 | EK112: 45 | EL112: 45 | EM112: 81 | EN112: 39 | EO112: 39 | EP112: 39 | EQ112: 23 | ER112: 104 | ET112: 0 | EU112: 0 | EW112: 17 | EX112: 17 | EY112: 17 | EZ112: 10 | FB112: 2348 | FJ112: 2348
A113: EY428424 | B113: Derby City Childminding Network - NS | D113: EY428424 | E113: P | DW113: 960 | DX113: 588 | DY113: 1044 | EA113: 2592 | EC113: 10653 | ED113: EY428424 | EE113: 77 | EF113: 47 | EG113: 84 | EH113: 42 | EJ113: 0 | EK113: 0 | EL113: 0 | EM113: 0 | EN113: 0 | EO113: 0 | EP113: 0 | EQ113: 0 | ER113: 0 | ET113: 0 | EU113: 0 | EW113: 0 | EX113: 0 | EY113: 0 | EZ113: 0 | FB113: 10695 | FJ113: 10695
A114: EY396733 | B114: Derby City Childminding Network - NJ | D114: EY396733 | E114: P | DW114: 360 | DX114: 420 | DY114: 360 | EA114: 1140 | EC114: 4685 | ED114: EY396733 | EE114: 32 | EF114: 38 | EG114: 32 | EH114: 20 | EJ114: 0 | EK114: 0 | EL114: 0 | EM114: 0 | EN114: 360 | EO114: 420 | EP114: 360 | EQ114: 228 | ER114: 228 | ET114: 0 | EU114: 0 | EW114: 0 | EX114: 0 | EY114: 0 | EZ114: 0 | FB114: 4933 | FJ114: 4933
A115: EY453657 | B115: Derby City Childminding Network - PC | D115: EY453657 | E115: P | DW115: 0 | DX115: 210 | DY115: 252 | EA115: 462 | EC115: 1899 | ED115: EY453657 | EE115: 0 | EF115: 22 | EG115: 27 | EH115: 10 | EJ115: 0 | EK115: 47 | EL115: 57 | EM115: 62 | EN115: 0 | EO115: 47 | EP115: 57 | EQ115: 21 | ER115: 83 | ET115: 0 | EU115: 0 | EW115: 0 | EX115: 26 | EY115: 32 | EZ115: 12 | FB115: 2004 | FJ115: 2004
A116: EY484039 | B116: Derby City Childminding Network - REE | D116: EY484039 | E116: P | DW116: 1140 | DX116: 1330 | DY116: 1140 | EA116: 3610 | EC116: 14837 | ED116: EY484039 | EE116: 99 | EF116: 116 | EG116: 99 | EH116: 63 | EJ116: 0 | EK116: 0 | EL116: 0 | EM116: 0 | EN116: 0 | EO116: 0 | EP116: 0 | EQ116: 0 | ER116: 0 | ET116: 0 | EU116: 0 | EW116: 0 | EX116: 0 | EY116: 0 | EZ116: 0 | FB116: 14900 | FJ116: 14900
A117: EY487257 | B117: Derby City Childminding Network - RGB | D117: EY487257 | E117: P | DW117: 420 | DX117: 910 | DY117: 1080 | EA117: 2410 | EC117: 9905 | ED117: EY487257 | EE117: 0 | EF117: 0 | EG117: 0 | EH117: 0 | EJ117: 0 | EK117: 0 | EL117: 0 | EM117: 0 | EN117: 0 | EO117: 0 | EP117: 0 | EQ117: 0 | ER117: 0 | ET117: 0 | EU117: 0 | EW117: 0 | EX117: 0 | EY117: 0 | EZ117: 0 | FB117: 9905 | FJ117: 9905
A118: EY552896 | B118: Derby City Childminding Network - RH | D118: EY552896 | E118: P | DW118: 24 | DX118: 0 | DY118: 204 | EA118: 228 | EC118: 937 | ED118: EY552896 | EE118: 3 | EF118: 0 | EG118: 29 | EH118: 6 | EJ118: 6 | EK118: 0 | EL118: 48 | EM118: 32 | EN118: 6 | EO118: 0 | EP118: 47 | EQ118: 11 | ER118: 43 | ET118: 0 | EU118: 0 | EW118: 2 | EX118: 0 | EY118: 18 | EZ118: 4 | FB118: 990 | FJ118: 990
A119: EY343478 | B119: Derby City Childminding Network - RLB | D119: EY343478 | E119: P | DW119: 180 | DX119: 0 | DY119: 360 | EA119: 540 | EC119: 2219 | ED119: EY343478 | EE119: 25 | EF119: 0 | EG119: 51 | EH119: 15 | EJ119: 14 | EK119: 0 | EL119: 28 | EM119: 25 | EN119: 14 | EO119: 0 | EP119: 28 | EQ119: 8 | ER119: 33 | ET119: 0 | EU119: 0 | EW119: 180 | EX119: 0 | EY119: 360 | EZ119: 108 | FB119: 2375 | FJ119: 2375
A120: EY447118 | B120: Derby City Childminding Network - RW | D120: EY447118 | E120: P | DW120: 414 | DX120: 273 | DY120: 414 | EA120: 1101 | EC120: 4525 | ED120: EY447118 | EE120: 0 | EF120: 0 | EG120: 0 | EH120: 0 | EJ120: 0 | EK120: 0 | EL120: 0 | EM120: 0 | EN120: 0 | EO120: 0 | EP120: 0 | EQ120: 0 | ER120: 0 | ET120: 0 | EU120: 0 | EW120: 0 | EX120: 0 | EY120: 0 | EZ120: 0 | FB120: 4525 | FJ120: 4525
A121: EY393682 | B121: Derby City Childminding Network - RAC | D121: EY393682 | E121: P | DW121: 203 | DX121: 405 | DY121: 347 | EA121: 955 | EC121: 3925 | ED121: EY393682 | EE121: 14 | EF121: 28 | EG121: 24 | EH121: 13 | EJ121: 0 | EK121: 0 | EL121: 0 | EM121: 0 | EN121: 0 | EO121: 0 | EP121: 0 | EQ121: 0 | ER121: 0 | ET121: 0 | EU121: 0 | EW121: 62 | EX121: 124 | EY121: 106 | EZ121: 58 | FB121: 3996 | FJ121: 3996
A122: EY395288 | B122: Derby City Childminding Network - RJF | D122: EY395288 | E122: P | DW122: 1152 | DX122: 1152 | DY122: 864 | EA122: 3168 | EC122: 13020 | ED122: EY395288 | EE122: 155 | EF122: 155 | EG122: 117 | EH122: 85 | EJ122: 44 | EK122: 44 | EL122: 33 | EM122: 73 | EN122: 687 | EO122: 687 | EP122: 515 | EQ122: 378 | ER122: 451 | ET122: 0 | EU122: 0 | EW122: 0 | EX122: 0 | EY122: 0 | EZ122: 0 | FB122: 13556 | FJ122: 13556
A123: EY278371 | B123: Derby City Childminding Network - RSW | D123: EY278371 | E123: P | DW123: 108 | DX123: 0 | DY123: 540 | EA123: 648 | EC123: 2663 | ED123: EY278371 | EE123: 9 | EF123: 0 | EG123: 45 | EH123: 11 | EJ123: 14 | EK123: 0 | EL123: 71 | EM123: 51 | EN123: 25 | EO123: 0 | EP123: 125 | EQ123: 30 | ER123: 81 | ET123: 0 | EU123: 0 | EW123: 0 | EX123: 0 | EY123: 0 | EZ123: 0 | FB123: 2755 | FJ123: 2755
A124: EY541336 | B124: Derby City Childminding Network - RZ | D124: EY541336 | E124: P | DW124: 540 | DX124: 630 | DY124: 540 | EA124: 1710 | EC124: 7028 | ED124: EY541336 | EE124: 140 | EF124: 164 | EG124: 140 | EH124: 89 | EJ124: 445 | EK124: 519 | EL124: 445 | EM124: 845 | EN124: 95 | EO124: 111 | EP124: 95 | EQ124: 60 | ER124: 905 | ET124: 0 | EU124: 0 | EW124: 0 | EX124: 0 | EY124: 0 | EZ124: 0 | FB124: 8022 | FJ124: =EC124+EH124+ER124+EU124+EZ124+SUM(FD124:FH124) -> 8022
A125: EY268223 | B125: Derby City Childminding Network - RP | D125: EY268223 | E125: P | DW125: 1596 | DX125: 1116 | DY125: 936 | EA125: 3648 | EC125: 14993 | ED125: =D125 -> EY268223 | EE125: 222 | EF125: 155 | EG125: 130 | EH125: 101 | EJ125: 477 | EK125: 334 | EL125: 280 | EM125: 655 | EN125: 228 | EO125: 160 | EP125: 134 | EQ125: 104 | ER125: 759 | ET125: 0 | EU125: 0 | EW125: 0 | EX125: 0 | EY125: 0 | EZ125: 0 | FB125: 15853 | FJ125: 15853
A126: 206031 | B126: Derby City Childminding Network - RS | D126: 206031 | E126: P | DW126: 1080 | DX126: 1260 | DY126: 1080 | EA126: 3420 | EC126: 14056 | ED126: 206031 | EE126: 44 | EF126: 52 | EG126: 44 | EH126: 28 | EJ126: 76 | EK126: 88 | EL126: 76 | EM126: 144 | EN126: 76 | EO126: 88 | EP126: 76 | EQ126: 48 | ER126: 192 | ET126: 0 | EU126: 0 | EW126: 0 | EX126: 0 | EY126: 0 | EZ126: 0 | FB126: 14276 | FJ126: 14276
A127: EY406938 | B127: Derby City Childminding Network - SAF | D127: EY406938 | E127: P | DW127: 444 | DX127: 518 | DY127: 444 | EA127: 1406 | EC127: 5779 | ED127: EY406938 | EE127: 67 | EF127: 78 | EG127: 67 | EH127: 42 | EJ127: 0 | EK127: 0 | EL127: 0 | EM127: 0 | EN127: 222 | EO127: 259 | EP127: 222 | EQ127: 141 | ER127: 141 | ET127: 0 | EU127: 0 | EW127: 0 | EX127: 0 | EY127: 0 | EZ127: 0 | FB127: 5962 | FJ127: 5962
A128: EY546157 | B128: Derby City Childminding Network - SM | D128: EY546157 | E128: P | DW128: 756 | DX128: 420 | DY128: 360 | EA128: 1536 | EC128: 6313 | ED128: EY546157 | EE128: 74 | EF128: 41 | EG128: 35 | EH128: 30 | EJ128: 355 | EK128: 197 | EL128: 169 | EM128: 433 | EN128: 71 | EO128: 39 | EP128: 34 | EQ128: 29 | ER128: 462 | ET128: 0 | EU128: 0 | EW128: 0 | EX128: 0 | EY128: 0 | EZ128: 0 | FB128: 6805 | FJ128: 6805
A129: EY299821 | B129: Derby City Childminding Network - SU | D129: EY299821 | E129: P | DW129: 540 | DX129: 210 | DY129: 180 | EA129: 930 | EC129: 3822 | ED129: EY299821 | EE129: 91 | EF129: 35 | EG129: 30 | EH129: 31 | EJ129: 41 | EK129: 16 | EL129: 14 | EM129: 43 | EN129: 41 | EO129: 16 | EP129: 14 | EQ129: 14 | ER129: 57 | ET129: 0 | EU129: 0 | EW129: 165 | EX129: 64 | EY129: 55 | EZ129: 57 | FB129: 3967 | FJ129: 3967
A130: 260848 | B130: Derby City Childminding Network - SHC | D130: 260848 | E130: P | DW130: 360 | DX130: 0 | DY130: 360 | EA130: 720 | EC130: 2959 | ED130: 260848 | EE130: 86 | EF130: 0 | EG130: 86 | EH130: 34 | EJ130: 0 | EK130: 0 | EL130: 0 | EM130: 0 | EN130: 360 | EO130: 0 | EP130: 360 | EQ130: 144 | ER130: 144 | ET130: 0 | EU130: 0 | EW130: 0 | EX130: 0 | EY130: 0 | EZ130: 0 | FB130: 3137 | FJ130: 3137
A131: 205978 | B131: Derby City Childminding Network - SM | D131: 205978 | E131: P | DW131: 1260 | DX131: 1827 | DY131: 1260 | EA131: 4347 | EC131: 17866 | ED131: 205978 | EE131: 115 | EF131: 166 | EG131: 115 | EH131: 79 | EJ131: 145 | EK131: 211 | EL131: 145 | EM131: 301 | EN131: 188 | EO131: 273 | EP131: 188 | EQ131: 130 | ER131: 431 | ET131: 0 | EU131: 0 | EW131: 0 | EX131: 0 | EY131: 0 | EZ131: 0 | FB131: 18376 | FJ131: 18376
A132: EY480166 | B132: Derby City Childminding Network - SJJ | D132: EY480166 | E132: P | DW132: 846 | DX132: 952 | DY132: 816 | EA132: 2614 | EC132: 10744 | ED132: EY480166 | EE132: 94 | EF132: 106 | EG132: 91 | EH132: 58 | EJ132: 190 | EK132: 214 | EL132: 183 | EM132: 352 | EN132: 190 | EO132: 214 | EP132: 183 | EQ132: 117 | ER132: 469 | ET132: 0 | EU132: 0 | EW132: 106 | EX132: 120 | EY132: 102 | EZ132: 66 | FB132: 11337 | FJ132: 11337
A133: 206043 | B133: Derby City Childminding Network - ST | D133: 206043 | E133: P | DW133: 864 | DX133: 1218 | DY133: 1380 | EA133: 3462 | EC133: 14229 | ED133: 206043 | EE133: 70 | EF133: 98 | EG133: 111 | EH133: 56 | EJ133: 0 | EK133: 0 | EL133: 0 | EM133: 0 | EN133: 0 | EO133: 0 | EP133: 0 | EQ133: 0 | ER133: 0 | ET133: 0 | EU133: 0 | EW133: 0 | EX133: 0 | EY133: 0 | EZ133: 0 | FB133: 14285 | FJ133: 14285
A134: EY505502 | B134: Derby City Childminding Network - SLB | D134: EY505502 | E134: P | DW134: 180 | DX134: 420 | DY134: 180 | EA134: 780 | EC134: 3206 | ED134: EY505502 | EE134: 14 | EF134: 34 | EG134: 14 | EH134: 12 | EJ134: 0 | EK134: 0 | EL134: 0 | EM134: 0 | EN134: 0 | EO134: 0 | EP134: 0 | EQ134: 0 | ER134: 0 | ET134: 0 | EU134: 0 | EW134: 0 | EX134: 0 | EY134: 0 | EZ134: 0 | FB134: 3218 | FJ134: 3218
A135: EY252328 | B135: Derby City Childminding Network - SJB | D135: EY252328 | E135: P | DW135: 360 | DX135: 420 | DY135: 360 | EA135: 1140 | EC135: 4685 | ED135: EY252328 | EE135: 0 | EF135: 0 | EG135: 0 | EH135: 0 | EJ135: 0 | EK135: 0 | EL135: 0 | EM135: 0 | EN135: 0 | EO135: 0 | EP135: 0 | EQ135: 0 | ER135: 0 | ET135: 0 | EU135: 0 | EW135: 0 | EX135: 0 | EY135: 0 | EZ135: 0 | FB135: 4685 | FJ135: 4685
A136: EY435150 | B136: Derby City Childminding Network - STM | D136: EY435150 | E136: P | DW136: 180 | DX136: 420 | DY136: 180 | EA136: 780 | EC136: 3206 | ED136: EY435150 | EE136: 43 | EF136: 100 | EG136: 43 | EH136: 37 | EJ136: 41 | EK136: 96 | EL136: 41 | EM136: 107 | EN136: 111 | EO136: 258 | EP136: 111 | EQ136: 96 | ER136: 203 | ET136: 0 | EU136: 0 | EW136: 0 | EX136: 0 | EY136: 0 | EZ136: 0 | FB136: 3446 | FJ136: 3446
A137: EY299849 | B137: Derby City Childminding Network - TLA | D137: EY299849 | E137: P | DW137: 1440 | DX137: 1680 | DY137: 1440 | EA137: 4560 | EC137: 18742 | ED137: EY299849 | EE137: 375 | EF137: 437 | EG137: 375 | EH137: 237 | EJ137: 1112 | EK137: 1297 | EL137: 1112 | EM137: 2113 | EN137: 468 | EO137: 546 | EP137: 468 | EQ137: 296 | ER137: 2409 | ET137: 0 | EU137: 0 | EW137: 147 | EX137: 171 | EY137: 147 | EZ137: 93 | FB137: 21481 | FJ137: 21481
A138: EY547709 | B138: Derby City Childminding Network - VSu | D138: EY547709 | E138: P | DW138: 1260 | DX138: 840 | DY138: 720 | EA138: 2820 | EC138: 11590 | ED138: EY547709 | EE138: 164 | EF138: 109 | EG138: 94 | EH138: 73 | EJ138: 1260 | EK138: 840 | EL138: 720 | EM138: 1692 | EN138: 0 | EO138: 0 | EP138: 0 | EQ138: 0 | ER138: 1692 | ET138: 0 | EU138: 0 | EW138: 0 | EX138: 0 | EY138: 0 | EZ138: 0 | FB138: 13355 | FJ138: 13355
A139: 206020 | B139: Derby City Childminding Network - VSm | D139: 206020 | E139: P | DW139: 0 | DX139: 168 | DY139: 0 | EA139: 168 | EC139: 690 | ED139: 206020 | EE139: 0 | EF139: 5 | EG139: 0 | EH139: 1 | EJ139: 0 | EK139: 0 | EL139: 0 | EM139: 0 | EN139: 0 | EO139: 0 | EP139: 0 | EQ139: 0 | ER139: 0 | ET139: 0 | EU139: 0 | EW139: 0 | EX139: 0 | EY139: 0 | EZ139: 0 | FB139: 691 | FJ139: 691
A140: 205892 | B140: Derby City Childminding Network - VE | D140: 205892 | E140: P | DW140: 144 | DX140: 168 | DY140: 144 | EA140: 456 | EC140: 1874 | ED140: 205892 | EE140: 0 | EF140: 0 | EG140: 0 | EH140: 0 | EJ140: 0 | EK140: 0 | EL140: 0 | EM140: 0 | EN140: 0 | EO140: 0 | EP140: 0 | EQ140: 0 | ER140: 0 | ET140: 0 | EU140: 0 | EW140: 0 | EX140: 0 | EY140: 0 | EZ140: 0 | FB140: 1874 | FJ140: 1874
A141: EY318345 | B141: Derby City Childminding Network - WJW | D141: EY318345 | E141: P | DW141: 612 | DX141: 210 | DY141: 612 | EA141: 1434 | EC141: 5894 | ED141: EY318345 | EE141: 33 | EF141: 11 | EG141: 33 | EH141: 15 | EJ141: 0 | EK141: 0 | EL141: 0 | EM141: 0 | EN141: 0 | EO141: 0 | EP141: 0 | EQ141: 0 | ER141: 0 | ET141: 0 | EU141: 0 | EW141: 0 | EX141: 0 | EY141: 0 | EZ141: 0 | FB141: 5909 | FJ141: 5909
A142: EY464682 | B142: Derby City Childminding Network - WLAW | D142: EY464682 | E142: P | DW142: 468 | DX142: 126 | DY142: 108 | EA142: 702 | EC142: 2885 | ED142: EY464682 | EE142: 42 | EF142: 11 | EG142: 10 | EH142: 13 | EJ142: 0 | EK142: 0 | EL142: 0 | EM142: 0 | EN142: 0 | EO142: 0 | EP142: 0 | EQ142: 0 | ER142: 0 | ET142: 0 | EU142: 0 | EW142: 0 | EX142: 0 | EY142: 0 | EZ142: 0 | FB142: 2898 | FJ142: 2898
A143: EY414019 | B143: Derby City Childminding Network - YW | D143: EY414019 | E143: P | DW143: 1920 | DX143: 1260 | DY143: 1080 | EA143: 4260 | EC143: 17509 | ED143: EY414019 | EE143: 494 | EF143: 324 | EG143: 278 | EH143: 219 | EJ143: 1488 | EK143: 976 | EL143: 837 | EM143: 1981 | EN143: 623 | EO143: 409 | EP143: 351 | EQ143: 277 | ER143: 2258 | ET143: 0 | EU143: 0 | EW143: 0 | EX143: 0 | EY143: 0 | EZ143: 0 | FB143: 19986 | FJ143: 19986
A144: EY458078 | B144: Derby City Childminding Network - ZH | D144: EY458078 | E144: P | DW144: 180 | DX144: 210 | DY144: 180 | EA144: 570 | EC144: 2343 | ED144: EY458078 | EE144: 16 | EF144: 19 | EG144: 16 | EH144: 10 | EJ144: 0 | EK144: 0 | EL144: 0 | EM144: 0 | EN144: 0 | EO144: 0 | EP144: 0 | EQ144: 0 | ER144: 0 | ET144: 0 | EU144: 0 | EW144: 0 | EX144: 0 | EY144: 0 | EZ144: 0 | FB144: 2353 | FJ144: 2353
A145: EY350863 | B145: Derby City Childminding Network - ZB | D145: EY350863 | E145: P | DW145: 1740 | DX145: 2030 | DY145: 1800 | EA145: 5570 | EC145: 22893 | ED145: EY350863 | EE145: 211 | EF145: 246 | EG145: 218 | EH145: 135 | EJ145: 627 | EK145: 732 | EL145: 649 | EM145: 1205 | EN145: 282 | EO145: 328 | EP145: 291 | EQ145: 180 | ER145: 1385 | ET145: 0 | EU145: 0 | EW145: 710 | EX145: 828 | EY145: 735 | EZ145: 455 | FB145: 24868 | FJ145: 24868
A146: EY240925 | B146: Derby High School | D146: EY240925 | E146: P | DW146: 5760 | DX146: 6720 | DY146: 5760 | EA146: 18240 | EC146: 74966 | ED146: EY240925 | EE146: 401 | EF146: 468 | EG146: 401 | EH146: 254 | EJ146: 400 | EK146: 467 | EL146: 400 | EM146: 760 | EN146: 349 | EO146: 407 | EP146: 349 | EQ146: 221 | ER146: 981 | ET146: 0 | EU146: 0 | EW146: 331 | EX146: 386 | EY146: 331 | EZ146: 210 | FB146: 76411 | FJ146: 76411
A147: EY476012 | B147: Derby Montessori | D147: EY476012 | E147: P | DW147: 7644 | DX147: 6930 | DY147: 6840 | EA147: 21414 | EC147: 88012 | ED147: EY476012 | EE147: 1405 | EF147: 1274 | EG147: 1257 | EH147: 787 | EJ147: 1482 | EK147: 1344 | EL147: 1326 | EM147: 2491 | EN147: 3303 | EO147: 2994 | EP147: 2956 | EQ147: 1851 | ER147: 4342 | ET147: 0 | EU147: 0 | EW147: 1477 | EX147: 1339 | EY147: 1321 | EZ147: 827 | FB147: 93968 | FJ147: 93968
A148: EY460372 | B148: Derwent Stepping Stones At Brackensdale | D148: EY460372 | E148: P | DW148: 3888 | DX148: 4536 | DY148: 2988 | EA148: 11412 | EC148: 46903 | ED148: EY460372 | EE148: 933 | EF148: 1089 | EG148: 717 | EH148: 548 | EJ148: 1311 | EK148: 1530 | EL148: 1008 | EM148: 2309 | EN148: 2026 | EO148: 2364 | EP148: 1557 | EQ148: 1189 | ER148: 3498 | ET148: 0 | EU148: 0 | EW148: 0 | EX148: 0 | EY148: 0 | EZ148: 0 | FB148: 50949 | FJ148: 50949
A149: EY330097 | B149: Derwent Stepping Stones- St Marks Rd | D149: EY330097 | E149: P | DW149: 11160 | DX149: 9030 | DY149: 10260 | EA149: 30450 | EC149: 125150 | ED149: EY330097 | EE149: 2687 | EF149: 2174 | EG149: 2471 | EH149: 1466 | EJ149: 7021 | EK149: 5681 | EL149: 6455 | EM149: 11494 | EN149: 3131 | EO149: 2534 | EP149: 2879 | EQ149: 1709 | ER149: 13203 | ET149: 0 | EU149: 0 | EW149: 822 | EX149: 666 | EY149: 756 | EZ149: 449 | FB149: 140268 | FJ149: 140268
A150: EY421215 | B150: Diamond Day PDN | D150: EY421215 | E150: P | DW150: 8280 | DX150: 3150 | DY150: 6660 | EA150: 18090 | EC150: 74350 | ED150: EY421215 | EE150: 2092 | EF150: 796 | EG150: 1683 | EH150: 914 | EJ150: 2826 | EK150: 1075 | EL150: 2273 | EM150: 3704 | EN150: 3542 | EO150: 1348 | EP150: 2849 | EQ150: 1548 | ER150: 5252 | ET150: 0 | EU150: 0 | EW150: 571 | EX150: 217 | EY150: 460 | EZ150: 250 | FB150: 80766 | FJ150: 80766
A151: EY345674 | B151: Emmanuel School | D151: EY345674 | E151: P | DW151: 6477 | DX151: 4746 | DY151: 4026 | EA151: 15249 | EC151: 62673 | ED151: EY345674 | EE151: 904 | EF151: 662 | EG151: 562 | EH151: 426 | EJ151: 2646 | EK151: 1939 | EL151: 1645 | EM151: 3738 | EN151: 1271 | EO151: 931 | EP151: 790 | EQ151: 598 | ER151: 4336 | ET151: 0 | EU151: 0 | EW151: 256 | EX151: 188 | EY151: 159 | EZ151: 121 | FB151: 67556 | FJ151: 67556
A152: EY307423 | B152: Field Lane Playgroup Ltd | D152: EY307423 | E152: P | DW152: 5400 | DX152: 6580 | DY152: 6840 | EA152: 18820 | EC152: 77350 | ED152: EY307423 | EE152: 1271 | EF152: 1549 | EG152: 1610 | EH152: 886 | EJ152: 1916 | EK152: 2335 | EL152: 2427 | EM152: 4007 | EN152: 2795 | EO152: 3406 | EP152: 3540 | EQ152: 1948 | ER152: 5955 | ET152: 0 | EU152: 0 | EW152: 0 | EX152: 0 | EY152: 0 | EZ152: 0 | FB152: 84191 | FJ152: 84191
A153: 206106 | B153: First Friends Private Day Nursery | D153: 206106 | E153: P | DW153: 7344 | DX153: 5414 | DY153: 7044 | EA153: 19802 | EC153: 81386 | ED153: 206106 | EE153: 1554 | EF153: 1146 | EG153: 1491 | EH153: 838 | EJ153: 1933 | EK153: 1425 | EL153: 1854 | EM153: 3127 | EN153: 2408 | EO153: 1775 | EP153: 2310 | EQ153: 1299 | ER153: 4426 | ET153: 0 | EU153: 0 | EW153: 942 | EX153: 694 | EY153: 903 | EZ153: 508 | FB153: 87158 | FJ153: 87158
A154: EY539483 | B154: First Steps Early Years Centre | D154: EY539483 | E154: P | DW154: 9720 | DX154: 9450 | DY154: 13320 | EA154: 32490 | EC154: 133534 | ED154: EY539483 | EE154: 2490 | EF154: 2421 | EG154: 3413 | EH154: 1665 | EJ154: 7822 | EK154: 7604 | EL154: 10719 | EM154: 15687 | EN154: 2854 | EO154: 2775 | EP154: 3911 | EQ154: 1908 | ER154: 17595 | ET154: 0 | EU154: 0 | EW154: 391 | EX154: 380 | EY154: 535 | EZ154: 261 | FB154: 153055 | FJ154: 153055
A155: EY478943 | B155: Fun Time Nursery Limited | D155: EY478943 | E155: P | DW155: 7200 | DX155: 5600 | DY155: 7440 | EA155: 20240 | EC155: 83186 | ED155: EY478943 | EE155: 1326 | EF155: 1032 | EG155: 1370 | EH155: 746 | EJ155: 3169 | EK155: 2465 | EL155: 3274 | EM155: 5345 | EN155: 1652 | EO155: 1285 | EP155: 1707 | EQ155: 929 | ER155: 6274 | ET155: 0 | EU155: 0 | EW155: 2500 | EX155: 1944 | EY155: 2583 | EZ155: 1405 | FB155: 91611 | FJ155: 91611
A156: EY406182 | B156: Heatherton Pre-School | D156: EY406182 | E156: P | DW156: 3600 | DX156: 2940 | DY156: 3600 | EA156: 10140 | EC156: 41675 | ED156: EY406182 | EE156: 242 | EF156: 198 | EG156: 242 | EH156: 136 | EJ156: 74 | EK156: 61 | EL156: 74 | EM156: 125 | EN156: 285 | EO156: 233 | EP156: 285 | EQ156: 161 | ER156: 286 | ET156: 0 | EU156: 0 | EW156: 476 | EX156: 389 | EY156: 476 | EZ156: 268 | FB156: 42365 | FJ156: =EC156+EH156+ER156+EU156+EZ156+SUM(FD156:FH156) -> 42365
A157: EY539486 | B157: Homelands Early Years Centre | D157: EY539486 | E157: P | DW157: 7560 | DX157: 7359 | DY157: 8442 | EA157: 23361 | EC157: 96014 | ED157: EY539486 | EE157: 1504 | EF157: 1464 | EG157: 1680 | EH157: 930 | EJ157: 4530 | EK157: 4410 | EL157: 5058 | EM157: 8399 | EN157: 2727 | EO157: 2654 | EP157: 3045 | EQ157: 1685 | ER157: 10084 | ET157: 0 | EU157: 0 | EW157: 1030 | EX157: 1003 | EY157: 1151 | EZ157: 637 | FB157: 107665 | FJ157: 107665
A158: EY477956 | B158: Incredible Kids | D158: EY477956 | E158: P | DW158: 13631 | DX158: 8219 | DY158: 12757 | EA158: 34607 | EC158: 142235 | ED158: EY477956 | EE158: 3033 | EF158: 1829 | EG158: 2838 | EH158: 1540 | EJ158: 5724 | EK158: 3451 | EL158: 5357 | EM158: 8719 | EN158: 3799 | EO158: 2291 | EP158: 3555 | EQ158: 1929 | ER158: 10648 | ET158: 0 | EU158: 0 | EW158: 878 | EX158: 529 | EY158: 822 | EZ158: 446 | FB158: 154869 | FJ158: 154869
A159: 206134 | B159: King George V Pre-School | D159: 206134 | E159: P | DW159: 9072 | DX159: 8022 | DY159: 8064 | EA159: 25158 | EC159: 103399 | ED159: 206134 | EE159: 891 | EF159: 788 | EG159: 792 | EH159: 494 | EJ159: 1244 | EK159: 1100 | EL159: 1106 | EM159: 2070 | EN159: 800 | EO159: 708 | EP159: 711 | EQ159: 444 | ER159: 2514 | ET159: 0 | EU159: 0 | EW159: 765 | EX159: 676 | EY159: 680 | EZ159: 424 | FB159: 106831 | FJ159: 106831
A160: EY285337 | B160: Kingfisher Day Nurser Pre-School And A | D160: EY285337 | E160: P | DW160: 12565 | DX160: 9034 | DY160: 12355 | EA160: 33954 | EC160: 139551 | ED160: EY285337 | EE160: 1439 | EF160: 1034 | EG160: 1415 | EH160: 778 | EJ160: 1151 | EK160: 828 | EL160: 1132 | EM160: 1867 | EN160: 955 | EO160: 687 | EP160: 939 | EQ160: 516 | ER160: 2383 | ET160: 0 | EU160: 0 | EW160: 64 | EX160: 46 | EY160: 63 | EZ160: 35 | FB160: 142747 | FJ160: 142747
A161: EY371448 | B161: Kingfisher Day Nursery (2) | D161: EY371448 | E161: P | DW161: 6528 | DX161: 12740 | DY161: 9792 | EA161: 29060 | EC161: 119437 | ED161: EY371448 | EE161: 711 | EF161: 1387 | EG161: 1066 | EH161: 633 | EJ161: 1039 | EK161: 2027 | EL161: 1558 | EM161: 2774 | EN161: 1052 | EO161: 2054 | EP161: 1578 | EQ161: 937 | ER161: 3711 | ET161: 0 | EU161: 0 | EW161: 0 | EX161: 0 | EY161: 0 | EZ161: 0 | FB161: 123781 | FJ161: 123781
A162: 206109 | B162: La Petite Academy | D162: 206109 | E162: P | DW162: 12167 | DX162: 9147.5 | DY162: 10760 | EA162: 32074.5 | EC162: 131826 | ED162: 206109 | EE162: 1207 | EF162: 907 | EG162: 1067 | EH162: 636 | EJ162: 1063 | EK162: 799 | EL162: 940 | EM162: 1681 | EN162: 1448 | EO162: 1089 | EP162: 1280 | EQ162: 763 | ER162: 2444 | ET162: 0 | EU162: 0 | EW162: 713 | EX162: 536 | EY162: 631 | EZ162: 376 | FB162: 135282 | FJ162: 135282
A163: 206110 | B163: Leapfrog Day Nursery(1) | D163: 206110 | E163: P | DW163: 11976 | DX163: 10556 | DY163: 12972 | EA163: 35504 | EC163: 145921 | ED163: 206110 | EE163: 1287 | EF163: 1135 | EG163: 1394 | EH163: 763 | EJ163: 879 | EK163: 775 | EL163: 952 | EM163: 1564 | EN163: 2044 | EO163: 1802 | EP163: 2214 | EQ163: 1212 | ER163: 2776 | ET163: 0 | EU163: 0 | EW163: 770 | EX163: 679 | EY163: 834 | EZ163: 457 | FB163: 149917 | FJ163: 149917
A164: 206135 | B164: Leapfrogs Pre School | D164: 206135 | E164: P | DW164: 5058 | DX164: 4452 | DY164: 4788 | EA164: 14298 | EC164: 58765 | ED164: 206135 | EE164: 487 | EF164: 428 | EG164: 461 | EH164: 275 | EJ164: 276 | EK164: 243 | EL164: 261 | EM164: 468 | EN164: 1133 | EO164: 998 | EP164: 1073 | EQ164: 641 | ER164: 1109 | ET164: 0 | EU164: 0 | EW164: 171 | EX164: 151 | EY164: 162 | EZ164: 97 | FB164: 60246 | FJ164: 60246
A165: 509195 | B165: Little Acorns Nursery | D165: 509195 | E165: D | DW165: 6300 | DX165: 2520 | DY165: 3960 | EA165: 12780 | EC165: 52526 | ED165: 509195 | EE165: 898 | EF165: 359 | EG165: 565 | EH165: 364 | EJ165: 1414 | EK165: 566 | EL165: 889 | EM165: 1721 | EN165: 1937 | EO165: 775 | EP165: 1218 | EQ165: 786 | ER165: 2507 | ET165: 0 | EU165: 0 | EW165: 462 | EX165: 185 | EY165: 291 | EZ165: 188 | FB165: 55585 | FJ165: 55585
A166: EY492973 | B166: Little Owls Playgroup | D166: EY492973 | E166: P | DW166: 8820 | DX166: 7770 | DY166: 9180 | EA166: 25770 | EC166: 105915 | ED166: EY492973 | EE166: 2043 | EF166: 1800 | EG166: 2126 | EH166: 1194 | EJ166: 1094 | EK166: 963 | EL166: 1138 | EM166: 1917 | EN166: 5741 | EO166: 5057 | EP166: 5975 | EQ166: 3355 | ER166: 5272 | ET166: 0 | EU166: 0 | EW166: 1043 | EX166: 919 | EY166: 1086 | EZ166: 610 | FB166: 112991 | FJ166: 112991
A167: EY371611 | B167: Little Poppies Pre-School ( Royal British | D167: EY371611 | E167: P | DW167: 5976 | DX167: 5313 | DY167: 5064 | EA167: 16353 | EC167: 67211 | ED167: EY371611 | EE167: 388 | EF167: 345 | EG167: 329 | EH167: 212 | EJ167: 232 | EK167: 207 | EL167: 197 | EM167: 382 | EN167: 302 | EO167: 268 | EP167: 256 | EQ167: 165 | ER167: 547 | ET167: 0 | EU167: 0 | EW167: 0 | EX167: 0 | EY167: 0 | EZ167: 0 | FB167: 67970 | FJ167: 67970
A168: EY550368 | B168: Little Scholars Private Day Nursery(1) Sunnyhill | D168: EY550368 | E168: D | DW168: 7084 | DX168: 6133.5 | DY168: 6168 | EA168: 19385.5 | EC168: 79674 | ED168: EY550368 | EE168: 881 | EF168: 762 | EG168: 767 | EH168: 482 | EJ168: 1284 | EK168: 1111 | EL168: 1118 | EM168: 2108 | EN168: 2049 | EO168: 1774 | EP168: 1784 | EQ168: 1121 | ER168: 3229 | ET168: 0 | EU168: 0 | EW168: 2220 | EX168: 1922 | EY168: 1933 | EZ168: 1215 | FB168: 84600 | FJ168: 84600
A169: 509197 | B169: Little Scholars Private Day Nursery(2) Littleover | D169: 509197 | E169: P | DW169: 6240 | DX169: 5250 | DY169: 5400 | EA169: 16890 | EC169: 69418 | ED169: 509197 | EE169: 729 | EF169: 613 | EG169: 631 | EH169: 395 | EJ169: 876 | EK169: 737 | EL169: 758 | EM169: 1423 | EN169: 1400 | EO169: 1178 | EP169: 1212 | EQ169: 758 | ER169: 2181 | ET169: 0 | EU169: 0 | EW169: 402 | EX169: 339 | EY169: 348 | EZ169: 218 | FB169: 72212 | FJ169: 72212
A170: EY471706 | B170: Little Angels Playschool CIC | D170: EY471706 | E170: D | DW170: 6204 | DX170: 3150 | DY170: 5760 | EA170: 15114 | EC170: 62119 | ED170: EY471706 | EE170: 1639 | EF170: 832 | EG170: 1522 | EH170: 799 | EJ170: 4710 | EK170: 2391 | EL170: 4373 | EM170: 6884 | EN170: 1529 | EO170: 776 | EP170: 1420 | EQ170: 745 | ER170: 7629 | ET170: 0 | EU170: 0 | EW170: 924 | EX170: 469 | EY170: 858 | EZ170: 450 | FB170: 70997 | FJ170: 70997
A171: EY544417 | B171: Marble Hall Little Angels Day Nursery | D171: EY544417 | E171: D | DW171: 1920 | DX171: 3875 | DY171: 4800 | EA171: 10595 | EC171: 43545 | ED171: EY544417 | EE171: 505 | EF171: 1019 | EG171: 1262 | EH171: 557 | EJ171: 1920 | EK171: 3875 | EL171: 4800 | EM171: 6357 | EN171: 0 | EO171: 0 | EP171: 0 | EQ171: 0 | ER171: 6357 | ET171: 0 | EU171: 0 | EW171: 0 | EX171: 0 | EY171: 0 | EZ171: 0 | FB171: 50459 | FJ171: 50459
A172: 206117 | B172: Mary Poppins Day Nursery | D172: 206117 | E172: D | DW172: 12528 | DX172: 13874 | DY172: 15444 | EA172: 41846 | EC172: 171987 | ED172: 206117 | EE172: 841 | EF172: 931 | EG172: 1036 | EH172: 562 | EJ172: 182 | EK172: 201 | EL172: 224 | EM172: 364 | EN172: 868 | EO172: 961 | EP172: 1070 | EQ172: 580 | ER172: 944 | ET172: 0 | EU172: 0 | EW172: 0 | EX172: 0 | EY172: 0 | EZ172: 0 | FB172: 173493 | FJ172: 173493
A173: 206141 | B173: Mickleover Methodist Playgroup | D173: 206141 | E173: P | DW173: 4500 | DX173: 4074 | DY173: 4104 | EA173: 12678 | EC173: 52107 | ED173: 206141 | EE173: 263 | EF173: 238 | EG173: 240 | EH173: 148 | EJ173: 104 | EK173: 95 | EL173: 95 | EM173: 176 | EN173: 213 | EO173: 193 | EP173: 195 | EQ173: 120 | ER173: 296 | ET173: 0 | EU173: 0 | EW173: 310 | EX173: 281 | EY173: 283 | EZ173: 175 | FB173: 52726 | FJ173: 52726
A174: EY304261 | B174: Oak House Nursery | D174: EY304261 | E174: D | DW174: 13404 | DX174: 12642 | DY174: 14760 | EA174: 40806 | EC174: 167713 | ED174: EY304261 | EE174: 905 | EF174: 853 | EG174: 996 | EH174: 551 | EJ174: 377 | EK174: 355 | EL174: 415 | EM174: 688 | EN174: 1051 | EO174: 991 | EP174: 1157 | EQ174: 640 | ER174: 1328 | ET174: 0 | EU174: 0 | EW174: 257 | EX174: 243 | EY174: 283 | EZ174: 157 | FB174: 169749 | FJ174: 169749
A175: 258404 | B175: Oaktree Day Nursery | D175: 258404 | E175: P | DW175: 9900 | DX175: 7588 | DY175: 9540 | EA175: 27028 | EC175: 111085 | ED175: 258404 | EE175: 1658 | EF175: 1271 | EG175: 1598 | EH175: 905 | EJ175: 3541 | EK175: 2714 | EL175: 3412 | EM175: 5800 | EN175: 3611 | EO175: 2767 | EP175: 3479 | EQ175: 1971 | ER175: 7771 | ET175: 0 | EU175: 0 | EW175: 378 | EX175: 290 | EY175: 364 | EZ175: 206 | FB175: 119967 | FJ175: 119967
A176: 258405 | B176: Orchard Day Nursery And Nursery Scho | D176: 258405 | E176: D | DW176: 7920 | DX176: 5880 | DY176: 9144 | EA176: 22944 | EC176: 94300 | ED176: 258405 | EE176: 868 | EF176: 644 | EG176: 1002 | EH176: 503 | EJ176: 1816 | EK176: 1348 | EL176: 2097 | EM176: 3157 | EN176: 1636 | EO176: 1215 | EP176: 1889 | EQ176: 948 | ER176: 4105 | ET176: 0 | EU176: 0 | EW176: 311 | EX176: 231 | EY176: 359 | EZ176: 180 | FB176: 99088 | FJ176: 99088
A177: 258406 | B177: Orchard Nursery School(1) | D177: 258406 | E177: D | DW177: 12504 | DX177: 7679 | DY177: 11040 | EA177: 31223 | EC177: 128327 | ED177: 258406 | EE177: 1088 | EF177: 668 | EG177: 960 | EH177: 543 | EJ177: 770 | EK177: 473 | EL177: 680 | EM177: 1154 | EN177: 1362 | EO177: 836 | EP177: 1202 | EQ177: 680 | ER177: 1834 | ET177: 0 | EU177: 0 | EW177: 319 | EX177: 196 | EY177: 282 | EZ177: 159 | FB177: 130863 | FJ177: 130863
A178: 206160 | B178: Park Playgroup (the) | D178: 206160 | E178: P | DW178: 2088 | DX178: 462 | DY178: 1296 | EA178: 3846 | EC178: 15807 | ED178: 206160 | EE178: 310 | EF178: 69 | EG178: 193 | EH178: 114 | EJ178: 411 | EK178: 91 | EL178: 255 | EM178: 454 | EN178: 655 | EO178: 145 | EP178: 407 | EQ178: 241 | ER178: 695 | ET178: 0 | EU178: 0 | EW178: 0 | EX178: 0 | EY178: 0 | EZ178: 0 | FB178: 16616 | FJ178: 16616
A179: EY284120 | B179: Play & Learn | D179: EY284120 | E179: D | DW179: 12060 | DX179: 9303 | DY179: 10698 | EA179: 32061 | EC179: 131771 | ED179: EY284120 | EE179: 2383 | EF179: 1838 | EG179: 2114 | EH179: 1267 | EJ179: 5528 | EK179: 4264 | EL179: 4904 | EM179: 8818 | EN179: 5332 | EO179: 4113 | EP179: 4730 | EQ179: 2835 | ER179: 11653 | ET179: 0 | EU179: 0 | EW179: 4806 | EX179: 3707 | EY179: 4263 | EZ179: 2555 | FB179: 147246 | FJ179: 147246
A180: EY474393 | B180: Playcorner Nursery | D180: EY474393 | E180: D | DW180: 4500 | DX180: 3150 | DY180: 3600 | EA180: 11250 | EC180: 46238 | ED180: EY474393 | EE180: 959 | EF180: 672 | EG180: 768 | EH180: 480 | EJ180: 3646 | EK180: 2552 | EL180: 2917 | EM180: 5469 | EN180: 646 | EO180: 452 | EP180: 517 | EQ180: 323 | ER180: 5792 | ET180: 0 | EU180: 0 | EW180: 1706 | EX180: 1194 | EY180: 1365 | EZ180: 853 | FB180: 53363 | FJ180: 53363
A181: 206146 | B181: Playdays Opportunity Group | D181: 206146 | E181: D | DW181: 5520 | DX181: 4830 | DY181: 5280 | EA181: 15630 | EC181: 64239 | ED181: 206146 | EE181: 420 | EF181: 367 | EG181: 401 | EH181: 238 | EJ181: 193 | EK181: 169 | EL181: 184 | EM181: 328 | EN181: 848 | EO181: 742 | EP181: 812 | EQ181: 480 | ER181: 808 | ET181: 0 | EU181: 0 | EW181: 329 | EX181: 288 | EY181: 315 | EZ181: 186 | FB181: 65471 | FJ181: 65471
A182: EY370198 | B182: Positive Steps Childcare | D182: EY370198 | E182: D | DW182: 3060 | DX182: 2730 | DY182: 2700 | EA182: 8490 | EC182: 34894 | ED182: EY370198 | EE182: 645 | EF182: 575 | EG182: 569 | EH182: 358 | EJ182: 2529 | EK182: 2257 | EL182: 2232 | EM182: 4211 | EN182: 617 | EO182: 550 | EP182: 544 | EQ182: 342 | ER182: 4553 | ET182: 0 | EU182: 0 | EW182: 2408 | EX182: 2148 | EY182: 2125 | EZ182: 1336 | FB182: 41141 | FJ182: 41141
A183: EY283239 | B183: Riverside Day Nursery - Asquith Court | D183: EY283239 | E183: D | DW183: 8868 | DX183: 6146 | DY183: 6885 | EA183: 21899 | EC183: 90005 | ED183: EY283239 | EE183: 1500 | EF183: 1040 | EG183: 1165 | EH183: 741 | EJ183: 2362 | EK183: 1637 | EL183: 1833 | EM183: 3499 | EN183: 1775 | EO183: 1230 | EP183: 1378 | EQ183: 877 | ER183: 4376 | ET183: 0 | EU183: 0 | EW183: 234 | EX183: 162 | EY183: 182 | EZ183: 116 | FB183: 95238 | FJ183: 95238
A184: EY539485 | B184: Rosehill Early Years Centre | D184: EY539485 | E184: P | DW184: 7896 | DX184: 7056 | DY184: 5616 | EA184: 20568 | EC184: 84534 | ED184: EY539485 | EE184: 1651 | EF184: 1475 | EG184: 1174 | EH184: 860 | EJ184: 6614 | EK184: 5910 | EL184: 4704 | EM184: 10337 | EN184: 2003 | EO184: 1790 | EP184: 1425 | EQ184: 1044 | ER184: 11381 | ET184: 0 | EU184: 0 | EW184: 5123 | EX184: 4578 | EY184: 3644 | EZ184: 2669 | FB184: 99444 | FJ184: 99444
A185: 113044 | B185: Royal School For The Deaf | D185: 113044 | E185: D | DW185: 180 | DX185: 0 | DY185: 0 | EA185: 180 | EC185: 740 | ED185: 113044 | EE185: 23 | EF185: 0 | EG185: 0 | EH185: 5 | EJ185: 180 | EK185: 0 | EL185: 0 | EM185: 108 | EN185: 0 | EO185: 0 | EP185: 0 | EQ185: 0 | ER185: 108 | ET185: 0 | EU185: 0 | EW185: 0 | EX185: 0 | EY185: 0 | EZ185: 0 | FB185: 853 | FJ185: 853
A186: EY370254 | B186: Rydale Childrens Centre P D N | D186: EY370254 | E186: D | DW186: 11842 | DX186: 9345 | DY186: 10004 | EA186: 31191 | EC186: 128195 | ED186: EY370254 | EE186: 2583 | EF186: 2038 | EG186: 2182 | EH186: 1361 | EJ186: 2795 | EK186: 2205 | EL186: 2361 | EM186: 4417 | EN186: 5550 | EO186: 4380 | EP186: 4689 | EQ186: 2924 | ER186: 7341 | ET186: 0 | EU186: 0 | EW186: 452 | EX186: 357 | EY186: 382 | EZ186: 238 | FB186: 137135 | FJ186: 137135
A187: EY481412 | B187: Scallywags Nursery | D187: EY481412 | E187: D | DW187: 12087 | DX187: 7494 | DY187: 11376 | EA187: 30957 | EC187: 127233 | ED187: EY481412 | EE187: 1087 | EF187: 674 | EG187: 1023 | EH187: 557 | EJ187: 154 | EK187: 95 | EL187: 144 | EM187: 236 | EN187: 1062 | EO187: 659 | EP187: 1000 | EQ187: 544 | ER187: 780 | ET187: 0 | EU187: 0 | EW187: 0 | EX187: 0 | EY187: 0 | EZ187: 0 | FB187: 128570 | FJ187: 128570
A188: EY541492 | B188: Shelton Lock Pre-School | D188: EY541492 | E188: P | DW188: 2652 | DX188: 791 | DY188: 1932 | EA188: 5375 | EC188: 22091 | ED188: EY541492 | EE188: 454 | EF188: 135 | EG188: 331 | EH188: 184 | EJ188: 1003 | EK188: 299 | EL188: 731 | EM188: 1220 | EN188: 977 | EO188: 291 | EP188: 712 | EQ188: 396 | ER188: 1616 | ET188: 0 | EU188: 0 | EW188: 241 | EX188: 72 | EY188: 176 | EZ188: 98 | FB188: 23989 | FJ188: =EC188+EH188+ER188+EU188+EZ188+SUM(FD188:FH188) -> 23989
A189: EY500690 | B189: Shining Stars Day Nursery | D189: EY500690 | E189: P | DW189: 4680 | DX189: 4410 | DY189: 4140 | EA189: 13230 | EC189: 54375 | ED189: =D189 -> EY500690 | EE189: 973 | EF189: 916 | EG189: 860 | EH189: 550 | EJ189: 3478 | EK189: 3277 | EL189: 3076 | EM189: 5899 | EN189: 1073 | EO189: 1011 | EP189: 949 | EQ189: 607 | ER189: 6506 | ET189: 0 | EU189: 0 | EW189: 2420 | EX189: 2281 | EY189: 2141 | EZ189: 1368 | FB189: 62799 | FJ189: 62799
A190: EY282326 | B190: Silver Trees Private Day Nursery | D190: EY282326 | E190: D | DW190: 10539 | DX190: 9660 | DY190: 9090 | EA190: 29289 | EC190: 120378 | ED190: EY282326 | EE190: 1590 | EF190: 1458 | EG190: 1372 | EH190: 884 | EJ190: 3034 | EK190: 2781 | EL190: 2617 | EM190: 5059 | EN190: 4177 | EO190: 3828 | EP190: 3602 | EQ190: 2321 | ER190: 7380 | ET190: 0 | EU190: 0 | EW190: 100 | EX190: 92 | EY190: 86 | EZ190: 56 | FB190: 128698 | FJ190: 128698
A191: EY279508 | B191: Sinfin Community Childcare | D191: EY279508 | E191: D | DW191: 11328 | DX191: 6523 | DY191: 7284 | EA191: 25135 | EC191: 103305 | ED191: EY279508 | EE191: 2627 | EF191: 1513 | EG191: 1689 | EH191: 1166 | EJ191: 6749 | EK191: 3886 | EL191: 4340 | EM191: 8985 | EN191: 2684 | EO191: 1545 | EP191: 1726 | EQ191: 1191 | ER191: 10176 | ET191: 0 | EU191: 0 | EW191: 382 | EX191: 220 | EY191: 245 | EZ191: 169 | FB191: 114816 | FJ191: 114816
A192: EY456892 | B192: Sinfin Community Childcare at SCILLS Community Centre | D192: EY456892 | E192: P | DW192: 4320 | DX192: 3570 | DY192: 4860 | EA192: 12750 | EC192: 52403 | ED192: EY456892 | EE192: 1053 | EF192: 870 | EG192: 1184 | EH192: 621 | EJ192: 2579 | EK192: 2131 | EL192: 2901 | EM192: 4567 | EN192: 728 | EO192: 602 | EP192: 819 | EQ192: 430 | ER192: 4997 | ET192: 0 | EU192: 0 | EW192: 187 | EX192: 154 | EY192: 210 | EZ192: 110 | FB192: 58131 | FJ192: 58131
A193: EY541153 | B193: St Andrew's Pre-School Playgroup | D193: EY541153 | E193: P | DW193: 5580 | DX193: 5460 | DY193: 5160 | EA193: 16200 | EC193: 66582 | ED193: EY541153 | EE193: 608 | EF193: 595 | EG193: 562 | EH193: 353 | EJ193: 503 | EK193: 492 | EL193: 465 | EM193: 876 | EN193: 1507 | EO193: 1475 | EP193: 1394 | EQ193: 875 | ER193: 1751 | ET193: 0 | EU193: 0 | EW193: 1561 | EX193: 1527 | EY193: 1443 | EZ193: 906 | FB193: 69592 | FJ193: 69592
A194: EY535976 | B194: St Edmunds Pre-School And Playgroup | D194: EY535976 | E194: P | DW194: 4932 | DX194: 3402 | DY194: 3348 | EA194: 11682 | EC194: 48013 | ED194: EY535976 | EE194: 219 | EF194: 151 | EG194: 149 | EH194: 104 | EJ194: 268 | EK194: 185 | EL194: 182 | EM194: 381 | EN194: 105 | EO194: 72 | EP194: 71 | EQ194: 50 | ER194: 431 | ET194: 0 | EU194: 0 | EW194: 143 | EX194: 99 | EY194: 97 | EZ194: 68 | FB194: 48616 | FJ194: 48616
A195: 206154 | B195: St Joseph's R. C. Pre-School | D195: 206154 | E195: P | DW195: 10656 | DX195: 9324 | DY195: 9252 | EA195: 29232 | EC195: 120144 | ED195: 206154 | EE195: 2172 | EF195: 1900 | EG195: 1886 | EH195: 1192 | EJ195: 6357 | EK195: 5563 | EL195: 5520 | EM195: 10464 | EN195: 3678 | EO195: 3219 | EP195: 3194 | EQ195: 2018 | ER195: 12482 | ET195: 0 | EU195: 0 | EW195: 5471 | EX195: 4787 | EY195: 4750 | EZ195: 3002 | FB195: 136820 | FJ195: 136820
A196: EY395637 | B196: St Paul's Church Hall Pre-School | D196: EY395637 | E196: D | DW196: 1872 | DX196: 1918 | DY196: 2124 | EA196: 5914 | EC196: 24307 | ED196: EY395637 | EE196: 261 | EF196: 267 | EG196: 296 | EH196: 165 | EJ196: 411 | EK196: 421 | EL196: 466 | EM196: 779 | EN196: 858 | EO196: 879 | EP196: 973 | EQ196: 542 | ER196: 1321 | ET196: 0 | EU196: 0 | EW196: 553 | EX196: 567 | EY196: 627 | EZ196: 349 | FB196: 26142 | FJ196: 26142
A197: EY484523 | B197: Sunny Days Nursery | D197: EY484523 | E197: P | DW197: 6516 | DX197: 7602 | DY197: 6876 | EA197: 20994 | EC197: 86285 | ED197: EY484523 | EE197: 815 | EF197: 950 | EG197: 860 | EH197: 525 | EJ197: 687 | EK197: 801 | EL197: 725 | EM197: 1328 | EN197: 2525 | EO197: 2946 | EP197: 2664 | EQ197: 1627 | ER197: 2955 | ET197: 0 | EU197: 0 | EW197: 454 | EX197: 529 | EY197: 479 | EZ197: 292 | FB197: 90057 | FJ197: 90057
A198: EY100960 | B198: The Cottage Private Day Nursery Uttoxeter Road | D198: EY100960 | E198: P | DW198: 9120 | DX198: 7861 | DY198: 9120 | EA198: 26101 | EC198: 107275 | ED198: EY100960 | EE198: 881 | EF198: 759 | EG198: 881 | EH198: 504 | EJ198: 348 | EK198: 300 | EL198: 348 | EM198: 598 | EN198: 316 | EO198: 272 | EP198: 316 | EQ198: 181 | ER198: 779 | ET198: 0 | EU198: 0 | EW198: 335 | EX198: 288 | EY198: 335 | EZ198: 192 | FB198: 108750 | FJ198: 108750
A199: 206103 | B199: The Cottage Private Day Nursery(3) | D199: 206103 | E199: D | DW199: 11286 | DX199: 10451 | DY199: 11310 | EA199: 33047 | EC199: 135823 | ED199: 206103 | EE199: 1757 | EF199: 1627 | EG199: 1761 | EH199: 1029 | EJ199: 1499 | EK199: 1388 | EL199: 1502 | EM199: 2633 | EN199: 3531 | EO199: 3270 | EP199: 3539 | EQ199: 2068 | ER199: 4701 | ET199: 0 | EU199: 0 | EW199: 348 | EX199: 322 | EY199: 348 | EZ199: 204 | FB199: 141757 | FJ199: 141757
A200: EY495633 | B200: The Faraway Tree Day Nursery | D200: EY495633 | E200: D | DW200: 3570 | DX200: 2189 | DY200: 3060 | EA200: 8819 | EC200: 36246 | ED200: EY495633 | EE200: 672 | EF200: 412 | EG200: 576 | EH200: 332 | EJ200: 922 | EK200: 565 | EL200: 790 | EM200: 1366 | EN200: 1812 | EO200: 1111 | EP200: 1554 | EQ200: 895 | ER200: 2261 | ET200: 0 | EU200: 0 | EW200: 223 | EX200: 137 | EY200: 191 | EZ200: 110 | FB200: 38949 | FJ200: 38949
A201: EY103452 | B201: The Orchard Garden Private Day Nurser | D201: EY103452 | E201: D | DW201: 12705 | DX201: 9800 | DY201: 10329 | EA201: 32834 | EC201: 134948 | ED201: EY103452 | EE201: 2545 | EF201: 1963 | EG201: 2069 | EH201: 1315 | EJ201: 7430 | EK201: 5731 | EL201: 6040 | EM201: 11521 | EN201: 4829 | EO201: 3725 | EP201: 3926 | EQ201: 2496 | ER201: 14017 | ET201: 0 | EU201: 0 | EW201: 750 | EX201: 578 | EY201: 609 | EZ201: 387 | FB201: 150667 | FJ201: 150667
... 20 more rows

Sheet Special Schools 2018-19 (hidden)
A1: Special Schools Funding
K2: NO of places | S2: 10000
A3: School | B3: School Type | C3: DfE Ref | D3: Phase | E3: 2018/19 places as per SLA - Pre/post 16 | F3: Banding 2018/19 | G3: Banding2019/20 | H3: Banding 2020/21 | J3: PRU | K3: DCC Pre 16 | L3: DCC Post 16 | M3: Other LA Pre 16 | N3: Other LA Post 16 | O3: Total | P3: Vacant Places (Neg - empty places. Pos - add children no place funding) | Q3: TOTAL including VACANT places | S3: Element 1 & 2 (Place Funding) | T3: Pre-16 Element 3 (Top Up Funding DCC) | U3: Post-16 Element 3 (Top Up Funding DCC) | V3: Total Element 3 (Top Up Funding DCC) | W3: Residential Provision | X3: Exceptional Payments (based on 17/18 payments | Y3: Other Adjustments | Z3: PFI | AA3: TOTAL DCC | AB3: Element 3 (Top Up Funding Other LA) | AC3: Total School Funding | AD3: Vacant top up funding (element 3) | AE3: Comments | AF3: Check to individual sheets | AG3: Variance | AI3: 2017/18 Budget incl OOA | AJ3: Variance | AK3: 2017/18 Budget excl OOA | AL3: Variance
AE4: if + vacant places then more children - up places and £10k placement?
A6: Ivy House School | B6: Profound and Multi Learning Difficulties | C6: 7026 | D6: All | E6: 81 | F6: 15916 | G6: 15916 | H6: 15916 | K6: 67 | L6: 12 | M6: 1 | N6: 2 | O6: 82 | P6: 1 | Q6: 82 | S6: 820000 | T6: =K6*F6 -> 1066372 | U6: =L6*F6 -> 190992 | V6: =SUM(T6:U6) -> 1257364 | X6: 90000 | AA6: 2167364 | AB6: 47748 | AC6: 2215112 | AD6: 0 | AF6: 2215112 | AG6: 0 | AI6: 2106496 | AJ6: 108616 | AK6: 2062082 | AL6: 105282
A7: St Andrews School - Day | B7: Severe Learning Difficulties | C7: 7027 | D7: Secondary | E7: 101 | F7: 10500 | G7: 10500 | H7: 10500 | K7: =53+6 -> 59 | L7: 33 | M7: 5 | N7: 4 | O7: =SUM(K7:N7) -> 101 | P7: -6 | Q7: 101 | S7: 1010000 | T7: =(K7+P7)*F7 -> 556500 | U7: =L7*F7 -> 346500 | V7: =SUM(T7:U7) -> 903000 | X7: 0 | AA7: 1913000 | AB7: 94500 | AC7: 2007500 | AD7: 63000 | AF7: 2007500 | AG7: 0 | AI7: 2092524 | AJ7: -85024 | AK7: 1996338 | AL7: -83338
A8: St Andrews School - Residential | B8: Severe Learning Difficulties | C8: 7027 | D8: Secondary | E8: 12 | F8: 21000 | G8: 21000 | H8: 21000 | M8: 0 | O8: 12 | P8: 0 | Q8: 12 | T8: =K8*F8 -> 0 | U8: 0 | V8: 0 | W8: =120000+252000 -> 372000 | AA8: 372000 | AB8: 0 | AC8: 372000 | AD8: 0 | AI8: 376295 | AJ8: -4295 | AK8: 376295 | AL8: -4295
A9: St Clares School | B9: Severe Learning Difficulties | C9: 7025 | D9: Secondary | E9: 106 | F9: 6500 | G9: 8000 | H9: 10500 | K9: 103 | L9: 2 | M9: 14 | N9: 0 | O9: 119 | P9: 13 | Q9: 119 | S9: 1190000 | T9: 669500 | U9: 13000 | V9: 682500 | X9: 10000 | AA9: 1882500 | AB9: 91000 | AC9: 1973500 | AD9: 0 | AF9: 1973500 | AG9: 0 | AI9: 1610244 | AJ9: 363256 | AK9: 1569892 | AL9: 312608
A10: St Giles School | B10: Severe Learning Difficulties | C10: 7024 | D10: Primary | E10: 111 | F10: 11000 | G10: 10800 | H10: 10500 | K10: 112 | M10: 2 | O10: 114 | P10: 3 | Q10: 114 | S10: 1140000 | T10: 1232000 | U10: 0 | V10: 1232000 | X10: 20000 | AA10: 2392000 | AB10: 22000 | AC10: 2414000 | AD10: 0 | AF10: 2414000 | AG10: 0 | AI10: 2347538 | AJ10: 66462 | AK10: 2316204 | AL10: 75796
A11: St Martins School & Horizons | B11: Severe Learning Difficulties | C11: 7021 | D11: Secondary | E11: 144 | F11: 9000 | G11: 10000 | H11: 10500 | K11: =114-7 -> 107 | L11: 33 | M11: 11 | N11: 5 | O11: =SUM(K11:N11) -> 156 | P11: 19 | Q11: 163 | S11: 1560000 | T11: =(K11+7)*F11 -> 1026000 | U11: 297000 | V11: 1323000 | X11: 11667 | Z11: 91475.0416 | AA11: 2986142.042 | AB11: 144000 | AC11: 3130142.042 | AD11: 0 | AF11: 3038667 | AG11: 91475.0416 | AI11: 2790698 | AJ11: 339444.0416 | AK11: 2728079.72 | AL11: 258062.3216
O12: 0
A13: The Kingsmead School | B13: Social Emotional and Mental Heath | C13: 7029 | D13: Secondary | E13: 80 | F13: 17735 | G13: 17735 | H13: 17735 | K13: 80 | O13: 80 | P13: 0 | Q13: 80 | S13: 800000 | T13: =K13*F13 -> 1418800 | U13: =L13*F13 -> 0 | V13: =SUM(T13:U13) -> 1418800 | AA13: 2218800 | AB13: 0 | AC13: 2218800 | AD13: 0 | AI13: 2218796.964 | AJ13: 3.036310243 | AK13: 2218796.964 | AL13: 3.036310243
A14: KS 1/2 PRU | C14: 1104 | D14: Primary | E14: 36 | F14: 14194.44 | G14: 14194.44 | H14: 14194.44 | J14: 36 | O14: 36 | P14: 0 | Q14: 36 | S14: 360000 | T14: =J14*F14 -> 510999.84 | U14: 0 | V14: =SUM(T14:U14) -> 510999.84 | AA14: 870999.84 | AB14: 0 | AC14: 870999.84 | AD14: 0 | AI14: 870999.84 | AJ14: 0 | AK14: 870999.84 | AL14: 0
A15: KS 3/4 PRU | C15: 1103 | D15: Secondary | E15: 60 | F15: 16389.42 | G15: 16389.42 | H15: 16389.42 | J15: 60 | O15: 60 | P15: 0 | Q15: 60 | S15: 600000 | T15: =J15*F15 -> 983365.2 | U15: 0 | V15: =SUM(T15:U15) -> 983365.2 | AA15: 1583365.2 | AB15: 0 | AC15: 1583365.2 | AD15: 0 | AI15: 1583365.2 | AJ15: 0 | AK15: 1583365.2 | AL15: 0
A17: Total | C17: All | E17: 731 | J17: =SUM(J6:J15) -> 96 | K17: =SUM(K6:K15) -> 528 | L17: 80 | M17: 33 | N17: 11 | O17: =SUM(O6:O15) -> 760 | P17: 30 | Q17: 767 | R17: 0 | S17: =SUM(S6:S15) -> 7480000 | T17: =SUM(T6:T15) -> 7463537.04 | U17: =SUM(U6:U15) -> 847492 | V17: =SUM(V6:V15) -> 8311029.04 | W17: =SUM(W6:W15) -> 372000 | X17: 131667 | Y17: 0 | Z17: 91475.0416 | AA17: 16386171.08 | AB17: 399248 | AC17: 16785419.08 | AD17: 63000 | AE17: 0 | AF17: 11648779 | AG17: 91475.0416 | AH17: 0 | AI17: 15996957 | AJ17: 788462.0779 | AK17: 15722052.72 | AL17: 664118.3579
A19: Lookup table for year group
A20: 2 yr old | B20: Pre 16
A21: Nursery 1 | B21: Pre 16
A22: Nursery 2 | B22: Pre 16
A23: Reception | B23: Pre 16
A24: NC Year 1 | B24: Pre 16
A25: NC Year 2 | B25: Pre 16
A26: NC Year 3 | B26: Pre 16
A27: NC Year 4 | B27: Pre 16
A28: NC Year 5 | B28: Pre 16
A29: NC Year 6 | B29: Pre 16
A30: NC Year 7 | B30: Pre 16
A31: NC Year 8 | B31: Pre 16
A32: NC Year 9 | B32: Pre 16
A33: NC Year 10 | B33: Pre 16
A34: NC Year 11 | B34: Pre 16
A35: NC Year 12 | B35: Post 16
A36: NC Year 13 | B36: Post 16
A37: NC Year 14 | B37: Post 16

Sheet ERS 2018-19 (hidden)
A1: ERS Funding
J2: NO of places
A3: School | B3: DfE | C3: School Type | D3: Phase | E3: 2018/19 places as per SLA - Pre/post 16 | F3: Banding 2018/19 | G3: Banding2019/20 | H3: Banding 2020/21 | J3: Nursery | K3: DCC Pre 16 | L3: Other LA Pre 16 | M3: DCC Post 16 | N3: Total | O3: Vacant Places | P3: TOTAL including VACANT places | R3: Element 1 & 2 (Place Funding) | S3: Element 3 (Top Up Funding DCC) | T3: Exceptional Payments | U3: Other Adjustments - included in Column T | V3: PFI | W3: TOTAL DCC | X3: Element 3 (Top Up Funding Other LA) | Y3: Total School Funding | Z3: Vacant top up funding (element 3) | AA3: comments | AB3: Check to individual sheets | AC3: Variance | AE3: 2017/18 Budget incl OOA (place funding reduced to £6k for comparison) | AF3: Variance | AG3: 2017/18 Budget excl OOA (place funding reduced to £6k for comparison) | AH3: Variance
R4: 6000
R5: 0
A6: Allestree Woodlands Community School | B6: 5414 | C6: Hearing impairment | D6: Secondary | E6: 14 | F6: 6000 | G6: 6000 | H6: 6000 | K6: 13 | L6: 1 | N6: =SUM(J6:L6) -> 14 | O6: -1 | P6: 14 | R6: 84000 | S6: 72000 | T6: 0 | W6: 156000 | X6: 6000 | Y6: 162000 | Z6: 6000 | AB6: 162000 | AC6: 0 | AE6: 159143.68 | AF6: 2856.32 | AG6: 148604.18 | AH6: 7395.82 | AI6: 10539.5
A7: Alvaston Junior Community School | B7: 2442 | C7: Social Emotional and Mental Heath | D7: Primary | E7: 12 | F7: 5500 | G7: 5500 | H7: 5500 | K7: 12 | L7: 0 | N7: =SUM(J7:L7) -> 12 | O7: -2 | P7: 12 | R7: 72000 | S7: 55000 | T7: 0 | W7: 127000 | X7: 0 | Y7: 127000 | Z7: 11000 | AB7: 127000 | AC7: 0 | AE7: 127912.54 | AF7: -912.54 | AG7: 127912.54 | AH7: -912.54 | AI7: 0
A8: Brackensdale Infant School | B8: 2432 | C8: Communication and Interaction ASD | D8: Primary | E8: 20 | F8: 8000 | G8: 8000 | H8: 8000 | K8: 20 | L8: 0 | N8: 20 | O8: 0 | P8: 20 | R8: 120000 | S8: 160000 | T8: 0 | W8: 280000 | X8: 0 | Y8: 280000 | Z8: 0 | AC8: 280000 | AI8: 0
A9: Brackensdale Junior School | B9: 2432 | C9: Communication and Interaction ASD | D9: Primary | E9: 37 | F9: 8700 | G9: 8400 | H9: 8000 | K9: 37 | L9: 0 | N9: 37 | O9: 0 | P9: 37 | R9: 222000 | S9: 301600 | T9: 0 | W9: 523600 | X9: 0 | Y9: 523600 | Z9: 0 | AB9: 803600 | AC9: -280000 | AE9: 815483.3 | AF9: -11883.3 | AG9: 804069.12 | AH9: -469.12 | AI9: 11414.18
A10: Lees Brook Community | B10: 4181 | C10: Social Emotional and Mental Heath | D10: Secondary | E10: 16 | F10: 5500 | G10: 5500 | H10: 5500 | K10: =7+9 -> 16 | L10: 0 | N10: 16 | O10: -9 | P10: 16 | R10: 96000 | S10: 38500 | T10: 0 | W10: 134500 | X10: 0 | Y10: 134500 | Z10: 49500 | AB10: 134500 | AC10: 0 | AE10: 166459.02 | AF10: -31959.02 | AG10: 161645.325 | AH10: -27145.325 | AI10: 4813.695
A11: Lees Brook Community - Post 16 | B11: 4181 | C11: Social Emotional and Mental Heath | D11: Secondary | E11: 4 | F11: 5500 | G11: 5500 | H11: 5500 | K11: 0 | L11: 0 | M11: 4 | N11: =SUM(J11:M11) -> 4 | O11: -1 | P11: 4 | R11: 24000 | S11: 16500 | T11: 0 | W11: 40500 | X11: 0 | Y11: 40500 | Z11: 5500 | AB11: 40500 | AC11: 0 | AE11: 15522.52 | AF11: 24977.48 | AG11: 15522.52 | AH11: 24977.48
A12: Markeaton Primary School | B12: 2436 | C12: Visual Impairment | D12: Primary | E12: 4 | F12: 22980 | G12: 22980 | H12: 22980 | K12: 4 | L12: 0 | N12: 4 | O12: -1 | P12: 4 | R12: 24000 | S12: 68940 | T12: 0 | W12: 92940 | X12: 0 | Y12: 92940 | Z12: 22980 | AB12: 92940 | AC12: 0 | AE12: 115920.2 | AF12: -22980.2 | AG12: 115920.2 | AH12: -22980.2 | AI12: 0
A13: Reigate Primary School | B13: 2000 | C13: Hearing impairment | D13: Primary | E13: 26 | F13: 6000 | G13: 6000 | H13: 6000 | K13: =17+7 -> 24 | L13: 2 | N13: 26 | O13: -7 | P13: 26 | R13: 156000 | S13: 102000 | T13: 0 | W13: 258000 | X13: 12000 | Y13: 270000 | Z13: 42000 | AB13: 270000 | AC13: 0 | AE13: 269632.555 | AF13: 367.445 | AG13: 265869.855 | AH13: -7869.855 | AI13: 3762.7
A14: Saint Benedict Catholic School | B14: 4607 | C14: Visual Impairment | D14: Secondary | E14: 20 | F14: 10000 | G14: 10000 | H14: 10000 | K14: 16 | L14: 4 | N14: 20 | O14: -1 | P14: 20 | R14: 120000 | S14: 150000 | T14: =2662+25000 -> 27662 | W14: 297662 | X14: 40000 | Y14: 337662 | Z14: 10000 | AA14: Parapetetic teacher?? | AB14: 312662 | AC14: 25000 | AD14: OK - teacher | AE14: 287690.17 | AF14: 49971.83 | AG14: 239298.96 | AH14: 58363.04 | AI14: 48391.21
A15: Saint Benedict Catholic School - Post 16 | B15: 4607 | C15: Visual Impairment | D15: Secondary | E15: 5 | F15: 10000 | G15: 10000 | H15: 10000 | K15: 0 | L15: 0 | M15: 5 | N15: =SUM(J15:M15) -> 5 | O15: -1 | P15: 5 | R15: 30000 | S15: 20000 | T15: 0 | W15: 50000 | X15: 20000 | Y15: 70000 | Z15: 10000 | AB15: 70000 | AC15: 0 | AE15: 89727 | AF15: -19727 | AG15: 69208 | AH15: -19208
A16: Springfield | B16: 2466 | C16: Communication and Interaction ASD | D16: Primary | E16: 19 | F16: 8000 | G16: 8000 | H16: 8000 | K16: 19 | L16: 0 | N16: 19 | O16: 1 | P16: 20 | R16: 114000 | S16: 160000 | T16: 0 | W16: 274000 | X16: 0 | Y16: 274000 | Z16: 0 | AB16: 274000 | AC16: 0 | AE16: 272208.73 | AF16: 1791.27 | AG16: 272208.73 | AH16: 1791.27 | AI16: 0
A17: The Bemrose Community School | B17: 4177 | C17: Communication and Interaction ASD | D17: Secondary | E17: 45 | F17: 9000 | G17: 9000 | H17: 9000 | K17: =30+15 -> 45 | L17: 0 | N17: 45 | O17: -15 | P17: 45 | R17: 270000 | S17: 270000 | T17: 0 | W17: 540000 | X17: 0 | Y17: 540000 | Z17: 135000 | AB17: 540000 | AC17: 0 | AE17: 548676.965 | AF17: -8676.965 | AG17: 548676.965 | AH17: -8676.965 | AI17: 0
A18: Central Nursery | B18: 1006 | D18: Nursery | E18: 14.2055 | J18: 14.2055 | N18: 14.2055 | O18: 0 | P18: 14.2055 | R18: 142055 | S18: 0 | W18: 142055 | Y18: 142055 | Z18: 0 | AB18: 0 | AC18: 142055 | AE18: 142055 | AF18: 0 | AG18: 142055 | AH18: 0 | AI18: 0
A19: Lord St Nursery | B19: 1005 | D19: Nursery | E19: 11 | J19: 11 | N19: 11 | O19: 0 | P19: 11 | R19: 110000 | S19: 0 | W19: 110000 | Y19: 110000 | Z19: 0 | AB19: 0 | AC19: 110000 | AE19: 110000 | AF19: 0 | AG19: 110000 | AH19: 0 | AI19: 0
A20: Lakeside | B20: 2434 | E20: 7 | F20: 0 | G20: 0 | H20: 0 | K20: 7 | L20: 0 | N20: 7 | O20: 0 | P20: 7 | R20: 42000 | S20: 0 | T20: 0 | W20: 42000 | X20: 0 | Y20: 42000 | Z20: 0 | AB20: 0 | AC20: 42000 | AE20: 60000 | AF20: -18000 | AG20: 60000 | AH20: -18000 | AI20: 0
A22: Total | B22: All | E22: 254.2055 | J22: =SUM(J6:J20) -> 25.2055 | K22: =SUM(K6:K20) -> 213 | L22: =SUM(L6:L20) -> 7 | M22: =SUM(M6:M20) -> 9 | N22: =SUM(N6:N20) -> 254.2055 | O22: -37 | P22: 255.2055 | R22: 1626055 | S22: 1414540 | T22: =SUM(T6:T20) -> 27662 | V22: 0 | W22: =SUM(W6:W20) -> 3068257 | X22: 78000 | Y22: 3146257 | Z22: 291980 | AB22: 2827202 | AC22: 319055 | AE22: 3204431.68 | AF22: -58174.68 | AG22: 3104991.395 | AH22: -36734.395
R23: 0
O26: 38 vacant places at £4k | R26: 300000 | S26: Academy place funding - pre 16 | AE26: 3204431.68 | AG26: 3104991.395
R27: 54000 | S27: Academy place funding - post 16 | AE27: 0 | AG27: 0
R29: Breakdown of full and vacant places
S30: Places | T30: £ Element 2 / HN | U30: £ Element 1 / APWU | V30: TOTAL E1 & 2
R31: Full Places | S31: 191 | T31: 1146000 | U31: 764000 | V31: 1910000
R32: Vacant Places | S32: 38 | T32: 380000 | U32: 0 | V32: 380000
R33: Total Funded | S33: 229 | T33: 1526000 | U33: 764000 | V33: 2290000
A34: Brackensdale transition by March 2020 | T34: 100055

Sheet School & Nursery Setting Lookup (hidden)
A1: CLICK ON THE ARROW BUTTON TO SELECT YOUR SCHOOL FROM THE LIST | C1: 12345 | I1: CLICK ON THE ARROW BUTTON TO SELECT YOUR SCHOOL FROM THE LIST | K1: 12345
A2: All Schools | C2: All | D2: 6 | E2: 6 | I2: All Schools | K2: All | L2: 6 | M2: 6
A3: Ace Nursery | C3: 206189 | D3: D | E3: 4 | I3: Ace Nursery | J3: DE23 8DH | K3: 206189 | L3: D | M3: 4
A4: Akaal Primary School | C4: 2014 | I4: Akaal Primary School | K4: 2014
A5: Allenton Community Primary School | C5: 2012 | I5: Allenton Community Primary School | K5: 2012
A6: Allestree Woodlands School | C6: 5414 | I6: Allestree Woodlands School | K6: 5414
A7: Al-Madinah | C7: 4000 | I7: Al-Madinah | K7: 4000
A8: Alvaston Achievers | C8: EY545705 | D8: P | E8: 3 | I8: Alvaston Infant and Nursery School | J8: E200201 | K8: 2443 | L8: M | M8: 1
A9: Alvaston Infant and Nursery School | C9: 2443 | D9: M | E9: 1 | I9: Alvaston Junior School | K9: 2442
A10: Alvaston Junior School | C10: 2442 | I10: An-Noor Nursery | J10: DE23 8FB | K10: EY362920 | L10: D | M10: 4
A11: An-Noor Nursery | C11: EY362920 | D11: D | E11: 4 | I11: Arboretum Primary School | J11: E200401 | K11: 2629 | L11: M | M11: 1
A12: Arboretum Primary School | C12: 2629 | D12: M | E12: 1 | I12: Ash Croft Primary School | K12: 2509
A13: Ash Croft Primary School | C13: 2509 | I13: Ashgate Nursery | J13: E100101 | K13: 1014 | L13: S | M13: 2
A14: Ashgate Nursery | B14: E100101 | C14: 1014 | D14: S | E14: 2 | I14: Ashgate Primary School | K14: 2005
A15: Ashgate Primary School | C15: 2005 | I15: Asterdale Primary School | J15: E200701 | K15: 2464 | L15: M | M15: 1
A16: Asterdale Primary School | C16: 2464 | D16: M | E16: 1 | I16: Beaufort Community Primary School | J16: E200801 | K16: 2004 | L16: M | M16: 1
A17: Beaufort Community Primary School | C17: 2004 | D17: M | E17: 1 | I17: Becket Primary School | J17: E200901 | K17: 2405 | L17: M | M17: 1
A18: Becket Primary School | C18: 2405 | D18: M | E18: 1 | I18: Becket Sure Start Children's Centre | J18: DE22 3WR | K18: EY380753 | L18: D | M18: 4
A19: Becket Sure Start Children's Centre | C19: EY380753 | D19: D | E19: 4 | I19: Best Start Sinfin | J19: DE24 9HW | K19: EY467568 | L19: D | M19: 4
A20: Best Start Sinfin | C20: EY467568 | D20: D | E20: 4 | I20: Bishop Lonsdale Church of England (Aided) Primary School | J20: E201001 | K20: 2011 | L20: M | M20: 1
A21: Bishop Lonsdale Church of England Aided Primary School | C21: 2011 | D21: M | E21: 1 | I21: Bizzy Kidz | J21: DE23 6AP | K21: EY450983 | L21: D | M21: 4
A22: Bizzy Kidz | C22: EY450983 | D22: D | E22: 4 | I22: Borrow Wood Primary School | J22: E201201 | K22: 5201 | L22: M | M22: 1
A23: Borrow Wood Primary School | C23: 5201 | D23: M | E23: 1 | I23: Boulton Lane Park Pre-School Playgroup | J23: DE24 0BD | K23: 206124 | L23: P | M23: 3
A24: Boulton Lane Park Pre-School Playgroup | C24: 206124 | D24: P | E24: 3 | I24: Brackensdale ER (Enhanced Resource) Primary School | K24: 2432 | L24: M | M24: 1
A25: Brackensdale ER (Enhanced Resource) Primary School | C25: 2432 | D25: M | E25: 1 | I25: Bramble Brook Pre-School Playgroup | J25: DE3 9HD | K25: EY282068 | L25: P | M25: 3
A26: Bramble Brook Pre-School Playgroup | C26: EY282068 | D26: P | E26: 3 | I26: Breadsall Hill Top Primary School | J26: E201601 | K26: 2447 | L26: M | M26: 1
A27: Breadsall Hill Top Primary School | C27: 2447 | D27: M | E27: 1 | I27: Brookfield Primary School | J27: E201801 | K27: 2512 | L27: M | M27: 1
A28: Brookfield Primary School | C28: 2512 | D28: M | E28: 1 | I28: Busy Bees Pre-School | J28: DE22 2HE | K28: 206126 | L28: P | M28: 3
A29: Busy Bees Pre-School | C29: 206126 | D29: P | E29: 3 | I29: Busy Bees-Derby, Heatherton | J29: DE23 3TZ | K29: 206111 | L29: D | M29: 4
A30: Busy Bees-Derby, Heatherton | C30: 206111 | D30: D | E30: 4 | I30: Carlton Private Day Nursery | J30: DE22 1GQ | K30: 206091 | L30: D | M30: 4
A31: Carlton Private Day Nursery | C31: 206091 | D31: D | E31: 4 | I31: Carlyle Infant School | J31: E201901 | K31: 2456 | L31: M | M31: 1
A32: Carlyle Infant School | C32: 2456 | D32: M | E32: 1 | I32: Cavendish Close Infant School | J32: E202001 | K32: 2449 | L32: M | M32: 1
A33: Cavendish Close Infant School | C33: 2449 | D33: M | E33: 1 | I33: Cavendish Close Junior School | K33: 2448
A34: Cavendish Close Junior School | C34: 2019 | I34: Central Nursery | J34: E100301 | K34: 1006 | L34: S | M34: 2
A35: Central Nursery | B35: E100301 | C35: 1006 | D35: S | E35: 2
A36: Chaddesden Park Primary School | B36: E202201 | C36: 2467 | D36: M | E36: 1 | I36: Chaddesden Park Junior School | K36: 2467
A37: Chellaston Academy | C37: 5402
A38: Chellaston Infant School | C38: 2455 | I38: Chaddesden Park Primary School | J38: E202201 | K38: 2467 | L38: M | M38: 1
A39: Chellaston Junior School | C39: 5203 | I39: Chellaston Academy | K39: 5402
A40: Cherry Tree Hill Primary School | C40: 2451 | D40: M | E40: 1 | I40: Chellaston Infant School | K40: 2455
A41: Childcare @ St James Centre | C41: EY396374 | D41: D | E41: 4 | I41: Chellaston Junior School | K41: 5203
A42: Chuckles Pre-School Playgroup | C42: 206128 | D42: P | E42: 3 | I42: Cherry Tree Hill Primary School | J42: E202601 | K42: 2451 | L42: M | M42: 1
A43: City of Derby Academy | C43: 4008 | I43: Childcare @ St James Centre | J43: DE23 8LU | K43: EY396374 | L43: D | M43: 4
A44: Cottons Farm Primary School | C44: 2430 | D44: M | E44: 1 | I44: Chuckles Pre-School Playgroup | J44: DE24 0RU | K44: 206128 | L44: P | M44: 3
A45: da Vinci Community College | C45: 4007 | I45: City of Derby Academy | K45: 4002
A46: Dale Community Primary School | C46: 2409 | I46: Cotton's Farm Primary School | J46: E206501 | K46: 2430 | L46: M | M46: 1
